Workbook

Sheet ARI
C1: 2014 | F1: 2015 | I1: 2016 | L1: 2017 | O1: 2018 | R1: 2019 | U1: 2020
A2: Player | B2: Pos. | C2: Base Salary | D2: Signing Bonus | E2: Cap Figure | F2: Base Salary | G2: Signing Bonus | H2: Cap Figure | I2: Base Salary | J2: Signing Bonus | K2: Cap Figure | L2: Base Salary | M2: Signing Bonus | N2: Cap Figure | O2: Base Salary | P2: Signing Bonus | Q2: Cap Figure | R2: Base Salary | S2: Signing Bonus | T2: Cap Figure | U2: Base Salary | V2: Signing Bonus | W2: Cap Figure
A3: OFFENSE
A4: Ryan Lindley | B4: QB | C4: 570000 | D4: 26327 | E4: =D4+C4 -> 596327 | F4: 660000 | G4: 26327 | H4: =G4+F4 -> 686327 | J4: UFA
A5: Carson Palmer | B5: QB | C5: 9000000 | D5: 2000000 | E5: =D5+C5 -> 11000000 | F5: 10000000 | G5: 2000000 | H5: =G5+F5 -> 12000000 | J5: UFA
A6: Drew Stanton | B6: QB | C6: 2000000 | D6: 666667 | E6: =D6+C6 -> 2666667 | F6: 3200000 | G6: 666667 | H6: =G6+F6 -> 3866667 | J6: UFA
A8: Marshawn Lynch | B8: RB | C8: 5500000 | E8: =D8+C8 -> 5500000 | F8: 7500000 | H8: =G8+F8 -> 7500000 | J8: UFA
A9: Stepfan Taylor | B9: RB | C9: 495000 | D9: 50125 | E9: =D9+C9 -> 545125 | F9: 585000 | G9: 50125 | H9: =G9+F9 -> 635125 | I9: 675000 | J9: 50125 | K9: =J9+I9 -> 725125 | M9: UFA
A10: De' Anthony Thomas | B10: RB | C10: 420000 | D10: 47021.82419 | E10: 467021.8242 | F10: 525653.376 | G10: 47021.82419 | H10: 572675.2002 | I10: 632718.7395 | J10: 47021.82419 | K10: 679740.5637 | L10: 744763.8874 | M10: 47021.82419 | N10: 791785.7116 | P10: UFA
A11: Robert Hughes | B11: FB | C11: 495000 | E11: =D11+C11 -> 495000 | F11: 585000 | H11: =G11+F11 -> 585000 | J11: RFA
A13: Martellus Bennett | B13: TE | C13: 4900000 | E13: =D13+C13 -> 4900000 | F13: 5000000 | H13: =G13+F13 -> 5000000 | I13: 5185000 | K13: =J13+I13 -> 5185000 | M13: UFA
A14: Robert Housler | B14: TE | C14: 1389000 | D14: 171023 | E14: =D14+C14 -> 1560023 | G14: UFA
A16: Jaron Brown | B16: WR | C16: 495000 | D16: 3000 | E16: =D16+C16 -> 498000 | F16: 585000 | G16: 3000 | H16: =G16+F16 -> 588000 | J16: RFA
A17: Larry Fitzgerald | B17: WR | C17: 6600000 | D17: 2000000 | E17: 8600000 | F17: 21600000 | G17: 2000000 | H17: =G17+F17 -> 23600000 | I17: 17600000 | K17: =J17+I17 -> 17600000 | L17: 17350000 | N17: =M17+L17 -> 17350000 | O17: 17350000 | Q17: =P17+O17 -> 17350000 | S17: UFA
A18: Michael Floyd | B18: WR | C18: 1296500 | D18: 1423000 | E18: 2719500 | F18: 1749750 | G18: 1423000 | H18: 3172750 | J18: 3-25 Option
A19: Devin Hester | B19: WR | C19: 855000 | E19: 855000 | F19: 955000 | H19: 955000 | I19: 955000 | K19: 955000 | M19: UFA
A20: Darrius Heyward-Bey | B20: WR | C20: 730000 | E20: 730000 | F20: 855000 | H20: =G20+F20 -> 855000 | I20: 855000 | K20: =J20+I20 -> 855000 | M20: UFA
A22: Lyle Sendlein | B22: C | C22: 3425000 | D22: 700000 | E22: =D22+C22 -> 4125000 | F22: 3575000 | G22: 700000 | H22: =G22+F22 -> 4275000 | J22: UFA
A23: Philip Blake | B23: G | C23: 420000 | E23: 420000 | F23: 510000 | H23: 510000 | J23: RFA
A24: Daryn Colledge | B24: G | C24: 5775000 | D24: 1500000 | E24: 7275000 | F24: 5775000 | G24: 1500000 | H24: 7275000 | J24: UFA
A25: Jonathan Cooper | B25: G | C25: 1066318 | D25: 2240273 | E25: 3306591 | F25: 1727637 | G25: 2240273 | H25: 3967910 | I25: 2388955 | J25: 2240273 | K25: =J25+I25 -> 4629228 | M25: TOP10 Option
A26: Paul Fanaika | B26: G | C26: 730000 | D26: 50000 | E26: 780000 | G26: UFA
A27: Earl Watford | B27: G | C27: 495000 | D27: 108716 | E27: 603716 | F27: 585000 | G27: 108716 | H27: =G27+F27 -> 693716 | I27: 675000 | J27: 108716 | K27: =J27+I27 -> 783716 | M27: UFA
A28: Nate Potter | B28: LT | C28: 570000 | D28: 14856 | E28: 584856 | F28: 660000 | G28: 14856 | H28: 674856 | J28: UFA
A29: Bradley Sowell | B29: LT | C29: 570000 | E29: 570000 | G29: RFA
A30: JaWuan James | B30: OT | C30: 420000 | D30: 297122.515 | E30: 717122.515 | F30: 624697.0561 | G30: 297122.515 | H30: 921819.5711 | I30: 797037.2368 | J30: 297122.515 | K30: 1094159.752 | L30: 977393.2398 | M30: 297122.515 | N30: 1274515.755 | P30: UFA
A31: Bobby Massie | B31: RT | C31: 570000 | D31: 110845 | E31: 680845 | F31: 660000 | G31: 110845 | H31: =G31+F31 -> 770845 | J31: UFA
A32: DEFENSE
A33: Montori Hughes | B33: DE | C33: 495000 | E33: =D33+C33 -> 495000 | F33: 585000 | H33: =G33+F33 -> 585000 | I33: 675000 | K33: =J33+I33 -> 675000 | M33: UFA
A34: Khyri Thornton | B34: DT | C34: 420000 | D34: 25735.45732 | E34: 445735.4573 | F34: 527356.2854 | G34: 25735.45732 | H34: 553091.7427 | I34: 630760.3938 | J34: 25735.45732 | K34: 656495.8511 | L34: 738973.9956 | M34: 25735.45732 | N34: 764709.4529 | P34: UFA
A35: Dan Williams | B35: DT | C35: 2085000 | D35: 100000 | E35: 2185000 | G35: UFA
A37: Calais Campbell | B37: DE | C37: 8250000 | D37: 3000000 | E37: =D37+C37 -> 11250000 | F37: 11750000 | G37: 3000000 | H37: =G37+F37 -> 14750000 | I37: 12250000 | J37: 3000000 | K37: =J37+I37 -> 15250000 | M37: UFA
A38: Darnell Dockett | B38: DE | C38: 8750000 | E38: 8750000 | F38: 9800000 | H38: 9800000 | J38: UFA
A39: Dontay Moch | B39: DE | C39: 570000 | E39: 570000 | G39: RFA
A40: Adrian Tracy | B40: DE | C40: 495000 | E40: 495000 | G40: RFA
A42: Audie Cole | B42: ILB | C42: 570000 | E42: =D42+C42 -> 570000 | F42: 660000 | H42: =G42+F42 -> 660000 | J42: UFA
A43: Brock Coyle | B43: ILB | C43: 420000 | E43: 420000 | F43: 510000 | H43: 510000 | I43: 600000 | K43: 600000 | M43: RFA
A44: Josh McNary | B44: ILB | C44: 495000 | E44: =D44+C44 -> 495000 | G44: ERFA
A45: Kevin Minter | B45: ILB | C45: 604559 | D45: 393236 | E45: =D45+C45 -> 997795 | F45: 804118 | G45: 393236 | H45: =G45+F45 -> 1197354 | I45: 1003667 | J45: 393236 | K45: =J45+I45 -> 1396903 | M45: UFA
A46: Daryl Washington | B46: ILB | C46: 5500000 | D46: 500000 | E46: 6000000 | F46: 6000000 | G46: 500000 | H46: 6500000 | I46: 7000000 | J46: 500000 | K46: 7500000 | L46: 7000000 | N46: =M46+L46 -> 7000000 | P46: UFA
A47: John Abraham | B47: OLB | C47: 3000000 | D47: 500000 | E47: 3500000 | G47: UFA
A48: Sam Acho | B48: OLB | C48: 1389000 | D48: 118607 | E48: 1507607 | G48: UFA
A49: Lorenzo Alexander | B49: OLB | C49: 1005000 | D49: 450000 | E49: 1455000 | F49: 1550000 | G49: 450000 | H49: =G49+F49 -> 2000000 | J49: UFA
A50: Jonathan Newsome | B50: OLB | C50: 420000 | E50: 420000 | F50: 510000 | H50: 510000 | I50: 600000 | K50: 600000 | M50: RFA
A52: Tony Jefferson | B52: S | C52: 495000 | D52: 3366 | E52: =D52+C52 -> 498366 | F52: 585000 | G52: 3368 | H52: =G52+F52 -> 588368 | J52: RFA
A53: Rashad Johnson | B53: S | C53: 1800000 | D53: 333333 | E53: =D53+C53 -> 2133333 | F53: 1500000 | G53: 333334 | H53: =G53+F53 -> 1833334 | J53: UFA
A54: Tyrann Mathieu | B54: S | C54: 647031 | D54: 66250 | E54: =D54+C54 -> 713281 | F54: 789687 | G54: 66250 | H54: =G54+F54 -> 855937 | I54: 846407 | J54: 66250 | K54: =J54+I54 -> 912657 | M54: UFA
A55: Curtis Taylor | B55: S | C55: 645000 | E55: =D55+C55 -> 645000 | G55: ERFA
A56: Dezmen Southward | B56: S | C56: 420000 | D56: 28055.37825 | E56: 448055.3783 | F56: 527170.6917 | G56: 28055.37825 | H56: 555226.0699 | I56: 630973.8265 | J56: 28055.37825 | K56: 659029.2048 | L56: 739605.0141 | M56: 28055.37825 | N56: 767660.3924 | P56: UFA
A58: Justin Bethel | B58: CB | C58: 570000 | D58: 28556 | E58: =D58+C58 -> 598556 | F58: 660000 | G58: 28556 | H58: =G58+F58 -> 688556 | J58: UFA
A59: Travis Carrie | B59: CB | C59: 420000 | E59: 420000 | F59: 510000 | H59: 510000 | I59: 600000 | K59: 600000 | M59: RFA
A60: Patrick Peterson | B60: CB | C60: 2888114 | D60: 2975818 | E60: 5863932 | F60: 9457833 | G60: 0 | H60: 9457833 | J60: UFA
A61: Jerraud Powers | B61: CB | C61: 3750000 | D61: 1000000 | E61: 4750000 | F61: 3500000 | G61: 1000000 | H61: 4500000 | J61: UFA
A62: Jaylen Watkins | B62: CB | C62: 420000 | D62: 111922.0652 | E62: 531922.0652 | F62: 520461.3567 | G62: 111922.0652 | H62: 632383.422 | I62: 638689.5617 | J62: 111922.0652 | K62: 750611.627 | L62: 762416.753 | M62: 111922.0652 | N62: 874338.8182 | P62: UFA
A64: Jay Feely | B64: K | C64: 955000 | E64: 955000 | F64: 955000 | H64: 955000 | J64: UFA
A65: Mike Leach | B65: LS | C65: 1025000 | D65: 66667 | E65: =D65+C65 -> 1091667 | G65: UFA
A66: Dave Zastudil | B66: P | C66: 980000 | D66: 272500 | E66: =D66+C66 -> 1252500 | F66: 1425000 | G66: 272500 | H66: =G66+F66 -> 1697500 | J66: UFA
A69: Total Players | C69: =COUNTA(C4:C67) -> 53 | F69: =COUNTA(F4:F67) -> 42 | I69: =COUNTA(I4:I67) -> 20 | L69: =COUNTA(L4:L67) -> 7
A70: Top 51 Salary | C70: =SUM(LARGE(ISNUMBER(E4:E67)*E4:E67,ROW(INDIRECT("1:51")))) -> 118813544.2 | F70: =SUM(LARGE(ISNUMBER(H4:H67)*H4:H67,ROW(INDIRECT("1:51")))) -> 138445274 | I70: =SUM(LARGE(ISNUMBER(K4:K67)*K4:K67,ROW(INDIRECT("1:51")))) -> 62107666 | L70: =SUM(LARGE(ISNUMBER(N4:N67)*N4:N67,ROW(INDIRECT("1:51")))) -> 28823010.13
A71: Dead Money | C71: 11225423 | F71: 238214
A72: Cap Rollover | C72: 5750007 | F72: =C73 -> 8711039.76 | I72: =F73 -> 3027551.754 | L72: =I73 -> 73919885.76
A73: Cap Space | C73: =133000000-C70-C71+C72 -> 8711039.76 | F73: =133000000-F70-F71+F72 -> 3027551.754 | I73: =133000000-I70-I71+I72 -> 73919885.76 | L73: =133000000-L70-L71+L72 -> 178096875.6
A74: June 1st Cut | B74: 0/2
A75: Paycut | B75: 0/2
A76: Restructure | B76: 0/3
A78: Practice Squad
A79: Brett Brackett | B79: TE | C79: 420000 | E79: =D79+C79 -> 420000 | F79: 510000 | H79: =G79+F79 -> 510000 | J79: RFA
A80: Dan Buckner | B80: WR | C80: 420000 | E80: 420000 | F80: 510000 | H80: =G80+F80 -> 510000 | J80: RFA
A81: Laron Byrd | B81: WR | C81: 570000 | E81: 570000 | G81: RFA
A82: Tommie Draheim | B82: G | C82: 420000 | E82: 420000 | F82: 510000 | H82: =G82+F82 -> 510000 | J82: RFA
A83: Kenny Demens | B83: ILB | C83: 495000 | E83: 495000 | F83: 585000 | H83: =G83+F83 -> 585000 | J83: RFA
A84: JoJo Dickson | B84: ILB | C84: 420000 | E84: 420000 | F84: 510000 | H84: =G84+F84 -> 510000 | J84: RFA
A85: Dan Giordano | B85: OLB | C85: 495000 | E85: 495000 | F85: 585000 | G85: 2750 | H85: =G85+F85 -> 587750 | J85: RFA
A86: Orhian Johnson | B86: S | C86: 420000 | E86: 420000 | F86: 510000 | H86: =G86+F86 -> 510000 | J86: RFA

Sheet ATL
C1: 2014 | F1: 2015 | I1: 2016 | L1: 2017 | O1: 2018 | R1: 2019 | U1: 2020
A2: Player | B2: Pos. | C2: Base Salary | D2: Signing Bonus | E2: Cap Figure | F2: Base Salary | G2: Signing Bonus | H2: Cap Figure | I2: Base Salary | J2: Signing Bonus | K2: Cap Figure | L2: Base Salary | M2: Signing Bonus | N2: Cap Figure | O2: Base Salary | P2: Signing Bonus | Q2: Cap Figure | R2: Base Salary | S2: Signing Bonus | T2: Cap Figure | U2: Base Salary | V2: Signing Bonus | W2: Cap Figure
A3: OFFENSE
A4: David Fales | B4: QB | C4: 420000 | D4: 28186.45325 | E4: =D4+C4 -> 448186.4533 | F4: 527160.2057 | G4: 28186.45325 | H4: =G4+F4 -> 555346.6589 | I4: 630985.8854 | J4: 28186.45325 | K4: =J4+I4 -> 659172.3387 | L4: 739640.6665 | M4: 28186.45325 | N4: =M4+L4 -> 767827.1198 | P4: UFA
A5: Johnny Football | B5: QB | C5: 420000 | D5: 2735718.542 | E5: =D5+C5 -> 3155718.542 | F5: 1270924.758 | G5: 2735718.542 | H5: =G5+F5 -> 4006643.3 | I5: 2019992.853 | J5: 2735718.542 | K5: =J5+I5 -> 4755711.395 | L5: 2803901.325 | M5: 2735718.542 | N5: =M5+L5 -> 5539619.867 | P5: TOP10 Option
A6: Mark Sanchez | B6: QB | C6: 730000 | E6: =D6+C6 -> 730000 | F6: 855000 | H6: =G6+F6 -> 855000 | I6: 855000 | K6: =J6+I6 -> 855000 | L6: 980000 | N6: =M6+L6 -> 980000 | P6: UFA
A8: Carlos Hyde | B8: RB | C8: 420000 | D8: 511371.5293 | E8: =D8+C8 -> 931371.5293 | F8: 681471.5743 | G8: 511371.5293 | H8: =G8+F8 -> 1192843.104 | I8: 904481.3719 | J8: 511371.5293 | K8: =J8+I8 -> 1415852.901 | L8: 1137863.718 | M8: 511371.5293 | N8: =M8+L8 -> 1649235.248 | P8: UFA
A9: Rashad Jennings | B9: RB | C9: 814000 | E9: =D9+C9 -> 814000 | F9: 814000 | H9: =G9+F9 -> 814000 | I9: 814000 | K9: =J9+I9 -> 814000 | M9: UFA
A10: Maurice Jones-Drew | B10: RB | C10: 0 | D10: 1000000 | E10: =D10+C10 -> 1000000 | F10: 0 | G10: 1000000 | H10: =G10+F10 -> 1000000 | J10: UFA
A11: Bishop Sankey | B11: RB | C11: 420000 | D11: 265768.9488 | E11: =D11+C11 -> 685768.9488 | F11: 616388.1159 | G11: 265768.9488 | H11: =G11+F11 -> 882157.0647 | I11: 781313.1324 | J11: 265768.9488 | K11: =J11+I11 -> 1047082.081 | L11: 953909.0798 | M11: 265768.9488 | N11: =M11+L11 -> 1219678.029 | P11: UFA
A12: Jed Collins | B12: FB | C12: 730000 | E12: =D12+C12 -> 730000 | F12: 730000 | H12: =G12+F12 -> 730000 | I12: 730000 | K12: =J12+I12 -> 730000 | M12: UFA
A14: John Carlson | B14: TE | C14: 855000 | E14: =D14+C14 -> 855000 | F14: 855000 | H14: =G14+F14 -> 855000 | I14: 1000000 | K14: =J14+I14 -> 1000000 | L14: 1290000 | N14: =M14+L14 -> 1290000 | P14: UFA
A15: Dustin Keller | B15: TE | C15: 855000 | E15: =D15+C15 -> 855000 | F15: 855000 | H15: =G15+F15 -> 855000 | I15: 1000000 | K15: =J15+I15 -> 1000000 | L15: 1290000 | N15: =M15+L15 -> 1290000 | P15: UFA
A16: Levine Toilolo | B16: TE | C16: 495000 | D16: 75146 | E16: 570146 | F16: 585000 | G16: 75146 | H16: =G16+F16 -> 660146 | I16: 675000 | J16: 75146 | K16: =J16+I16 -> 750146 | M16: UFA
A18: Jared Abbrederis | B18: WR | C18: 420000 | D18: 156135.9006 | E18: =D18+C18 -> 576135.9006 | F18: 532855.7235 | G18: 156135.9006 | H18: =G18+F18 -> 688991.6241 | I18: 661667.201 | J18: 156135.9006 | K18: =J18+I18 -> 817803.1016 | L18: 796469.9101 | M18: 156135.9006 | N18: =M18+L18 -> 952605.8107 | P18: UFA
A19: Earl Bennett | B19: WR | C19: 855000 | E19: 855000 | F19: 855000 | H19: 855000 | I19: 855000 | K19: =J19+I19 -> 855000 | M19: UFA
A20: Jerricho Cotchery | B20: WR | C20: 955000 | E20: 955000 | F20: 955000 | H20: 955000 | I20: 955000 | K20: =J20+I20 -> 955000 | M20: UFA
A21: Eric Decker | B21: WR | C21: 1400000 | D21: 600000 | E21: 2000000 | F21: 6200000 | G21: 600000 | H21: 6800000 | I21: 8000000 | J21: 600000 | K21: =J21+I21 -> 8600000 | L21: 9700000 | M21: 600000 | N21: =M21+L21 -> 10300000 | O21: 12700000 | P21: 600000 | Q21: =P21+O21 -> 13300000 | R21: 17000000 | T21: =S21+R21 -> 17000000 | U21: 22000000 | W21: =V21+U21 -> 22000000 | Y21: UFA
A22: Stephen Hill | B22: WR | C22: 818394 | E22: 818394 | F22: 1032590 | H22: 1032590 | J22: UFA
A23: Marquise Lee | B23: WR | C23: 420000 | D23: 1150369.614 | E23: 1570369.614 | F23: 851137.1962 | G23: 1150369.614 | H23: =G23+F23 -> 2001506.81 | I23: 1225331.948 | J23: 1150369.614 | K23: =J23+I23 -> 2375701.561 | L23: 1616931.106 | M23: 1150369.614 | N23: =M23+L23 -> 2767300.72 | P23: TOP3-25 Option
A25: Brian De La Puente | B25: C | C25: 0 | D25: 1500000 | E25: =D25+C25 -> 1500000 | F25: 1800000 | G25: 1500000 | H25: =G25+F25 -> 3300000 | I25: 2750000 | J25: 1500000 | K25: =J25+I25 -> 4250000 | L25: 4000000 | M25: 1500000 | N25: =M25+L25 -> 5500000 | O25: 5200000 | P25: 1500000 | Q25: =P25+O25 -> 6700000 | S25: UFA
A26: Justin Blalock | B26: G | C26: 700000 | D26: 300000 | E26: =D26+C26 -> 1000000 | F26: 800000 | G26: 300000 | H26: =G26+F26 -> 1100000 | I26: 1100000 | J26: 300000 | K26: =J26+I26 -> 1400000 | L26: 1500000 | M26: 300000 | N26: =M26+L26 -> 1800000 | O26: 1900000 | P26: 300000 | Q26: =P26+O26 -> 2200000 | S26: UFA
A27: Gabe Carimi | B27: G | C27: 785000 | D27: 65000 | E27: =D27+C27 -> 850000 | G27: UFA
A28: Laurent Duvernay-Tardiff | B28: G | C28: 420000 | D28: 12841.0874 | E28: =D28+C28 -> 432841.0874 | F28: 528387.835 | G28: 12841.0874 | H28: =G28+F28 -> 541228.9224 | I28: 629574.1117 | J28: 12841.0874 | K28: =J28+I28 -> 642415.1991 | L28: 735466.727 | M28: 12841.0874 | N28: =M28+L28 -> 748307.8144 | P28: UFA
A29: Ben Grubbs | B29: G | C29: 6200000 | D29: 300000 | E29: 6500000 | F29: 7600000 | G29: 300000 | H29: =G29+F29 -> 7900000 | I29: 8300000 | J29: 300000 | K29: =J29+I29 -> 8600000 | M29: UFA
A30: Harvey Dahl | B30: RT | C30: 800000 | D30: 200000 | E30: 1000000 | F30: 1350000 | G30: 200000 | H30: =G30+F30 -> 1550000 | I30: 1750000 | J30: 200000 | K30: =J30+I30 -> 1950000 | M30: UFA
A31: James Hurst | B31: RT | C31: 420000 | D31: 53807.88598 | E31: =D31+C31 -> 473807.886 | F31: 525110.4911 | G31: 53807.88598 | H31: =G31+F31 -> 578918.377 | I31: 633343.0572 | J31: 53807.88598 | K31: =J31+I31 -> 687150.9432 | L31: 746609.6962 | M31: 53807.88598 | N31: =M31+L31 -> 800417.5822 | P31: UFA
A32: Jermon Bushrod | B32: LT | C32: 5100000 | E32: =D32+C32 -> 5100000 | F32: 5850000 | H32: =G32+F32 -> 5850000 | I32: 6500000 | K32: =J32+I32 -> 6500000 | L32: 6700000 | N32: =M32+L32 -> 6700000 | P32: UFA
A33: Erik Pears | B33: LT | C33: 500000 | D33: 500000 | E33: =D33+C33 -> 1000000 | F33: 1100000 | G33: 500000 | H33: =G33+F33 -> 1600000 | I33: 1400000 | J33: 500000 | K33: =J33+I33 -> 1900000 | M33: UFA
A34: DEFENSE
A35: Anthony Johnson | B35: DT | C35: 420000 | D35: 45684.43293 | E35: =D35+C35 -> 465684.4329 | F35: 525760.3673 | G35: 45684.43293 | H35: =G35+F35 -> 571444.8002 | I35: 632595.6995 | J35: 45684.43293 | K35: =J35+I35 -> 678280.1325 | L35: 744400.117 | M35: 45684.43293 | N35: =M35+L35 -> 790084.5499 | P35: UFA
A36: Jeremiah Ratliff | B36: NT | C36: 800000 | D36: 200000 | E36: =D36+C36 -> 1000000 | F36: 2200000 | G36: 200000 | H36: =G36+F36 -> 2400000 | J36: UFA
A37: Ndamukong Suh | B37: NT | C37: 0 | D37: 7000000 | E37: 7000000 | F37: 0 | G37: 7000000 | H37: 7000000 | I37: 500000 | J37: 7000000 | K37: =J37+I37 -> 7500000 | L37: 2500000 | M37: 7000000 | N37: =M37+L37 -> 9500000 | O37: 5000000 | P37: 7000000 | Q37: =P37+O37 -> 12000000 | R37: 15000000 | T37: =S37+R37 -> 15000000 | U37: 19000000 | W37: =V37+U37 -> 19000000 | Y37: UFA
A39: Jonathan Babineaux | B39: DE | C39: 0 | D39: 1300000 | E39: 1300000 | F39: 2100000 | G39: 1300000 | H39: 3400000 | I39: 3000000 | J39: 1300000 | K39: 4300000 | M39: UFA
A40: Henry Melton | B40: DE | C40: 0 | D40: 2000000 | E40: =D40+C40 -> 2000000 | F40: 3200000 | G40: 2000000 | H40: =G40+F40 -> 5200000 | I40: 4700000 | J40: 2000000 | K40: =J40+I40 -> 6700000 | L40: 6300000 | M40: 2000000 | N40: =M40+L40 -> 8300000 | O40: 8300000 | P40: 2000000 | Q40: =P40+O40 -> 10300000 | S40: UFA
A41: Antonio Smith | B41: DE | C41: 500000 | D41: 500000 | E41: =D41+C41 -> 1000000 | F41: 1100000 | G41: 500000 | H41: =G41+F41 -> 1600000 | I41: 1400000 | J41: 500000 | K41: =J41+I41 -> 1900000 | M41: UFA
A43: Joplo Bartu | B43: ILB | C43: 495000 | D43: 1666 | E43: =D43+C43 -> 496666 | F43: 585000 | G43: 1668 | H43: =G43+F43 -> 586668 | J43: RFA
A44: Karlos Dansby | B44: ILB | C44: 150000 | D44: 3000000 | E44: =D44+C44 -> 3150000 | F44: 150000 | G44: 3000000 | H44: =G44+F44 -> 3150000 | I44: 500000 | J44: 3000000 | K44: =J44+I44 -> 3500000 | L44: 1500000 | M44: 3000000 | N44: =M44+L44 -> 4500000 | O44: 2700000 | P44: 3000000 | Q44: =P44+O44 -> 5700000 | S44: UFA
A45: Akeem Dent | B45: ILB | C45: 725000 | D45: 135725 | E45: =D45+C45 -> 860725 | G45: UFA
A46: Darryl Sharpton | B46: ILB | C46: 550000 | D46: 200000 | E46: =D46+C46 -> 750000 | F46: 900000 | G46: 200000 | H46: =G46+F46 -> 1100000 | I46: 1100000 | J46: 200000 | K46: =J46+I46 -> 1300000 | L46: 1450000 | M46: 200000 | N46: =M46+L46 -> 1650000 | P46: UFA
A47: Jared Allen | B47: OLB | C47: 0 | D47: 2000000 | E47: =D47+C47 -> 2000000 | F47: 2550000 | G47: 2000000 | H47: =G47+F47 -> 4550000 | I47: 3850000 | J47: 2000000 | K47: =J47+I47 -> 5850000 | L47: 5600000 | M47: 2000000 | N47: =M47+L47 -> 7600000 | P47: UFA
A48: Cliff Avril | B48: OLB | C48: 0 | D48: 2000000 | E48: =D48+C48 -> 2000000 | F48: 3000000 | G48: 2000000 | H48: =G48+F48 -> 5000000 | I48: 4000000 | J48: 2000000 | K48: =J48+I48 -> 6000000 | L48: 5500000 | M48: 2000000 | N48: =M48+L48 -> 7500000 | O48: 7500000 | P48: 2000000 | Q48: =P48+O48 -> 9500000 | S48: UFA
A49: Chris Clemons | B49: OLB | C49: 1000000 | D49: 500000 | E49: 1500000 | G49: UFA
A50: Jackson Jeffcoat | B50: OLB | C50: 420000 | D50: 126393.5978 | E50: =D50+C50 -> 546393.5978 | F50: 519303.6341 | G50: 126393.5978 | H50: =G50+F50 -> 645697.2319 | I50: 640020.9427 | J50: 126393.5978 | K50: =J50+I50 -> 766414.5405 | L50: 766353.0098 | M50: 126393.5978 | N50: =M50+L50 -> 892746.6076 | P50: UFA
A51: Adrian Hubbard | B51: OLB | C51: 420000 | D51: 125930.0398 | E51: =D51+C51 -> 545930.0398 | F51: 519340.7188 | G51: 125930.0398 | H51: =G51+F51 -> 645270.7586 | I51: 639978.2954 | J51: 125930.0398 | K51: =J51+I51 -> 765908.3352 | L51: 766226.9221 | M51: 125930.0398 | N51: =M51+L51 -> 892156.9619 | P51: UFA
A53: Alden Darby | B53: S | C53: 420000 | D53: 12391.38293 | E53: =D53+C53 -> 432391.3829 | F53: 528423.8113 | G53: 12391.38293 | H53: =G53+F53 -> 540815.1942 | I53: 629532.7389 | J53: 12391.38293 | K53: =J53+I53 -> 641924.1219 | L53: 735344.4074 | M53: 12391.38293 | N53: =M53+L53 -> 747735.7903 | P53: UFA
A54: William Moore | B54: S | C54: 3500000 | D54: 1650000 | E54: =D54+C54 -> 5150000 | F54: 4000000 | G54: 1650000 | H54: =G54+F54 -> 5650000 | I54: 5000000 | J54: 1650000 | K54: =J54+I54 -> 6650000 | L54: 7000000 | M54: 1650000 | N54: =M54+L54 -> 8650000 | P54: UFA
A55: Sean Parker | B55: S | C55: 420000 | D55: 16052.95772 | E55: =D55+C55 -> 436052.9577 | F55: 528130.8853 | G55: 16052.95772 | H55: =G55+F55 -> 544183.8431 | I55: 629869.6038 | J55: 16052.95772 | K55: =J55+I55 -> 645922.5615 | L55: 736340.3557 | M55: 16052.95772 | N55: =M55+L55 -> 752393.3134 | P55: UFA
A57: Zackary Bowman | B57: CB/S | C57: 600000 | D57: 150000 | E57: =D57+C57 -> 750000 | F57: 1100000 | G57: 150000 | H57: =G57+F57 -> 1250000 | I57: 1300000 | J57: 150000 | K57: =J57+I57 -> 1450000 | M57: UFA
A58: Adam Jones | B58: CB | C58: 2050000 | E58: =D58+C58 -> 2050000 | F58: 1700000 | H58: =G58+F58 -> 1700000 | J58: UFA
A59: Robert McClain | B59: CB | C59: 2182244 | E59: =D59+C59 -> 2182244 | G59: UFA
A60: Louchiez Purifoy | B60: CB | C60: 420000 | D60: 148110.4874 | E60: =D60+C60 -> 568110.4874 | F60: 528595.7647 | G60: 148110.4874 | H60: =G60+F60 -> 676706.2521 | I60: 655110.4118 | J60: 148110.4874 | K60: =J60+I60 -> 803220.8992 | L60: 787509.4611 | M60: 148110.4874 | N60: =M60+L60 -> 935619.9485 | P60: UFA
A61: Richard Sherman | B61: CB | C61: 0 | D61: 8400000 | E61: =D61+C61 -> 8400000 | F61: 0 | G61: 8400000 | H61: =G61+F61 -> 8400000 | I61: 0 | J61: 8400000 | K61: =J61+I61 -> 8400000 | L61: 800000 | M61: 8400000 | N61: =M61+L61 -> 9200000 | O61: 1900000 | P61: 8400000 | Q61: =P61+O61 -> 10300000 | R61: 13000000 | T61: =S61+R61 -> 13000000 | U61: 16500000 | W61: =V61+U61 -> 16500000 | Y61: UFA
A63: Matt Bryant | B63: K | C63: 2750000 | D63: 562500 | E63: =D63+C63 -> 3312500 | G63: UFA
A64: Josh Harris | B64: LS | C64: 570000 | D64: 833 | E64: 570833 | G64: RFA
A65: Matt Bosher | B65: P | C65: 645000 | D65: 23950 | E65: 668950 | G65: UFA
A68: Total Players | C68: =COUNTA(C4:C66) -> 52 | F68: =COUNTA(F4:F66) -> 45 | I68: =COUNTA(I4:I66) -> 40 | L68: =COUNTA(L4:L66) -> 29 | O68: =COUNTA(O4:O66) -> 8
A69: Top 51 Salary | C69: =SUM(LARGE(ISNUMBER(E3:E72)*E3:E72,ROW(INDIRECT("1:51")))) -> 84110829.48 | F69: =SUM(LARGE(ISNUMBER(H3:H72)*H3:H72,ROW(INDIRECT("1:51")))) -> 101770157.9 | I69: =SUM(LARGE(ISNUMBER(K3:K72)*K3:K72,ROW(INDIRECT("1:51")))) -> 110411706.1 | L69: =SUM(LARGE(ISNUMBER(N3:N72)*N3:N72,ROW(INDIRECT("1:51")))) -> 104215729.4 | O69: =SUM(LARGE(ISNUMBER(Q3:Q72)*Q3:Q72,ROW(INDIRECT("1:51")))) -> 70000000
A70: Dead Money | C70: 51701583 | F70: 7253689
A71: Cap Rollover | C71: 3129200 | F71: =C72 -> 316787.5234 | I71: =F72 -> 24292940.58 | L71: =I72 -> 46881234.47 | O71: =L72 -> 75665505.11
A72: Cap Space | C72: =133000000-C69-C70+C71 -> 316787.5234 | F72: =133000000-F69-F70+F71 -> 24292940.58 | I72: =133000000-I69-I70+I71 -> 46881234.47 | L72: =133000000-L69-L70+L71 -> 75665505.11 | O72: =133000000-O69-O70+O71 -> 138665505.1
A73: June 1st Cut | B73: 2/2
A74: Paycut | B74: 2/2
A75: Restructure | B75: 1/3
A77: Practice Squad
A78: Keith Price | B78: QB | C78: 420000 | E78: =D78+C78 -> 420000 | F78: 528131.0558 | G78: 16050.82642 | H78: =G78+F78 -> 544181.8823 | I78: 629869.4077 | J78: 16050.82642 | K78: =J78+I78 -> 645920.2342 | L78: 736339.776 | M78: 16050.82642 | N78: =M78+L78 -> 752390.6024 | P78: UFA
A79: Brett Smith | B79: QB | C79: 420000 | E79: 420000 | F79: 528042.0527 | G79: 15937.86748 | H79: 543979.9202 | I79: 629742.6465 | J79: 15937.86748 | K79: 645680.514 | L79: 736173.5004 | M79: 15937.86748 | N79: 752111.3679 | P79: UFA
A80: Isaiah Crowell | B80: RB | C80: 420000 | E80: 420000 | F80: 528400.7933 | G80: 12679.10854 | H80: 541079.9018 | I80: 629559.2097 | J80: 12679.10854 | K80: 642238.3182 | L80: 735422.6687 | M80: 12679.10854 | N80: 748101.7773 | P80: UFA
A81: Jeremy Butler | B81: WR | C81: 420000 | E81: 420000 | F81: 528436.9401 | G81: 12227.27276 | H81: 540664.2129 | I81: 629517.6408 | J81: 12227.27276 | K81: 641744.9136 | L81: 735299.7694 | M81: 12227.27276 | N81: 747527.0422 | P81: UFA
A82: Jalen Saunders | B82: WR | C82: 420000 | E82: 420000 | F82: 527201.4677 | G82: 27670.67846 | H82: 554872.1461 | I82: 630938.4341 | J82: 27670.67846 | K82: 658609.1126 | L82: 739500.3758 | M82: 27670.67846 | N82: 767171.0542 | P82: UFA
A83: Nate Askew | B83: OLB | C83: 420000 | E83: 420000 | F83: 510000 | H83: 510000 | I83: 600000 | K83: 600000 | M83: RFA
A84: Tevin McDonald | B84: S | C84: 420000 | E84: =D84+C84 -> 420000 | F84: 528436.9401 | G84: 12227.27276 | H84: =G84+F84 -> 540664.2129 | I84: 629517.6408 | J84: 12227.27276 | K84: =J84+I84 -> 641744.9136 | L84: 735299.7694 | M84: 12227.27276 | N84: =M84+L84 -> 747527.0422 | P84: UFA
A85: Gregory Ducre | B85: CB | C85: 420000 | E85: 420000 | F85: 510000 | H85: 510000 | I85: 600000 | K85: 600000 | M85: RFA

Sheet BAL
C1: 2014 | F1: 2015 | I1: 2016 | L1: 2017 | O1: 2018 | R1: 2019 | U1: 2020
A2: Player | B2: Pos. | C2: Base Salary | D2: Signing Bonus | E2: Cap Figure | F2: Base Salary | G2: Signing Bonus | H2: Cap Figure | I2: Base Salary | J2: Signing Bonus | K2: Cap Figure | L2: Base Salary | M2: Signing Bonus | N2: Cap Figure | O2: Base Salary | P2: Signing Bonus | Q2: Cap Figure | R2: Base Salary | S2: Signing Bonus | T2: Cap Figure | U2: Base Salary | V2: Signing Bonus | W2: Cap Figure
A3: OFFENSE
A4: Joe Flacco | B4: QB | C4: 9000000 | D4: 5800000 | E4: =D4+C4 -> 14800000 | F4: 8750000 | G4: 5800000 | H4: =G4+F4 -> 14550000 | I4: 22750000 | J4: 5800000 | K4: =J4+I4 -> 28550000 | L4: 22750000 | M4: 5800000 | N4: =M4+L4 -> 28550000 | O4: 24750000 | Q4: =P4+O4 -> 24750000 | S4: UFA
A5: Nick Stephens | B5: QB | C5: 420000 | E5: =D5+C5 -> 420000 | G5: ERFA
A6: Tyrod Taylor | B6: QB | C6: 645000 | D6: 26327 | E6: 671327 | G6: UFA
A8: Devonta Freeman | B8: RB | C8: 420000 | D8: 57415.1126 | E8: 477415.1126 | F8: 530949.4028 | G8: 57415.1126 | H8: 588364.5154 | I8: 640947.9861 | J8: 57415.1126 | K8: 698363.0987 | L8: 756062.7826 | M8: 57415.1126 | N8: 813477.8952 | P8: UFA
A9: Bernard Pierce | B9: RB | C9: 570000 | D9: 138986 | E9: =D9+C9 -> 708986 | F9: 660000 | G9: 138986 | H9: =G9+F9 -> 798986 | J9: UFA
A10: Ray Rice | B10: RB | C10: 5750000 | D10: 3000000 | E10: =D10+C10 -> 8750000 | F10: 4750000 | G10: 3000000 | H10: =G10+F10 -> 7750000 | I10: 4750000 | J10: 3000000 | K10: =J10+I10 -> 7750000 | L10: 4750000 | M10: 3000000 | N10: =M10+L10 -> 7750000 | P10: UFA
A11: Vonta Leach | B11: FB | C11: 1750000 | D11: 580000 | E11: 2330000 | G11: UFA
A13: Brandon Pettigrew | B13: TE | C13: 1500000 | D13: 1000000 | E13: =D13+C13 -> 2500000 | F13: 1500000 | G13: 1000000 | H13: =G13+F13 -> 2500000 | I13: 1500000 | J13: 1000000 | K13: =J13+I13 -> 2500000 | M13: UFA
A14: Kellen Winslow | B14: TE | C14: 955000 | E14: 955000 | F14: 1045000 | H14: 1045000 | J14: UFA
A16: Miles Austin | B16: WR | C16: 1000000 | D16: 400000 | E16: =D16+C16 -> 1400000 | F16: 1500000 | G16: 400000 | H16: =G16+F16 -> 1900000 | I16: 2000000 | J16: 400000 | K16: =J16+I16 -> 2400000 | M16: UFA
A17: Marlon Brown | B17: WR | C17: 495000 | D17: 1666 | E17: 496666 | F17: 585000 | G17: 1668 | H17: =G17+F17 -> 586668 | J17: RFA
A18: Gerrard Sheppard | B18: WR | C18: 420000 | E18: 420000 | G18: ERFA
A19: Torrey Smith | B19: WR | C19: 7000000 | D19: 3741224 | E19: 10741224 | F19: 2000000 | G19: 3500000 | H19: =G19+F19 -> 5500000 | I19: 2000000 | J19: 3500000 | K19: =J19+I19 -> 5500000 | L19: 2000000 | M19: 3500000 | N19: =M19+L19 -> 5500000 | O19: 2000000 | P19: 3500000 | Q19: =P19+O19 -> 5500000 | S19: UFA
A21: Gino Gradkowski | B21: C | C21: 570000 | D21: 121106 | E21: 691106 | F21: 660000 | G21: 121106 | H21: =G21+F21 -> 781106 | J21: UFA
A22: A.Q. Shipley | B22: C | C22: 570000 | E22: 570000 | G22: RFA
A23: Bryan Stork | B23: C | C23: 420000 | D23: 55120.76728 | E23: 475120.7673 | F23: 525005.4606 | G23: 55120.76728 | H23: 580126.2278 | I23: 633463.8423 | J23: 55120.76728 | K23: 688584.6096 | L23: 746966.7999 | M23: 55120.76728 | N23: 802087.5672 | P23: UFA
A24: Fernando Velasco | B24: C | C24: 855000 | E24: 855000 | F24: 855000 | H24: =G24+F24 -> 855000 | I24: 855000 | K24: =J24+I24 -> 855000 | M24: UFA
A25: Roberto Garza | B25: G | C25: 1000000 | D25: 500000 | E25: =D25+C25 -> 1500000 | F25: 2000000 | G25: 500000 | H25: =G25+F25 -> 2500000 | J25: UFA
A26: Todd Herremans | B26: G | C26: 3000000 | E26: =D26+C26 -> 3000000 | F26: 4000000 | H26: =G26+F26 -> 4000000 | I26: 4000000 | K26: =J26+I26 -> 4000000 | M26: UFA
A27: Jah Reid | B27: G | C27: 645000 | D27: 140810 | E27: 785810 | G27: UFA
A28: Ricky Wagner | B28: LT | C28: 495000 | D28: 36140 | E28: =D28+C28 -> 531140 | F28: 585000 | G28: 36140 | H28: =G28+F28 -> 621140 | I28: 675000 | J28: 36140 | K28: =J28+I28 -> 711140 | L28: 675000 | M28: 36140 | N28: =M28+L28 -> 711140 | P28: UFA
A29: Zack Martin | B29: OT | C29: 420000 | D29: 1255142.23 | E29: 1675142.23 | F29: 878572.7709 | G29: 1255142.23 | H29: 2133715.001 | I29: 1277484.706 | J29: 1255142.23 | K29: 2532626.936 | L29: 1694950.684 | M29: 1255142.23 | N29: 2950092.915 | P29: TOP3-25 Option
A30: Morgan Moses | B30: OT | C30: 420000 | D30: 366796.8699 | E30: 786796.8699 | F30: 643160.515 | G30: 366796.8699 | H30: 1009957.385 | I30: 831978.6348 | J30: 366796.8699 | K30: 1198775.505 | L30: 1029578.993 | M30: 366796.8699 | N30: 1396375.863 | P30: UFA
A31: Kelechi Osemele | B31: RT | C31: 694170 | D31: 218340 | E31: =D31+C31 -> 912510 | F31: 846255 | G31: 218340 | H31: =G31+F31 -> 1064595 | J31: UFA
A32: DEFENSE
A33: Haloti Ngata | B33: DT | C33: 7000000 | D33: 7000000 | E33: =D33+C33 -> 14000000 | F33: 11000000 | G33: 7000000 | H33: =G33+F33 -> 18000000 | J33: UFA
A34: Ryan Pickett | B34: DT | C34: 955000 | E34: =D34+C34 -> 955000 | F34: 955000 | H34: =G34+F34 -> 955000 | J34: UFA
A35: Jerrel Powe | B35: DT | C35: 645000 | E35: =D35+C35 -> 645000 | F35: 730000 | H35: =G35+F35 -> 730000 | I35: 730000 | K35: =J35+I35 -> 730000 | M35: UFA
A36: Will Sutton | B36: DT | C36: 420000 | D36: 145296.1047 | E36: 565296.1047 | F36: 525144.4214 | G36: 145296.1047 | H36: 670440.5261 | I36: 650487.6502 | J36: 145296.1047 | K36: 795783.7548 | L36: 781660.7966 | M36: 145296.1047 | N36: 926956.9012 | P36: UFA
A38: Chris Baker | B38: DE | C38: 730000 | E38: =D38+C38 -> 730000 | F38: 730000 | H38: =G38+F38 -> 730000 | I38: 730000 | K38: =J38+I38 -> 730000 | M38: UFA
A39: Chris Canty | B39: DE | C39: 2500000 | D39: 666666 | E39: =D39+C39 -> 3166666 | F39: 2660000 | G39: 666667 | H39: =G39+F39 -> 3326667 | J39: UFA
A40: Deangelo Tyson | B40: DE | C40: 570000 | D40: 11898 | E40: =D40+C40 -> 581898 | F40: 660000 | G40: 11898 | H40: =G40+F40 -> 671898 | J40: UFA
A41: Brandon Williams | B41: DE | C41: 495000 | D41: 128750 | E41: =D41+C41 -> 623750 | F41: 585000 | G41: 128750 | H41: =G41+F41 -> 713750 | I41: 675000 | J41: 128750 | K41: =J41+I41 -> 803750 | L41: 675000 | M41: 128750 | N41: =M41+L41 -> 803750 | P41: UFA
A43: Arthur Brown | B43: ILB | C43: 566556 | D43: 241224 | E43: =D43+C43 -> 807780 | F43: 728111 | G43: 241224 | H43: =G43+F43 -> 969335 | I43: 889668 | J43: 241224 | K43: =J43+I43 -> 1130892 | L43: 889668 | M43: 241224 | N43: =M43+L43 -> 1130892 | P43: UFA
A44: Brad Jones | B44: ILB | C44: 3000000 | E44: 3000000 | F44: 3750000 | H44: =G44+F44 -> 3750000 | J44: UFA
A45: Albert McClellan | B45: ILB | C45: 1427080 | E45: 1427080 | G45: UFA
A46: Elvis Dumervil | B46: OLB | C46: 1875000 | D46: 1500000 | E46: 3375000 | F46: 4875000 | G46: 1500000 | H46: =G46+F46 -> 6375000 | I46: 4875000 | J46: 1500000 | K46: =J46+I46 -> 6375000 | L46: 4875000 | M46: 1500000 | N46: =M46+L46 -> 6375000 | P46: UFA
A47: Justin Durant | B47: OLB | C47: 855000 | E47: 855000 | F47: 855000 | H47: =G47+F47 -> 855000 | J47: UFA
A48: Pernell McPhee | B48: OLB | C48: 645000 | D48: 36140 | E48: 681140 | G48: UFA
A49: Trevor Reilly | B49: OLB | C49: 420000 | D49: 129476.5244 | E49: 549476.5244 | F49: 525184.4898 | G49: 129476.5244 | H49: 654661.0142 | I49: 647577.636 | J49: 129476.5244 | K49: 777054.1604 | L49: 775663.4866 | M49: 129476.5244 | N49: 905140.011 | P49: UFA
A50: Terrell Suggs | B50: OLB | C50: 5600000 | D50: 2200000 | E50: =D50+C50 -> 7800000 | F50: 4400000 | G50: 2200000 | H50: =G50+F50 -> 6600000 | I50: 4600000 | J50: 2200000 | K50: =J50+I50 -> 6800000 | L50: 4000000 | M50: 2200000 | N50: =M50+L50 -> 6200000 | O50: 4000000 | P50: 2200000 | Q50: =P50+O50 -> 6200000 | S50: UFA
A51: Courtney Upshaw | B51: OLB | C51: 871518 | D51: 573000 | E51: =D51+C51 -> 1444518 | F51: 1112277 | G51: 573000 | H51: =G51+F51 -> 1685277 | J51: UFA
A53: Matt Elam | B53: S | C53: 712591 | D53: 825364 | E53: =D53+C53 -> 1537955 | F53: 1020182 | G53: 825364 | H53: =G53+F53 -> 1845546 | I53: 1327773 | J53: 825364 | K53: =J53+I53 -> 2153137 | M53: 3-25 Option
A54: Kendrick Lewis | B54: S | C54: 1200000 | D54: 300000 | E54: =D54+C54 -> 1500000 | F54: 1200000 | G54: 300000 | H54: =G54+F54 -> 1500000 | I54: 1200000 | J54: 300000 | K54: =J54+I54 -> 1500000 | L54: 1200000 | M54: 300000 | N54: =M54+L54 -> 1500000 | O54: 1200000 | P54: 300000 | Q54: =P54+O54 -> 1500000 | S54: UFA
A55: Quintin Mikell | B55: S | C55: 955000 | E55: =D55+C55 -> 955000 | F55: 955000 | H55: =G55+F55 -> 955000 | J55: UFA
A56: Ed Reynolds | B56: S | C56: 420000 | D56: 50927.43293 | E56: 470927 | F56: 525340.9273 | G56: 50927.43293 | H56: 576268.3602 | I56: 633078.0555 | J56: 50927.43293 | K56: 684005.4885 | L56: 745826.213 | M56: 50927.43293 | N56: 796753.6459 | P56: UFA
A57: Darian Stewart | B57: S | C57: 900000 | D57: 100000 | E57: =D57+C57 -> 1000000 | F57: 900000 | G57: 100000 | H57: =G57+F57 -> 1000000 | I57: 900000 | J57: 100000 | K57: =J57+I57 -> 1000000 | M57: UFA
A59: Cortland Finnegan | B59: CB | C59: 0 | D59: 1000000 | E59: =D59+C59 -> 1000000 | F59: 3000000 | G59: 1000000 | H59: =G59+F59 -> 4000000 | I59: 1500000 | J59: 1000000 | K59: =J59+I59 -> 2500000 | M59: UFA
A60: Corey Graham | B60: CB | C60: 600000 | D60: 500000 | E60: =D60+C60 -> 1100000 | F60: 2200000 | G60: 500000 | H60: =G60+F60 -> 2700000 | I60: 2200000 | J60: 500000 | K60: =J60+I60 -> 2700000 | L60: 2200000 | M60: 500000 | N60: =M60+L60 -> 2700000 | P60: UFA
A61: Jimmy Smith | B61: CB | C61: 1392504 | D61: 981672 | E61: =D61+C61 -> 2374176 | G61: 3-25 Option
A62: Lardarius Webb | B62: CB | C62: 8500000 | D62: 2000000 | E62: =D62+C62 -> 10500000 | F62: 9000000 | G62: 2000000 | H62: =G62+F62 -> 11000000 | I62: 9000000 | J62: 2000000 | K62: =J62+I62 -> 11000000 | L62: 9000000 | M62: 2000000 | N62: =M62+L62 -> 11000000 | P62: UFA
A64: Justin Tucker | B64: KP | C64: 570000 | E64: =D64+C64 -> 570000 | G64: RFA
A65: Morgan Cox | B65: LS | C65: 730000 | D65: 125000 | E65: =D65+C65 -> 855000 | G65: UFA
A66: Sam Koch | B66: P | C66: 2200000 | D66: 600000 | E66: =D66+C66 -> 2800000 | F66: 2500000 | G66: 600000 | H66: =G66+F66 -> 3100000 | J66: UFA
A69: Total Players | C69: =COUNTA(C4:C67) -> 53 | F69: =COUNTA(F4:F67) -> 42 | I69: =COUNTA(I4:I67) -> 27 | L69: =COUNTA(L4:L67) -> 18 | O69: =COUNTA(O4:O67) -> 4
A70: Top 51 Salary | C70: =SUM(LARGE(ISNUMBER(E4:E67)*E4:E67,ROW(INDIRECT("1:51")))) -> 121483906.6 | F70: =SUM(LARGE(ISNUMBER(H4:H67)*H4:H67,ROW(INDIRECT("1:51")))) -> 122128501 | I70: =SUM(LARGE(ISNUMBER(K4:K67)*K4:K67,ROW(INDIRECT("1:51")))) -> 97064112.55 | L70: =SUM(LARGE(ISNUMBER(N4:N67)*N4:N67,ROW(INDIRECT("1:51")))) -> 80811666.8 | O70: =SUM(LARGE(ISNUMBER(Q4:Q67)*Q4:Q67,ROW(INDIRECT("1:51")))) -> 37950000
A71: Dead Money | C71: 11770052 | F71: 674283
A72: Cap Rollover | C72: 1531423 | F72: =C73 -> 1277464.391 | I72: =F73 -> 11474680.36 | L72: =I73 -> 47410567.81
A73: Cap Space | C73: =133000000-C70-C71+C72 -> 1277464.391 | F73: =133000000-F70-F71+F72 -> 11474680.36 | I73: =133000000-I70-I71+I72 -> 47410567.81 | L73: =133000000-L70-L71+L72 -> 99598901.01
A74: June 1st Cut | B74: 0/2
A75: Paycut | B75: 1/2
A76: Restructure | B76: 1/3
A78: Practice Squad
A79: Jeff Janis | B79: WR | C79: 420000 | E79: 420000 | F79: 527338.5529 | G79: 25957.1126 | H79: 553295.6655 | I79: 630780.7861 | J79: 25957.1126 | K79: 656737.8987 | L79: 739034.2858 | M79: 25957.1126 | N79: 764991.3984 | P79: UFA
A80: David Mims | B80: RT | C80: 495000 | E80: =D80+C80 -> 495000 | G80: ERFA
A81: Rakim Cox Villanova | B81: DE | C81: 420000 | E81: 420000 | F81: 510000 | H81: 510000 | I81: 600000 | K81: 600000 | M81: RFA
A82: Cody Larsen | B82: DE | C82: 420000 | E82: =D82+C82 -> 420000 | G82: ERFA
A83: Jeremiah George | B83: ILB | C83: 420000 | E83: 420000 | F83: 510000 | H83: 510000 | I83: 600000 | K83: 600000 | M83: RFA
A84: Howard Jones | B84: OLB | C84: 420000 | E84: 420000 | F84: 528203.5201 | G84: 15145.02358 | H84: 543348.5436 | I84: 629786.0739 | J84: 15145.02358 | K84: 644931.0975 | L84: 736093.3976 | M84: 15145.02358 | N84: 751238.4212 | P84: UFA
A85: Ahmad Dixon | B85: S | C85: 420000 | E85: 420000 | F85: 526976.4023 | G85: 30483.99553 | H85: 557460.3978 | I85: 631197.2593 | J85: 30483.99553 | K85: 661681.2548 | L85: 740265.598 | M85: 30483.99553 | N85: 770749.5935 | P85: UFA
A86: Asa Jackson | B86: CB | C86: 570000 | E86: =D86+C86 -> 570000 | F86: 660000 | G86: 34015 | H86: =G86+F86 -> 694015 | J86: UFA

Sheet BUF
C1: 2014 | F1: 2015 | I1: 2016 | L1: 2017 | O1: 2018 | R1: 2019 | U1: 2020
A2: Player | B2: Pos. | C2: Base Salary | D2: Signing Bonus | E2: Cap Figure | F2: Base Salary | G2: Signing Bonus | H2: Cap Figure | I2: Base Salary | J2: Signing Bonus | K2: Cap Figure | L2: Base Salary | M2: Signing Bonus | N2: Cap Figure | O2: Base Salary | P2: Signing Bonus | Q2: Cap Figure | R2: Base Salary | S2: Signing Bonus | T2: Cap Figure | U2: Base Salary | V2: Signing Bonus | W2: Cap Figure
A3: OFFENSE
A4: Pat Devlin | B4: QB | C4: 730000 | E4: =D4+C4 -> 730000 | F4: 730000 | H4: =G4+F4 -> 730000 | J4: UFA
A5: E.J. Manuel | B5: QB | C5: 808877 | D5: 1210509 | E5: =D5+C5 -> 2019386 | F5: 1212755 | G5: 1210509 | H5: =G5+F5 -> 2423264 | I5: 1616632 | J5: 1210509 | K5: =J5+I5 -> 2827141 | M5: 3-25 Option
A6: Josh McCown | B6: QB | C6: 1300000 | D6: 250000 | E6: =D6+C6 -> 1550000 | F6: 2500000 | G6: 250000 | H6: =G6+F6 -> 2750000 | I6: 2500000 | J6: 250000 | K6: =J6+I6 -> 2750000 | M6: UFA
A8: Peyton Hillis | B8: RB | C8: 800000 | E8: =D8+C8 -> 800000 | F8: 800000 | H8: =G8+F8 -> 800000 | J8: UFA
A9: Fred Jackson | B9: RB | C9: 2700000 | D9: 1000000 | E9: 3700000 | G9: UFA
A10: C.J. Spiller | B10: RB | C10: 5583583 | D10: 333333 | E10: 5916916 | F10: 4031246 | G10: 333334 | H10: =G10+F10 -> 4364580 | J10: UFA
A11: Frank Summers | B11: FB | C11: 570000 | E11: 570000 | G11: RFA
A13: Scott Chandler | B13: TE | C13: 2000000 | D13: 500000 | E13: =D13+C13 -> 2500000 | F13: 2000000 | G13: 500000 | H13: =G13+F13 -> 2500000 | J13: UFA
A14: Chris Gragg | B14: TE | C14: 495000 | D14: 14793 | E14: =D14+C14 -> 509793 | F14: 585000 | G14: 14793 | H14: =G14+F14 -> 599793 | I14: 675000 | J14: 14793 | K14: =J14+I14 -> 689793 | M14: UFA
A15: Lee Smith | B15: TE | C15: 688401 | E15: 688401 | F15: 510000 | H15: =G15+F15 -> 510000 | J15: UFA
A17: Tavon Austin | B17: WR | C17: 984591 | E17: =D17+C17 -> 984591 | F17: 1564182 | H17: =G17+F17 -> 1564182 | I17: 2143773 | K17: =J17+I17 -> 2143773 | M17: TOP10 Option
A18: Anquan Boldin | B18: WR | C18: 4000000 | D18: 1000000 | E18: 5000000 | F18: 10000000 | G18: 1000000 | H18: 11000000 | J18: UFA
A19: Marquise Goodwin | B19: WR | C19: 525000 | D19: 149719 | E19: 674719 | F19: 615000 | G19: 149719 | H19: 764719 | I19: 705000 | J19: 149719 | K19: =J19+I19 -> 854719 | M19: UFA
A20: Chris Hogan | B20: WR | C20: 570000 | E20: 570000 | F20: 640000 | H20: 640000 | J20: UFA
A21: Dexter McCluster | B21: WR | C21: 2000000 | D21: 1000000 | E21: 3000000 | F21: 6500000 | G21: 1000000 | H21: 7500000 | I21: 6500000 | J21: 1000000 | K21: =J21+I21 -> 7500000 | M21: UFA
A22: Robert Woods | B22: WR | C22: 626217 | D22: 479868 | E22: 1106085 | F22: 847434 | G22: 479868 | H22: 1327302 | I22: 1068650 | J22: 479868 | K22: =J22+I22 -> 1548518 | M22: UFA
A24: Doug Legursky | B24: C | C24: 1000000 | D24: 100000 | E24: =D24+C24 -> 1100000 | G24: UFA
A25: Eric Wood | B25: C | C25: 4150000 | D25: 1800000 | E25: =D25+C25 -> 5950000 | F25: 4200000 | G25: 1800000 | H25: =G25+F25 -> 6000000 | I25: 4275000 | J25: 1800000 | K25: =J25+I25 -> 6075000 | L25: 4525000 | M25: 1800000 | N25: =M25+L25 -> 6325000 | P25: UFA
A26: Jeff Linkenbach | B26: G | C26: 900000 | E26: =D26+C26 -> 900000 | F26: 900000 | H26: 900000 | I26: 900000 | K26: =J26+I26 -> 900000 | M26: UFA
A27: Kraig Urbik | B27: G | C27: 2675000 | D27: 700000 | E27: =D27+C27 -> 3375000 | F27: 2975000 | G27: 700000 | H27: 3675000 | I27: 3300000 | J27: 700000 | K27: 4000000 | M27: UFA
A28: Danny Watkins | B28: G | C28: 700000 | E28: =D28+C28 -> 700000 | F28: 700000 | H28: 700000 | J28: UFA
A29: Chris Watt | B29: G | C29: 420000 | E29: 420000 | F29: 510000 | H29: 510000 | I29: 600000 | K29: 600000 | M29: RFA
A30: Cordy Glenn | B30: LT | C30: 832289 | D30: 494578 | E30: =D30+C30 -> 1326867 | F30: 1053434 | G30: 494578 | H30: 1548012 | J30: UFA
A31: Chris Hairston | B31: LT | C31: 1389000 | D31: 103977 | E31: =D31+C31 -> 1492977 | G31: UFA
A32: Michael Schofield | B32: OT | C32: 420000 | D32: 52749.69512 | E32: 472749.6951 | F32: 525195.1463 | G32: 52749.69512 | H32: 577944.8415 | I32: 633245.7037 | J32: 52749.69512 | K32: 685995.3988 | L32: 746321.8683 | M32: 52749.69512 | N32: 799071.5634 | P32: UFA
A33: Andre Smith | B33: RT | C33: 4200000 | E33: =D33+C33 -> 4200000 | F33: 5800000 | H33: =G33+F33 -> 5800000 | J33: UFA
A34: DEFENSE
A35: Corbin Bryant | B35: DT | C35: 600000 | E35: =D35+C35 -> 600000 | F35: 600000 | H35: =G35+F35 -> 600000 | J35: UFA
A36: Marcell Dareus | B36: DT | C36: 3157814 | D36: 3335418 | E36: =D36+C36 -> 6493232 | F36: 6521180 | H36: =G36+F36 -> 6521180 | J36: UFA
A37: Kyle Williams | B37: DT | C37: 5300000 | D37: 950000 | E37: =D37+C37 -> 6250000 | F37: 4900000 | G37: 950000 | H37: =G37+F37 -> 5850000 | I37: 7000000 | K37: =J37+I37 -> 7000000 | M37: UFA
A39: Kroy Bierman | B39: DE | C39: 855000 | E39: =D39+C39 -> 855000 | F39: 855000 | H39: =G39+F39 -> 855000 | J39: UFA
A40: Alan Branch | B40: DE | C40: 2150000 | D40: 775000 | E40: =D40+C40 -> 2925000 | F40: 2050000 | G40: 775000 | H40: =G40+F40 -> 2825000 | I40: 2250000 | J40: 775000 | K40: =J40+I40 -> 3025000 | M40: UFA
A41: Alex Carrington | B41: DE | C41: 1500000 | E41: =D41+C41 -> 1500000 | F41: 1500000 | H41: =G41+F41 -> 1500000 | J41: UFA
A42: Jerry Hughes | B42: DE | C42: 3995000 | E42: =D42+C42 -> 3995000 | G42: UFA
A43: Mario Williams | B43: DE | C43: 15000000 | D43: 3800000 | E43: =D43+C43 -> 18800000 | F43: 15200000 | G43: 3800000 | H43: =G43+F43 -> 19000000 | I43: 16100000 | J43: 3800000 | K43: =J43+I43 -> 19900000 | L43: 16500000 | N43: =M43+L43 -> 16500000 | P43: UFA
A45: Kiko Alonso | B45: ILB | C45: 600473 | D45: 376891 | E45: =D45+C45 -> 977364 | F45: 795946 | G45: 376891 | H45: =G45+F45 -> 1172837 | I45: 991418 | J45: 376891 | K45: =J45+I45 -> 1368309 | M45: UFA
A46: Reggie Walker | B46: ILB | C46: 730000 | E46: 730000 | G46: UFA
A47: Nigel Bradham | B47: OLB | C47: 570000 | D47: 116065 | E47: =D47+C47 -> 686065 | F47: 660000 | G47: 116065 | H47: =G47+F47 -> 776065 | J47: UFA
A48: Manny Lawson | B48: OLB | C48: 2350000 | D48: 750000 | E48: =D48+C48 -> 3100000 | F48: 2350000 | G48: 750000 | H48: =G48+F48 -> 3100000 | I48: 2650000 | J48: 750000 | K48: =J48+I48 -> 3400000 | M48: UFA
A49: Arthur Moats | B49: OLB | C49: 730000 | E49: 730000 | F49: 730000 | H49: 730000 | J49: UFA
A50: Ryan Shazier | B50: OLB | C50: 420000 | D50: 1098375.198 | E50: 1518375.198 | F50: 837028.7415 | G50: 1098375.198 | H50: 1935403.94 | I50: 1198865.13 | J50: 1098375.198 | K50: 2297240.329 | L50: 1577531.118 | M50: 1098375.198 | N50: 2675906.317 | P50: TOP3-25 Option
A52: Terrence Brooks | B52: S | C52: 420000 | D52: 570591.8537 | E52: 990591.8537 | F52: 697166.1857 | G52: 570591.8537 | H52: 1267758.039 | I52: 934181.8192 | J52: 570591.8537 | K52: 1504773.673 | L52: 1182221.436 | M52: 570591.8537 | N52: 1752813.289 | P52: UFA
A53: Jairus Byrd | B53: S | C53: 9000000 | D53: 4500000 | E53: =D53+C53 -> 13500000 | F53: 8000000 | G53: 4500000 | H53: =G53+F53 -> 12500000 | I53: 3000000 | J53: 4500000 | K53: =J53+I53 -> 7500000 | L53: 2500000 | M53: 4500000 | N53: =M53+L53 -> 7000000 | O53: 2000000 | P53: 4500000 | Q53: =P53+O53 -> 6500000 | R53: 5500000 | S53: 0 | T53: =S53+R53 -> 5500000 | V53: UFA
A54: Johnathan Meeks | B54: S | C54: 495000 | D54: 49500 | E54: =D54+C54 -> 544500 | F54: 585000 | G54: 49500 | H54: =G54+F54 -> 634500 | I54: 675000 | J54: 49500 | K54: =J54+I54 -> 724500 | M54: UFA
A55: Da'Norris Searcy | B55: S | C55: 1389000 | D55: 121106 | E55: =D55+C55 -> 1510106 | G55: UFA
A56: Duke Williams | B56: S | C56: 495000 | D56: 117563 | E56: =D56+C56 -> 612563 | F56: 585000 | G56: 117563 | H56: =G56+F56 -> 702563 | I56: 675000 | J56: 117563 | K56: =J56+I56 -> 792563 | M56: UFA
A58: Ron Brooks | B58: CB | C58: 570000 | D58: 100135 | E58: =D58+C58 -> 670135 | F58: 660000 | G58: 100135 | H58: =G58+F58 -> 760135 | J58: UFA
A59: Antoine Cason | B59: CB | C59: 1000000 | D59: 200000 | E59: =D59+C59 -> 1200000 | F59: 1000000 | G59: 200000 | H59: =G59+F59 -> 1200000 | J59: UFA
A60: Stephon Gilmore | B60: CB | C60: 1488559 | D60: 1807120 | E60: =D60+C60 -> 3295679 | F60: 2037839 | G60: 1807120 | H60: =G60+F60 -> 3844959 | J60: TOP10 Option
A61: Leodis McKelvin | B61: CB | C61: 3150000 | D61: 1000000 | E61: =D61+C61 -> 4150000 | F61: 3900000 | G61: 1000000 | H61: =G61+F61 -> 4900000 | I61: 3900000 | J61: 1000000 | K61: =J61+I61 -> 4900000 | M61: UFA
A62: Nickell Robey | B62: CB | C62: 495000 | D62: 2333 | E62: =D62+C62 -> 497333 | F62: 585000 | G62: 2334 | H62: =G62+F62 -> 587334 | J62: RFA
A64: Dustin Hopkins | B64: K | C64: 495000 | D64: 28000 | E64: =D64+C64 -> 523000 | F64: 585000 | G64: 28000 | H64: =G64+F64 -> 613000 | I64: 675000 | J64: 28000 | K64: =J64+I64 -> 703000 | M64: UFA
A65: Garrison Sanborn | B65: LS | C65: 920000 | D65: 176667 | E65: =D65+C65 -> 1096667 | G65: UFA
A66: Pat McAffee | B66: P | C66: 1000000 | D66: 500000 | E66: =D66+C66 -> 1500000 | F66: 3500000 | G66: 500000 | H66: =G66+F66 -> 4000000 | I66: 3500000 | J66: 500000 | K66: =J66+I66 -> 4000000 | L66: 4000000 | M66: 500000 | N66: =M66+L66 -> 4500000 | O66: 3000000 | P66: 500000 | Q66: =P66+O66 -> 3500000 | S66: UFA
A69: Total Players | C69: =COUNTA(C4:C67) -> 53 | F69: =COUNTA(F4:F67) -> 45 | I69: =COUNTA(I4:I67) -> 25 | L69: =COUNTA(L4:L67) -> 7
A70: Top 51 Salary | C70: =SUM(LARGE(ISNUMBER(E4:E74)*E4:E74,ROW(INDIRECT("1:51")))) -> 128615346.1 | F70: =SUM(LARGE(ISNUMBER(H4:H74)*H4:H74,ROW(INDIRECT("1:51")))) -> 133060531.8 | I70: =SUM(LARGE(ISNUMBER(K4:K74)*K4:K74,ROW(INDIRECT("1:51")))) -> 87690325.4 | L70: =SUM(LARGE(ISNUMBER(N4:N74)*N4:N74,ROW(INDIRECT("1:51")))) -> 39552791.17
A71: Dead Money | C71: 19328179 | F71: 355821
A72: Cap Rollover | C72: 17801975 | F72: =C73 -> 2858449.948 | I72: =F73 -> 2442097.127 | L72: =I73 -> 47751771.73
A73: Cap Space | C73: =133000000-C70-C71+C72 -> 2858449.948 | F73: =133000000-F70-F71+F72 -> 2442097.127 | I73: =133000000-I70-I71+I72 -> 47751771.73 | L73: =133000000-L70-L71+L72 -> 141198980.6
A74: June 1st Cut | B74: 0/2
A75: Paycut | B75: 2/2
A76: Restructure | B76: 0/3
A78: Practice Squad
A79: Jeff Tuel | B79: QB | C79: 495000 | E79: =D79+C79 -> 495000 | F79: 585000 | G79: 1668 | H79: =G79+F79 -> 586668 | J79: RFA
A80: Silas Redd | B80: RB | C80: 420000 | E80: 420000 | F80: 510000 | H80: 510000 | I80: 600000 | K80: 600000 | M80: RFA
A81: Rob Blanchflower | B81: TE | C81: 420000 | E81: 420000 | F81: 510000 | H81: 510000 | I81: 600000 | K81: 600000 | M81: RFA
A82: Erik Lora | B82: WR | C82: 420000 | E82: 420000 | F82: 510000 | H82: 510000 | I82: 600000 | K82: 600000 | M82: RFA
A83: Joe Unga | B83: OT | C83: 495000 | E83: 495000 | F83: 570000 | H83: 570000 | J83: RFA
A84: Bruce Gaston | B84: DT | C84: 420000 | E84: 420000 | F84: 510000 | H84: 510000 | I84: 600000 | K84: 600000 | M84: RFA
A85: Max Bullough | B85: ILB | C85: 420000 | E85: 420000 | F85: 525945.3642 | G85: 43371.97154 | H85: 569317.3358 | I85: 632382.9531 | J85: 43371.97154 | K85: 675754.9246 | L85: 743771.1275 | M85: 43371.97154 | N85: 787143.099 | P85: UFA
A86: Kevin Pierre-Louis | B86: OLB | C86: 420000 | E86: 420000 | F86: 527193.8802 | G86: 27765.52134 | H86: 554959.4016 | I86: 630947.1597 | J86: 27765.52134 | K86: 658712.681 | L86: 739526.173 | M86: 27765.52134 | N86: 767291.6944 | P86: UFA

Sheet CAR
C1: 2014 | F1: 2015 | I1: 2016 | L1: 2017 | O1: 2018 | R1: 2019 | U1: 2020
A2: Player | B2: Pos. | C2: Base Salary | D2: Signing Bonus | E2: Cap Figure | F2: Base Salary | G2: Signing Bonus | H2: Cap Figure | I2: Base Salary | J2: Signing Bonus | K2: Cap Figure | L2: Base Salary | M2: Signing Bonus | N2: Cap Figure | O2: Base Salary | P2: Signing Bonus | Q2: Cap Figure | R2: Base Salary | S2: Signing Bonus | T2: Cap Figure | U2: Base Salary | V2: Signing Bonus | W2: Cap Figure
A3: OFFENSE
A4: Cam Newton | B4: QB | C4: 3378477 | D4: 3629636 | E4: =D4+C4 -> 7008113 | G4: TOP10 Option
A5: Kyle Orton | B5: QB | C5: 955000 | E5: =D5+C5 -> 955000 | F5: 955000 | G5: 0 | H5: =G5+F5 -> 955000 | I5: 955000 | K5: =J5+I5 -> 955000 | M5: UFA
A7: BenJarvus Green-Ellis | B7: RB | C7: 855000 | E7: =D7+C7 -> 855000 | F7: 950000 | H7: =G7+F7 -> 950000 | I7: 1195000 | K7: =J7+I7 -> 1195000 | M7: UFA
A8: Jonathan Stewart | B8: RB | C8: 900000 | E8: =D8+C8 -> 900000 | F8: 900000 | H8: 900000 | I8: 900000 | K8: 900000 | M8: UFA
A9: DeAngelo Williams | B9: RB | C9: 2000000 | D9: 4000000 | E9: 6000000 | F9: 2333333 | G9: 4000000 | H9: 6333333 | J9: UFA
A10: Mike Tolbert | B10: FB | C10: 2850000 | D10: 500000 | E10: 3350000 | F10: 2925000 | G10: 500000 | H10: 3425000 | J10: UFA
A12: Jake Ballard | B12: TE | C12: 730000 | E12: =D12+C12 -> 730000 | F12: 850000 | H12: =G12+F12 -> 850000 | I12: 1100000 | K12: =J12+I12 -> 1100000 | L12: 1320000 | N12: =M12+L12 -> 1320000 | P12: UFA
A13: Fred Davis | B13: TE | C13: 855000 | E13: =D13+C13 -> 855000 | F13: 855000 | H13: =G13+F13 -> 855000 | I13: 1000000 | K13: =J13+I13 -> 1000000 | L13: 1290000 | N13: =M13+L13 -> 1290000 | P13: UFA
A14: Jimmy Graham | B14: TE | C14: 7035000 | E14: =D14+C14 -> 7035000 | G14: UFA
A16: Kenny Britt | B16: WR | C16: 500000 | D16: 500000 | E16: =D16+C16 -> 1000000 | F16: 1500000 | G16: 500000 | H16: =G16+F16 -> 2000000 | I16: 1750000 | J16: 500000 | K16: =J16+I16 -> 2250000 | L16: 2250000 | M16: 500000 | N16: =M16+L16 -> 2750000 | P16: UFA
A17: Antonio Brown | B17: WR | C17: 6770000 | E17: =D17+C17 -> 6770000 | F17: 6770000 | H17: =G17+F17 -> 6770000 | I17: 9020000 | K17: =J17+I17 -> 9020000 | L17: 9480000 | N17: =M17+L17 -> 9480000 | P17: UFA
A18: Josh Brown | B18: WR | C18: 420000 | E18: =D18+C18 -> 420000 | F18: 510000 | H18: 510000 | I18: 600000 | K18: 600000 | M18: RFA
A19: Mario Manningham | B19: WR | C19: 250000 | D19: 500000 | E19: =D19+C19 -> 750000 | F19: 1200000 | G19: 500000 | H19: =G19+F19 -> 1700000 | I19: 1550000 | J19: 500000 | K19: =J19+I19 -> 2050000 | M19: UFA
A20: Sidney Rice | B20: WR | C20: 500000 | D20: 500000 | E20: =D20+C20 -> 1000000 | F20: 1700000 | G20: 500000 | H20: =G20+F20 -> 2200000 | I20: 2300000 | J20: 500000 | K20: =J20+I20 -> 2800000 | M20: UFA
A22: Brian Folkerts | B22: C | C22: 495000 | E22: =D22+C22 -> 495000 | G22: ERFA
A23: Ryan Kalil | B23: C | C23: 6800000 | D23: 3600000 | E23: 10400000 | F23: 7416000 | G23: 3600000 | H23: =G23+F23 -> 11016000 | I23: 9550000 | K23: =J23+I23 -> 9550000 | M23: UFA
A24: Edmund Kugbila | B24: G | C24: 495000 | D24: 114114 | E24: 609114 | F24: 585000 | G24: 114114 | H24: 699114 | I24: 675000 | J24: 114114 | K24: =J24+I24 -> 789114 | M24: UFA
A25: Amini Silatolu | B25: G | C25: 838828 | D25: 507655 | E25: 1346483 | F25: 1063242 | G25: 507655 | H25: 1570897 | J25: UFA
A26: Wade Smith | B26: G | C26: 1000000 | D26: 0 | E26: =D26+C26 -> 1000000 | F26: 2000000 | G26: 0 | H26: 2000000 | J26: UFA
A27: Chris Snee | B27: G | C27: 1000000 | D27: 0 | E27: 1000000 | F27: 1000000 | G27: 0 | H27: 1000000 | J27: UFA
A28: Tyson Clabo | B28: LT | C28: 1000000 | E28: =D28+C28 -> 1000000 | F28: 1400000 | H28: 1400000 | J28: UFA
A29: Cyrus Kouandjio | B29: OT | C29: 420000 | D29: 1037410.671 | E29: 1457410.671 | F29: 820873.1723 | G29: 1037410.671 | H29: 1858283.843 | I29: 1168291.456 | J29: 1037410.671 | K29: 2205702.127 | L29: 1531868.73 | M29: 1037410.671 | N29: 2569279.4 | P29: TOP3-25 Option
A30: Billy Turner | B30: OT | C30: 420000 | D30: 140506.0061 | E30: 560506.0061 | F30: 530111.4819 | G30: 140506.0061 | H30: 670617.488 | I30: 655487.7948 | J30: 140506.0061 | K30: 795993.8009 | L30: 786695.5642 | M30: 140506.0061 | N30: 927201.5703 | P30: UFA
A31: Sam Baker | B31: RT | C31: 855000 | E31: =D31+C31 -> 855000 | F31: 855000 | H31: =G31+F31 -> 855000 | I31: 1100000 | K31: =J31+I31 -> 1100000 | L31: 1400000 | N31: =M31+L31 -> 1400000 | O31: 1790000 | Q31: =P31+O31 -> 1790000 | S31: UFA
A32: DEFENSE
A33: Dwan Edwards | B33: DT | C33: 1368750 | D33: 600000 | E33: =D33+C33 -> 1968750 | G33: UFA
A34: Star Lotulelei | B34: DT | C34: 841568 | D34: 1341273 | E34: =D34+C34 -> 2182841 | F34: 1278136 | G34: 1341273 | H34: =G34+F34 -> 2619409 | I34: 1714704 | J34: 1341273 | K34: =J34+I34 -> 3055977 | M34: 3-25 Option
A35: Kawann Short | B35: DT | C35: 615438 | D35: 436879 | E35: =D35+C35 -> 1052317 | F35: 825875 | G35: 436879 | H35: =G35+F35 -> 1262754 | I35: 1036313 | J35: 436879 | K35: =J35+I35 -> 1473192 | M35: UFA
A36: Alameda Ta'amu | B36: DT | C36: 650000 | E36: =D36+C36 -> 650000 | F36: 750000 | H36: =G36+F36 -> 750000 | I36: 950000 | K36: =J36+I36 -> 950000 | L36: 1200000 | N36: =M36+L36 -> 1200000 | O36: 1450000 | Q36: =P36+O36 -> 1450000 | S36: UFA
A38: Mario Addison | B38: DE | C38: 645000 | E38: =D38+C38 -> 645000 | G38: UFA
A39: Frank Alexander | B39: DE | C39: 570000 | D39: 117563 | E39: =D39+C39 -> 687563 | F39: 660000 | G39: 117563 | H39: =G39+F39 -> 777563 | J39: UFA
A40: Greg Hardy | B40: DE | C40: 2200000 | D40: 5000000 | E40: =D40+C40 -> 7200000 | F40: 4000000 | G40: 5000000 | H40: =G40+F40 -> 9000000 | I40: 5500000 | J40: 5000000 | K40: =J40+I40 -> 10500000 | L40: 6500000 | M40: 5000000 | N40: =M40+L40 -> 11500000 | O40: 9800000 | P40: 5000000 | Q40: =P40+O40 -> 14800000 | S40: UFA
A41: Charles Johnson | B41: DE | C41: 7000000 | D41: 7420000 | E41: =D41+C41 -> 14420000 | F41: 10000000 | G41: 7420000 | H41: =G41+F41 -> 17420000 | I41: 11000000 | J41: 1420000 | K41: =J41+I41 -> 12420000 | M41: UFA
A43: Lamin Barrow | B43: ILB | C43: 420000 | D43: 104300.5335 | E43: 524300.5335 | F43: 521071.0793 | G43: 104300.5335 | H43: 625371.6128 | I43: 637988.3808 | J43: 104300.5335 | K43: 742288.9143 | L43: 760343.6963 | M43: 104300.5335 | N43: 864644.2299 | P43: UFA
A44: Chase Blackburn | B44: ILB | C44: 950000 | D44: 100000 | E44: =D44+C44 -> 1050000 | G44: UFA
A45: Luke Kuechly | B45: ILB | C45: 1533510 | D45: 1897018 | E45: 3430528 | F45: 2105265 | G45: 1897018 | H45: =G45+F45 -> 4002283 | J45: TOP10 Option
A46: Perry Riley | B46: ILB | C46: 0 | D46: 1000000 | E46: 1000000 | F46: 3500000 | G46: 1000000 | H46: =G46+F46 -> 4500000 | I46: 4000000 | J46: 1000000 | K46: =J46+I46 -> 5000000 | L46: 5500000 | M46: 1000000 | N46: =M46+L46 -> 6500000 | O46: 7000000 | P46: 1000000 | Q46: =P46+O46 -> 8000000 | S46: UFA
A47: Desmond Bishop | B47: OLB | C47: 855000 | E47: =D47+C47 -> 855000 | F47: 855000 | H47: =G47+F47 -> 855000 | I47: 990000 | K47: =J47+I47 -> 990000 | M47: UFA
A48: Christian Kirksey | B48: OLB | C48: 420000 | D48: 38512.60569 | E48: 458512.6057 | F48: 526334.1135 | G48: 38512.60569 | H48: 564846.7192 | I48: 631935.8914 | J48: 38512.60569 | K48: 670448.4971 | L48: 742449.38 | M48: 38512.60569 | N48: 780961.9857 | P48: UFA
A49: A.J. Klein | B49: OLB | C49: 495000 | D49: 47825 | E49: 542825 | F49: 585000 | G49: 47825 | H49: =G49+F49 -> 632825 | I49: 675000 | J49: 47825 | K49: =J49+I49 -> 722825 | M49: UFA
A51: Patrick Chung | B51: S | C51: 750000 | E51: =D51+C51 -> 750000 | F51: 1000000 | H51: =G51+F51 -> 1000000 | I51: 1250000 | K51: =J51+I51 -> 1250000 | M51: UFA
A52: Louis Delmas | B52: S | C52: 750000 | E52: =D52+C52 -> 750000 | F52: 1200000 | H52: =G52+F52 -> 1200000 | I52: 1500000 | K52: =J52+I52 -> 1500000 | L52: 1800000 | N52: =M52+L52 -> 1800000 | O52: 2250000 | Q52: =P52+O52 -> 2250000 | S52: UFA
A53: Robert Lester | B53: S | C53: 495000 | E53: =D53+C53 -> 495000 | F53: 585000 | H53: =G53+F53 -> 585000 | J53: RFA
A54: Mike Mitchell | B54: S | C54: 2500000 | D54: 1000000 | E54: 3500000 | F54: 3500000 | G54: 1000000 | H54: =G54+F54 -> 4500000 | I54: 3500000 | J54: 1000000 | K54: =J54+I54 -> 4500000 | L54: 4500000 | M54: 1000000 | N54: =M54+L54 -> 5500000 | O54: 6000000 | P54: 1000000 | Q54: =P54+O54 -> 7000000 | S54: UFA
A55: Major Wright | B55: S | C55: 730000 | E55: 730000 | F55: 900000 | H55: =G55+F55 -> 900000 | I55: 1070000 | K55: =J55+I55 -> 1070000 | M55: UFA
A57: Derek Cox | B57: CB | C57: 730000 | E57: =D57+C57 -> 730000 | F57: 855000 | H57: =G57+F57 -> 855000 | I57: 965000 | K57: =J57+I57 -> 965000 | M57: UFA
A58: Captain Munnerlyn | B58: CB | C58: 1000000 | D58: 2000000 | E58: =D58+C58 -> 3000000 | F58: 2000000 | G58: 2000000 | H58: 4000000 | I58: 2500000 | J58: 2000000 | K58: =J58+I58 -> 4500000 | L58: 3500000 | M58: 2000000 | N58: =M58+L58 -> 5500000 | P58: UFA
A59: Josh Norman | B59: CB | C59: 570000 | D59: 49750 | E59: 619750 | F59: 660000 | G59: 49750 | H59: 709750 | J59: UFA
A60: Asante Samuel | B60: CB | C60: 955000 | E60: 955000 | F60: 955000 | H60: 955000 | J60: UFA
A61: Melvin White | B61: CB | C61: 495000 | D61: 2500 | E61: 497500 | F61: 585000 | G61: 2500 | H61: 587500 | J61: RFA
A62: Josh Wilson | B62: CB | C62: 855000 | E62: 855000 | F62: 920000 | H62: 920000 | I62: 1075000 | K62: =J62+I62 -> 1075000 | M62: UFA
A64: Chris Boswell | B64: K | C64: 420000 | D64: 20961.3435 | E64: 440961.3435 | F64: 527738.2145 | G64: 20961.3435 | H64: 548699.558 | I64: 630321.1753 | J64: 20961.3435 | K64: 651282.5188 | L64: 737675.4367 | M64: 20961.3435 | N64: 758636.7801 | P64: UFA
A65: J.J. Jansen | B65: LS | C65: 855000 | D65: 125000 | E65: =D65+C65 -> 980000 | F65: 870000 | G65: 125000 | H65: =G65+F65 -> 995000 | J65: UFA
A66: Brad Nortman | B66: P | C66: 570000 | D66: 19670 | E66: =D66+C66 -> 589670 | F66: 660000 | G66: 19670 | H66: =G66+F66 -> 679670 | J66: UFA
A69: Total Players | C69: =COUNTA(C4:C67) -> 53 | F69: =COUNTA(F4:F67) -> 47 | I69: =COUNTA(I4:I67) -> 33 | L69: =COUNTA(L4:L67) -> 16
A70: Top 51 Salary | C70: =SUM(LARGE(ISNUMBER(E4:E67)*E4:E67,ROW(INDIRECT("1:51")))) -> 107051183.8 | F70: =SUM(LARGE(ISNUMBER(H4:H67)*H4:H67,ROW(INDIRECT("1:51")))) -> 109963917.2 | I70: =SUM(LARGE(ISNUMBER(K4:K67)*K4:K67,ROW(INDIRECT("1:51")))) -> 88346823.86 | L70: =SUM(LARGE(ISNUMBER(N4:N67)*N4:N67,ROW(INDIRECT("1:51")))) -> 54140723.97
A71: Dead Money | C71: 27543141 | F71: 7652900
A72: Cap Rollover | C72: 6012268 | F72: =C73 -> 4417943.184 | I72: =F73 -> 19801125.96 | L72: 64454302.11
A73: Cap Space | C73: =133000000-C70-C71+C72 -> 4417943.184 | F73: =133000000-F70-F71+F72 -> 19801125.96 | I73: =133000000-I70-I71+I72 -> 64454302.11 | L73: =133000000-L70-L71+L72 -> 143313578.1
A74: June 1st Cut | B74: 2/2
A75: Paycut | B75: 2/2
A76: Restructure | B76: 0/3
A78: Practice Squad
A79: Roy Finch | B79: RB | C79: 420000 | E79: =D79+C79 -> 420000 | F79: 510000 | H79: 510000 | I79: 600000 | K79: 600000 | M79: RFA
A80: Stephen Houston | B80: RB | C80: 420000 | E80: =D80+C80 -> 420000 | F80: 510000 | H80: 510000 | I80: 600000 | K80: 600000 | M80: RFA
A81: Michael Zordich | B81: FB | C81: 420000 | E81: =D81+C81 -> 420000 | F81: 585000 | G81: 1000 | H81: =G81+F81 -> 586000 | J81: RFA
A82: Garrett Scott | B82: OT | C82: 420000 | E82: =D82+C82 -> 420000 | F82: 510000 | H82: 510000 | I82: 600000 | K82: 600000 | M82: RFA
A83: George Uko | B83: DT | C83: 420000 | E83: 420000 | F83: 528222.6165 | G83: 14906.31789 | H83: 543128.9344 | I83: 629764.113 | J83: 14906.31789 | K83: 644670.4308 | L83: 736028.4697 | M83: 14906.31789 | N83: 750934.7876 | P83: UFA
A84: Ben Jacobs | B84: ILB | C84: 495000 | E84: =D84+C84 -> 495000 | G84: ERFA
A85: James Morris | B85: ILB | C85: 420000 | E85: =D85+C85 -> 420000 | F85: 510000 | H85: 510000 | I85: 600000 | K85: 600000 | M85: RFA
A86: Carrington Byndom | B86: CB | C86: 420000 | E86: =D86+C86 -> 420000 | F86: 510000 | H86: 510000 | I86: 600000 | K86: 600000 | M86: RFA

Sheet CHI
C1: 2014 | F1: 2015 | I1: 2016 | L1: 2017 | O1: 2018 | R1: 2019 | U1: 2020
A2: Player | B2: Pos. | C2: Base Salary | D2: Signing Bonus | E2: Cap Figure | F2: Base Salary | G2: Signing Bonus | H2: Cap Figure | I2: Base Salary | J2: Signing Bonus | K2: Cap Figure | L2: Base Salary | M2: Signing Bonus | N2: Cap Figure | O2: Base Salary | P2: Signing Bonus | Q2: Cap Figure | R2: Base Salary | S2: Signing Bonus | T2: Cap Figure | U2: Base Salary | V2: Signing Bonus | W2: Cap Figure
A3: OFFENSE
A4: Blake Bortles | B4: QB | C4: 420000 | D4: 2387347.833 | E4: 2807347.833 | F4: 1178606.643 | G4: 2387347.833 | H4: 3565954.476 | I4: 1845285.088 | J4: 2387347.833 | K4: 4232632.921 | L4: 2542971.834 | M4: 2387347.833 | N4: 4930319.667 | P4: TOP10 Option
A5: Tajh Boyd | B5: QB | C5: 420000 | D5: 80079.36545 | E5: 500079.3654 | F5: 523008.7727 | G5: 80079.36545 | H5: 603088.1382 | I5: 635760.0333 | J5: 80079.36545 | K5: 715839.3988 | L5: 753755.5386 | M5: 80079.36545 | N5: 833834.9041 | P5: UFA
A7: Ahmad Bradshaw | B7: RB | C7: 855000 | E7: =D7+C7 -> 855000 | F7: 855000 | H7: =G7+F7 -> 855000 | J7: UFA
A8: Darren McFadden | B8: RB | C8: 855000 | E8: =D8+C8 -> 855000 | F8: 950000 | H8: =G8+F8 -> 950000 | I8: 1195000 | K8: =J8+I8 -> 1195000 | M8: UFA
A9: Lamar Miller | B9: RB | C9: 570000 | E9: =D9+C9 -> 570000 | F9: 660000 | H9: =G9+F9 -> 660000 | J9: UFA
A10: Tony Fiammetta | B10: FB | C10: 730000 | E10: =D10+C10 -> 730000 | F10: 745000 | H10: =G10+F10 -> 745000 | J10: UFA
A12: Mike Evans | B12: WR | C12: 420000 | D12: 3171181.661 | E12: 3591181.661 | F12: 1386326.161 | G12: 3171181.661 | H12: 4557507.823 | I12: 2238381.972 | J12: 3171181.661 | K12: 5409563.633 | L12: 3130068.285 | M12: 3171181.661 | N12: 6301249.946 | P12: TOP10 Option
A13: Jacoby Ford | B13: WR | C13: 730000 | E13: =D13+C13 -> 730000 | F13: 730000 | H13: =G13+F13 -> 730000 | I13: 730000 | K13: =J13+I13 -> 730000 | M13: UFA
A14: Hakeem Nicks | B14: WR | C14: 1000000 | D14: 2500000 | E14: =D14+C14 -> 3500000 | F14: 2000000 | G14: 2500000 | H14: =G14+F14 -> 4500000 | I14: 3000000 | J14: 2500000 | K14: =J14+I14 -> 5500000 | L14: 4000000 | M14: 2500000 | N14: =M14+L14 -> 6500000 | O14: 5000000 | P14: 2500000 | Q14: =P14+O14 -> 7500000 | S14: UFA
A15: Sammy Watkins | B15: WR | C15: 420000 | D15: 3676319.136 | E15: 4096319.136 | F15: 1520183.915 | G15: 3676319.136 | H15: 5196503.051 | I15: 2491704.051 | J15: 3676319.136 | K15: 6168023.187 | L15: 3508411.17 | M15: 3676319.136 | N15: 7184730.306 | P15: TOP10 Option
A16: Marquess Wilson | B16: WR | C16: 495000 | D16: 11898 | E16: =D16+C16 -> 506898 | F16: 585000 | G16: 11898 | H16: =G16+F16 -> 596898 | I16: 675000 | J16: 11898 | K16: =J16+I16 -> 686898 | M16: UFA
A18: Colt Lyerla | B18: TE | C18: 420000 | D18: 42705.94004 | E18: 462705.94 | F18: 525998.6467 | G18: 42705.94004 | H18: 568704.5868 | I18: 632321.6782 | J18: 42705.94004 | K18: 675027.6182 | L18: 743589.9669 | M18: 42705.94004 | N18: 786295.907 | P18: UFA
A19: Greg Olsen | B19: TE | C19: 2250000 | D19: 1250000 | E19: =D19+C19 -> 3500000 | F19: 2750000 | G19: 1250000 | H19: =G19+F19 -> 4000000 | I19: 3750000 | J19: 1250000 | K19: =J19+I19 -> 5000000 | L19: 4750000 | M19: 1250000 | N19: =M19+L19 -> 6000000 | O19: 6500000 | P19: 1250000 | Q19: =P19+O19 -> 7750000 | S19: UFA
A20: Dennis Pitta | B20: TE | C20: 1000000 | D20: 500000 | E20: =D20+C20 -> 1500000 | F20: 2500000 | G20: 500000 | H20: =G20+F20 -> 3000000 | I20: 3000000 | J20: 500000 | K20: =J20+I20 -> 3500000 | L20: 4000000 | M20: 500000 | N20: =M20+L20 -> 4500000 | O20: 4500000 | P20: 500000 | Q20: =P20+O20 -> 5000000 | S20: UFA
A22: Taylor Boggs | B22: C | C22: 495000 | E22: =D22+C22 -> 495000 | G22: RFA
A23: Travis Swanson | B23: C | C23: 420000 | E23: =D23+C23 -> 420000 | F23: 520878.3244 | H23: =G23+F23 -> 520878.3244 | I23: 638210.0489 | K23: =J23+I23 -> 638210.0489 | L23: 760999.0628 | N23: =M23+L23 -> 760999.0628 | P23: UFA
A24: James Brown | B24: G | C24: 570000 | E24: =D24+C24 -> 570000 | G24: RFA
A25: Kyle Long | B25: G | C25: 782316 | D25: 1104264 | E25: =D25+C25 -> 1886580 | F25: 1159632 | G25: 1104264 | H25: =G25+F25 -> 2263896 | I25: 1536948 | J25: 1104264 | K25: =J25+I25 -> 2641212 | M25: 3-25 Option
A26: Matt Slauson | B26: G | C26: 2330000 | D26: 417500 | E26: =D26+C26 -> 2747500 | F26: 2850000 | G26: 417500 | H26: =G26+F26 -> 3267500 | I26: 2950000 | J26: 417500 | K26: =J26+I26 -> 3367500 | L26: 3000000 | M26: 417500 | N26: =M26+L26 -> 3417500 | P26: UFA
A27: Brandon Thomas | B27: G | C27: 420000 | D27: 144800.5772 | E27: 564800.5772 | F27: 517764.8989 | G27: 144800.5772 | H27: 662565.4761 | I27: 641635.8357 | J27: 144800.5772 | K27: 786436.413 | L27: 771268.2115 | M27: 144800.5772 | N27: 916068.7887 | P27: UFA
A28: Matt Kalil | B28: LT | C28: 2187326 | E28: =D28+C28 -> 2187326 | F28: 3085989 | H28: =G28+F28 -> 3085989 | J28: TOP10 Option
A29: Joe Long | B29: LT | C29: 420000 | E29: =D29+C29 -> 420000 | G29: ERFA
A30: Jordan Mills | B30: RT | C30: 495000 | D30: 41200 | E30: =D30+C30 -> 536200 | F30: 585000 | G30: 41200 | H30: =G30+F30 -> 626200 | I30: 675000 | J30: 41200 | K30: =J30+I30 -> 716200 | M30: UFA
A31: Zach Strief | B31: RT | C31: 750000 | D31: 250000 | E31: =D31+C31 -> 1000000 | F31: 1750000 | G31: 250000 | H31: =G31+F31 -> 2000000 | I31: 2250000 | J31: 250000 | K31: =J31+I31 -> 2500000 | L31: 2900000 | M31: 250000 | N31: =M31+L31 -> 3150000 | O31: 3600000 | P31: 250000 | Q31: =P31+O31 -> 3850000 | S31: UFA
A32: DEFENSE
A33: Jason Hatcher | B33: DT | C33: 1250000 | D33: 250000 | E33: =D33+C33 -> 1500000 | F33: 2000000 | G33: 250000 | H33: =G33+F33 -> 2250000 | I33: 2500000 | J33: 250000 | K33: =J33+I33 -> 2750000 | L33: 3250000 | M33: 250000 | N33: =M33+L33 -> 3500000 | P33: UFA
A34: Stephen Paea | B34: DT | C34: 877623 | D34: 295164 | E34: =D34+C34 -> 1172787 | G34: UFA
A35: Shamar Stephen | B35: DT | C35: 420000 | D35: 24243.54675 | E35: 444243.5467 | F35: 527475.6382 | G35: 24243.54675 | H35: 551719.185 | I35: 630623.138 | J35: 24243.54675 | K35: 654866.6848 | L35: 738568.1959 | M35: 24243.54675 | N35: 762811.7427 | P35: UFA
A37: David Bass | B37: DE | C37: 495000 | E37: =D37+C37 -> 495000 | F37: 585000 | H37: =G37+F37 -> 585000 | I37: 675000 | K37: =J37+I37 -> 675000 | M37: UFA
A38: Cameron Jordan | B38: DE | C38: 1429282 | E38: 1429282 | F38: 6969000 | H38: 6969000 | J38: UFA
A39: Robert Quinn | B39: DE | C39: 15250000 | D39: 4750000 | E39: 20000000 | F39: 11750000 | G39: 4750000 | H39: 16500000 | I39: 250000 | J39: 4750000 | K39: =J39+I39 -> 5000000 | L39: 250000 | M39: 4750000 | N39: =M39+L39 -> 5000000 | O39: 1750000 | P39: 4750000 | Q39: =P39+O39 -> 6500000 | R39: 8250000 | T39: =S39+R39 -> 8250000 | U39: 8700000 | W39: =V39+U39 -> 8700000 | Y39: UFA
A40: Willie Young | B40: DE | C40: 730000 | E40: 730000 | F40: 750000 | H40: 750000 | I40: 960000 | K40: =J40+I40 -> 960000 | L40: 1160000 | N40: =M40+L40 -> 1160000 | P40: UFA
A42: Michael Mauti | B42: ILB | C42: 495000 | E42: =D42+C42 -> 495000 | F42: 585000 | H42: =G42+F42 -> 585000 | I42: 675000 | K42: =J42+I42 -> 675000 | M42: UFA
A43: Rolando McClain | B43: ILB | C43: 730000 | E43: 730000 | F43: 730000 | H43: 730000 | I43: 730000 | K43: 730000 | M43: UFA
A44: Alec Ogletree | B44: ILB | C44: 724547 | E44: 724547 | F44: 1044094 | H44: =G44+F44 -> 1044094 | I44: 1363641 | K44: =J44+I44 -> 1363641 | M44: 3-25 Option
A45: Jerry Franklin | B45: OLB | C45: 570000 | E45: 570000 | G45: ERFA
A46: Khaseem Greene | B46: OLB | C46: 495000 | D46: 108023 | E46: 603023 | F46: 585000 | G46: 108023 | H46: =G46+F46 -> 693023 | I46: 675000 | J46: 108023 | K46: =J46+I46 -> 783023 | M46: UFA
A47: Von Miller | B47: OLB | C47: 3238688 | E47: 3238688 | F47: 9744496 | H47: =G47+F47 -> 9744496 | J47: UFA
A48: Keith Rivers | B48: OLB | C48: 730000 | E48: 730000 | F48: 850000 | H48: =G48+F48 -> 850000 | I48: 850000 | J48: 0 | K48: =J48+I48 -> 850000 | M48: UFA
A49: Kyle Van Noy | B49: OLB | C49: 420000 | D49: 527047.2467 | E49: 947047.2467 | F49: 685627.11 | G49: 527047.2467 | H49: 1212674.357 | I49: 912344.4897 | J49: 527047.2467 | K49: 1439391.736 | L49: 1149606.864 | M49: 527047.2467 | N49: 1676654.111 | P49: UFA
A51: Ryan Clark | B51: S | C51: 955000 | E51: =D51+C51 -> 955000 | F51: 955000 | H51: =G51+F51 -> 955000 | J51: UFA
A52: Taylor Mays | B52: S | C52: 730000 | E52: =D52+C52 -> 730000 | F52: 730000 | H52: =G52+F52 -> 730000 | I52: 855000 | K52: =J52+I52 -> 855000 | M52: UFA
A53: Calvin Pryor | B53: S | C53: 420000 | D53: 1429328.118 | E53: 1849328.118 | F53: 924730.928 | G53: 1429328.118 | H53: 2354059.046 | I53: 1364837.619 | J53: 1429328.118 | K53: 2794165.737 | L53: 1825414.389 | M53: 1429328.118 | N53: 3254742.507 | P53: TOP3-25 Option
A54: Jamarca Sanford | B54: S | C54: 500000 | D54: 250000 | E54: =D54+C54 -> 750000 | F54: 1000000 | G54: 250000 | H54: =G54+F54 -> 1250000 | I54: 1250000 | J54: 250000 | K54: =J54+I54 -> 1500000 | L54: 1500000 | M54: 250000 | N54: =M54+L54 -> 1750000 | O54: 2000000 | P54: 250000 | Q54: =P54+O54 -> 2250000 | S54: UFA
A55: Brock Vereen | B55: S | C55: 420000 | D55: 49286.3313 | E55: 469286.3313 | F55: 525472.2154 | G55: 49286.3313 | H55: 574758.5467 | I55: 632927.0742 | J55: 49286.3313 | K55: 682213.4055 | L55: 745379.8333 | M55: 49286.3313 | N55: 794666.1646 | P55: UFA
A57: Will Davis | B57: CB | C57: 500000 | E57: =D57+C57 -> 500000 | F57: 592500 | H57: =G57+F57 -> 592500 | I57: 682500 | K57: =J57+I57 -> 682500 | M57: UFA
A58: Pierre Desir | B58: CB | C58: 420000 | D58: 117013.7429 | E58: 537013.7429 | F58: 520054.0225 | G58: 117013.7429 | H58: 637067.7654 | I58: 639157.9961 | J58: 117013.7429 | K58: 756171.7389 | L58: 763801.6893 | M58: 117013.7429 | N58: 880815.4322 | P58: UFA
A59: Isaiah Frey | B59: CB | C59: 495000 | E59: =D59+C59 -> 495000 | G59: ERFA
A60: Tim Jennings | B60: CB | C60: 4500000 | D60: 750000 | E60: 5250000 | F60: 4500000 | G60: 750000 | H60: =G60+F60 -> 5250000 | I60: 5000000 | J60: 750000 | K60: =J60+I60 -> 5750000 | L60: 5400000 | M60: 750000 | N60: =M60+L60 -> 6150000 | P60: UFA
A61: Dominique Rodgers-Cromartie | B61: CB | C61: 0 | D61: 1500000 | E61: 1500000 | F61: 3000000 | G61: 1500000 | H61: =G61+F61 -> 4500000 | I61: 4000000 | J61: 1500000 | K61: =J61+I61 -> 5500000 | L61: 5500000 | M61: 1500000 | N61: =M61+L61 -> 7000000 | O61: 7500000 | P61: 1500000 | Q61: =P61+O61 -> 9000000 | S61: UFA
A62: Cassius Vaughn | B62: CB | C62: 730000 | E62: 730000 | F62: 730000 | H62: =G62+F62 -> 730000 | I62: 855000 | K62: =J62+I62 -> 855000 | M62: UFA
A64: Robbie Gould | B64: K | C64: 2000000 | D64: 600000 | E64: =D64+C64 -> 2600000 | F64: 3000000 | G64: 600000 | H64: =G64+F64 -> 3600000 | I64: 3500000 | J64: 600000 | K64: =J64+I64 -> 4100000 | L64: 3500000 | M64: 600000 | N64: =M64+L64 -> 4100000 | P64: UFA
A65: Brandon Hartson | B65: LS | C65: 420000 | E65: =D65+C65 -> 420000 | F65: 510000 | H65: =G65+F65 -> 510000 | J65: RFA
A66: Pat O' Donnell | B66: P | C66: 420000 | E66: =D66+C66 -> 420000 | F66: 510000 | H66: =G66+F66 -> 510000 | I66: 600000 | K66: 600000 | M66: RFA
A69: Total Players | C69: =COUNTA(C4:C67) -> 53 | F69: =COUNTA(F4:F67) -> 47 | I69: =COUNTA(I4:I67) -> 39 | L69: =COUNTA(L4:L67) -> 24
A70: Top 51 Salary | C70: =SUM(LARGE(ISNUMBER(E4:E72)*E4:E72,ROW(INDIRECT("1:51")))) -> 85207184.5 | F70: =SUM(LARGE(ISNUMBER(H4:H72)*H4:H72,ROW(INDIRECT("1:51")))) -> 107614076.8 | I70: =SUM(LARGE(ISNUMBER(K4:K72)*K4:K72,ROW(INDIRECT("1:51")))) -> 84418516.52 | L70: =SUM(LARGE(ISNUMBER(N4:N72)*N4:N72,ROW(INDIRECT("1:51")))) -> 81310688.54
A71: Dead Money | C71: 26986903 | F71: 5583000
A72: Cap Rollover | C72: 746727 | F72: =C73 -> 21552639.5 | I72: =F73 -> 41355562.73 | L72: 89937046.2
A73: Cap Space | C73: =133000000-C70-C71+C72 -> 21552639.5 | F73: =133000000-F70-F71+F72 -> 41355562.73 | I73: =133000000-I70-I71+I72 -> 89937046.2 | L73: =133000000-L70-L71+L72 -> 141626357.7
A74: June 1st Cut | B74: 2/2
A75: Paycut | B75: 0/2
A76: Restructure | B76: 0/3
A78: Practice Squad
A79: Tyler Gaffney | B79: RB | C79: 420000 | E79: =D79+C79 -> 420000 | F79: 510000 | H79: =G79+F79 -> 510000 | I79: 600000 | K79: 600000 | M79: RFA
A80: Donte Foster | B80: WR | C80: 420000 | E80: =D80+C80 -> 420000 | F80: 510000 | H80: =G80+F80 -> 510000 | I80: 600000 | K80: 600000 | M80: RFA
A81: Willie Snead | B81: WR | C81: 420000 | E81: =D81+C81 -> 420000 | F81: 510000 | H81: =G81+F81 -> 510000 | I81: 600000 | K81: 600000 | M81: RFA
A82: Beau Allen | B82: DT | C82: 420000 | E82: 420000 | F82: 528436.9401 | G82: 12227.27276 | H82: 540664.2129 | I82: 629517.6408 | J82: 12227.27276 | K82: 641744.9136 | L82: 735299.7694 | M82: 12227.27276 | N82: 747527.0422 | P82: UFA
A83: Tyler Starr | B83: DE/OLB | C83: 420000 | E83: =D83+C83 -> 420000 | F83: 510000 | H83: =G83+F83 -> 510000 | I83: 600000 | K83: 600000 | M83: RFA
A84: Cornelius Washington | B84: DE | C84: 495000 | E84: =D84+C84 -> 495000 | F84: 585000 | G84: 25947 | H84: =G84+F84 -> 610947 | I84: 675000 | J84: 25947 | K84: =J84+I84 -> 700947 | M84: UFA
A85: Larry Webster III | B85: DE | C85: 420000 | E85: 420000 | F85: 534069.3714 | G85: 18415.50467 | H85: 552484.8761 | I85: 637360.0222 | J85: 18415.50467 | K85: 655775.5268 | L85: 745454.8892 | M85: 18415.50467 | N85: 763870.3939 | P85: UFA
A86: Ethan Westbrooks | B86: DE | C86: 420000 | E86: 420000 | F86: 527248.1858 | G86: 27086.70203 | H86: 554334.8878 | I86: 630884.7083 | J86: 27086.70203 | K86: 657971.4103 | L86: 739341.5342 | M86: 27086.70203 | N86: 766428.2362 | P86: UFA

Sheet CIN
C1: 2014 | F1: 2015 | I1: 2016 | L1: 2017 | O1: 2018 | R1: 2019 | U1: 2020
A2: Player | B2: Pos. | C2: Base Salary | D2: Signing Bonus | E2: Cap Figure | F2: Base Salary | G2: Signing Bonus | H2: Cap Figure | I2: Base Salary | J2: Signing Bonus | K2: Cap Figure | L2: Base Salary | M2: Signing Bonus | N2: Cap Figure | O2: Base Salary | P2: Signing Bonus | Q2: Cap Figure | R2: Base Salary | S2: Signing Bonus | T2: Cap Figure | U2: Base Salary | V2: Signing Bonus | W2: Cap Figure
A3: OFFENSE
A4: Jason Campbell | B4: QB | C4: 2400000 | D4: 800000 | E4: =D4+C4 -> 3200000 | F4: 1200000 | G4: 800000 | H4: =G4+F4 -> 2000000 | J4: UFA
A5: Thaddeus Lewis | B5: QB | C5: 645000 | E5: =D5+C5 -> 645000 | G5: RFA
A6: Zach Mettenberger | B6: QB | C6: 420000 | D6: 185843.037 | E6: 605843.037 | F6: 573978.448 | G6: 185843.037 | H6: 759821.485 | I6: 716032.03 | J6: 185843.037 | K6: 901875.067 | L6: 864692.7553 | M6: 185843.037 | N6: 1050535.792 | P6: UFA
A8: Giovani Bernard | B8: RB | C8: 643788 | D8: 550153 | E8: =D8+C8 -> 1193941 | F8: 882750 | G8: 550153 | H8: =G8+F8 -> 1432903 | I8: 1121625 | J8: 550153 | K8: =J8+I8 -> 1671778 | M8: UFA
A9: Rex Burkhead | B9: RB | C9: 495000 | D9: 25550 | E9: =D9+C9 -> 520550 | F9: 585000 | G9: 25550 | H9: =G9+F9 -> 610550 | I9: 675000 | J9: 25550 | K9: =J9+I9 -> 700550 | M9: UFA
A10: Michael Ford | B10: RB | C10: 495000 | E10: =D10+C10 -> 495000 | F10: 585000 | H10: =G10+F10 -> 585000 | J10: RFA
A11: Orson Charles | B11: FB | C11: 570000 | D11: 107325 | E11: =D11+C11 -> 677325 | F11: 660000 | G11: 107325 | H11: =G11+F11 -> 767325 | J11: UFA
A13: Kevin Brock | B13: TE | C13: 495000 | E13: =D13+C13 -> 495000 | G13: RFA
A14: Tyler Eifert | B14: TE | C14: 780273 | D14: 1096091 | E14: =D14+C14 -> 1876364 | F14: 1155546 | G14: 1096091 | H14: =G14+F14 -> 2251637 | I14: 1530818 | J14: 1096091 | K14: =J14+I14 -> 2626909 | M14: 3-25 Option
A15: Jermaine Gresham | B15: TE | C15: 4832000 | E15: =D15+C15 -> 4832000 | G15: UFA
A17: A.J. Green | B17: WR | C17: 3059739 | D17: 3204655 | E17: =D17+C17 -> 6264394 | G17: TOP10 Option
A18: Cobi Hamilton | B18: WR | C18: 420000 | E18: =D18+C18 -> 420000 | F18: 510000 | H18: =G18+F18 -> 510000 | J18: ERFA
A19: Brandon LaFell | B19: WR | C19: 3200000 | D19: 1700000 | E19: =D19+C19 -> 4900000 | F19: 3200000 | G19: 1700000 | H19: =G19+F19 -> 4900000 | I19: 3200000 | J19: 1700000 | K19: =J19+I19 -> 4900000 | M19: UFA
A20: Greg Salas | B20: WR | C20: 645000 | E20: =D20+C20 -> 645000 | G20: UFA
A21: Mohamed Sanu | B21: WR | C21: 590000 | D21: 140813 | E21: =D21+C21 -> 730813 | F21: 680000 | G21: 140813 | H21: =G21+F21 -> 820813 | J21: UFA
A23: Mike Pollak | B23: C | C23: 1200000 | D23: 300000 | E23: =D23+C23 -> 1500000 | F23: 1200000 | G23: 300000 | H23: =G23+F23 -> 1500000 | I23: 1200000 | J23: 300000 | K23: =J23+I23 -> 1500000 | M23: UFA
A24: Trevor Robinson | B24: C | C24: 570000 | D24: 2000 | E24: 572000 | G24: RFA
A25: Clint Boling | B25: G | C25: 1389000 | D25: 120362 | E25: 1509362 | G25: UFA
A26: Tanner Hawkinson | B26: G | C26: 495000 | D26: 45606 | E26: 540606 | F26: 585000 | G26: 45606 | H26: =G26+F26 -> 630606 | I26: 675000 | J26: 45606 | K26: =J26+I26 -> 720606 | M26: UFA
A27: Spencer Long | B27: G | C27: 420000 | E27: 420000 | F27: 510000 | H27: 510000 | I27: 600000 | K27: 600000 | M27: RFA
A28: Kevin Zeitler | B28: G | C28: 1075836 | D28: 981673 | E28: 2057509 | F28: 1418754 | G28: 981673 | H28: =G28+F28 -> 2400427 | J28: 3-25 Option
A29: Benjamin Ijalana | B29: LT | C29: 926658 | E29: =D29+C29 -> 926658 | G29: UFA
A30: Andrew Whitworth | B30: LT | C30: 5200000 | D30: 1000000 | E30: =D30+C30 -> 6200000 | F30: 5200000 | H30: =G30+F30 -> 5200000 | J30: UFA
A31: Charles Brown | B31: RT | C31: 800000 | D31: 50000 | E31: =D31+C31 -> 850000 | F31: 800000 | G31: 50000 | H31: =G31+F31 -> 850000 | J31: UFA
A32: Anthony Collins | B32: RT | C32: 7000000 | D32: 1800000 | E32: 8800000 | F32: 4000000 | G32: 1800000 | H32: =G32+F32 -> 5800000 | I32: 4500000 | J32: 1800000 | K32: =J32+I32 -> 6300000 | L32: 4500000 | M32: 1800000 | N32: =M32+L32 -> 6300000 | P32: UFA
A33: DEFENSE
A34: Geno Atkins | B34: DT | C34: 6000000 | D34: 3000000 | E34: =D34+C34 -> 9000000 | F34: 6000000 | G34: 3000000 | H34: =G34+F34 -> 9000000 | I34: 6600000 | J34: 3000000 | K34: =J34+I34 -> 9600000 | L34: 7600000 | M34: 3000000 | N34: =M34+L34 -> 10600000 | O34: 9550000 | Q34: =P34+O34 -> 9550000 | S34: UFA
A35: Michael Brockers | B35: DT | C35: 1255636 | D35: 0 | E35: =D35+C35 -> 1255636 | F35: 1688454 | G35: 0 | H35: =G35+F35 -> 1688454 | J35: 3-25 Option
A36: Devon Still | B36: DT | C36: 732746 | D36: 295164 | E36: =D36+C36 -> 1027910 | F36: 904037 | G36: 295164 | H36: =G36+F36 -> 1199201 | J36: UFA
A37: Brandon Thompson | B37: DT | C37: 575000 | D37: 130300 | E37: =D37+C37 -> 705300 | F37: 665000 | G37: 130300 | H37: =G37+F37 -> 795300 | J37: UFA
A39: Da' Quan Bowers | B39: DE | C39: 900768 | D39: 0 | E39: =D39+C39 -> 900768 | G39: UFA
A40: Carlos Dunlap | B40: DE | C40: 7000000 | D40: 1600000 | E40: =D40+C40 -> 8600000 | F40: 3300000 | G40: 1600000 | H40: =G40+F40 -> 4900000 | I40: 4350000 | J40: 1600000 | K40: =J40+I40 -> 5950000 | L40: 5350000 | M40: 1600000 | N40: =M40+L40 -> 6950000 | O40: 7000000 | Q40: =P40+O40 -> 7000000 | S40: UFA
A41: Wallace Gilberry | B41: DE | C41: 1500000 | D41: 200000 | E41: =D41+C41 -> 1700000 | F41: 1850000 | G41: 200000 | H41: =G41+F41 -> 2050000 | J41: UFA
A42: Margus Hunt | B42: DE | C42: 571868 | D42: 262473 | E42: =D42+C42 -> 834341 | F42: 738737 | G42: 262473 | H42: =G42+F42 -> 1001210 | I42: 905605 | J42: 262473 | K42: =J42+I42 -> 1168078 | M42: UFA
A43: Shea McClellin | B43: DE | C43: 1141218 | D43: 0 | E43: =D43+C43 -> 1141218 | F43: 1516827 | G43: 0 | H43: =G43+F43 -> 1516827 | J43: 3-25 Option
A45: Jayson Dimanche | B45: ILB | C45: 495000 | D45: 5000 | E45: =D45+C45 -> 500000 | F45: 585000 | G45: 5000 | H45: =G45+F45 -> 590000 | J45: RFA
A46: Rey Maualuga | B46: ILB | C46: 2750000 | D46: 1125000 | E46: 3875000 | G46: UFA
A47: Vontaze Burfict | B47: OLB | C47: 570000 | D47: 333 | E47: 570333 | G47: RFA
A48: Brandon Joiner | B48: OLB | C48: 420000 | E48: 420000 | F48: 510000 | H48: =G48+F48 -> 510000 | J48: RFA
A49: Emmanuel Lamur | B49: OLB | C49: 495000 | E49: 495000 | G49: RFA
A50: Sean Porter | B50: OLB | C50: 495000 | D50: 107325 | E50: 602325 | F50: 585000 | G50: 107325 | H50: =G50+F50 -> 692325 | I50: 675000 | J50: 107325 | K50: =J50+I50 -> 782325 | M50: UFA
A51: Vincent Rey | B51: OLB | C51: 2182244 | E51: 2182244 | G51: UFA
A53: Rafael Bush | B53: S | C53: 1100000 | D53: 33330 | E53: =D53+C53 -> 1133330 | F53: 900000 | G53: 33330 | H53: =G53+F53 -> 933330 | I53: 700000 | J53: 33330 | K53: =J53+I53 -> 733330 | M53: UFA
A54: George Iloka | B54: S | C54: 570000 | D54: 40075 | E54: =D54+C54 -> 610075 | F54: 660000 | G54: 40075 | H54: =G54+F54 -> 700075 | J54: UFA
A55: Reggie Nelson | B55: S | C55: 3850000 | D55: 625000 | E55: =D55+C55 -> 4475000 | F55: 4150000 | G55: 625000 | H55: =G55+F55 -> 4775000 | J55: UFA
A56: Shawn Williams | B56: S | C56: 515000 | D56: 138986 | E56: =D56+C56 -> 653986 | F56: 600000 | G56: 138986 | H56: =G56+F56 -> 738986 | I56: 685000 | J56: 138986 | K56: =J56+I56 -> 823986 | M56: UFA
A58: Leon Hall | B58: CB | C58: 6900000 | D58: 1800000 | E58: =D58+C58 -> 8700000 | F58: 7800000 | G58: 1800000 | H58: =G58+F58 -> 9600000 | J58: UFA
A59: E.J. Gaines | B59: CB | C59: 420000 | D59: 109911.1829 | E59: 529911.1829 | F59: 520622.2273 | G59: 109911.1829 | H59: 630533.4102 | I59: 638504.5605 | J59: 109911.1829 | K59: 748415.7435 | L59: 761869.793 | M59: 109911.1829 | N59: 871780.9759 | P59: UFA
A60: Dre Kirkpatrick | B60: CB | C60: 1173908 | D60: 1177768 | E60: =D60+C60 -> 2351676 | F60: 1565862 | G60: 1177768 | H60: =G60+F60 -> 2743630 | J60: 3-25 Option
A61: Terence Newman | B61: CB | C61: 2000000 | E61: =D61+C61 -> 2000000 | G61: UFA
A62: Terrell Thomas | B62: CB | C62: 755000 | D62: 100000 | E62: =D62+C62 -> 855000 | F62: 833000 | G62: 100000 | H62: =G62+F62 -> 933000 | I62: 1112000 | J62: 100000 | K62: =J62+I62 -> 1212000 | M62: UFA
A64: Mike Nugent | B64: K | C64: 1400000 | E64: =D64+C64 -> 1400000 | G64: UFA
A65: Clark Harris | B65: LS | C65: 760000 | E65: =D65+C65 -> 760000 | F65: 900000 | H65: =G65+F65 -> 900000 | I65: 950000 | K65: =J65+I65 -> 950000 | L65: 1000000 | N65: =M65+L65 -> 1000000 | P65: UFA
A66: Kevin Huber | B66: P | C66: 2000000 | D66: 320000 | E66: =D66+C66 -> 2320000 | F66: 2450000 | G66: 320000 | H66: =G66+F66 -> 2770000 | I66: 2700000 | J66: 320000 | K66: =J66+I66 -> 3020000 | L66: 2850000 | M66: 320000 | N66: =M66+L66 -> 3170000 | P66: UFA
A69: Total Players | C69: =COUNTA(C4:C67) -> 53 | F69: =COUNTA(F4:F67) -> 38 | I69: =COUNTA(I4:I67) -> 19 | L69: =COUNTA(L4:L67) -> 7
A70: Top 51 Salary | C70: =SUM(LARGE(ISNUMBER(E4:E67)*E4:E67,ROW(INDIRECT("1:51")))) -> 109636418.2 | F70: =SUM(LARGE(ISNUMBER(H4:H67)*H4:H67,ROW(INDIRECT("1:51")))) -> 80196953.9 | I70: =SUM(LARGE(ISNUMBER(K4:K67)*K4:K67,ROW(INDIRECT("1:51")))) -> 44909852.81 | L70: =SUM(LARGE(ISNUMBER(N4:N67)*N4:N67,ROW(INDIRECT("1:51")))) -> 29942316.77
A71: Dead Money | C71: 6016201 | F71: 640000
A72: Cap Rollover | C72: 8663480 | F72: =C73 -> 26010860.78 | I72: =F73 -> 78173906.88 | L72: 166264054.1
A73: Cap Space | C73: =133000000-C70-C71+C72 -> 26010860.78 | F73: =133000000-F70-F71+F72 -> 78173906.88 | I73: =133000000-I70-I71+I72 -> 166264054.1 | L73: =133000000-L70-L71+L72 -> 269321737.3
A74: June 1st Cut | B74: 0/2
A75: Paycut | B75: 1/2
A76: Restructure | B76: 0/3
A78: Practice Squad
A79: Onterio McCalebb | B79: RB | C79: 420000 | E79: =D79+C79 -> 420000 | F79: 510000 | H79: =G79+F79 -> 510000 | J79: ERFA
A80: L' Damian Washington | B80: WR | C80: 420000 | E80: 420000 | F80: 528436.9401 | G80: 12227.27276 | H80: 540664.2129 | I80: 629517.6408 | J80: 12227.27276 | K80: 641744.9136 | L80: 735299.7694 | M80: 12227.27276 | N80: 747527.0422 | P80: UFA
A81: Trey Hopkins | B81: G | C81: 420000 | E81: 420000 | F81: 510000 | H81: 510000 | I81: 600000 | K81: 600000 | M81: RFA
A82: Larry Black | B82: DT | C82: 420000 | E82: =D82+C82 -> 420000 | F82: 510000 | G82: 2000 | H82: =G82+F82 -> 512000 | J82: RFA
A83: David King | B83: DE | C83: 420000 | E83: =D83+C83 -> 420000 | G83: ERFA
A84: Bruce Taylor | B84: ILB | C84: 420000 | E84: =D84+C84 -> 420000 | G84: ERFA
A85: Denicos Allen | B85: OLB | C85: 420000 | E85: 420000 | F85: 510000 | H85: 510000 | I85: 600000 | K85: 600000 | M85: RFA
A86: Shaquille Richardson | B86: CB | C86: 420000 | E86: 420000 | F86: 528056.8013 | G86: 16979.00793 | H86: 545035.8092 | I86: 629954.8004 | J86: 16979.00793 | K86: 646933.8084 | L86: 736592.2414 | M86: 16979.00793 | N86: 753571.2493 | P86: UFA

Sheet CLE
C1: 2014 | F1: 2015 | I1: 2016 | L1: 2017 | O1: 2018 | R1: 2019 | U1: 2020
A2: Player | B2: Pos. | C2: Base Salary | D2: Signing Bonus | E2: Cap Figure | F2: Base Salary | G2: Signing Bonus | H2: Cap Figure | I2: Base Salary | J2: Signing Bonus | K2: Cap Figure | L2: Base Salary | M2: Signing Bonus | N2: Cap Figure | O2: Base Salary | P2: Signing Bonus | Q2: Cap Figure | R2: Base Salary | S2: Signing Bonus | T2: Cap Figure | U2: Base Salary | V2: Signing Bonus | W2: Cap Figure
A3: OFFENSE
A4: Jay Cutler | B4: QB | C4: 22500000 | E4: =D4+C4 -> 22500000 | F4: 15500000 | H4: =G4+F4 -> 15500000 | I4: 16000000 | K4: =J4+I4 -> 16000000 | L4: 15000000 | N4: =M4+L4 -> 15000000 | O4: 16000000 | Q4: =P4+O4 -> 16000000 | R4: 20000000 | S4: 0 | T4: =S4+R4 -> 20000000 | U4: 21700000 | V4: 0 | W4: =V4+U4 -> 21700000 | Y4: UFA
A5: Brian Hoyer | B5: QB | C5: 1250000 | E5: =D5+C5 -> 1250000 | G5: UFA
A6: Alex Tanney | B6: QB | C6: 495000 | E6: 495000 | F6: 585000 | H6: =G6+F6 -> 585000 | J6: RFA
A8: Dion Lewis | B8: RB | C8: 645000 | E8: 645000 | G8: UFA
A9: Tre Mason | B9: RB | C9: 420000 | D9: 314541.6366 | E9: 734541.6366 | F9: 629312.8782 | G9: 314541.6366 | H9: 943854.5148 | I9: 805772.6353 | J9: 314541.6366 | K9: 1120314.272 | L9: 990439.823 | M9: 314541.6366 | N9: 1304981.46 | P9: UFA
A10: Fozzy Whittaker | B10: RB | C10: 495000 | E10: 495000 | F10: 585000 | H10: =G10+F10 -> 585000 | J10: RFA
A11: Chris Ogbonnaya | B11: FB | C11: 750000 | E11: =D11+C11 -> 750000 | G11: UFA
A13: Gary Barnidge | B13: TE | C13: 1150000 | E13: 1150000 | F13: 1200000 | H13: =G13+F13 -> 1200000 | J13: UFA
A14: Jordan Cameron | B14: TE | C14: 1389000 | D14: 119350 | E14: 1508350 | G14: UFA
A15: Keavon Milton | B15: TE | C15: 495000 | E15: 495000 | F15: 585000 | H15: =G15+F15 -> 585000 | J15: RFA
A17: Travis Benjamin | B17: WR | C17: 570000 | D17: 119250 | E17: 689250 | F17: 660000 | G17: 119250 | H17: =G17+F17 -> 779250 | J17: UFA
A18: Josh Cooper | B18: WR | C18: 570000 | E18: 570000 | F18: 660000 | H18: 660000 | J18: UFA
A19: Josh Gordon | B19: WR | C19: 875604 | D19: 581209 | E19: 1456813 | F19: 1118406 | G19: 581209 | H19: 1699615 | J19: UFA
A20: Jordan Matthews | B20: WR | C20: 420000 | D20: 1063536.156 | E20: 1483536.156 | F20: 827796.4259 | G20: 1063536.156 | H20: 1891332.582 | I20: 1181393.387 | J20: 1063536.156 | K20: 2244929.543 | L20: 1551436.718 | M20: 1063536.156 | N20: 2614972.874 | P20: TOP3-25 Option
A21: Conner Vernon | B21: WR | C21: 420000 | E21: 420000 | F21: 510000 | H21: 510000 | J21: ERFA
A23: Alex Mack | B23: C | C23: 0 | D23: 11654000 | E23: 11654000 | G23: UFA
A24: Jeremiah Warren | B24: C | C24: 420000 | E24: 420000 | F24: 510000 | H24: =G24+F24 -> 510000 | J24: RFA
A25: Garrett Gilkey | B25: G | C25: 495000 | D25: 12848 | E25: 507848 | F25: 585000 | G25: 12848 | H25: 597848 | I25: 675000 | J25: 12848 | K25: =J25+I25 -> 687848 | M25: UFA
A26: John Greco | B26: G | C26: 2430000 | E26: 2430000 | F26: 875000 | H26: 875000 | I26: 925000 | K26: 925000 | L26: 975000 | N26: =M26+L26 -> 975000 | P26: UFA
A27: Davin Joseph | B27: G | C27: 6000000 | E27: 6000000 | F27: 7000000 | H27: 7000000 | I27: 7000000 | K27: 7000000 | L27: 7500000 | N27: 7500000 | P27: UFA
A28: Jason Pinkston | B28: G | C28: 1389000 | D28: 47000 | E28: 1436000 | G28: UFA
A29: Chris Faulk | B29: LT | C29: 420000 | D29: 3333 | E29: 423333 | F29: 510000 | G29: 3334 | H29: =G29+F29 -> 513334 | J29: RFA
A30: Joe Thomas | B30: LT | C30: 11100000 | D30: 1200000 | E30: 12300000 | F30: 9000000 | G30: 1200000 | H30: 10200000 | I30: 9500000 | K30: =J30+I30 -> 9500000 | L30: 10000000 | N30: =M30+L30 -> 10000000 | O30: 10000000 | Q30: =P30+O30 -> 10000000 | S30: UFA
A31: Justin Britt | B31: OT | C31: 420000 | D31: 27650.4311 | E31: 447650.4311 | F31: 527203.0875 | G31: 27650.4311 | H31: 554853.5186 | I31: 630936.5714 | J31: 27650.4311 | K31: 658587.0025 | L31: 739494.8685 | M31: 27650.4311 | N31: 767145.2996 | P31: UFA
A32: Reid Fragel | B32: RT | C32: 495000 | E32: 495000 | F32: 585000 | H32: 585000 | J32: RFA
A33: Mitchell Schwartz | B33: RT | C33: 860076 | D33: 550153 | E33: 1410229 | F33: 1095114 | G33: 550153 | H33: 1645267 | J33: UFA
A34: DEFENSE
A35: Jermelle Cudjo | B35: DT | C35: 900000 | E35: =D35+C35 -> 900000 | G35: UFA
A36: Ishmaa' ily Kitchen | B36: DT | C36: 570000 | E36: =D36+C36 -> 570000 | G36: RFA
A37: Phil Taylor | B37: DT | C37: 1478625 | D37: 1096500 | E37: 2575125 | F37: 5559292 | G37: 0 | H37: =G37+F37 -> 5559292 | J37: UFA
A39: Armonty Bryant | B39: DE | C39: 511375 | E39: 511375 | F39: 601375 | H39: =G39+F39 -> 601375 | I39: 691376 | K39: =J39+I39 -> 691376 | M39: UFA
A40: Desmond Bryant | B40: DE | C40: 3000000 | D40: 1000000 | E40: 4000000 | F40: 6000000 | G40: 1000000 | H40: 7000000 | I40: 6000000 | J40: 1000000 | K40: 7000000 | L40: 7000000 | M40: 1000000 | N40: =M40+L40 -> 8000000 | P40: UFA
A41: Ahtyba Rubin | B41: DE | C41: 6800000 | D41: 1375000 | E41: 8175000 | G41: UFA
A42: Billy Winn | B42: DE | C42: 570000 | D42: 19670 | E42: 589670 | F42: 660000 | G42: 19670 | H42: =G42+F42 -> 679670 | J42: UFA
A44: D' Qwell Jackson | B44: ILB | C44: 8033333 | D44: 1400000 | E44: 9433333 | F44: 8533333 | G44: 1400000 | H44: =G44+F44 -> 9933333 | I44: 7800000 | J44: 1400000 | K44: =J44+I44 -> 9200000 | M44: UFA
A45: Craig Robertson | B45: LB | C45: 570000 | E45: 570000 | G45: RFA
A46: Shayne Skov | B46: ILB | C46: 420000 | D46: 172635.3659 | E46: 592635.3659 | F46: 544594.1824 | G46: 172635.3659 | H46: 717229.5483 | I46: 678684.924 | J46: 172635.3659 | K46: 851320.2899 | L46: 819012.4443 | M46: 172635.3659 | N46: 991647.8102 | P46: UFA
A47: Quentin Groves | B47: OLB | C47: 1100000 | E47: 1100000 | G47: UFA
A48: Paul Kruger | B48: OLB | C48: 7000000 | D48: 1200000 | E48: 8200000 | F48: 7000000 | G48: 1200000 | H48: =G48+F48 -> 8200000 | I48: 6500000 | J48: 1200000 | K48: =J48+I48 -> 7700000 | L48: 7000000 | M48: 1200000 | N48: =M48+L48 -> 8200000 | P48: UFA
A49: Barkevious Mingo | B49: OLB | C49: 1148046 | D49: 2567182 | E49: 3715228 | F49: 1891091 | G49: 2567182 | H49: 4458273 | I49: 2634137 | J49: 2567182 | K49: =J49+I49 -> 5201319 | M49: TOP10 Option
A50: Jabaal Sheard | B50: OLB | C50: 1069125 | D50: 550500 | E50: 1619625 | G50: UFA
A52: Johnson Bademosi | B52: S | C52: 570000 | D52: 834 | E52: 570834 | G52: RFA
A53: Yeremiah Bell | B53: S | C53: 900000 | E53: =D53+C53 -> 900000 | G53: UFA
A54: Tashaun Gipson | B54: S | C54: 570000 | D54: 500 | E54: 570500 | G54: RFA
A55: Craig Loston | B55: S | C55: 420000 | D55: 124561.7447 | E55: 544561.7447 | F55: 519450.1824 | G55: 124561.7447 | H55: 644011.9271 | I55: 639852.4122 | J55: 124561.7447 | K55: 764414.1569 | L55: 765854.7458 | M55: 124561.7447 | N55: 890416.4905 | P55: UFA
A56: Jamoris Slaughter | B56: S | C56: 420000 | E56: 420000 | F56: 510000 | H56: =G56+F56 -> 510000 | J56: ERFA
A58: Aaron Colvin | B58: CB | C58: 420000 | D58: 28685.17764 | E58: 448685.1776 | F58: 527120.3077 | G58: 28685.17764 | H58: 555805.4854 | I58: 631031.7681 | J58: 28685.17764 | K58: 659716.9457 | L58: 739776.3195 | M58: 28685.17764 | N58: 768461.4972 | P58: UFA
A59: Joe Haden | B59: CB | C59: 6878193 | D59: 1949700 | E59: 8827893 | G59: UFA
A60: Brandon Hughes | B60: CB | C60: 645000 | E60: 645000 | F60: 745000 | H60: =G60+F60 -> 745000 | J60: UFA
A61: Leon McFadden | B61: CB | C61: 536938 | D61: 167813 | E61: 704751 | F61: 639906 | G61: 167813 | H61: 807719 | I61: 746236 | J61: 167813 | K61: =J61+I61 -> 914049 | M61: UFA
A62: Buster Skrine | B62: CB | C62: 1389000 | D62: 50500 | E62: 1439500 | G62: UFA
A64: Phil Dawson | B64: K | C64: 1000000 | E64: =D64+C64 -> 1000000 | G64: UFA
A65: Christian Yount | B65: LS | C65: 645000 | E65: 645000 | F65: 820000 | H65: =G65+F65 -> 820000 | I65: 835000 | K65: =J65+I65 -> 835000 | L65: 855000 | N65: =M65+L65 -> 855000 | P65: UFA
A66: Spencer Lanning | B66: P | C66: 495000 | E66: 495000 | G66: ERFA
A69: Total Players | C69: =COUNTA(C4:C67) -> 53 | F69: =COUNTA(F4:F67) -> 34 | I69: =COUNTA(I4:I67) -> 18 | L69: =COUNTA(L4:L67) -> 13
A70: Top 51 Salary | C70: =SUM(LARGE(ISNUMBER(E4:E67)*E4:E67,ROW(INDIRECT("1:51")))) -> 131090267.5 | F70: =SUM(LARGE(ISNUMBER(H4:H67)*H4:H67,ROW(INDIRECT("1:51")))) -> 88652063.58 | I70: =SUM(LARGE(ISNUMBER(K4:K67)*K4:K67,ROW(INDIRECT("1:51")))) -> 71953874.21 | L70: =SUM(LARGE(ISNUMBER(N4:N67)*N4:N67,ROW(INDIRECT("1:51")))) -> 57867625.43
A71: Dead Money | C71: 9862711
A72: Cap Rollover | C72: 24537568 | F72: =C73 -> 16584589.49 | I72: =F73 -> 60932525.91 | L72: 121978651.7
A73: Cap Space | C73: =133000000-C70-C71+C72 -> 16584589.49 | F73: =133000000-F70-F71+F72 -> 60932525.91 | I73: =133000000-I70-I71+I72 -> 121978651.7 | L73: =133000000-L70-L71+L72 -> 197111026.3
A74: June 1st Cut | B74: 0/2
A75: Paycut | B75: 0/2
A76: Restructure | B76: 0/3
A78: Practice Squad
A79: Edwin Baker | B79: RB | C79: 495000 | E79: =D79+C79 -> 495000 | F79: 585000 | H79: =G79+F79 -> 585000 | J79: RFA
A80: Tori Gurley | B80: WR | C80: 495000 | E80: =D80+C80 -> 495000 | F80: 585000 | H80: =G80+F80 -> 585000 | J80: RFA
A81: Eric Ward | B81: WR | C81: 420000 | E81: =D81+C81 -> 420000 | F81: 510000 | H81: 510000 | I81: 600000 | K81: 600000 | M81: RFA
A82: Martin Wallace | B82: LT | C82: 495000 | E82: =D82+C82 -> 495000 | F82: 585000 | G82: 2000 | H82: =G82+F82 -> 587000 | J82: RFA
A83: Cam Henderson | B83: DE | C83: 420000 | E83: =D83+C83 -> 420000 | F83: 510000 | H83: =G83+F83 -> 510000 | J83: ERFA
A84: Brian Sanford | B84: DE | C84: 645000 | E84: =D84+C84 -> 645000 | G84: UFA
A85: Josh Aubrey | B85: S | C85: 495000 | E85: =D85+C85 -> 495000 | F85: 585000 | G85: 1667 | H85: =G85+F85 -> 586667 | J85: RFA
A86: Julian Posey | B86: CB | C86: 495000 | E86: =D86+C86 -> 495000 | F86: 585000 | H86: =G86+F86 -> 585000 | J86: RFA

Sheet DAL
C1: 2014 | F1: 2015 | I1: 2016 | L1: 2017 | O1: 2018 | R1: 2019 | U1: 2020
A2: Player | B2: Pos. | C2: Base Salary | D2: Signing Bonus | E2: Cap Figure | F2: Base Salary | G2: Signing Bonus | H2: Cap Figure | I2: Base Salary | J2: Signing Bonus | K2: Cap Figure | L2: Base Salary | M2: Signing Bonus | N2: Cap Figure | O2: Base Salary | P2: Signing Bonus | Q2: Cap Figure | R2: Base Salary | S2: Signing Bonus | T2: Cap Figure | U2: Base Salary | V2: Signing Bonus | W2: Cap Figure
A3: OFFENSE
A4: Tony Romo | B4: QB | C4: 1000000 | D4: 8154600 | E4: =D4+C4 -> 9154600 | F4: 20273000 | G4: 8154600 | H4: =G4+F4 -> 28427600 | I4: 10135000 | J4: 8154600 | K4: =J4+I4 -> 18289600 | L4: 14000000 | M4: 8154600 | N4: =M4+L4 -> 22154600 | O4: 19500000 | P4: 3154600 | Q4: =P4+O4 -> 22654600 | R4: 20500000 | T4: =S4+R4 -> 20500000 | V4: UFA
A5: Brandon Weeden | B5: QB | C5: 1124872 | E5: 1124872 | F5: 1492308 | H5: 1492308 | J5: 3-25 Option
A7: Lance Dunbar | B7: RB | C7: 570000 | E7: 570000 | G7: RFA
A8: DeMarco Murray | B8: RB | C8: 1389000 | D8: 165625 | E8: 1554625 | G8: UFA
A9: Joseph Randle | B9: RB | C9: 495000 | D9: 47205 | E9: 542205 | F9: 585000 | G9: 47205 | H9: =G9+F9 -> 632205 | I9: 675000 | J9: 47205 | K9: =J9+I9 -> 722205 | M9: UFA
A10: Tyler Clutts | B10: FB | C10: 645000 | E10: 645000 | G10: UFA
A12: Gavin Escobar | B12: TE | C12: 596386 | D12: 360544 | E12: 956930 | F12: 787772 | G12: 360545 | H12: =G12+F12 -> 1148317 | I12: 979158 | J12: 360544 | K12: =J12+I12 -> 1339702 | M12: UFA
A13: Jason Witten | B13: TE | C13: 5912000 | D13: 2500000 | E13: 8412000 | F13: 6012000 | G13: 2500000 | H13: 8512000 | I13: 7412000 | K13: =J13+I13 -> 7412000 | L13: 8312000 | N13: =M13+L13 -> 8312000 | P13: UFA
A15: Cole Beasley | B15: WR | C15: 570000 | D15: 500 | E15: 570500 | G15: RFA
A16: Dez Bryant | B16: WR | C16: 3508500 | D16: 390000 | E16: 3898500 | G16: UFA
A17: Dwayne Harris | B17: WR | C17: 655000 | D17: 27515 | E17: 682515 | G17: UFA
A18: Paul Richardson | B18: WR | C18: 420000 | D18: 159548.1132 | E18: 579548.1132 | F18: 539935.7343 | G18: 159548.1132 | H18: 699483.8475 | I18: 670708.8014 | J18: 159548.1132 | K18: 830256.9146 | L18: 807564.3368 | M18: 159548.1132 | N18: 967112.45 | P18: UFA
A19: Terrance Williams | B19: WR | C19: 530000 | D19: 154868 | E19: 684868 | F19: 625000 | G19: 154868 | H19: =G19+F19 -> 779868 | I19: 717500 | J19: 154868 | K19: =J19+I19 -> 872368 | M19: UFA
A21: Travis Frederick | B21: C | C21: 717274 | D21: 844096 | E21: 1561370 | F21: 1029548 | G21: 844096 | H21: =G21+F21 -> 1873644 | I21: 1341822 | J21: 844096 | K21: =J21+I21 -> 2185918 | M21: 3-25 Option
A22: Mackenzy Bernadeau | B22: G | C22: 3261666 | D22: 812500 | E22: 4074166 | F22: 3761667 | G22: 812500 | H22: 4574167 | J22: UFA
A23: Ray Dominguez | B23: G | C23: 495000 | E23: 495000 | F23: 585000 | H23: 585000 | J23: RFA
A24: Ron Leary | B24: G | C24: 495000 | E24: 495000 | G24: RFA
A25: Jeff Olson | B25: G | C25: 420000 | E25: =D25+C25 -> 420000 | G25: ERFA
A26: John Urschel | B26: G | C26: 420000 | D26: 12227.27276 | E26: 432227.2728 | F26: 528436.9401 | G26: 12227.27276 | H26: 540664.2129 | I26: 629517.6408 | J26: 12227.27276 | K26: 641744.9136 | L26: 735299.7694 | M26: 12227.27276 | N26: 747527.0422 | P26: UFA
A27: Tyron Smith | B27: LT | C27: 2079013 | D27: 1897018 | E27: 3976031 | G27: TOP10 Option
A28: Darrion Weems | B28: LT | C28: 570000 | E28: 570000 | G28: RFA
A29: Doug Free | B29: RT | C29: 3500000 | D29: 3020000 | E29: 6520000 | F29: 8000000 | G29: 3020000 | H29: =G29+F29 -> 11020000 | I29: 8000000 | J29: 960000 | K29: =J29+I29 -> 8960000 | M29: UFA
A30: Jeremy Parnell | B30: RT | C30: 1500000 | D30: 333333 | E30: 1833333 | G30: UFA
A31: DEFENSE
A32: Tyrone Crawford | B32: DT | C32: 590000 | D32: 143813 | E32: =D32+C32 -> 733813 | F32: 685000 | G32: 143813 | H32: =G32+F32 -> 828813 | J32: UFA
A33: Nick Hayden | B33: DT | C33: 730000 | E33: 730000 | G33: UFA
A34: Corvey Irvin | B34: DT | C34: 730000 | E34: 730000 | G34: UFA
A35: Frank Kearse | B35: DT | C35: 645000 | E35: 645000 | F35: 745000 | H35: =G35+F35 -> 745000 | J35: UFA
A36: Stephon Tuitt | B36: DT | C36: 420000 | D36: 384213.8602 | E36: 804213.8602 | F36: 647776.0175 | G36: 384213.8602 | H36: 1031989.878 | I36: 840713.2554 | J36: 384213.8602 | K36: 1224927.116 | L36: 1042624.318 | M36: 384213.8602 | N36: 1426838.179 | P36: UFA
A38: Cassius Marsh | B38: DE | C38: 420000 | D38: 13414.40732 | E38: 433414.4073 | F38: 528341.9694 | G38: 13414.40732 | H38: 541756.3767 | I38: 629626.8572 | J38: 13414.40732 | K38: 643041.2645 | L38: 735622.67 | M38: 13414.40732 | N38: 749037.0773 | P38: UFA
A39: Tristan Okpalaugo | B39: DE | C39: 420000 | E39: =D39+C39 -> 420000 | F39: 510000 | H39: =G39+F39 -> 510000 | J39: RFA
A40: George Selvie | B40: DE | C40: 730000 | E40: 730000 | G40: UFA
A41: Kyle Wilber | B41: DE | C41: 570000 | D41: 109805 | E41: 679805 | F41: 660000 | G41: 109805 | H41: =G41+F41 -> 769805 | J41: UFA
A43: Sean Lee | B43: ILB | C43: 5500000 | D43: 2000000 | E43: 7500000 | F43: 2500000 | G43: 2000000 | H43: =G43+F43 -> 4500000 | I43: 3000000 | J43: 2000000 | K43: =J43+I43 -> 5000000 | L43: 7000000 | M43: 2000000 | N43: =M43+L43 -> 9000000 | O43: 7000000 | Q43: =P43+O43 -> 7000000 | R43: 7000000 | T43: =S43+R43 -> 7000000 | V43: UFA
A44: Casear Rayford | B44: ILB | C44: 495000 | E44: =D44+C44 -> 495000 | F44: 585000 | H44: =G44+F44 -> 585000 | J44: RFA
A45: Quinton Spears | B45: ILB | C45: 495000 | E45: 495000 | F45: 585000 | H45: =G45+F45 -> 585000 | J45: RFA
A46: Anthony Barr | B46: OLB | C46: 420000 | D46: 1289979.408 | E46: 1709979.408 | F46: 887804.0102 | G46: 1289979.408 | H46: 2177783.418 | I46: 1294954.823 | J46: 1289979.408 | K46: 2584934.231 | L46: 1721042.883 | M46: 1289979.408 | N46: 3011022.291 | P46: TOP3-25 Option
A47: Everette Brown | B47: OLB | C47: 730000 | E47: 730000 | G47: UFA
A48: Bruce Carter | B48: OLB | C48: 1036991 | D48: 507654 | E48: 1544645 | G48: UFA
A49: DeVonte Holloman | B49: OLB | C49: 495000 | D49: 26055 | E49: 521055 | F49: 585000 | G49: 26055 | H49: =G49+F49 -> 611055 | I49: 675000 | J49: 26055 | K49: =J49+I49 -> 701055 | M49: UFA
A50: Cameron Lawrence | B50: OLB | C50: 495000 | E50: 495000 | F50: 585000 | H50: 585000 | J50: RFA
A52: Barry Church | B52: S | C52: 1500000 | D52: 500000 | E52: 2000000 | F52: 1750000 | G52: 500000 | H52: =G52+F52 -> 2250000 | I52: 2750000 | J52: 500000 | K52: =J52+I52 -> 3250000 | M52: UFA
A53: Dashon Goldson | B53: S | C53: 9000000 | E53: =D53+C53 -> 9000000 | F53: 8000000 | H53: =G53+F53 -> 8000000 | I53: 8000000 | K53: =J53+I53 -> 8000000 | L53: 7250000 | N53: =M53+L53 -> 7250000 | P53: UFA
A54: Jakar Hamilton | B54: S | C54: 495000 | D54: 9333 | E54: 504333 | F54: 585000 | G54: 9334 | H54: 594334 | J54: RFA
A55: Jeff Heath | B55: S | C55: 495000 | D55: 666 | E55: 495666 | F55: 585000 | G55: 667 | H55: 585667 | J55: RFA
A56: Nickoe Whitley | B56: S | C56: 420000 | E56: 420000 | F56: 510000 | H56: 510000 | I56: 600000 | K56: 600000 | M56: RFA
A57: J.J. Wilcox | B57: S | C57: 515000 | D57: 146517 | E57: 661517 | F57: 605000 | G57: 146517 | H57: 751517 | I57: 700000 | J57: 146517 | K57: =J57+I57 -> 846517 | M57: UFA
A59: Brandon Carr | B59: CB | C59: 10217000 | D59: 2000000 | E59: 12217000 | F59: 10717000 | G59: 2000000 | H59: =G59+F59 -> 12717000 | I59: 11817000 | J59: 2000000 | K59: =J59+I59 -> 13817000 | L59: 12717000 | N59: =M59+L59 -> 12717000 | P59: UFA
A60: Morris Claiborne | B60: CB | C60: 1868591 | D60: 2567182 | E60: 4435773 | F60: 2607887 | G60: 2567182 | H60: 5175069 | J60: TOP10 Option
A61: Orlando Scandrick | B61: CB | C61: 6001250 | D61: 600000 | E61: 6601250 | F61: 3001250 | G61: 600000 | H61: 3601250 | I61: 4501250 | K61: =J61+I61 -> 4501250 | L61: 3000000 | N61: =M61+L61 -> 3000000 | O61: 3000000 | Q61: =P61+O61 -> 3000000 | S61: UFA
A62: B.W. Webb | B62: CB | C62: 495000 | D62: 110845 | E62: 605845 | F62: 585000 | G62: 110845 | H62: 695845 | I62: 675000 | J62: 110845 | K62: 785845 | M62: UFA
A64: Dan Bailey | B64: K | C64: 900000 | D64: 800000 | E64: 1700000 | F64: 1700000 | G64: 800000 | H64: =G64+F64 -> 2500000 | I64: 2500000 | J64: 800000 | K64: =J64+I64 -> 3300000 | L64: 3200000 | M64: 800000 | N64: =M64+L64 -> 4000000 | O64: 3400000 | P64: 800000 | Q64: =P64+O64 -> 4200000 | R64: 3400000 | T64: =S64+R64 -> 3400000 | U64: 3400000 | W64: =V64+U64 -> 3400000 | Y64: UFA
A65: L.P. Ladouceur | B65: LS | C65: 885000 | D65: 120000 | E65: =D65+C65 -> 1005000 | F65: 1000000 | G65: 120000 | H65: =G65+F65 -> 1120000 | I65: 1050000 | J65: 120000 | K65: =J65+I65 -> 1170000 | L65: 1100000 | M65: 120000 | N65: =M65+L65 -> 1220000 | P65: UFA
A66: Adam Podlesh | B66: P | C66: 855000 | E66: 855000 | F66: 855000 | H66: 855000 | J66: UFA
A69: Total Players | C69: =COUNTA(C4:C67) -> 53 | F69: =COUNTA(F4:F67) -> 37 | I69: =COUNTA(I4:I67) -> 23 | L69: =COUNTA(L4:L67) -> 13
A70: Top 51 Salary | C70: =SUM(LARGE(ISNUMBER(E4:E67)*E4:E67,ROW(INDIRECT("1:51")))) -> 108811600.1 | F70: =SUM(LARGE(ISNUMBER(H4:H67)*H4:H67,ROW(INDIRECT("1:51")))) -> 113112141.7 | I70: =SUM(LARGE(ISNUMBER(K4:K67)*K4:K67,ROW(INDIRECT("1:51")))) -> 87678364.44 | L70: =SUM(LARGE(ISNUMBER(N4:N67)*N4:N67,ROW(INDIRECT("1:51")))) -> 74555137.04
A71: Dead Money | C71: 13163812 | F71: 2026213
A72: Cap Rollover | C72: 1280693 | F72: =C73 -> 12305280.94 | I72: =F73 -> 30166926.21 | L72: 75488561.77
A73: Cap Space | C73: =133000000-C70-C71+C72 -> 12305280.94 | F73: =133000000-F70-F71+F72 -> 30166926.21 | I73: =133000000-I70-I71+I72 -> 75488561.77 | L73: =133000000-L70-L71+L72 -> 133933424.7
A74: June 1st Cut | B74: 1/2
A75: Paycut | B75: 0/2
A76: Restructure | B76: 1/3
A78: Practice Squad
A79: Gator Hoskins | B79: FB | C79: 420000 | E79: 420000 | F79: 528436.9401 | G79: 12227.27276 | H79: 540664.2129 | I79: 629517.6408 | J79: 12227.27276 | K79: 641744.9136 | L79: 735299.7694 | M79: 12227.27276 | N79: 747527.0422 | P79: UFA
A80: Shaquelle Evans | B80: WR | C80: 420000 | E80: 420000 | F80: 528361.5773 | G80: 13169.30772 | H80: 541530.8851 | I80: 629604.308 | J80: 13169.30772 | K80: 642773.6157 | L80: 735556.0029 | M80: 13169.30772 | N80: 748725.3106 | P80: UFA
A81: Ben Bass | B81: DT | C81: 420000 | E81: =D81+C81 -> 420000 | G81: RFA
A82: Kasim Edebali | B82: OLB | C82: 420000 | E82: 420000 | F82: 528436.9401 | G82: 12227.27276 | H82: 540664.2129 | I82: 629517.6408 | J82: 12227.27276 | K82: 641744.9136 | L82: 735299.7694 | M82: 12227.27276 | N82: 747527.0422 | P82: UFA
A83: Christian Bryant | B83: S | C83: 420000 | E83: 420000 | F83: 510000 | H83: 510000 | I83: 600000 | K83: 600000 | M83: RFA
A84: Deion Belue | B84: CB | C84: 420000 | E84: 420000 | F84: 528436.9401 | G84: 12227.27276 | H84: 540664.2129 | I84: 629517.6408 | J84: 12227.27276 | K84: 641744.9136 | L84: 735299.7694 | M84: 12227.27276 | N84: 747527.0422 | P84: UFA
A85: Antone Exum | B85: CB | C85: 420000 | E85: 420000 | F85: 525610.068 | G85: 47563.17459 | H85: 573173.2426 | I85: 632768.5438 | J85: 47563.17459 | K85: 680331.7184 | L85: 744911.1347 | M85: 47563.17459 | N85: 792474.3093 | P85: UFA
A86: Andre Hal | B86: CB | C86: 420000 | E86: 420000 | F86: 510000 | H86: 510000 | I86: 600000 | K86: 600000 | M86: RFA

Sheet DEN
C1: 2014 | F1: 2015 | I1: 2016 | L1: 2017 | O1: 2018 | R1: 2019 | U1: 2020
A2: Player | B2: Pos. | C2: Base Salary | D2: Signing Bonus | E2: Cap Figure | F2: Base Salary | G2: Signing Bonus | H2: Cap Figure | I2: Base Salary | J2: Signing Bonus | K2: Cap Figure | L2: Base Salary | M2: Signing Bonus | N2: Cap Figure | O2: Base Salary | P2: Signing Bonus | Q2: Cap Figure | R2: Base Salary | S2: Signing Bonus | T2: Cap Figure | U2: Base Salary | V2: Signing Bonus | W2: Cap Figure
A3: OFFENSE
A4: Peyton Manning | B4: QB | C4: 17500000 | E4: =D4+C4 -> 17500000 | F4: 21500000 | H4: =G4+F4 -> 21500000 | I4: 21500000 | K4: =J4+I4 -> 21500000 | M4: UFA
A5: Brock Osweiler | B5: QB | C5: 709700 | D5: 249396 | E5: =D5+C5 -> 959096 | F5: 869547 | G5: 249397 | H5: 1118944 | J5: UFA
A7: Montee Ball | B7: RB | C7: 562469 | D7: 224878 | E7: =D7+C7 -> 787347 | F7: 719938 | G7: 224878 | H7: =G7+F7 -> 944816 | I7: 877407 | J7: 224878 | K7: =J7+I7 -> 1102285 | M7: UFA
A8: Matt Forte | B8: RB | C8: 6900000 | E8: =D8+C8 -> 6900000 | F8: 7800000 | H8: =G8+F8 -> 7800000 | J8: UFA
A9: Jacquizz Rodgers | B9: RB | C9: 1389000 | E9: =D9+C9 -> 1389000 | G9: UFA
A11: Joel Dreessen | B11: TE | C11: 1500000 | D11: 666668 | E11: =D11+C11 -> 2166668 | G11: UFA
A12: Arthur Lynch | B12: TE | C12: 420000 | D12: 113279.7039 | E12: 533279.7039 | F12: 520352.7456 | G12: 113279.7039 | H12: 633632.4495 | I12: 638814.4645 | J12: 113279.7039 | K12: 752094.1683 | L12: 762786.0307 | M12: 113279.7039 | N12: 876065.7345 | P12: UFA
A13: Julius Thomas | B13: TE | C13: 645000 | D13: 96000 | E13: =D13+C13 -> 741000 | G13: UFA
A15: Davante Adams | B15: WR | C15: 420000 | D15: 171536.6803 | E15: 591536.6803 | F15: 540202.1469 | G15: 171536.6803 | H15: 711738.8272 | I15: 673266.3624 | J15: 171536.6803 | K15: 844803.0427 | L15: 812519.6112 | M15: 171536.6803 | N15: 984056.2915 | P15: UFA
A16: Trindon Holliday | B16: WR | C16: 1400000 | D16: 800000 | E16: =D16+C16 -> 2200000 | F16: 1400000 | G16: 800000 | H16: =G16+F16 -> 2200000 | I16: 1200000 | J16: 800000 | K16: =J16+I16 -> 2000000 | L16: 1000000 | M16: 800000 | N16: =M16+L16 -> 1800000 | O16: 1000000 | P16: 800000 | Q16: =P16+O16 -> 1800000 | S16: UFA
A17: Austin Pettis | B17: WR | C17: 1389000 | E17: =D17+C17 -> 1389000 | G17: UFA
A18: Demaryius Thomas | B18: WR | C18: 3275000 | D18: 1756250 | E18: =D18+C18 -> 5031250 | G18: UFA
A19: Mike Wallace | B19: WR | C19: 1500000 | D19: 4500000 | E19: =D19+C19 -> 6000000 | F19: 8800000 | G19: 4500000 | H19: =G19+F19 -> 13300000 | I19: 8600000 | J19: 4500000 | K19: =J19+I19 -> 13100000 | L19: 8400000 | M19: 4500000 | N19: =M19+L19 -> 12900000 | O19: 8200000 | P19: 4500000 | Q19: =P19+O19 -> 12700000 | R19: 8000000 | S19: 0 | T19: =S19+R19 -> 8000000 | U19: 7800000 | V19: 0 | W19: =V19+U19 -> 7800000 | Y19: UFA
A20: Wes Welker | B20: WR | C20: 3500000 | D20: 3500000 | E20: =D20+C20 -> 7000000 | F20: 3200000 | G20: 1500000 | H20: =G20+F20 -> 4700000 | I20: 2900000 | J20: 1500000 | K20: =J20+I20 -> 4400000 | M20: UFA
A22: Marcus Martin | B22: C | C22: 420000 | D22: 134809.039 | E22: 554809.039 | F22: 518630.3988 | G22: 134809.039 | H22: 653439.4379 | I22: 640795.1633 | J22: 134809.039 | K22: 775604.2023 | L22: 768642.0098 | M22: 134809.039 | N22: 903451.0489 | P22: UFA
A23: Manuel Ramirez | B23: C | C23: 1750000 | D23: 166666 | E23: =D23+C23 -> 1916666 | F23: 2300000 | G23: 166668 | H23: =G23+F23 -> 2466668 | J23: UFA
A24: Allen Barbre | B24: G | C24: 950000 | D24: 45000 | E24: 995000 | F24: 1050000 | G24: 45000 | H24: 1095000 | I24: 1150000 | J24: 45000 | K24: 1195000 | M24: UFA
A25: Ben Garland | B25: G | C25: 420000 | E25: =D25+C25 -> 420000 | G25: UFA
A26: Louis Vasquez | B26: G | C26: 6000000 | D26: 1250000 | E26: =D26+C26 -> 7250000 | F26: 5000000 | G26: 1250000 | H26: =G26+F26 -> 6250000 | I26: 5500000 | J26: 1250000 | K26: =J26+I26 -> 6750000 | M26: UFA
A27: Ryan Clady | B27: LT | C27: 0 | D27: 2600000 | E27: 2600000 | F27: 10000000 | G27: 2600000 | H27: =G27+F27 -> 12600000 | I27: 9500000 | J27: 2600000 | K27: =J27+I27 -> 12100000 | L27: 10000000 | M27: 2600000 | N27: =M27+L27 -> 12600000 | P27: UFA
A28: Chris Clark | B28: LT | C28: 1900000 | D28: 225666 | E28: 2125666 | F28: 1400000 | G28: 225666 | H28: 1625666 | J28: UFA
A29: Orlando Franklin | B29: RT | C29: 969000 | D29: 417000 | E29: 1386000 | G29: UFA
A30: Winston Justice | B30: RT | C30: 800000 | D30: 500000 | E30: =D30+C30 -> 1300000 | F30: 1000000 | G30: 500000 | H30: =G30+F30 -> 1500000 | I30: 1200000 | J30: 500000 | K30: =J30+I30 -> 1700000 | M30: UFA
A31: Vinston Painter | B31: RT | C31: 420000 | E31: =D31+C31 -> 420000 | F31: 510000 | H31: =G31+F31 -> 510000 | J31: RFA
A32: DEFENSE
A33: Kendall Langford | B33: DT | C33: 655000 | D33: 955000 | E33: 1610000 | F33: 955000 | G33: 955000 | H33: 1910000 | I33: 1355000 | J33: 955000 | K33: 2310000 | L33: 1655000 | M33: 955000 | N33: 2610000 | P33: UFA
A34: Mitch Unrein | B34: DT | C34: 800000 | D34: 500000 | E34: =D34+C34 -> 1300000 | F34: 1000000 | G34: 500000 | H34: =G34+F34 -> 1500000 | I34: 1200000 | J34: 500000 | K34: =J34+I34 -> 1700000 | M34: UFA
A35: Joe Vellano | B35: DT | C35: 495000 | E35: =D35+C35 -> 495000 | F35: 585000 | H35: =G35+F35 -> 585000 | J35: RFA
A36: Kevin Vickerson | B36: DT | C36: 2000000 | D36: 500000 | E36: =D36+C36 -> 2500000 | G36: UFA
A37: Sylvester Williams | B37: DT | C37: 749625 | D37: 973500 | E37: =D37+C37 -> 1723125 | F37: 1094250 | G37: 973500 | H37: =G37+F37 -> 2067750 | I37: 1438875 | J37: 973500 | K37: =J37+I37 -> 2412375 | M37: 3-25 Option
A39: William Hayes | B39: DE | C39: 100000 | D39: 1000000 | E39: 1100000 | F39: 250000 | G39: 1000000 | H39: 1250000 | I39: 400000 | J39: 1000000 | K39: 1400000 | M39: UFA
A40: Malik Jackson | B40: DE | C40: 570000 | D40: 53403 | E40: =D40+C40 -> 623403 | F40: 660000 | G40: 53403 | H40: =G40+F40 -> 713403 | J40: UFA
A41: Julius Peppers | B41: DE | C41: 2600000 | D41: 2200000 | E41: =D41+C41 -> 4800000 | F41: 3000000 | G41: 2200000 | H41: =G41+F41 -> 5200000 | I41: 3400000 | J41: 2200000 | K41: =J41+I41 -> 5600000 | M41: UFA
A42: Quanterus Smith | B42: DE | C42: 420000 | D42: 48000 | E42: =D42+C42 -> 468000 | F42: 585000 | G42: 48000 | H42: =G42+F42 -> 633000 | I42: 675000 | J42: 48000 | K42: =J42+I42 -> 723000 | M42: UFA
A43: Derek Wolfe | B43: DE | C43: 856689 | D43: 556691 | E43: =D43+C43 -> 1413380 | F43: 1253346 | G43: 556691 | H43: =G43+F43 -> 1810037 | J43: UFA
A45: Jon Bostic | B45: ILB | C45: 584127 | E45: =D45+C45 -> 584127 | F45: 763254 | H45: =G45+F45 -> 763254 | I45: 942381 | K45: =J45+I45 -> 942381 | M45: UFA
A46: Nate Irving | B46: ILB | C46: 1200000 | D46: 673750 | E46: 1873750 | F46: 1500000 | G46: 500000 | H46: =G46+F46 -> 2000000 | I46: 1500000 | J46: 500000 | K46: =J46+I46 -> 2000000 | L46: 1800000 | M46: 500000 | N46: =M46+L46 -> 2300000 | P46: UFA
A47: Steven Johnson | B47: ILB | C47: 570000 | D47: 4000 | E47: 574000 | G47: RFA
A48: James Laurinaitis | B48: ILB | C48: 2000000 | D48: 2000000 | E48: =D48+C48 -> 4000000 | F48: 3625000 | G48: 2000000 | H48: =G48+F48 -> 5625000 | I48: 5775000 | J48: 2000000 | K48: =J48+I48 -> 7775000 | L48: 8100000 | M48: 2000000 | N48: =M48+L48 -> 10100000 | P48: UFA
A49: Lance Briggs | B49: OLB | C49: 2500000 | D49: 1500000 | E49: 4000000 | F49: 3500000 | G49: 1500000 | H49: =G49+F49 -> 5000000 | J49: UFA
A50: Danny Trevathan | B50: OLB | C50: 570000 | D50: 26018 | E50: 596018 | F50: 660000 | G50: 26018 | H50: =G50+F50 -> 686018 | J50: UFA
A52: David Bruton | B52: S | C52: 1250000 | D52: 400000 | E52: =D52+C52 -> 1650000 | F52: 1250000 | G52: 400000 | H52: =G52+F52 -> 1650000 | J52: UFA
A53: Duke Ihenacho | B53: S | C53: 2000000 | D53: 1000000 | E53: 3000000 | F53: 2000000 | G53: 1000000 | H53: =G53+F53 -> 3000000 | I53: 1600000 | J53: 1000000 | K53: =J53+I53 -> 2600000 | L53: 1600000 | M53: 1000000 | N53: =M53+L53 -> 2600000 | P53: UFA
A54: Rahim Moore | B54: S | C54: 981563 | D54: 433750 | E54: 1415313 | G54: UFA
A55: Troy Polamalu | B55: S | C55: 2000000 | E55: 2000000 | F55: 5000000 | H55: =G55+F55 -> 5000000 | J55: UFA
A57: Omar Bolden | B57: CB | C57: 570000 | D57: 118607 | E57: =D57+C57 -> 688607 | F57: 660000 | G57: 118607 | H57: =G57+F57 -> 778607 | J57: UFA
A58: Tony Carter | B58: CB | C58: 855000 | E58: 855000 | F58: 855000 | H58: =G58+F58 -> 855000 | I58: 855000 | J58: 0 | K58: =J58+I58 -> 855000 | M58: UFA
A59: Chris Cook | B59: CB | C59: 800000 | D59: 500000 | E59: 1300000 | F59: 1200000 | G59: 500000 | H59: =G59+F59 -> 1700000 | J59: UFA
A60: Darqueze Dennard | B60: CB | C60: 420000 | E60: 420000 | F60: 857800.5803 | H60: 857801 | I60: 1238174.834 | K60: 1238175 | L60: 1636240.913 | N60: 1636241 | P60: TOP3-25 Option
A61: Lamarcus Joyner | B61: CB | C61: 420000 | D61: 484158.0148 | E61: 904158.0148 | F61: 674261.341 | G61: 484158.0148 | H61: 1158419.356 | I61: 890835.3945 | J61: 484158.0148 | K61: 1374993.409 | L61: 1117482.66 | M61: 484158.0148 | N61: 1601640.675 | P61: UFA
A62: Kayvon Webster | B62: CB | C62: 507000 | D62: 134950 | E62: =D62+C62 -> 641950 | F62: 597000 | G62: 134950 | H62: =G62+F62 -> 731950 | I62: 697000 | J62: 134950 | K62: =J62+I62 -> 831950 | M62: UFA
A64: Matt Prater | B64: K | C64: 500000 | D64: 955000 | E64: 1455000 | F64: 500000 | G64: 955000 | H64: 1455000 | I64: 500000 | J64: 955000 | K64: 1455000 | M64: UFA
A65: J.R. Carr | B65: LS | C65: 420000 | E65: 420000 | F65: 510000 | H65: 510000 | I65: 600000 | K65: 600000 | M65: RFA
A66: Michael Koenen | B66: P | C66: 955000 | E66: 955000 | F66: 955000 | H66: 955000 | I66: 955000 | K66: 955000 | M66: UFA
A69: Total Players | C69: =COUNTA(C4:C67) -> 53 | F69: =COUNTA(F4:F67) -> 43 | I69: =COUNTA(I4:I67) -> 29 | L69: =COUNTA(L4:L67) -> 12
A70: Top 51 Salary | C70: =SUM(LARGE(ISNUMBER(E4:E67)*E4:E67,ROW(INDIRECT("1:51")))) -> 114682149.4 | F70: =SUM(LARGE(ISNUMBER(H4:H67)*H4:H67,ROW(INDIRECT("1:51")))) -> 128005144.1 | I70: =SUM(LARGE(ISNUMBER(K4:K67)*K4:K67,ROW(INDIRECT("1:51")))) -> 100992660.8 | L70: =SUM(LARGE(ISNUMBER(N4:N67)*N4:N67,ROW(INDIRECT("1:51")))) -> 50911454.75
A71: Dead Money | C71: 13502910 | F71: 5668
A72: Cap Rollover | C72: 6400000 | F72: =C73 -> 11214940.56 | I72: =F73 -> 16204128.49 | L72: =I73 -> 48211467.67
A73: Cap Space | C73: =133000000-C70-C71+C72 -> 11214940.56 | F73: =133000000-F70-F71+F72 -> 16204128.49 | I73: =133000000-I70-I71+I72 -> 48211467.67 | L73: =133000000-L70-L71+L72 -> 130300012.9
A74: June 1st Cut | B74: 0/2
A75: Paycut | B75: 2/2
A76: Restructure | B76: 3/3
A78: Practice Squad
A79: C.J. Anderson | B79: RB | C79: 495000 | E79: =D79+C79 -> 495000 | F79: 585000 | G79: 4167 | H79: =G79+F79 -> 589167 | J79: RFA
A80: Kelcy Quarles | B80: DT | C80: 420000 | E80: 420000 | F80: 519392.6373 | G80: 125281.0587 | H80: 644673.696 | I80: 639918.5891 | J80: 125281.0587 | K80: 765199.6479 | L80: 766050.3992 | M80: 125281.0587 | N80: 891331.4579 | P80: UFA
A81: Shelby Harris | B81: DE | C81: 420000 | E81: 420000 | F81: 510000 | H81: 510000 | I81: 600000 | K81: 600000 | M81: RFA
A82: John Youboty | B82: DE | C82: 420000 | E82: =D82+C82 -> 420000 | G82: ERFA
A83: Dan Fox | B83: ILB | C83: 420000 | E83: 420000 | F83: 510000 | H83: 510000 | I83: 600000 | K83: 600000 | M83: RFA
A84: Isaiah Green | B84: S | C84: 495000 | E84: =D84+C84 -> 495000 | G84: ERFA
A85: Nevin Lawson | B85: CB | C85: 420000 | E85: 420000 | F85: 527216.6425 | H85: 527217 | I85: 630920.983 | K85: 630921 | L85: 739448.7812 | N85: 739449 | P85: UFA
A86: Jemea Thomas | B86: CB | C86: 420000 | E86: 420000 | F86: 510000 | H86: 510000 | I86: 600000 | K86: 600000 | M86: RFA

Sheet DET
C1: 2014 | F1: 2015 | I1: 2016 | L1: 2017 | O1: 2018 | R1: 2019 | U1: 2020
A2: Player | B2: Pos. | C2: Base Salary | D2: Signing Bonus | E2: Cap Figure | F2: Base Salary | G2: Signing Bonus | H2: Cap Figure | I2: Base Salary | J2: Signing Bonus | K2: Cap Figure | L2: Base Salary | M2: Signing Bonus | N2: Cap Figure | O2: Base Salary | P2: Signing Bonus | Q2: Cap Figure | R2: Base Salary | S2: Signing Bonus | T2: Cap Figure | U2: Base Salary | V2: Signing Bonus | W2: Cap Figure
A3: OFFENSE
A4: Luke McCown | B4: QB | C4: 1000000 | E4: =D4+C4 -> 1000000 | G4: UFA
A5: Matthew Stafford | B5: QB | C5: 10320000 | D5: 5500000 | E5: =D5+C5 -> 15820000 | F5: 12221250 | G5: 5500000 | H5: =G5+F5 -> 17721250 | I5: 17000000 | J5: 5500000 | K5: =J5+I5 -> 22500000 | L5: 16500000 | M5: 5500000 | N5: =M5+L5 -> 22000000 | P5: UFA
A7: Joique Bell | B7: RB | C7: 2182244 | E7: =D7+C7 -> 2182244 | G7: UFA
A8: Reggie Bush | B8: RB | C8: 3500000 | D8: 1000000 | E8: =D8+C8 -> 4500000 | F8: 3500000 | G8: 1000000 | H8: =G8+F8 -> 4500000 | I8: 4000000 | J8: 1000000 | K8: =J8+I8 -> 5000000 | M8: UFA
A9: Jeremy Hill | B9: RB | C9: 420000 | D9: 163524.0549 | E9: 583524.0549 | F9: 526137.1813 | G9: 163524.0549 | H9: 689661.2362 | I9: 655073.8472 | J9: 163524.0549 | K9: 818597.9021 | L9: 790007.5673 | M9: 163524.0549 | N9: 953531.6222 | P9: UFA
A10: Mikel Leshoure | B10: RB | C10: 843297 | D10: 249396 | E10: =D10+C10 -> 1092693 | G10: UFA
A11: Montell Owens | B11: FB | C11: 1205000 | D11: 125000 | E11: =D11+C11 -> 1330000 | G11: UFA
A13: Joseph Fauria | B13: TE | C13: 495000 | D13: 4166 | E13: =D13+C13 -> 499166 | F13: 585000 | G13: 4167 | H13: =G13+F13 -> 589167 | J13: RFA
A14: C.J. Fiedorowicz | B14: TE | C14: 420000 | D14: 178829.9917 | E14: 598829.9917 | F14: 556305.0623 | G14: 178829.9917 | H14: 735135.054 | I14: 693743.355 | J14: 178829.9917 | K14: 872573.3467 | L14: 837574.1264 | M14: 178829.9917 | N14: 1016404.118 | P14: UFA
A16: Ryan Broyles | B16: WR | C16: 724409 | D16: 278818 | E16: =D16+C16 -> 1003227 | F16: 891614 | G16: 278818 | H16: =G16+F16 -> 1170432 | J16: UFA
A17: Damian Copeland | B17: WR | C17: 420000 | E17: 420000 | F17: 510000 | H17: 510000 | I17: 600000 | K17: 600000 | M17: RFA
A18: Kris Durham | B18: WR | C18: 500000 | E18: =D18+C18 -> 500000 | F18: 800000 | H18: =G18+F18 -> 800000 | I18: 800000 | K18: =J18+I18 -> 800000 | M18: UFA
A19: Calvin Johnson | B19: WR | C19: 9858000 | D19: 3200000 | E19: =D19+C19 -> 13058000 | F19: 17358000 | G19: 3200000 | H19: =G19+F19 -> 20558000 | I19: 20808000 | J19: 3200000 | K19: =J19+I19 -> 24008000 | L19: 21358000 | N19: =M19+L19 -> 21358000 | O19: 17000000 | Q19: =P19+O19 -> 17000000 | R19: 18250000 | T19: 18250000 | V19: UFA
A20: Allen Robinson | B20: WR | C20: 420000 | D20: 419052.1033 | E20: 839052.1033 | F20: 657005.7009 | G20: 419052.1033 | H20: 1076057.804 | I20: 858181.7251 | J20: 419052.1033 | K20: 1277233.828 | L20: 1068714.774 | M20: 419052.1033 | N20: 1487766.877 | P20: UFA
A21: Roddy White | B21: WR | C21: 6325000 | E21: =D21+C21 -> 6325000 | G21: UFA
A23: Darren Keyton | B23: C | C23: 420000 | E23: =D23+C23 -> 420000 | G23: ERFA
A24: Dominic Raiola | B24: C | C24: 1500000 | D24: 250000 | E24: 1750000 | G24: UFA
A25: Rodney Austin | B25: G | C25: 495000 | E25: 495000 | F25: 585000 | H25: =G25+F25 -> 585000 | J25: RFA
A26: Rob Sims | B26: G | C26: 2575000 | D26: 1200000 | E26: 3775000 | G26: UFA
A27: Josh Walker | B27: G | C27: 420000 | E27: 420000 | F27: 510000 | H27: 510000 | I27: 600000 | K27: 600000 | M27: RFA
A28: Larry Warford | B28: G | C28: 540000 | D28: 174250 | E28: 714250 | F28: 675000 | G28: 174250 | H28: =G28+F28 -> 849250 | I28: 758000 | J28: 174250 | K28: =J28+I28 -> 932250 | M28: UFA
A29: Riley Reiff | B29: LT | C29: 1116700 | D29: 1063400 | E29: 2180100 | F29: 1480050 | G29: 1063400 | H29: 2543450 | J29: 3-25 Option
A30: LaAdrian Waddle | B30: LT | C30: 495000 | D30: 3333 | E30: 498333 | F30: 585000 | G30: 3334 | H30: 588334 | J30: RFA
A31: Corey Hilliard | B31: RT | C31: 1650000 | D31: 250000 | E31: =D31+C31 -> 1900000 | G31: UFA
A32: David Hurd | B32: RT | C32: 420000 | E32: 420000 | F32: 510000 | H32: 510000 | I32: 600000 | K32: 600000 | M32: RFA
A33: DEFENSE
A34: Nick Fairley | B34: DT | C34: 1723500 | D34: 1423000 | E34: =D34+C34 -> 3146500 | F34: 5559292 | G34: 0 | H34: =G34+F34 -> 5559292 | J34: UFA
A35: Tony McDaniel | B35: DT | C35: 1500000 | D35: 500000 | E35: =D35+C35 -> 2000000 | F35: 2000000 | G35: 500000 | H35: =G35+F35 -> 2500000 | I35: 2500000 | J35: 500000 | K35: =J35+I35 -> 3000000 | M35: UFA
A36: C.J. Mosley | B36: DT | C36: 1550000 | D36: 175000 | E36: =D36+C36 -> 1725000 | G36: UFA
A38: Ezekiel Ansah | B38: DE | C38: 1250207 | D38: 2975818 | E38: =D38+C38 -> 4226025 | F38: 2095414 | G38: 2975818 | H38: =G38+F38 -> 5071232 | I38: 2940621 | J38: 2975818 | K38: =J38+I38 -> 5916439 | M38: TOP10 Option
A39: Kony Ealy | B39: DE | C39: 420000 | D39: 879549.4821 | E39: 1299549.482 | F39: 779039.9573 | G39: 879549.4821 | H39: 1658589.439 | I39: 1089124.07 | J39: 879549.4821 | K39: 1968673.552 | L39: 1413630.699 | M39: 879549.4821 | N39: 2293180.181 | P39: TOP3-25 Option
A40: Jason Jones | B40: DE | C40: 2850000 | D40: 833333 | E40: =D40+C40 -> 3683333 | F40: 3150000 | G40: 833333 | H40: 3983333 | J40: UFA
A41: Shaun Phillips | B41: DE | C41: 1500000 | D41: 600000 | E41: =D41+C41 -> 2100000 | F41: 2000000 | G41: 600000 | H41: =G41+F41 -> 2600000 | I41: 2500000 | J41: 600000 | K41: =J41+I41 -> 3100000 | M41: UFA
A42: Devin Taylor | B42: DE | C42: 495000 | D42: 75146 | E42: =D42+C42 -> 570146 | F42: 585000 | G42: 75146 | H42: 660146 | I42: 675000 | J42: 75146 | K42: =J42+I42 -> 750146 | M42: UFA
A44: Andrew Jackson | B44: ILB | C44: 420000 | D44: 56479.47154 | E44: 476479.4715 | F44: 524896.7642 | G44: 56479.47154 | H44: 581376.2358 | I44: 633588.8431 | J44: 56479.47154 | K44: 690068.3146 | L44: 747336.3675 | M44: 56479.47154 | N44: 803815.839 | P44: UFA
A45: Travis Lewis | B45: ILB | C45: 570000 | D45: 14793 | E45: =D45+C45 -> 584793 | F45: 660000 | G45: 14793 | H45: =G45+F45 -> 674793 | J45: UFA
A46: Stephen Tulloch | B46: ILB | C46: 3750000 | D46: 1300000 | E46: 5050000 | F46: 4500000 | G46: 1300000 | H46: 5800000 | I46: 6000000 | J46: 1300000 | K46: =J46+I46 -> 7300000 | M46: UFA
A47: Brandon Hepburn | B47: OLB | C47: 420000 | E47: 420000 | F47: 510000 | H47: 510000 | J47: ERFA
A48: DeAndre Levy | B48: OLB | C48: 2250000 | D48: 1000000 | E48: 3250000 | F48: 3500000 | G48: 1000000 | H48: 4500000 | J48: UFA
A49: Ashlee Palmer | B49: OLB | C49: 1250000 | D49: 333334 | E49: 1583334 | G49: UFA
A50: Tahir Whitehead | B50: OLB | C50: 570000 | D50: 53000 | E50: 623000 | F50: 660000 | G50: 53000 | H50: =G50+F50 -> 713000 | J50: UFA
A52: Isa Abdul-Quddus | B52: S | C52: 645000 | D52: 50000 | E52: =D52+C52 -> 695000 | G52: UFA
A53: Don Carey | B53: S | C53: 730000 | D53: 200000 | E53: =D53+C53 -> 930000 | F53: 795000 | G53: 200000 | H53: =G53+F53 -> 995000 | I53: 810000 | J53: 200000 | K53: =J53+I53 -> 1010000 | M53: UFA
A54: Hasean Clinton-Dix | B54: S | C54: 420000 | D54: 1925756.031 | E54: 2345756.031 | F54: 1056285.428 | G54: 1925756.031 | H54: 2982041.459 | I54: 1613797.527 | J54: 1925756.031 | K54: 3539553.558 | L54: 2197240.421 | M54: 1925756.031 | N54: 4122996.453 | P54: TOP10 Option
A55: Dontae Johnson | B55: S | C55: 420000 | D55: 80079.36545 | E55: 500079.3654 | F55: 523008.7727 | G55: 80079.36545 | H55: 603088.1382 | I55: 635760.0333 | J55: 80079.36545 | K55: 715839.3988 | L55: 753755.5386 | M55: 80079.36545 | N55: 833834.9041 | P55: UFA
A56: Glover Quin | B56: S | C56: 3500000 | D56: 1050000 | E56: =D56+C56 -> 4550000 | F56: 4000000 | G56: 1050000 | H56: =G56+F56 -> 5050000 | I56: 4750000 | J56: 1050000 | K56: =J56+I56 -> 5800000 | L56: 5000000 | M56: 1050000 | N56: =M56+L56 -> 6050000 | P56: UFA
A58: Dwight Bentley | B58: CB | C58: 590000 | D58: 137278 | E58: =D58+C58 -> 727278 | F58: 680000 | G58: 137278 | H58: =G58+F58 -> 817278 | J58: UFA
A59: Jonte Green | B59: CB | C59: 570000 | D59: 24250 | E59: =D59+C59 -> 594250 | F59: 660000 | G59: 24250 | H59: 684250 | J59: UFA
A60: Chris Houston | B60: CB | C60: 3500000 | D60: 1300000 | E60: =D60+C60 -> 4800000 | F60: 4500000 | G60: 1300000 | H60: 5800000 | I60: 4500000 | J60: 1300000 | K60: =J60+I60 -> 5800000 | L60: 6300000 | N60: =M60+L60 -> 6300000 | P60: UFA
A61: Darius Slay | B61: CB | C61: 645423 | D61: 556691 | E61: =D61+C61 -> 1202114 | F61: 885846 | G61: 556691 | H61: 1442537 | I61: 1126269 | J61: 556691 | K61: 1682960 | M61: UFA
A62: Alterraun Verner | B62: CB | C62: 6000000 | D62: 4500000 | E62: =D62+C62 -> 10500000 | F62: 6000000 | G62: 4500000 | H62: =G62+F62 -> 10500000 | I62: 6000000 | J62: 4500000 | K62: =J62+I62 -> 10500000 | L62: 6000000 | M62: 4500000 | N62: =M62+L62 -> 10500000 | P62: UFA
A64: Graham Gano | B64: K | C64: 1000000 | D64: 500000 | E64: =D64+C64 -> 1500000 | F64: 1800000 | G64: 500000 | H64: =G64+F64 -> 2300000 | I64: 2200000 | J64: 500000 | K64: =J64+I64 -> 2700000 | L64: 3000000 | M64: 500000 | N64: =M64+L64 -> 3500000 | P64: UFA
A65: Greg Warren | B65: LS | C65: 900000 | E65: =D65+C65 -> 900000 | G65: UFA
A66: Sam Martin | B66: P | C66: 495000 | D66: 40075 | E66: =D66+C66 -> 535075 | F66: 585000 | G66: 40075 | H66: =G66+F66 -> 625075 | I66: 675000 | J66: 40075 | K66: =J66+I66 -> 715075 | M66: UFA
A69: Total Players | C69: =COUNTA(C4:C67) -> 53 | F69: =COUNTA(F4:F67) -> 40 | I69: =COUNTA(I4:I67) -> 27 | L69: =COUNTA(L4:L67) -> 13
A70: Top 51 Salary | C70: =SUM(LARGE(ISNUMBER(E4:E67)*E4:E67,ROW(INDIRECT("1:51")))) -> 122002131.5 | F70: =SUM(LARGE(ISNUMBER(H4:H67)*H4:H67,ROW(INDIRECT("1:51")))) -> 120546768.4 | I70: =SUM(LARGE(ISNUMBER(K4:K67)*K4:K67,ROW(INDIRECT("1:51")))) -> 113197409.9 | L70: =SUM(LARGE(ISNUMBER(N4:N67)*N4:N67,ROW(INDIRECT("1:51")))) -> 81219529.99
A71: Dead Money | C71: 5460438 | F71: 78074
A72: Cap Rollover | C72: 1474552 | F72: =C73 -> 7011982.5 | I72: =F73 -> 19387140.13 | L72: 39189730.23
A73: Cap Space | C73: =133000000-C70-C71+C72 -> 7011982.5 | F73: =133000000-F70-F71+F72 -> 19387140.13 | I73: =133000000-I70-I71+I72 -> 39189730.23 | L73: =133000000-L70-L71+L72 -> 90970200.24
A74: June 1st Cut | B74: 0/2
A75: Paycut | B75: 0/2
A76: Restructure | B76: 0/3
A78: Practice Squad
A79: Kellen Moore | B79: QB | C79: 570000 | E79: =D79+C79 -> 570000 | G79: RFA
A80: Kiero Small | B80: FB | C80: 420000 | E80: 420000 | F80: 510000 | H80: 510000 | I80: 600000 | K80: 600000 | M80: RFA
A81: Trey Burton | B81: TE | C81: 420000 | E81: 420000 | F81: 510000 | H81: 510000 | I81: 600000 | K81: 600000 | M81: RFA
A82: Cody Wilson | B82: WR | C82: 420000 | E82: =D82+C82 -> 420000 | F82: 510000 | H82: =G82+F82 -> 510000 | J82: ERFA
A83: Xavier Proctor | B83: DT | C83: 420000 | E83: =D83+C83 -> 420000 | F83: 510000 | H83: =G83+F83 -> 510000 | J83: ERFA
A84: L.T. Tuipulotu | B84: DT | C84: 420000 | E84: 420000 | F84: 526791.4907 | G84: 32795.39126 | H84: 559586.8819 | I84: 631409.9077 | J84: 32795.39126 | K84: 664205.299 | L84: 740894.2976 | M84: 32795.39126 | N84: 773689.6889 | P84: UFA
A85: Jon Morgan | B85: OLB | C85: 420000 | E85: =D85+C85 -> 420000 | F85: 510000 | H85: =G85+F85 -> 510000 | J85: ERFA
A86: Daytawion Lowe | B86: S | C86: 420000 | E86: 420000 | F86: 510000 | H86: 510000 | I86: 600000 | K86: 600000 | M86: RFA

Sheet GB
C1: 2014 | F1: 2015 | I1: 2016 | L1: 2017 | O1: 2018 | R1: 2019 | U1: 2020
A2: Player | B2: Pos. | C2: Base Salary | D2: Signing Bonus | E2: Cap Figure | F2: Base Salary | G2: Signing Bonus | H2: Cap Figure | I2: Base Salary | J2: Signing Bonus | K2: Cap Figure | L2: Base Salary | M2: Signing Bonus | N2: Cap Figure | O2: Base Salary | P2: Signing Bonus | Q2: Cap Figure | R2: Base Salary | S2: Signing Bonus | T2: Cap Figure | U2: Base Salary | V2: Signing Bonus | W2: Cap Figure
A3: OFFENSE
A4: Matt Flynn | B4: QB | C4: 1500000 | E4: =D4+C4 -> 1500000 | F4: 1500000 | G4: 0 | H4: =G4+F4 -> 1500000 | I4: 1500000 | K4: =J4+I4 -> 1500000 | M4: UFA
A5: Aaron Rodgers | B5: QB | C5: 10900000 | D5: 7000000 | E5: =D5+C5 -> 17900000 | F5: 11600000 | G5: 7000000 | H5: =G5+F5 -> 18600000 | I5: 12600000 | J5: 7000000 | K5: =J5+I5 -> 19600000 | L5: 13650000 | M5: 7000000 | N5: =M5+L5 -> 20650000 | O5: 20900000 | Q5: =P5+O5 -> 20900000 | R5: 21100000 | T5: =S5+R5 -> 21100000 | V5: UFA
A7: DuJuan Harris | B7: RB | C7: 645000 | E7: =D7+C7 -> 645000 | G7: UFA
A8: Eddie Lacy | B8: RB | C8: 559201 | D8: 211802 | E8: =D8+C8 -> 771003 | F8: 713401 | G8: 211802 | H8: =G8+F8 -> 925203 | I8: 867602 | J8: 211802 | K8: =J8+I8 -> 1079404 | M8: UFA
A9: James Starks | B9: RB | C9: 1427080 | E9: =D9+C9 -> 1427080 | G9: UFA
A10: John Kuhn | B10: FB | C10: 2200000 | E10: =D10+C10 -> 2200000 | F10: 2200000 | H10: =G10+F10 -> 2200000 | J10: UFA
A12: Brandon Bostick | B12: TE | C12: 495000 | E12: =D12+C12 -> 495000 | F12: 585000 | H12: =G12+F12 -> 585000 | J12: RFA
A13: Jermichael Finley | B13: TE | C13: 2750000 | D13: 250000 | E13: =D13+C13 -> 3000000 | F13: 2750000 | G13: 250000 | H13: =G13+F13 -> 3000000 | I13: 2750000 | J13: 250000 | K13: =J13+I13 -> 3000000 | M13: UFA
A14: Cory Harkey | B14: TE/FB | C14: 570000 | E14: =D14+C14 -> 570000 | G14: ERFA
A16: Jarrett Boykin | B16: WR | C16: 570000 | E16: =D16+C16 -> 570000 | G16: RFA
A17: Randall Cobb | B17: WR | C17: 812648 | D17: 208531 | E17: =D17+C17 -> 1021179 | G17: UFA
A18: Jarvis Landry | B18: WR | C18: 420000 | D18: 132414.5226 | E18: 552414.5226 | F18: 539042.6766 | G18: 132414.5226 | H18: 671457.1992 | I18: 664575.9791 | J18: 132414.5226 | K18: 796990.5016 | L18: 795948.0398 | M18: 132414.5226 | N18: 928362.5623 | P18: UFA
A19: Jordy Nelson | B19: WR | C19: 3500000 | D19: 875000 | E19: =D19+C19 -> 4375000 | G19: UFA
A20: Myles White | B20: WR | C20: 495000 | E20: =D20+C20 -> 495000 | F20: 585000 | H20: =G20+F20 -> 585000 | J20: UFA
A22: Joe Hawley | B22: C/G | C22: 2000000 | D22: 500000 | E22: =D22+C22 -> 2500000 | F22: 2000000 | G22: 500000 | H22: =G22+F22 -> 2500000 | I22: 2000000 | J22: 500000 | K22: =J22+I22 -> 2500000 | L22: 2000000 | M22: 500000 | N22: =M22+L22 -> 2500000 | O22: 2000000 | P22: 500000 | Q22: =P22+O22 -> 2500000 | S22: UFA
A23: J.C. Tretter | B23: C/G | C23: 495000 | D23: 103977 | E23: 598977 | F23: 585000 | G23: 103977 | H23: =G23+F23 -> 688977 | I23: 675000 | J23: 103977 | K23: =J23+I23 -> 778977 | M23: UFA
A24: T.J. Lang | B24: G | C24: 4000000 | D24: 1100000 | E24: 5100000 | F24: 4700000 | G24: 1100000 | H24: 5800000 | I24: 5100000 | J24: 1100000 | K24: 6200000 | M24: UFA
A25: Josh Sitton | B25: G | C25: 5200000 | D25: 1200000 | E25: 6400000 | F25: 5550000 | G25: 1200000 | H25: 6750000 | I25: 6600000 | K25: 6600000 | M25: UFA
A26: Lane Taylor | B26: G | C26: 495000 | D26: 2333 | E26: 497333 | F26: 585000 | G26: 2334 | H26: 587334 | J26: RFA
A27: David Bakhtiari | B27: LT | C27: 495000 | D27: 113850 | E27: 608850 | F27: 585000 | G27: 113850 | H27: 698850 | I27: 675000 | J27: 113850 | K27: =J27+I27 -> 788850 | M27: UFA
A28: Bryan Bulaga | B28: LT | C28: 3653000 | D28: 176000 | E28: 3829000 | G28: UFA
A29: Don Barclay | B29: RT/G | C29: 570000 | D29: 833 | E29: 570833 | G29: RFA
A30: Nate Chandler | B30: RT | C30: 2700000 | D30: 600000 | E30: 3300000 | F30: 2700000 | G30: 600000 | H30: 3300000 | I30: 2700000 | J30: 600000 | K30: 3300000 | L30: 2700000 | M30: 600000 | N30: 3300000 | O30: 2700000 | P30: 600000 | Q30: 3300000 | S30: UFA
A31: Jack Mewhort | B31: RT | C31: 420000 | D31: 146290.3565 | E31: 566290.3565 | F31: 530184.5215 | G31: 146290.3565 | H31: 676474.878 | I31: 656655.9118 | J31: 146290.3565 | K31: 802946.2683 | L31: 789009.6923 | M31: 146290.3565 | N31: 935300.0488 | P31: UFA
A32: David Stewart | B32: RT | C32: 6400000 | E32: =D32+C32 -> 6400000 | G32: UFA
A33: DEFENSE
A34: Josh Boyd | B34: DT | C34: 495000 | D34: 36140 | E34: =D34+C34 -> 531140 | F34: 585000 | G34: 36140 | H34: =G34+F34 -> 621140 | J34: UFA
A35: Stacy McGee | B35: DT | C35: 495000 | E35: =D35+C35 -> 495000 | F35: 585000 | H35: =G35+F35 -> 585000 | I35: 675000 | K35: =J35+I35 -> 675000 | M35: UFA
A36: B.J. Raji | B36: NT | C36: 4500000 | D36: 500000 | E36: =D36+C36 -> 5000000 | F36: 4500000 | G36: 500000 | H36: =G36+F36 -> 5000000 | J36: UFA
A38: Mike Daniels | B38: DE | C38: 570000 | D38: 75146 | E38: =D38+C38 -> 645146 | F38: 660000 | G38: 75146 | H38: =G38+F38 -> 735146 | J38: UFA
A39: Datone Jones | B39: DE | C39: 755754 | D39: 998016 | E39: =D39+C39 -> 1753770 | F39: 1106508 | G39: 998016 | H39: 2104524 | I39: 1457262 | J39: 998016 | K39: =J39+I39 -> 2455278 | M39: 3-25 Option
A40: Mike Neal | B40: DE/OLB | C40: 2000000 | D40: 1000000 | E40: =D40+C40 -> 3000000 | F40: 3000000 | G40: 1000000 | H40: 4000000 | I40: 4000000 | J40: 1000000 | K40: =J40+I40 -> 5000000 | M40: UFA
A41: Muhammad Wilkerson | B41: DE | C41: 1312500 | E41: =D41+C41 -> 1312500 | F41: 6969000 | H41: 6969000 | J41: UFA
A42: Jerel Worthy | B42: DE | C42: 748928 | D42: 327855 | E42: =D42+C42 -> 1076783 | F42: 928391 | G42: 327855 | H42: 1256246 | J42: UFA
A44: Sam Barrington | B44: ILB | C44: 495000 | D44: 12250 | E44: =D44+C44 -> 507250 | F44: 585000 | G44: 12250 | H44: =G44+F44 -> 597250 | J44: UFA
A45: A.J. Hawk | B45: ILB | C45: 3500000 | D45: 1600000 | E45: 5100000 | F45: 3500000 | G45: 1600000 | H45: =G45+F45 -> 5100000 | J45: UFA
A46: Jamari Lattimore | B46: ILB | C46: 1427080 | E46: 1427080 | G46: UFA
A47: Brandon Spikes | B47: ILB | C47: 2500000 | D47: 500000 | E47: 3000000 | F47: 3500000 | G47: 500000 | H47: =G47+F47 -> 4000000 | I47: 3500000 | J47: 500000 | K47: =J47+I47 -> 4000000 | L47: 4500000 | M47: 500000 | N47: =M47+L47 -> 5000000 | P47: UFA
A48: James Harrison | B48: OLB | C48: 955000 | E48: 955000 | G48: UFA
A49: Clay Matthews | B49: OLB | C49: 7000000 | D49: 4100000 | E49: 11100000 | F49: 8600000 | G49: 4100000 | H49: 12700000 | I49: 9650000 | J49: 4100000 | K49: =J49+I49 -> 13750000 | L49: 11100000 | M49: 4100000 | N49: =M49+L49 -> 15200000 | O49: 11400000 | Q49: =P49+O49 -> 11400000 | S49: UFA
A50: Andy Mulumba | B50: OLB | C50: 495000 | D50: 1666 | E50: 496666 | F50: 585000 | G50: 1667 | H50: 586667 | J50: RFA
A51: Nate Palmer | B51: OLB | C51: 495000 | D51: 24724 | E51: 519724 | F51: 585000 | G51: 24724 | H51: 609724 | I51: 675000 | J51: 24724 | K51: =J51+I51 -> 699724 | M51: UFA
A53: Antonio Allen | B53: S | C53: 570000 | E53: =D53+C53 -> 570000 | F53: 660000 | H53: =G53+F53 -> 660000 | J53: UFA
A54: Chris Banjo | B54: S | C54: 495000 | D54: 0 | E54: =D54+C54 -> 495000 | G54: ERFA
A55: Morgan Burnett | B55: S | C55: 3250000 | D55: 1650000 | E55: =D55+C55 -> 4900000 | F55: 3500000 | G55: 1650000 | H55: =G55+F55 -> 5150000 | I55: 4400000 | J55: 1650000 | K55: =J55+I55 -> 6050000 | L55: 5350000 | M55: 1650000 | N55: =M55+L55 -> 7000000 | P55: UFA
A56: M.D. Jennings | B56: S | C56: 2182244 | E56: =D56+C56 -> 2182244 | G56: UFA
A58: Casey Hayward | B58: CB | C58: 690901 | D58: 211750 | E58: =D58+C58 -> 902651 | F58: 841352 | G58: 211750 | H58: =G58+F58 -> 1053102 | J58: UFA
A59: Davon House | B59: CB | C59: 645000 | D59: 75145 | E59: =D59+C59 -> 720145 | G59: UFA
A60: Micah Hyde | B60: CB/S | C60: 495000 | D60: 44527 | E60: =D60+C60 -> 539527 | F60: 585000 | G60: 44527 | H60: =G60+F60 -> 629527 | I60: 675000 | J60: 44527 | K60: =J60+I60 -> 719527 | M60: UFA
A61: Sam Shields | B61: CB | C61: 3500000 | D61: 3000000 | E61: =D61+C61 -> 6500000 | F61: 4500000 | G61: 3000000 | H61: =G61+F61 -> 7500000 | I61: 5500000 | J61: 3000000 | K61: =J61+I61 -> 8500000 | L61: 6500000 | M61: 3000000 | N61: =M61+L61 -> 9500000 | O61: 7500000 | P61: 3000000 | Q61: =P61+O61 -> 10500000 | S61: UFA
A62: Tramon Williams | B62: CB | C62: 7500000 | D62: 2000000 | E62: =D62+C62 -> 9500000 | G62: UFA
A64: Mason Crosby | B64: K | C64: 2800000 | D64: 600000 | E64: =D64+C64 -> 3400000 | F64: 2950000 | G64: 600000 | H64: =G64+F64 -> 3550000 | J64: UFA
A65: Brett Goode | B65: LS | C65: 755000 | D65: 81250 | E65: =D65+C65 -> 836250 | F65: 895000 | G65: 81250 | H65: 976250 | J65: UFA
A66: Tim Masthay | B66: P | C66: 1000000 | D66: 240000 | E66: =D66+C66 -> 1240000 | F66: 1100000 | G66: 240000 | H66: 1340000 | I66: 1300000 | J66: 240000 | K66: =J66+I66 -> 1540000 | M66: UFA
A69: Total Players | C69: =COUNTA(C4:C67) -> 53 | F69: =COUNTA(F4:F67) -> 38 | I69: =COUNTA(I4:I67) -> 22 | L69: =COUNTA(L4:L67) -> 9
A70: Top 51 Salary | C70: =SUM(LARGE(ISNUMBER(E4:E67)*E4:E67,ROW(INDIRECT("1:51")))) -> 133608835.9 | F70: =SUM(LARGE(ISNUMBER(H4:H67)*H4:H67,ROW(INDIRECT("1:51")))) -> 114791872.1 | I70: =SUM(LARGE(ISNUMBER(K4:K67)*K4:K67,ROW(INDIRECT("1:51")))) -> 90336696.77 | L70: =SUM(LARGE(ISNUMBER(N4:N67)*N4:N67,ROW(INDIRECT("1:51")))) -> 65013662.61
A71: Dead Money | C71: 6096429 | F71: 2176234
A72: Cap Rollover | C72: 9820459 | F72: =C73 -> 3115194.121 | I72: =F73 -> 19147088.04 | L72: 61810391.27
A73: Cap Space | C73: =133000000-C70-C71+C72 -> 3115194.121 | F73: =133000000-F70-F71+F72 -> 19147088.04 | I73: =133000000-I70-I71+I72 -> 61810391.27 | L73: =133000000-L70-L71+L72 -> 129796728.7
A74: June 1st Cut | B74: 0/2
A75: Paycut | B75: 1/2
A76: Restructure | B76: 0/3
A78: Practice Squad
A79: Alfred Blue | B79: RB | C79: 420000 | E79: =D79+C79 -> 420000 | F79: 510000 | H79: =G79+F79 -> 510000 | I79: 600000 | K79: 600000 | M79: RFA
A80: Kevin Dorsey | B80: WR | C80: 420000 | E80: =D80+C80 -> 420000 | F80: 585000 | G80: 14212 | H80: =G80+F80 -> 599212 | I80: 675000 | J80: 14212 | K80: =J80+I80 -> 689212 | M80: UFA
A81: Chris Harper | B81: WR | C81: 495000 | E81: =D81+C81 -> 495000 | F81: 585000 | H81: =G81+F81 -> 585000 | J81: RFA
A82: Deandre Coleman | B82: DT | C82: 420000 | E82: 420000 | F82: 520461.3567 | G82: 111922.0652 | H82: 632383.422 | I82: 638689.5617 | J82: 111922.0652 | K82: 750611.627 | L82: 762416.753 | M82: 111922.0652 | N82: 874338.8182 | P82: UFA
A83: Anthony Hitchens | B83: OLB | C83: 420000 | E83: =D83+C83 -> 420000 | F83: 510000 | H83: =G83+F83 -> 510000 | I83: 600000 | K83: 600000 | M83: RFA
A84: Prince Shembo | B84: OLB | C84: 420000 | E84: 420000 | F84: 526997.1186 | G84: 30225.04248 | H84: 557222.161 | I84: 631173.4356 | J84: 30225.04248 | K84: 661398.4781 | L84: 740195.1628 | M84: 30225.04248 | N84: 770420.2053 | P84: UFA
A85: Marqueston Huff | B85: S | C85: 420000 | E85: 420000 | F85: 528410.2562 | G85: 12560.82134 | H85: 540971.0776 | I85: 629548.3273 | J85: 12560.82134 | K85: 642109.1486 | L85: 735390.4946 | M85: 12560.82134 | N85: 747951.316 | P85: UFA
A86: Sean Richardson | B86: S | C86: 570000 | E86: =D86+C86 -> 570000 | G86: RFA

Sheet HOU
C1: 2014 | F1: 2015 | I1: 2016 | L1: 2017 | O1: 2018 | R1: 2019 | U1: 2020
A2: Player | B2: Pos. | C2: Base Salary | D2: Signing Bonus | E2: Cap Figure | F2: Base Salary | G2: Signing Bonus | H2: Cap Figure | I2: Base Salary | J2: Signing Bonus | K2: Cap Figure | L2: Base Salary | M2: Signing Bonus | N2: Cap Figure | O2: Base Salary | P2: Signing Bonus | Q2: Cap Figure | R2: Base Salary | S2: Signing Bonus | T2: Cap Figure | U2: Base Salary | V2: Signing Bonus | W2: Cap Figure
A3: OFFENSE
A4: Sam Bradford | B4: QB | C4: 6000000 | D4: 3200000 | E4: =D4+C4 -> 9200000 | F4: 5000000 | G4: 3200000 | H4: =G4+F4 -> 8200000 | I4: 7000000 | J4: 3200000 | K4: =J4+I4 -> 10200000 | M4: UFA
A5: Case Keenum | B5: QB | C5: 495000 | E5: =D5+C5 -> 495000 | G5: ERFA
A6: Aaron Murray | B6: QB | C6: 420000 | D6: 115114.7539 | E6: 535114.7539 | F6: 520205.9416 | G6: 115114.7539 | H6: 635320.6955 | I6: 638983.2891 | J6: 115114.7539 | K6: 754098.0429 | L6: 763285.1643 | M6: 115114.7539 | N6: 878399.9181 | P6: UFA
A8: Arian Foster | B8: RB | C8: 6000000 | D8: 2500000 | E8: =D8+C8 -> 8500000 | F8: 6500000 | G8: 2500000 | H8: =G8+F8 -> 9000000 | I8: 7000000 | J8: 2500000 | K8: =J8+I8 -> 9500000 | M8: UFA
A9: Johnathan Grimes | B9: RB | C9: 495000 | E9: 495000 | F9: 585000 | H9: =G9+F9 -> 585000 | J9: RFA
A10: Daniel Thomas | B10: RB | C10: 816321 | E10: =D10+C10 -> 816321 | G10: UFA
A11: Greg Jones | B11: FB | C11: 1000000 | D11: 400000 | E11: =D11+C11 -> 1400000 | F11: 1000000 | G11: 400000 | H11: =G11+F11 -> 1400000 | J11: UFA
A13: Garrett Graham | B13: TE | C13: 2500000 | D13: 1300000 | E13: =D13+C13 -> 3800000 | F13: 2500000 | G13: 1300000 | H13: =G13+F13 -> 3800000 | I13: 3500000 | J13: 1300000 | K13: =J13+I13 -> 4800000 | L13: 3500000 | M13: 1300000 | N13: =M13+L13 -> 4800000 | P13: UFA
A14: Ryan Griffin | B14: TE | C14: 495000 | D14: 19670 | E14: 514670 | F14: 585000 | G14: 19670 | H14: =G14+F14 -> 604670 | I14: 675000 | J14: 19670 | K14: =J14+I14 -> 694670 | M14: UFA
A15: Phillip Supernaw | B15: TE | C15: 420000 | E15: 420000 | F15: 510000 | H15: 510000 | J15: RFA
A17: Tandon Doss | B17: WR | C17: 730000 | E17: =D17+C17 -> 730000 | F17: 730000 | H17: =G17+F17 -> 730000 | J17: UFA
A18: DeAndre Hopkins | B18: WR | C18: 751668 | D18: 981673 | E18: 1733341 | F18: 1098337 | G18: 981673 | H18: =G18+F18 -> 2080010 | I18: 1445005 | J18: 981673 | K18: =J18+I18 -> 2426678 | M18: 3-25 Option
A19: Andre Johnson | B19: WR | C19: 15175000 | D19: 469583 | E19: 15644583 | F19: 15675000 | G19: 469583 | H19: 16144583 | I19: 14675000 | K19: 14675000 | M19: UFA
A20: Keshawn Martin | B20: WR | C20: 570000 | D20: 103140 | E20: 673140 | F20: 660000 | G20: 103140 | H20: 763140 | J20: UFA
A21: DeVier Posey | B21: WR | C21: 630000 | D21: 171023 | E21: 801023 | F21: 748000 | G21: 171023 | H21: 919023 | J21: UFA
A23: Chris Myers | B23: C | C23: 5000000 | D23: 2000000 | E23: 7000000 | F23: 6000000 | G23: 2000000 | H23: =G23+F23 -> 8000000 | J23: UFA
A24: Cody White | B24: C | C24: 570000 | E24: 570000 | G24: RFA
A25: Brandon Brooks | B25: G | C25: 590000 | D25: 154359 | E25: 744359 | F25: 702564 | G25: 154359 | H25: =G25+F25 -> 856923 | J25: UFA
A26: Ben Jones | B26: G | C26: 570000 | D26: 120362 | E26: 690362 | F26: 660000 | G26: 120362 | H26: 780362 | J26: UFA
A27: Xavier Su'a-Filo | B27: G | C27: 420000 | D27: 628075.1679 | E27: 1048075.168 | F27: 712399.9993 | G27: 628075.1679 | H27: 1340475.167 | I27: 963010.574 | J27: 628075.1679 | K27: 1591085.742 | L27: 1225277.455 | M27: 628075.1679 | N27: 1853352.622 | P27: UFA
A28: Duane Brown | B28: LT | C28: 6000000 | D28: 2500000 | E28: 8500000 | F28: 7000000 | G28: 2500000 | H28: 9500000 | I28: 7000000 | J28: 2500000 | K28: =J28+I28 -> 9500000 | L28: 9650000 | N28: =M28+L28 -> 9650000 | O28: 9750000 | Q28: =P28+O28 -> 9750000 | S28: UFA
A29: Wesley Johnson | B29: OT | C29: 420000 | E29: 420000 | F29: 510000 | H29: 510000 | I29: 600000 | K29: 600000 | M29: RFA
A30: Jake Matthews | B30: OT | C30: 420000 | D30: 3415041.903 | E30: 3835041.903 | F30: 1450945.571 | G30: 3415041.903 | H30: 4865987.475 | I30: 2360673.665 | J30: 3415041.903 | K30: 5775715.568 | L30: 3312714.692 | M30: 3415041.903 | N30: 6727756.596 | P30: TOP10 Option
A31: Brennan Williams | B31: RT | C31: 506000 | D31: 135725 | E31: 641725 | F31: 596000 | G31: 135725 | H31: =G31+F31 -> 731725 | I31: 686000 | J31: 135725 | K31: =J31+I31 -> 821725 | M31: UFA
A32: Eric Winston | B32: RT | C32: 1000000 | D32: 500000 | E32: =D32+C32 -> 1500000 | F32: 1000000 | G32: 500000 | H32: =G32+F32 -> 1500000 | I32: 1000000 | J32: 500000 | K32: =J32+I32 -> 1500000 | M32: UFA
A33: DEFENSE
A34: Zach Kerr | B34: DT | C34: 420000 | D34: 12227.27276 | E34: 432227.2728 | F34: 528436.9401 | G34: 12227.27276 | H34: 540664.2129 | I34: 629517.6408 | J34: 12227.27276 | K34: 641744.9136 | L34: 735299.7694 | M34: 12227.27276 | N34: 747527.0422 | P34: UFA
A35: Terrell McClain | B35: DT | C35: 730000 | D35: 600000 | E35: 1330000 | F35: 730000 | G35: 600000 | H35: =G35+F35 -> 1330000 | I35: 1240000 | J35: 600000 | K35: =J35+I35 -> 1840000 | M35: UFA
A36: Kevin Williams | B36: DT | C36: 1000000 | D36: 500000 | E36: =D36+C36 -> 1500000 | F36: 1700000 | G36: 500000 | H36: =G36+F36 -> 2200000 | I36: 2300000 | J36: 500000 | K36: =J36+I36 -> 2800000 | M36: UFA
A38: Robert Ayers | B38: DE | C38: 730000 | D38: 400000 | E38: =D38+C38 -> 1130000 | F38: 855000 | G38: 400000 | H38: =G38+F38 -> 1255000 | I38: 855000 | J38: 400000 | K38: =J38+I38 -> 1255000 | L38: 855000 | M38: 400000 | N38: =M38+L38 -> 1255000 | P38: UFA
A39: Jason Babin | B39: DE | C39: 955000 | D39: 250000 | E39: 1205000 | F39: 955000 | G39: 250000 | H39: 1205000 | J39: UFA
A40: Jared Crick | B40: DE | C40: 570000 | D40: 97875 | E40: 667875 | F40: 660000 | G40: 97875 | H40: =G40+F40 -> 757875 | J40: UFA
A41: Chris Smith | B41: DE | C41: 420000 | D41: 53016.10772 | E41: 473016.1077 | F41: 525173.8333 | G41: 53016.10772 | H41: 578189.9411 | I41: 633270.2136 | J41: 53016.10772 | K41: 686286.3213 | L41: 746394.3325 | M41: 53016.10772 | N41: 799410.4402 | P41: UFA
A42: J.J. Watt | B42: DE | C42: 1907358 | D42: 1668182 | E42: 3575540 | F42: 6969000 | G42: 0 | H42: =G42+F42 -> 6969000 | J42: UFA
A43: Trevardo Williams | B43: DE | C43: 420000 | D43: 101903 | E43: 521903 | F43: 585000 | G43: 101903 | H43: 686903 | I43: 675000 | J43: 101903 | K43: =J43+I43 -> 776903 | M43: UFA
A45: Preston Brown | B45: ILB | C45: 420000 | D45: 128263.8142 | E45: 548263.8142 | F45: 519154.0168 | G45: 128263.8142 | H45: 647417.831 | I45: 640193.0026 | J45: 128263.8142 | K45: 768456.8168 | L45: 766861.7087 | M45: 128263.8142 | N45: 895125.5229 | P45: UFA
A46: Brian Cushing | B46: ILB | C46: 3746875 | D46: 1800000 | E46: 5546875 | F46: 6450000 | G46: 1800000 | H46: =G46+F46 -> 8250000 | I46: 7450000 | J46: 1800000 | K46: =J46+I46 -> 9250000 | L46: 7950000 | M46: 1800000 | N46: =M46+L46 -> 9750000 | O46: 9700000 | Q46: =P46+O46 -> 9700000 | R46: 9500000 | T46: =S46+R46 -> 9500000 | V46: UFA
A47: Whitney Mercilus | B47: OLB | C47: 1084008 | D47: 998016 | E47: 2082024 | F47: 1431012 | G47: 998016 | H47: =G47+F47 -> 2429028 | J47: 3-25 Option
A48: Trent Murphy | B48: OLB | C48: 420000 | D48: 185689.5833 | E48: 605689.5833 | F48: 567991.6667 | G48: 185689.5833 | H48: 753681.25 | I48: 708897.2917 | J48: 185689.5833 | K48: 894586.875 | L48: 856356.6667 | M48: 185689.5833 | N48: 1042046.25 | P48: UFA
A49: Brooks Reed | B49: OLB | C49: 1198250 | D49: 297867 | E49: 1496117 | G49: UFA
A50: Jeff Tarpinian | B50: OLB | C50: 645000 | E50: 645000 | G50: RFA
A51: Justin Tuggle | B51: OLB | C51: 495000 | D51: 833 | E51: 495833 | F51: 585000 | G51: 834 | H51: =G51+F51 -> 585834 | J51: RFA
A53: Christopher Conte | B53: S | C53: 1389000 | E53: =D53+C53 -> 1389000 | G53: UFA
A54: Shiloh Keo | B54: S | C54: 645000 | E54: =D54+C54 -> 645000 | G54: UFA
A55: Danieal Manning | B55: S | C55: 4500000 | D55: 1500000 | E55: 6000000 | G55: UFA
A56: D.J. Swearinger | B56: S | C56: 563695 | D56: 229782 | E56: 793477 | F56: 722391 | G56: 229782 | H56: =G56+F56 -> 952173 | I56: 881087 | J56: 229782 | K56: =J56+I56 -> 1110869 | M56: UFA
A58: Walt Aikens | B58: CB | C58: 420000 | D58: 17356.24817 | E58: 437356.2482 | F58: 528026.6221 | G58: 17356.24817 | H58: 545382.8703 | I58: 629989.5065 | J58: 17356.24817 | K58: 647345.7547 | L58: 736694.8507 | M58: 17356.24817 | N58: 754051.0989 | P58: UFA
A59: Brandon Harris | B59: CB | C59: 824907 | D59: 225000 | E59: 1049907 | G59: UFA
A60: Kareem Jackson | B60: CB | C60: 4160000 | D60: 175000 | E60: 4335000 | G60: UFA
A61: Johnathan Joseph | B61: CB | C61: 8750000 | D61: 2500000 | E61: 11250000 | F61: 9750000 | G61: 2500000 | H61: =G61+F61 -> 12250000 | J61: UFA
A62: Brice McCain | B62: CB | C62: 1300000 | D62: 450000 | E62: 1750000 | F62: 1700000 | G62: 450000 | H62: 2150000 | J62: UFA
A64: Alex Henery | B64: K | C64: 675007 | D64: 105045 | E64: 780052 | G64: UFA
A65: Jon Weeks | B65: LS | C65: 730000 | D65: 63750 | E65: 793750 | F65: 745000 | G65: 63750 | H65: =G65+F65 -> 808750 | J65: UFA
A66: Shane Lechler | B66: P | C66: 1750000 | D66: 333333 | E66: =D66+C66 -> 2083333 | F66: 1750000 | G66: 333334 | H66: 2083334 | J66: UFA
A69: Total Players | C69: =COUNTA(C4:C67) -> 53 | F69: =COUNTA(F4:F67) -> 42 | I69: =COUNTA(I4:I67) -> 24 | L69: =COUNTA(L4:L67) -> 12
A70: Top 51 Salary | C70: =SUM(LARGE(ISNUMBER(E4:E67)*E4:E67,ROW(INDIRECT("1:51")))) -> 123429994.9 | F70: =SUM(LARGE(ISNUMBER(H4:H67)*H4:H67,ROW(INDIRECT("1:51")))) -> 120435452.4 | I70: =SUM(LARGE(ISNUMBER(K4:K67)*K4:K67,ROW(INDIRECT("1:51")))) -> 83510165.03 | L70: =SUM(LARGE(ISNUMBER(N4:N67)*N4:N67,ROW(INDIRECT("1:51")))) -> 39152669.49
A71: Dead Money | C71: 8388867 | F71: 7550168
A72: Cap Rollover | C72: 1114730 | F72: =C73 -> 2295868.149 | I72: =F73 -> 7310247.706 | L72: 56800082.67
A73: Cap Space | C73: =133000000-C70-C71+C72 -> 2295868.149 | F73: =133000000-F70-F71+F72 -> 7310247.706 | I73: =133000000-I70-I71+I72 -> 56800082.67 | L73: =133000000-L70-L71+L72 -> 150647413.2
A74: June 1st Cut | B74: 1/2
A75: Paycut | B75: 0/2
A76: Restructure | B76: 1/3
A78: Practice Squad
A79: Rajion Neal | B79: RB | C79: 420000 | E79: 420000 | F79: 510000 | H79: 510000 | I79: 600000 | K79: 600000 | M79: RFA
A80: Jacob Pedersen | B80: TE | C80: 420000 | E80: 420000 | F80: 510000 | H80: 510000 | I80: 600000 | K80: 600000 | M80: RFA
A81: Ryan Grant | B81: WR | C81: 420000 | E81: 420000 | F81: 528097.5518 | G81: 16469.62703 | H81: 544567.1788 | I81: 629907.9374 | J81: 16469.62703 | K81: 646377.5644 | L81: 736453.6898 | M81: 16469.62703 | N81: 752923.3168 | P81: UFA
A82: Uzoma Nwachukwu | B82: WR | C82: 420000 | E82: =D82+C82 -> 420000 | F82: 510000 | H82: =G82+F82 -> 510000 | J82: ERFA
A83: Ryan Groy | B83: G | C83: 420000 | E83: 420000 | F83: 510000 | H83: 510000 | I83: 600000 | K83: 600000 | M83: RFA
A84: Alex Kupper | B84: G | C84: 495000 | E84: =D84+C84 -> 495000 | F84: 585000 | H84: =G84+F84 -> 585000 | J84: ERFA
A85: David Quessenberry | B85: LT | C85: 420000 | E85: =D85+C85 -> 420000 | F85: 585000 | G85: 28363 | H85: =G85+F85 -> 613363 | I85: 675000 | J85: 28363 | K85: =J85+I85 -> 703363 | M85: UFA
A86: Isaiah Lewis | B86: S | C86: 420000 | E86: 420000 | F86: 524862.4077 | G86: 56908.92866 | H86: 581771.3363 | I86: 633628.3531 | J86: 56908.92866 | K86: 690537.2818 | L86: 747453.1798 | M86: 56908.92866 | N86: 804362.1085 | P86: UFA

Sheet IND
C1: 2014 | F1: 2015 | I1: 2016 | L1: 2017 | O1: 2018 | R1: 2019 | U1: 2020
A2: Player | B2: Pos. | C2: Base Salary | D2: Signing Bonus | E2: Cap Figure | F2: Base Salary | G2: Signing Bonus | H2: Cap Figure | I2: Base Salary | J2: Signing Bonus | K2: Cap Figure | L2: Base Salary | M2: Signing Bonus | N2: Cap Figure | O2: Base Salary | P2: Signing Bonus | Q2: Cap Figure | R2: Base Salary | S2: Signing Bonus | T2: Cap Figure | U2: Base Salary | V2: Signing Bonus | W2: Cap Figure
A3: OFFENSE
A4: Chandler Harnish | B4: QB | C4: 495000 | E4: =D4+C4 -> 495000 | F4: 585000 | H4: =G4+F4 -> 585000 | J4: RFA
A5: Andrew Luck | B5: QB | C5: 2399818 | D5: 3629636 | E5: =D5+C5 -> 6029454 | F5: 3404727 | G5: 3629636 | H5: =G5+F5 -> 7034363 | J5: TOP10 Option
A7: Vick Ballard | B7: RB | C7: 495000 | D7: 36140 | E7: =D7+C7 -> 531140 | F7: 660000 | G7: 36140 | H7: =G7+F7 -> 696140 | J7: UFA
A8: Jerick McKinnon | B8: RB | C8: 420000 | D8: 20961.3435 | E8: 440961.3435 | F8: 527738.2145 | G8: 20961.3435 | H8: 548699.558 | I8: 630321.1753 | J8: 20961.3435 | K8: 651282.5188 | L8: 737675.4367 | M8: 20961.3435 | N8: 758636.7801 | P8: UFA
A9: Trent Richardson | B9: RB | C9: 2252708 | E9: =D9+C9 -> 2252708 | F9: 3184062 | H9: =G9+F9 -> 3184062 | J9: TOP10 Option
A10: Stanley Havili | B10: FB | C10: 570000 | E10: =D10+C10 -> 570000 | G10: RFA
A12: Dwayne Allen | B12: TE | C12: 660000 | D12: 175826 | E12: =D12+C12 -> 835826 | F12: 800000 | G12: 175826 | H12: =G12+F12 -> 975826 | J12: UFA
A13: Owen Daniels | B13: TE | C13: 1500000 | D13: 500000 | E13: =D13+C13 -> 2000000 | F13: 1500000 | G13: 500000 | H13: =G13+F13 -> 2000000 | J13: UFA
A14: Crockott Gilmore | B14: TE | C14: 420000 | D14: 49886.29248 | E14: 469886.2925 | F14: 525424.2186 | G14: 49886.29248 | H14: 575310.511 | I14: 632982.2706 | J14: 49886.29248 | K14: 682868.5631 | L14: 745543.0228 | M14: 49886.29248 | N14: 795429.3153 | P14: UFA
A16: T.Y. Hilton | B16: WR | C16: 575000 | D16: 131850 | E16: =D16+C16 -> 706850 | F16: 665000 | G16: 131850 | H16: =G16+F16 -> 796850 | J16: UFA
A17: Cody Latimer | B17: WR | C17: 420000 | D17: 143809.5224 | E17: 563809.5224 | F17: 529184.9415 | G17: 143809.5224 | H17: 672994.4638 | I17: 655005.6456 | J17: 143809.5224 | K17: 798815.1679 | L17: 786678.4754 | M17: 143809.5224 | N17: 930487.9978 | P17: UFA
A18: Da' Rick Rogers | B18: WR | C18: 495000 | E18: 495000 | G18: UFA
A19: Reggie Wayne | B19: WR | C19: 4000000 | D19: 2166668 | E19: 6166668 | G19: UFA
A20: Griff Whalen | B20: WR | C20: 495000 | E20: 495000 | G20: UFA
A22: Johnathan Goodwin | B22: C | C22: 1000000 | E22: 1000000 | F22: 1000000 | H22: 1000000 | J22: UFA
A23: Khaled Holmes | B23: C | C23: 495000 | D23: 105027 | E23: =D23+C23 -> 600027 | F23: 585000 | G23: 105027 | H23: =G23+F23 -> 690027 | I23: 675000 | J23: 105027 | K23: =J23+I23 -> 780027 | M23: UFA
A24: Kevin Boothe | B24: G | C24: 2000000 | D24: 500000 | E24: 2500000 | F24: 2500000 | G24: 500000 | H24: =G24+F24 -> 3000000 | I24: 3000000 | J24: 500000 | K24: =J24+I24 -> 3500000 | M24: UFA
A25: Mike McGlynn | B25: G | C25: 1000000 | D25: 250000 | E25: 1250000 | F25: 1000000 | G25: 250000 | H25: 1250000 | J25: UFA
A26: Donald Thomas | B26: G | C26: 3500000 | D26: 250000 | E26: 3750000 | F26: 3500000 | G26: 250000 | H26: 3750000 | I26: 3500000 | J26: 250000 | K26: =J26+I26 -> 3750000 | M26: UFA
A27: Hugh Thornton | B27: G | C27: 505000 | D27: 136345 | E27: 641345 | F27: 595000 | G27: 136345 | H27: 731345 | I27: 685000 | J27: 136345 | K27: =J27+I27 -> 821345 | M27: UFA
A28: Anthony Castonzo | B28: LT | C28: 1466058 | D28: 1079745 | E28: 2545803 | F28: 6850648 | H28: 6850648 | J28: UFA
A29: Xavier Nixon | B29: LT | C29: 495000 | E29: 495000 | G29: ERFA
A30: Justin Anderson | B30: RT | C30: 495000 | E30: 495000 | G30: UFA
A31: Gosder Cherilus | B31: RT | C31: 1900000 | D31: 2000000 | E31: 3900000 | F31: 4900000 | G31: 2000000 | H31: =G31+F31 -> 6900000 | I31: 7900000 | J31: 2000000 | K31: =J31+I31 -> 9900000 | L31: 7900000 | M31: 2000000 | N31: =M31+L31 -> 9900000 | P31: UFA
A32: DEFENSE
A33: Josh Chapman | B33: DT | C33: 495000 | D33: 53878 | E33: =D33+C33 -> 548878 | F33: 660000 | G33: 53878 | H33: =G33+F33 -> 713878 | J33: UFA
A34: Terrence Cody | B34: DT | C34: 800000 | E34: =D34+C34 -> 800000 | F34: 800000 | H34: =G34+F34 -> 800000 | I34: 1000000 | K34: =J34+I34 -> 1000000 | L34: 1200000 | N34: =M34+L34 -> 1200000 | O34: 1200000 | Q34: =P34+O34 -> 1200000 | S34: UFA
A35: Earl Mitchell | B35: DT | C35: 3800000 | D35: 200000 | E35: =D35+C35 -> 4000000 | F35: 3800000 | G35: 200000 | H35: =G35+F35 -> 4000000 | I35: 3800000 | J35: 200000 | K35: =J35+I35 -> 4000000 | L35: 3800000 | M35: 200000 | N35: =M35+L35 -> 4000000 | O35: 3800000 | P35: 200000 | Q35: =P35+O35 -> 4000000 | S35: UFA
A37: Scott Crichton | B37: DE | C37: 420000 | D37: 232674.1098 | E37: 652674.1098 | F37: 607617.9836 | G37: 232674.1098 | H37: 840292.0934 | I37: 764716.0706 | J37: 232674.1098 | K37: 997390.1804 | L37: 929121.0454 | M37: 232674.1098 | N37: 1161795.155 | P37: UFA
A38: Ricky Jean Francois | B38: DE | C38: 4500000 | D38: 625000 | E38: =D38+C38 -> 5125000 | F38: 5500000 | G38: 625000 | H38: =G38+F38 -> 6125000 | I38: 5500000 | J38: 625000 | K38: =J38+I38 -> 6125000 | M38: UFA
A39: Taylor Hart | B39: DE | C39: 420000 | D39: 13054.21748 | E39: 433054.2175 | F39: 528370.7846 | G39: 13054.21748 | H39: 541425.002 | I39: 629593.7197 | J39: 13054.21748 | K39: 642647.9372 | L39: 735524.6984 | M39: 13054.21748 | N39: 748578.9159 | P39: UFA
A40: Cory Redding | B40: DE | C40: 3500000 | D40: 891667 | E40: =D40+C40 -> 4391667 | G40: UFA
A42: Pat Angerer | B42: ILB | C42: 1000000 | D42: 500000 | E42: =D42+C42 -> 1500000 | F42: 1000000 | G42: 500000 | H42: =G42+F42 -> 1500000 | J42: UFA
A43: Kavell Conner | B43: ILB | C43: 2182244 | E43: 2182244 | G43: UFA
A44: Jerrell Freeman | B44: ILB | C44: 570000 | D44: 6667 | E44: 576667 | G44: RFA
A45: D. J. Williams | B45: ILB | C45: 1200000 | D45: 300000 | E45: 1500000 | G45: UFA
A46: Daniel Adongo | B46: OLB | C46: 495000 | E46: 495000 | G46: UFA
A47: Kevin Burnett | B47: OLB | C47: 3500000 | E47: 3500000 | G47: UFA
A48: Robert Mathis | B48: OLB | C48: 5000000 | D48: 3750000 | E48: 8750000 | F48: 7000000 | G48: 3750000 | H48: =G48+F48 -> 10750000 | J48: UFA
A49: O' Brien Schofield | B49: OLB | C49: 730000 | E49: 730000 | F49: 730000 | H49: =G49+F49 -> 730000 | J49: UFA
A50: Matt Shaughnessy | B50: OLB | C50: 1000000 | D50: 200000 | E50: 1200000 | F50: 1000000 | G50: 200000 | I50: 1000000 | J50: 200000 | M50: UFA
A51: Bjoern Werner | B51: OLB | C51: 763927 | D51: 1030708 | E51: 1794635 | F51: 1122854 | G51: 1030708 | H51: =G51+F51 -> 2153562 | I51: 1481782 | J51: 1030709 | K51: =J51+I51 -> 2512491 | M51: 3-25 Option
A53: Antoine Bethea | B53: S | C53: 4000000 | D53: 2000000 | E53: =D53+C53 -> 6000000 | F53: 4000000 | G53: 2000000 | H53: =G53+F53 -> 6000000 | I53: 4000000 | J53: 2000000 | K53: =J53+I53 -> 6000000 | M53: UFA
A54: Delano Howell | B54: S | C54: 570000 | E54: =D54+C54 -> 570000 | G54: RFA
A55: LaRon Landry | B55: S | C55: 3000000 | D55: 1750000 | E55: =D55+C55 -> 4750000 | F55: 4000000 | G55: 1750000 | H55: =G55+F55 -> 5750000 | I55: 6000000 | J55: 1750000 | K55: =J55+I55 -> 7750000 | M55: UFA
A56: Brandon Meriweather | B56: S | C56: 1000000 | E56: =D56+C56 -> 1000000 | G56: UFA
A58: Darius Butler | B58: CB | C58: 2500000 | D58: 500000 | E58: =D58+C58 -> 3000000 | G58: UFA
A59: Chris Davis | B59: CB | C59: 420000 | D59: 38512.60569 | E59: 458512.6057 | F59: 526334.1135 | G59: 38512.60569 | H59: 564846.7192 | I59: 631935.8914 | J59: 38512.60569 | K59: 670448.4971 | L59: 742449.38 | M59: 38512.60569 | N59: 780961.9857 | P59: UFA
A60: Vontae Davis | B60: CB | C60: 7000000 | D60: 3600000 | E60: =D60+C60 -> 10600000 | F60: 6000000 | G60: 3600000 | H60: =G60+F60 -> 9600000 | I60: 3000000 | J60: 3600000 | K60: =J60+I60 -> 6600000 | L60: 3000000 | M60: 3600000 | N60: =M60+L60 -> 6600000 | O60: 3000000 | P60: 3600000 | Q60: =P60+O60 -> 6600000 | S60: UFA
A61: Drayton Florence | B61: CB | C61: 1000000 | E61: =D61+C61 -> 1000000 | G61: UFA
A62: Greg Toler | B62: CB | C62: 4500000 | D62: 333333 | E62: =D62+C62 -> 4833333 | F62: 4750000 | G62: 333334 | H62: =G62+F62 -> 5083334 | J62: UFA
A64: Adam Vinatieri | B64: K | C64: 1000000 | D64: 1000000 | E64: =D64+C64 -> 2000000 | F64: 1000000 | G64: 1000000 | H64: =G64+F64 -> 2000000 | J64: UFA
A65: Matt Overton | B65: LS | C65: 570000 | E65: =D65+C65 -> 570000 | G65: RFA
A66: Marquette King | B66: P | C66: 570000 | E66: =D66+C66 -> 570000 | G66: ERFA
A69: Total Players | C69: =COUNTA(C3:C67) -> 53 | F69: =COUNTA(F3:F67) -> 35 | I69: =COUNTA(I3:I67) -> 19 | L69: =COUNTA(L3:L67) -> 10
A70: Top 51 Salary | C70: =SUM(LARGE(ISNUMBER(E4:E67)*E4:E67,ROW(INDIRECT("1:51")))) -> 111887127.5 | F70: =SUM(LARGE(ISNUMBER(H4:H67)*H4:H67,ROW(INDIRECT("1:51")))) -> 98393603.35 | I70: =SUM(LARGE(ISNUMBER(K4:K67)*K4:K67,ROW(INDIRECT("1:51")))) -> 57182315.86 | L70: =SUM(LARGE(ISNUMBER(N4:N67)*N4:N67,ROW(INDIRECT("1:51")))) -> 26875890.15
A71: Dead Money | C71: 5849981 | F71: 1120656
A72: Cap Rollover | C72: 607906 | F72: =C73 -> 15870797.47 | I72: =F73 -> 49356538.12 | L72: =I73 -> 125174222.3
A73: Cap Space | C73: =133000000-C70-C71+C72 -> 15870797.47 | F73: =133000000-F70-F71+F72 -> 49356538.12 | I73: =133000000-I70-I71+I72 -> 125174222.3 | L73: =133000000-L70-L71+L72 -> 231298332.1
A74: June 1st Cut | B74: 0/2
A75: Paycut | B75: 0/2
A76: Restructure | B76: 0/3
A78: Practice Squad
A79: Wesley Saunders | B79: WR | C79: 645000 | E79: =D79+C79 -> 645000 | G79: UFA
A80: Lance Louis | B80: G | C80: 730000 | E80: 730000 | F80: 745000 | H80: =G80+F80 -> 745000 | J80: UFA
A81: Andrew Norwell | B81: G | C81: 420000 | E81: 420000 | F81: 510000 | H81: 510000 | I81: 600000 | K81: 600000 | M81: RFA
A82: Jack Breckner | B82: OT | C82: 420000 | E82: 420000 | F82: 510000 | H82: =G82+F82 -> 510000 | J82: ERFA
A83: Jake McDonough | B83: DT | C83: 420000 | E83: 420000 | F83: 510000 | H83: =G83+F83 -> 510000 | J83: UFA
A84: Aaron Morgan | B84: DE | C84: 570000 | E84: 570000 | F84: 660000 | H84: =G84+F84 -> 660000 | J84: UFA
A85: Henoc Muamba | B85: OLB | C85: 420000 | E85: 420000 | F85: 510000 | H85: =G85+F85 -> 510000 | I85: 600000 | K85: =J85+I85 -> 600000 | M85: UFA
A86: Brian Jackson | B86: S | C86: 420000 | E86: 420000 | F86: 510000 | H86: 510000 | I86: 600000 | K86: 600000 | M86: RFA

Sheet JAX
C1: 2014 | F1: 2015 | I1: 2016 | L1: 2017 | O1: 2018 | R1: 2019 | U1: 2020
A2: Player | B2: Pos. | C2: Base Salary | D2: Signing Bonus | E2: Cap Figure | F2: Base Salary | G2: Signing Bonus | H2: Cap Figure | I2: Base Salary | J2: Signing Bonus | K2: Cap Figure | L2: Base Salary | M2: Signing Bonus | N2: Cap Figure | O2: Base Salary | P2: Signing Bonus | Q2: Cap Figure | R2: Base Salary | S2: Signing Bonus | T2: Cap Figure | U2: Base Salary | V2: Signing Bonus | W2: Cap Figure
A3: OFFENSE
A4: Chad Henne | B4: QB | C4: 900000 | E4: =D4+C4 -> 900000 | G4: UFA
A5: Dan Orlovsky | B5: QB | C5: 955000 | E5: =D5+C5 -> 955000 | G5: UFA
A6: Ricky Stanzi | B6: QB | C6: 645000 | E6: =D6+C6 -> 645000 | G6: UFA
A8: LeGarrette Blount | B8: RB | C8: 2500000 | D8: 1000000 | E8: =D8+C8 -> 3500000 | F8: 2000000 | G8: 1000000 | H8: =G8+F8 -> 3000000 | I8: 2000000 | J8: 1000000 | K8: =J8+I8 -> 3000000 | L8: 1500000 | M8: 1000000 | N8: =M8+L8 -> 2500000 | P8: UFA
A9: Bryce Brown | B9: RB | C9: 570000 | E9: =D9+C9 -> 570000 | F9: 660000 | H9: =G9+F9 -> 660000 | J9: UFA
A10: Denard Robinson | B10: RB | C10: 495000 | D10: 53403 | E10: =D10+C10 -> 548403 | F10: 585000 | G10: 53403 | H10: =G10+F10 -> 638403 | I10: 675000 | J10: 53403 | K10: =J10+I10 -> 728403 | M10: UFA
A11: James White | B11: RB | C11: 420000 | D11: 29321.37093 | E11: 449321.3709 | F11: 527069.4123 | G11: 29321.37093 | H11: 556390.7832 | I11: 631090.2978 | J11: 29321.37093 | K11: 660411.6688 | L11: 739949.3641 | M11: 29321.37093 | N11: 769270.735 | P11: UFA
A12: Erik Lorig | B12: FB | C12: 730000 | E12: =D12+C12 -> 730000 | F12: 730000 | H12: =G12+F12 -> 730000 | I12: 856000 | K12: =J12+I12 -> 856000 | M12: UFA
A14: Clay Harbor | B14: TE | C14: 850000 | E14: =D14+C14 -> 850000 | F14: 850000 | H14: =G14+F14 -> 850000 | J14: UFA
A15: Brandon Myers | B15: TE | C15: 900000 | E15: =D15+C15 -> 900000 | F15: 900000 | H15: =G15+F15 -> 900000 | I15: 900000 | K15: =J15+I15 -> 900000 | M15: UFA
A16: Troy Niklas | B16: TE | C16: 420000 | D16: 967523.1858 | E16: 1387523.186 | F16: 802352.9887 | G16: 967523.1858 | H16: 1769876.175 | I16: 1133242.882 | J16: 967523.1858 | K16: 2100766.068 | L16: 1479523.003 | M16: 967523.1858 | N16: 2447046.189 | P16: TOP3-25 Option
A18: Jason Avant | B18: WR | C18: 1000000 | D18: 250000 | E18: =D18+C18 -> 1250000 | F18: 1000000 | G18: 250000 | H18: =G18+F18 -> 1250000 | I18: 1000000 | J18: 250000 | K18: =J18+I18 -> 1250000 | M18: UFA
A19: Justin Blackmon | B19: WR | C19: 2072910 | D19: 2975818 | E19: =D19+C19 -> 5048728 | F19: 2914365 | G19: 2975818 | H19: =G19+F19 -> 5890183 | J19: TOP10 Option
A20: Ace Sanders | B20: WR | C20: 495000 | D20: 120362 | E20: 615362 | F20: 585000 | G20: 120362 | H20: =G20+F20 -> 705362 | I20: 675000 | J20: 120362 | K20: =J20+I20 -> 795362 | M20: UFA
A21: Cecil Shorts | B21: WR | C21: 1389000 | D21: 110845 | E21: 1499845 | G21: UFA
A22: Kerry Taylor | B22: WR | C22: 495000 | E22: 495000 | G22: ERFA
A24: Mike Brewster | B24: C | C24: 570000 | D24: 3334 | E24: =D24+C24 -> 573334 | G24: RFA
A25: Ted Larsen | B25: C | C25: 730000 | E25: 730000 | F25: 730000 | H25: 730000 | I25: 856000 | K25: 856000 | M25: UFA
A26: Zane Beadles | B26: G | C26: 4000000 | D26: 1000000 | E26: =D26+C26 -> 5000000 | F26: 2500000 | G26: 1000000 | H26: =G26+F26 -> 3500000 | I26: 1500000 | J26: 1000000 | K26: =J26+I26 -> 2500000 | L26: 1000000 | M26: 1000000 | N26: =M26+L26 -> 2000000 | O26: 1000000 | P26: 1000000 | Q26: =P26+O26 -> 2000000 | S26: UFA
A27: Jahri Evans | B27: G | C27: 0 | D27: 4000000 | E27: 4000000 | F27: 2000000 | G27: 4000000 | H27: 6000000 | I27: 3000000 | J27: 4000000 | K27: 7000000 | L27: 4000000 | M27: 4000000 | N27: 8000000 | O27: 6000000 | P27: 4000000 | Q27: 10000000 | R27: 13000000 | S27: 4000000 | T27: 17000000 | U27: 14000000 | V27: 4000000 | W27: 18000000 | Y27: UFA
A28: Brandon Linder | B28: G | C28: 420000 | D28: 47450.21565 | E28: 467450.2157 | F28: 525619.1047 | G28: 47450.21565 | H28: 573069.3203 | I28: 632758.1515 | J28: 47450.21565 | K28: 680208.3672 | L28: 744880.4099 | M28: 47450.21565 | N28: 792330.6255 | P28: UFA
A29: Jacques McClendon | B29: G | C29: 645000 | E29: 645000 | G29: ERFA
A30: Cameron Bradfield | B30: LT | C30: 1000000 | E30: =D30+C30 -> 1000000 | F30: 1000000 | H30: =G30+F30 -> 1000000 | I30: 1000000 | K30: =J30+I30 -> 1000000 | M30: UFA
A31: Luke Joeckel | B31: RT | C31: 1368709 | D31: 3449836 | E31: =D31+C31 -> 4818545 | F31: 2332418 | G31: 3449836 | H31: =G31+F31 -> 5782254 | I31: 3296127 | J31: 3449836 | K31: =J31+I31 -> 6745963 | M31: TOP10 Option
A32: Derek Newton | B32: RT | C32: 1389000 | E32: =D32+C32 -> 1389000 | G32: UFA
A33: Austin Pasztor | B33: RT | C33: 2500000 | D33: 350000 | E33: 2850000 | F33: 1000000 | G33: 350000 | H33: =G33+F33 -> 1350000 | I33: 1000000 | J33: 350000 | K33: =J33+I33 -> 1350000 | M33: UFA
A34: DEFENSE
A35: Abry Jones | B35: DT | C35: 495000 | D35: 833 | E35: =D35+C35 -> 495833 | F35: 585000 | G35: 834 | H35: =G35+F35 -> 585834 | J35: RFA
A36: Sen' Derrick Marks | B36: DT | C36: 4025000 | D36: 200000 | E36: =D36+C36 -> 4225000 | F36: 4025000 | G36: 200000 | H36: =G36+F36 -> 4225000 | I36: 4475000 | J36: 200000 | K36: =J36+I36 -> 4675000 | L36: 4475000 | M36: 200000 | N36: =M36+L36 -> 4675000 | P36: UFA
A37: Roy Miller | B37: DT | C37: 2650000 | D37: 250000 | E37: =D37+C37 -> 2900000 | G37: UFA
A38: Louis Nix | B38: DT | C38: 420000 | D38: 1211596.558 | E38: 1631596.558 | F38: 867028.3882 | G38: 1211596.558 | H38: 2078624.946 | I38: 1255640.878 | J38: 1211596.558 | K38: 2467237.436 | L38: 1662328.368 | M38: 1211596.558 | N38: 2873924.926 | P38: TOP3-25 Option
A40: Andre Branch | B40: DE | C40: 852722 | D40: 535442 | E40: =D40+C40 -> 1388164 | F40: 1084083 | G40: 535442 | H40: =G40+F40 -> 1619525 | J40: UFA
A41: Dee Ford | B41: DE | C41: 420000 | D41: 1080957.409 | E41: 1500957.409 | F41: 832413.0579 | G41: 1080957.409 | H41: 1913370.467 | I41: 1190130.145 | J41: 1080957.409 | K41: 2271087.554 | L41: 1564485.236 | M41: 1080957.409 | N41: 2645442.645 | P41: TOP3-25 Option
A42: Israel Idonije | B42: DE | C42: 955000 | E42: 955000 | F42: 955000 | H42: 955000 | J42: UFA
A44: jasper Brinkley | B44: ILB | C44: 730000 | E44: =D44+C44 -> 730000 | G44: UFA
A45: Paul Posluszny | B45: ILB | C45: 7500000 | D45: 2000000 | E45: =D45+C45 -> 9500000 | F45: 7500000 | G45: 2000000 | H45: =G45+F45 -> 9500000 | I45: 7500000 | K45: =J45+I45 -> 7500000 | M45: UFA
A46: LaRoy Reynolds | B46: ILB | C46: 495000 | D46: 833 | E46: 495833 | F46: 585000 | G46: 834 | H46: =G46+F46 -> 585834 | J46: RFA
A47: Daryl Smith | B47: ILB | C47: 3000000 | D47: 2200000 | E47: =D47+C47 -> 5200000 | F47: 4000000 | G47: 2200000 | H47: =G47+F47 -> 6200000 | I47: 5000000 | J47: 2200000 | K47: =J47+I47 -> 7200000 | M47: UFA
A48: Khairi Fortt | B48: OLB | C48: 420000 | D48: 51804.46321 | E48: 471804.4632 | F48: 525270.7649 | G48: 51804.46321 | H48: 577075.2281 | I48: 633158.7423 | J48: 51804.46321 | K48: 684963.2055 | L48: 746064.7652 | M48: 51804.46321 | N48: 797869.2284 | P48: UFA
A49: Geno Hayes | B49: OLB | C49: 1000000 | D49: 62500 | E49: 1062500 | G49: UFA
A50: Brian Orakpo | B50: OLB | C50: 20000000 | D50: 4000000 | E50: =D50+C50 -> 24000000 | F50: 15000000 | G50: 4000000 | H50: =G50+F50 -> 19000000 | I50: 5000000 | J50: 4000000 | K50: =J50+I50 -> 9000000 | L50: 5000000 | M50: 4000000 | N50: =M50+L50 -> 9000000 | O50: 5000000 | P50: 4000000 | Q50: =P50+O50 -> 9000000 | R50: 10000000 | S50: 0 | T50: =S50+R50 -> 10000000 | U50: 10000000 | V50: 0 | W50: =V50+U50 -> 10000000 | Y50: UFA
A52: John Cyprien | B52: S | C52: 653596 | D52: 589382 | E52: =D52+C52 -> 1242978 | F52: 902192 | G52: 589382 | H52: =G52+F52 -> 1491574 | I52: 1150788 | J52: 589382 | K52: =J52+I52 -> 1740170 | M52: UFA
A53: Josh Evans | B53: S | C53: 495000 | D53: 32205 | E53: 527205 | F53: 585000 | G53: 32205 | H53: =G53+F53 -> 617205 | I53: 675000 | J53: 32205 | K53: =J53+I53 -> 707205 | M53: UFA
A54: Winston Guy | B54: S | C54: 570000 | E54: 570000 | F54: 660000 | H54: =G54+F54 -> 660000 | J54: UFA
A55: Chris Prosinski | B55: S | C55: 735018 | D55: 105027 | E55: 840045 | G55: UFA
A57: Alan Ball | B57: CB | C57: 1255000 | D57: 50000 | E57: =D57+C57 -> 1305000 | G57: UFA
A58: Jamell Fleming | B58: CB | C58: 585000 | E58: 585000 | F58: 675000 | H58: =G58+F58 -> 675000 | J58: UFA
A59: Dwayne Gratz | B59: CB | C59: 533000 | D59: 174394 | E59: 707394 | F59: 675000 | G59: 174394 | H59: =G59+F59 -> 849394 | I59: 790076 | J59: 174394 | K59: =J59+I59 -> 964470 | M59: UFA
A60: Jeremy Harris | B60: CB | C60: 420000 | D60: 17225 | E60: 437225 | F60: 510000 | G60: 17225 | H60: =G60+F60 -> 527225 | I60: 675000 | J60: 17225 | K60: =J60+I60 -> 692225 | M60: UFA
A61: Mike Harris | B61: CB | C61: 570000 | D61: 28947 | E61: 598947 | F61: 660000 | G61: 28947 | H61: =G61+F61 -> 688947 | J61: UFA
A62: Demetrius McCray | B62: CB | C62: 495000 | D62: 16741 | E62: 511741 | F62: 585000 | G62: 16741 | H62: =G62+F62 -> 601741 | I62: 675000 | J62: 16741 | K62: =J62+I62 -> 691741 | M62: UFA
A64: Josh Scobee | B64: K | C64: 3250000 | D64: 937500 | E64: =D64+C64 -> 4187500 | F64: 3450000 | G64: 937500 | H64: =G64+F64 -> 4387500 | J64: UFA
A65: Carson Tinker | B65: LS | C65: 495000 | D65: 833 | E65: =D65+C65 -> 495833 | F65: 585000 | G65: 834 | H65: =G65+F65 -> 585834 | J65: RFA
A66: Bryan Anger | B66: P | C66: 604898 | D66: 165625 | E66: =D66+C66 -> 770523 | F66: 709855 | G66: 165625 | H66: =G66+F66 -> 875480 | J66: UFA
A69: Total Players | C69: =COUNTA(C3:C67) -> 53 | F69: =COUNTA(F3:F67) -> 40 | I69: =COUNTA(I3:I67) -> 27 | L69: =COUNTA(L3:L67) -> 11
A70: Top 51 Salary | C70: =SUM(LARGE(ISNUMBER(E4:E66)*E4:E66,ROW(INDIRECT("1:51")))) -> 108267044.8 | F70: =SUM(LARGE(ISNUMBER(H4:H66)*H4:H66,ROW(INDIRECT("1:51")))) -> 95085701.92 | I70: =SUM(LARGE(ISNUMBER(K4:K66)*K4:K66,ROW(INDIRECT("1:51")))) -> 69017213.3 | L70: =SUM(LARGE(ISNUMBER(N4:N66)*N4:N66,ROW(INDIRECT("1:51")))) -> 36500884.35
A71: Dead Money | C71: 13738789
A72: Cap Rollover | C72: 19645313 | F72: =C73 -> 30639479.17 | I72: =F73 -> 68553777.25 | L72: 132536563.9
A73: Cap Space | C73: =133000000-C70-C71+C72 -> 30639479.17 | F73: =133000000-F70-F71+F72 -> 68553777.25 | I73: =133000000-I70-I71+I72 -> 132536563.9 | L73: =133000000-L70-L71+L72 -> 229035679.6
A74: June 1st Cut | B74: 0/2
A75: Paycut | B75: 0/2
A76: Restructure | B76: 0/3
A78: Practice Squad
A79: Chandler Jones | B79: WR | C79: 420000 | E79: 420000 | F79: 510000 | H79: 510000 | I79: 600000 | K79: 600000 | M79: RFA
A80: Corey Linsley | B80: C | C80: 420000 | E80: 420000 | F80: 528153.9247 | G80: 15764.9657 | H80: 543918.8904 | I80: 629843.1086 | J80: 15764.9657 | K80: 645608.0743 | L80: 736262.0219 | M80: 15764.9657 | N80: 752026.9876 | P80: UFA
A81: Matt Paradis | B81: C | C81: 420000 | E81: 420000 | F81: 510000 | H81: 510000 | I81: 600000 | K81: 600000 | M81: RFA
A82: Drew Nowak | B82: G | C82: 420000 | E82: =D82+C82 -> 420000 | G82: ERFA
A83: Cornelius Lucas | B83: OT | C83: 420000 | E83: 420000 | F83: 528436.9401 | G83: 12227.27276 | H83: 540664.2129 | I83: 629517.6408 | J83: 12227.27276 | K83: 641744.9136 | L83: 735299.7694 | M83: 12227.27276 | N83: 747527.0422 | P83: UFA
A84: Ronald Powell | B84: OLB | C84: 420000 | E84: 420000 | F84: 510000 | H84: 510000 | I84: 600000 | K84: 600000 | M84: RFA
A85: Kenny Ladler | B85: S | C85: 420000 | E85: 420000 | F85: 525364.5421 | G85: 50632.24776 | H85: 575996.7899 | I85: 633050.8985 | J85: 50632.24776 | K85: 683683.1463 | L85: 745745.9226 | M85: 50632.24776 | N85: 796378.1704 | P85: UFA
A86: Pierre Warren | B86: S | C86: 420000 | E86: 420000 | F86: 510000 | H86: 510000 | I86: 600000 | K86: 600000 | M86: RFA

Sheet KC
C1: 2014 | F1: 2015 | I1: 2016 | L1: 2017 | O1: 2018 | R1: 2019 | U1: 2020
A2: Player | B2: Pos. | C2: Base Salary | D2: Signing Bonus | E2: Cap Figure | F2: Base Salary | G2: Signing Bonus | H2: Cap Figure | I2: Base Salary | J2: Signing Bonus | K2: Cap Figure | L2: Base Salary | M2: Signing Bonus | N2: Cap Figure | O2: Base Salary | P2: Signing Bonus | Q2: Cap Figure | R2: Base Salary | S2: Signing Bonus | T2: Cap Figure | U2: Base Salary | V2: Signing Bonus | W2: Cap Figure
A3: OFFENSE
A4: Tyler Bray | B4: QB | C4: 495000 | D4: 3333 | E4: =D4+C4 -> 498333 | F4: 585000 | G4: 3334 | H4: =G4+F4 -> 588334 | J4: RFA
A5: Chase Daniel | B5: QB | C5: 2400000 | D5: 1000000 | E5: =D5+C5 -> 3400000 | F5: 3800000 | G5: 1000000 | H5: =G5+F5 -> 4800000 | J5: UFA
A6: Alex Smith | B6: QB | C6: 2000000 | D6: 2333333 | E6: =D6+C6 -> 4333333 | F6: 8000000 | G6: 2333333 | H6: =G6+F6 -> 10333333 | I6: 10000000 | J6: 2333333 | K6: =J6+I6 -> 12333333 | M6: UFA
A8: Jamaal Charles | B8: RB | C8: 5233333 | E8: =D8+C8 -> 5233333 | F8: 7333333 | H8: =G8+F8 -> 7333333 | J8: UFA
A9: Knile Davis | B9: RB | C9: 520000 | D9: 126504 | E9: =D9+C9 -> 646504 | F9: 610000 | G9: 126504 | H9: =G9+F9 -> 736504 | I9: 700000 | J9: 126504 | K9: =J9+I9 -> 826504 | M9: UFA
A10: Cyrus Gray | B10: RB | C10: 578500 | D10: 26918 | E10: =D10+C10 -> 605418 | F10: 668500 | G10: 26918 | H10: =G10+F10 -> 695418 | J10: UFA
A11: Anthony Sherman | B11: FB | C11: 645000 | E11: =D11+C11 -> 645000 | G11: UFA
A13: Jared Cook | B13: TE | C13: 6000000 | E13: =D13+C13 -> 6000000 | F13: 7000000 | H13: =G13+F13 -> 7000000 | I13: 7000000 | K13: =J13+I13 -> 7000000 | L13: 7100000 | N13: =M13+L13 -> 7100000 | P13: UFA
A14: Anthony Fasano | B14: TE | C14: 3250000 | D14: 1125000 | E14: =D14+C14 -> 4375000 | F14: 3100000 | G14: 1125000 | H14: =G14+F14 -> 4225000 | I14: 3900000 | J14: 1125000 | K14: =J14+I14 -> 5025000 | M14: UFA
A15: Demetrius Harris | B15: TE | C15: 420000 | E15: =D15+C15 -> 420000 | G15: ERFA
A17: Donnie Avery | B17: WR | C17: 2350000 | D17: 500000 | E17: =D17+C17 -> 2850000 | F17: 3550000 | G17: 500000 | H17: =G17+F17 -> 4050000 | J17: UFA
A18: Dwayne Bowe | B18: WR | C18: 9000000 | D18: 3000000 | E18: =D18+C18 -> 12000000 | F18: 11000000 | G18: 3000000 | H18: =G18+F18 -> 14000000 | I18: 10000000 | J18: 3000000 | K18: =J18+I18 -> 13000000 | L18: 10000000 | M18: 3000000 | N18: =M18+L18 -> 13000000 | P18: UFA
A19: Brandin Cooks | B19: WR | C19: 420000 | D19: 1133212.642 | E19: 1553212.642 | F19: 846260.6947 | G19: 1133212.642 | H19: 1979473.337 | I19: 1216336.145 | J19: 1133212.642 | K19: 2349548.787 | L19: 1603624.406 | M19: 1133212.642 | N19: 2736837.049 | P19: TOP3-25 Option
A20: Junior Hemingway | B20: WR | C20: 495000 | E20: =D20+C20 -> 495000 | G20: RFA
A21: A.J. Jenkins | B21: WR | C21: 1021594 | E21: =D21+C21 -> 1021594 | F21: 1337390 | H21: =G21+F21 -> 1337390 | J21: 3-25 Option
A23: Rodney Hudson | B23: C | C23: 853104 | D23: 262473 | E23: =D23+C23 -> 1115577 | G23: UFA
A24: Eric Kush | B24: C | C24: 503000 | D24: 31279 | E24: =D24+C24 -> 534279 | F24: 593500 | G24: 31279 | H24: =G24+F24 -> 624779 | I24: 683500 | J24: 31279 | K24: =J24+I24 -> 714779 | M24: UFA
A25: Jeff Allen | B25: G | C25: 812166 | D25: 454332 | E25: 1266498 | F25: 1023249 | G25: 454332 | H25: =G25+F25 -> 1477581 | J25: UFA
A26: John Jerry | B26: G | C26: 1500000 | D26: 500000 | E26: =D26+C26 -> 2000000 | F26: 2100000 | G26: 500000 | H26: =G26+F26 -> 2600000 | I26: 2700000 | J26: 500000 | K26: =J26+I26 -> 3200000 | M26: UFA
A27: Brian Waters | B27: G | C27: 955000 | E27: 955000 | G27: UFA
A28: Rokevious Watkins | B28: G | C28: 515000 | D28: 30000 | E28: 545000 | F28: 605000 | G28: 30000 | H28: =G28+F28 -> 635000 | J28: UFA
A29: Donald Stephenson | B29: LT | C29: 595000 | D29: 159375 | E29: 754375 | F29: 685000 | G29: 159375 | H29: =G29+F29 -> 844375 | J29: UFA
A30: R.J. Dill | B30: RT | C30: 420000 | E30: =D30+C30 -> 420000 | G30: ERFA
A31: Eric Fisher | B31: RT | C31: 1413659 | D31: 3629636 | E31: =D31+C31 -> 5043295 | F31: 2422318 | G31: 3629636 | H31: =G31+F31 -> 6051954 | I31: 3430977 | J31: 3629636 | K31: =J31+I31 -> 7060613 | M31: TOP10 Option
A32: Colin Kelly | B32: RT | C32: 420000 | D32: 333 | E32: 420333 | F32: 510000 | G32: 334 | H32: =G32+F32 -> 510334 | J32: RFA
A33: DEFENSE
A34: Chas Alecxih | B34: DT | C34: 420000 | E34: =D34+C34 -> 420000 | G34: ERFA
A35: Risean Broussard | B35: DT | C35: 420000 | E35: =D35+C35 -> 420000 | G35: ERFA
A36: Dontari Poe | B36: DT | C36: 1419092 | D36: 1668182 | E36: =D36+C36 -> 3087274 | F36: 1933640 | G36: 1668182 | H36: =G36+F36 -> 3601822 | J36: 3-25 Option
A38: Allen Bailey | B38: DE | C38: 670000 | D38: 138986 | E38: =D38+C38 -> 808986 | G38: UFA
A39: Mike Catapano | B39: DE | C39: 503000 | D39: 17281 | E39: =D39+C39 -> 520281 | F39: 593500 | G39: 17281 | H39: =G39+F39 -> 610781 | I39: 683500 | J39: 17281 | K39: =J39+I39 -> 700781 | M39: UFA
A40: Mike DeVito | B40: DE | C40: 3500000 | D40: 1400000 | E40: =D40+C40 -> 4900000 | F40: 4000000 | G40: 1400000 | H40: =G40+F40 -> 5400000 | J40: UFA
A41: Jaye Howard | B41: DE | C41: 570000 | E41: =D41+C41 -> 570000 | F41: 660000 | H41: =G41+F41 -> 660000 | J41: UFA
A43: Derrick Johnson | B43: ILB | C43: 4550000 | E43: =D43+C43 -> 4550000 | F43: 5250000 | H43: =G43+F43 -> 5250000 | J43: UFA
A44: James-Michael Johnson | B44: ILB | C44: 570000 | E44: 570000 | F44: 660000 | H44: =G44+F44 -> 660000 | J44: UFA
A45: Nico Johnson | B45: ILB | C45: 503000 | D45: 121500 | E45: 624500 | F45: 593500 | G45: 121500 | H45: =G45+F45 -> 715000 | I45: 683500 | J45: 121500 | K45: =J45+I45 -> 805000 | M45: UFA
A46: Tamba Hali | B46: OLB | C46: 8500000 | D46: 2964706 | E46: =D46+C46 -> 11464706 | F46: 9000000 | G46: 2964706 | H46: =G46+F46 -> 11964706 | J46: UFA
A47: Alonzo Highsmith | B47: OLB | C47: 420000 | E47: =D47+C47 -> 420000 | F47: 510000 | H47: =G47+F47 -> 510000 | J47: UFA
A48: Justin Houston | B48: OLB | C48: 1389000 | D48: 167812 | E48: =D48+C48 -> 1556812 | G48: UFA
A49: Dezman Moses | B49: OLB | C49: 570000 | E49: 570000 | G49: RFA
A50: Ridge Wilson | B50: OLB | C50: 420000 | E50: =D50+C50 -> 420000 | G50: ERFA
A51: Jordan Zumwalt | B51: OLB | C51: 420000 | D51: 144965.753 | E51: 564965.753 | F51: 532523.8373 | G51: 144965.753 | H51: 677489.5904 | I51: 659184.9346 | J51: 144965.753 | K51: 804150.6877 | L51: 791737.2458 | M51: 144965.753 | N51: 936702.9989 | P51: UFA
A53: Husain Abdullah | B53: S | C53: 500000 | D53: 250000 | E53: =D53+C53 -> 750000 | F53: 750000 | G53: 250000 | H53: =G53+F53 -> 1000000 | I53: 1000000 | J53: 250000 | K53: =J53+I53 -> 1250000 | M53: UFA
A54: Eric Berry | B54: S | C54: 8717000 | D54: 2902700 | E54: =D54+C54 -> 11619700 | F54: 5455000 | G54: 2902700 | H54: =G54+F54 -> 8357700 | J54: UFA
A55: Sanders Commings | B55: S | C55: 503000 | D55: 53878 | E55: =D55+C55 -> 556878 | F55: 593500 | G55: 53878 | H55: =G55+F55 -> 647378 | I55: 683500 | J55: 53878 | K55: =J55+I55 -> 737378 | M55: UFA
A56: Jerron McMillian | B56: S | C56: 570000 | E56: =D56+C56 -> 570000 | G56: RFA
A58: Marcus Cooper | B58: CB | C58: 495000 | E58: =D58+C58 -> 495000 | F58: 585000 | H58: =G58+F58 -> 585000 | I58: 675000 | K58: =J58+I58 -> 675000 | M58: UFA
A59: Brandon Flowers | B59: CB | C59: 7500000 | D59: 3000000 | E59: =D59+C59 -> 10500000 | F59: 8500000 | G59: 3000000 | H59: =G59+F59 -> 11500000 | I59: 8750000 | J59: 1000000 | K59: =J59+I59 -> 9750000 | M59: UFA
A60: Terrance Mitchell | B60: CB | C60: 420000 | D60: 108592.9734 | E60: 528592.9734 | F60: 520727.6841 | G60: 108592.9734 | H60: 629320.6575 | I60: 638383.2853 | J60: 108592.9734 | K60: 746976.2586 | L60: 761511.24 | M60: 108592.9734 | N60: 870104.2134 | P60: UFA
A61: Ron Parker | B61: CB | C61: 645000 | E61: =D61+C61 -> 645000 | G61: UFA
A62: Sean Smith | B62: CB | C62: 3500000 | D62: 2250000 | E62: =D62+C62 -> 5750000 | F62: 5500000 | G62: 2250000 | H62: =G62+F62 -> 7750000 | J62: UFA
A64: Ryan Succop | B64: K | C64: 2000000 | D64: 708750 | E64: =D64+C64 -> 2708750 | F64: 2800000 | G64: 708750 | H64: =G64+F64 -> 3508750 | I64: 2950000 | J64: 308750 | K64: =J64+I64 -> 3258750 | M64: UFA
A65: Sean McGrath | B65: LS | C65: 495000 | E65: =D65+C65 -> 495000 | F65: 585000 | H65: =G65+F65 -> 585000 | J65: RFA
A66: Dustin Colquitt | B66: P | C66: 3000000 | D66: 800000 | E66: =D66+C66 -> 3800000 | F66: 3000000 | G66: 800000 | H66: =G66+F66 -> 3800000 | I66: 3650000 | J66: 800000 | K66: =J66+I66 -> 4450000 | L66: 4100000 | M66: 800000 | N66: =M66+L66 -> 4900000 | P66: UFA
A69: Total Players | C69: =COUNTA(C3:C67) -> 53 | F69: =COUNTA(F3:F67) -> 39 | I69: =COUNTA(I3:I67) -> 19 | L69: =COUNTA(L3:L67) -> 6
A70: Top 51 Salary | C70: =SUM(LARGE(ISNUMBER(E4:E67)*E4:E67,ROW(INDIRECT("1:51")))) -> 126177530.4 | F70: =SUM(LARGE(ISNUMBER(H4:H67)*H4:H67,ROW(INDIRECT("1:51")))) -> 138235755.6 | I70: =SUM(LARGE(ISNUMBER(K4:K67)*K4:K67,ROW(INDIRECT("1:51")))) -> 74687813.73 | L70: =SUM(LARGE(ISNUMBER(N4:N67)*N4:N67,ROW(INDIRECT("1:51")))) -> 29543644.26
A71: Dead Money | C71: 3775407 | F71: 351652
A72: Cap Rollover | C72: 2381518 | F72: =C73 -> 5428580.631 | I72: =F73 -> -158826.9535 | L72: 58153359.31
A73: Cap Space | C73: =133000000-C70-C71+C72 -> 5428580.631 | F73: =133000000-F70-F71+F72 -> -158826.9535 | I73: =133000000-I70-I71+I72 -> 58153359.31 | L73: =133000000-L70-L71+L72 -> 161609715.1
A74: June 1st Cut | B74: 0/2
A75: Paycut | B75: 0/2
A76: Restructure | B76: 0/3
A78: Practice Squad
A79: Ryan Hewitt | B79: FB | C79: 420000 | E79: 420000 | F79: 510000 | H79: 510000 | I79: 600000 | K79: 600000 | M79: RFA
A80: Corey Washington | B80: WR | C80: 420000 | E80: 420000 | F80: 510000 | H80: 510000 | I80: 600000 | K80: 600000 | M80: RFA
A81: Weston Dressler | B81: WR | C81: 420000 | E81: =D81+C81 -> 420000 | G81: ERFA
A82: Chris Burnette | B82: G | C82: 420000 | E82: 420000 | F82: 527534.6326 | G82: 23506.11667 | H82: 551040.7493 | I82: 630555.2944 | J82: 23506.11667 | K82: 654061.4111 | L82: 738367.615 | M82: 23506.11667 | N82: 761873.7316 | P82: UFA
A83: James Gayle | B83: DE | C83: 420000 | E83: 420000 | F83: 525902.7382 | G83: 43904.79675 | H83: 569807.535 | I83: 632431.973 | J83: 43904.79675 | K83: 676336.7698 | L83: 743916.0559 | M83: 43904.79675 | N83: 787820.8527 | P83: UFA
A84: Jordan Campbell | B84: OLB | C84: 420000 | E84: =D84+C84 -> 420000 | G84: ERFA
A85: Ty Zimmermann | B85: S | C85: 420000 | E85: 420000 | F85: 527307.3507 | G85: 26347.14065 | H85: 553654.4913 | I85: 630816.6686 | J85: 26347.14065 | K85: 657163.8093 | L85: 739140.3735 | M85: 26347.14065 | N85: 765487.5141 | P85: UFA
A86: Bennett Jackson | B86: CB | C86: 420000 | E86: 420000 | F86: 510000 | H86: 510000 | I86: 600000 | K86: 600000 | M86: RFA

Sheet MIA
C1: 2014 | F1: 2015 | I1: 2016 | L1: 2017 | O1: 2018 | R1: 2019 | U1: 2020
A2: Player | B2: Pos. | C2: Base Salary | D2: Signing Bonus | E2: Cap Figure | F2: Base Salary | G2: Signing Bonus | H2: Cap Figure | I2: Base Salary | J2: Signing Bonus | K2: Cap Figure | L2: Base Salary | M2: Signing Bonus | N2: Cap Figure | O2: Base Salary | P2: Signing Bonus | Q2: Cap Figure | R2: Base Salary | S2: Signing Bonus | T2: Cap Figure | U2: Base Salary | V2: Signing Bonus | W2: Cap Figure
A3: OFFENSE
A4: Christian Ponder | B4: QB | C4: 730000 | E4: 730000 | F4: 770000 | H4: 770000 | I4: 915000 | K4: 915000 | M4: UFA
A5: Tom Savage | B5: QB | C5: 420000 | D5: 115853.2496 | E5: 535853.2496 | F5: 520146.862 | G5: 115853.2496 | H5: 636000.1116 | I5: 639051.2307 | J5: 115853.2496 | K5: 754904.4803 | L5: 763486.0351 | M5: 115853.2496 | N5: 879339.2847 | P5: UFA
A6: Ryan Tannehill | B6: QB | C6: 1541682 | D6: 1913364 | E6: =D6+C6 -> 3455046 | F6: 2117000 | G6: 1913364 | H6: =G6+F6 -> 4030364 | J6: TOP10 Option
A8: Steven Jackson | B8: RB | C8: 2000000 | D8: 2000000 | E8: =D8+C8 -> 4000000 | F8: 2000000 | G8: 2000000 | H8: =G8+F8 -> 4000000 | J8: UFA
A9: Knowshon Moreno | B9: RB | C9: 2000000 | D9: 2000000 | E9: =D9+C9 -> 4000000 | F9: 2000000 | G9: 2000000 | H9: =G9+F9 -> 4000000 | I9: 2000000 | J9: 2000000 | K9: =J9+I9 -> 4000000 | M9: UFA
A10: Marcus Thigpen | B10: RB | C10: 570000 | D10: 2500 | E10: =D10+C10 -> 572500 | G10: RFA
A11: Jay Prosch | B11: FB | C11: 420000 | D11: 13414.40732 | E11: 433414.4073 | F11: 528341.9694 | G11: 13414.40732 | H11: 541756.3767 | I11: 629626.8572 | J11: 13414.40732 | K11: 643041.2645 | L11: 735622.67 | M11: 13414.40732 | N11: 749037.0773 | P11: UFA
A13: Charles Clay | B13: TE | C13: 1389000 | D13: 28000 | E13: =D13+C13 -> 1417000 | G13: UFA
A14: Dion Sims | B14: TE | C14: 495000 | D14: 116888 | E14: =D14+C14 -> 611888 | F14: 585000 | G14: 116888 | H14: =G14+F14 -> 701888 | I14: 675000 | J14: 116888 | K14: =J14+I14 -> 791888 | M14: UFA
A16: Odell Beckham Jr. | B16: WR | C16: 420000 | D16: 586270.7681 | E16: 1006270.768 | F16: 701448.6724 | G16: 586270.7681 | H16: 1287719.44 | I16: 942196.22 | J16: 586270.7681 | K16: 1528466.988 | L16: 1194141.328 | M16: 586270.7681 | N16: 1780412.096 | P16: UFA
A17: Brandon Gibson | B17: WR | C17: 2735000 | D17: 1000000 | E17: =D17+C17 -> 3735000 | F17: 3260000 | G17: 1000000 | H17: =G17+F17 -> 4260000 | J17: UFA
A18: Brian Hartline | B18: WR | C18: 4810000 | D18: 1400000 | E18: =D18+C18 -> 6210000 | F18: 5950000 | G18: 1400000 | H18: =G18+F18 -> 7350000 | I18: 6150000 | J18: 1400000 | K18: =J18+I18 -> 7550000 | L18: 6150000 | M18: 1400000 | N18: =M18+L18 -> 7550000 | P18: UFA
A19: Santonio Holmes | B19: WR | C19: 955000 | E19: 955000 | G19: UFA
A20: Steve Smith | B20: WR | C20: 0 | D20: 6750000 | E20: =D20+C20 -> 6750000 | G20: UFA
A22: Sam Brenner | B22: C | C22: 495000 | E22: =D22+C22 -> 495000 | G22: ERFA
A23: Mike Pouncey | B23: C | C23: 1637685 | D23: 1308581 | E23: =D23+C23 -> 2946266 | G23: 3-25 Option
A24: Brandon Fusco | B24: G | C24: 1389000 | E24: =D24+C24 -> 1389000 | G24: UFA
A25: Richie Incognito | B25: G | C25: 855000 | E25: =D25+C25 -> 855000 | F25: 955000 | H25: =G25+F25 -> 955000 | I25: 1055000 | K25: =J25+I25 -> 1055000 | M25: UFA
A26: Logan Mankins | B26: G | C26: 6500000 | E26: =D26+C26 -> 6500000 | F26: 7000000 | H26: 7000000 | I26: 7000000 | K26: 7000000 | M26: UFA
A27: Dallas Thomas | B27: G | C27: 520000 | D27: 151594 | E27: 671594 | F27: 610000 | G27: 151594 | H27: 761594 | I27: 705000 | J27: 151594 | K27: 856594 | M27: UFA
A28: Jake Long | B28: LT | C28: 8000000 | E28: 8000000 | F28: 9250000 | H28: 9250000 | I28: 8750000 | K28: 8750000 | M28: UFA
A29: Eugene Monroe | B29: LT | C29: 0 | D29: 3250000 | E29: 3250000 | F29: 4250000 | G29: 3250000 | H29: 7500000 | I29: 6250000 | J29: 3250000 | K29: 9500000 | L29: 8950000 | M29: 3250000 | N29: =M29+L29 -> 12200000 | O29: 12250000 | P29: 3250000 | Q29: =P29+O29 -> 15500000 | R29: 20000000 | S29: 0 | T29: =S29+R29 -> 20000000 | U29: 25300000 | V29: 0 | W29: =V29+U29 -> 25300000 | Y29: UFA
A30: Nate Garner | B30: RT | C30: 1625000 | D30: 166666 | E30: =D30+C30 -> 1791666 | F30: 1650000 | G30: 166668 | H30: 1816668 | J30: UFA
A31: Derek Sherrod | B31: RT | C31: 1275000 | E31: 1275000 | G31: 3-25 Option
A32: Jeremy Trueblood | B32: RT | C32: 955000 | E32: =D32+C32 -> 955000 | G32: UFA
A33: DEFENSE
A34: Isaako Aaitui | B34: DT | C34: 495000 | E34: =D34+C34 -> 495000 | F34: 585000 | H34: =G34+F34 -> 585000 | J34: RFA
A35: Jared Odrick | B35: DT | C35: 2550320 | D35: 229548 | E35: =D35+C35 -> 2779868 | G35: UFA
A36: Corey Peters | B36: DT | C36: 730000 | E36: =D36+C36 -> 730000 | F36: 3500000 | H36: =G36+F36 -> 3500000 | I36: 4550000 | K36: =J36+I36 -> 4550000 | L36: 5915000 | N36: =M36+L36 -> 5915000 | O36: 5305000 | Q36: =P36+O36 -> 5305000 | S36: UFA
A37: Randy Starks | B37: DT | C37: 3000000 | D37: 3000000 | E37: =D37+C37 -> 6000000 | F37: 3000000 | G37: 3000000 | H37: =G37+F37 -> 6000000 | J37: UFA
A39: Dion Jordan | B39: DE | C39: 1340104 | D39: 3335420 | E39: =D39+C39 -> 4675524 | F39: 2275210 | G39: 3335420 | H39: =G39+F39 -> 5610630 | I39: 3210315 | J39: 3335420 | K39: =J39+I39 -> 6545735 | M39: TOP10 Option
A40: Michael Sam | B40: DE | C40: 420000 | D40: 49071.06992 | E40: 469071.0699 | F40: 525489.4364 | G40: 49071.06992 | H40: 574560.5063 | I40: 632907.2701 | J40: 49071.06992 | K40: 681978.3401 | L40: 745321.2822 | M40: 49071.06992 | N40: 794392.3522 | P40: UFA
A41: Derrick Shelby | B41: DE | C41: 570000 | D41: 3334 | E41: =D41+C41 -> 573334 | G41: RFA
A42: Cameron Wake | B42: DE | C42: 5885000 | D42: 1400000 | E42: =D42+C42 -> 7285000 | F42: 8300000 | G42: 1400000 | H42: =G42+F42 -> 9700000 | I42: 8400000 | J42: 1400000 | K42: =J42+I42 -> 9800000 | M42: UFA
A44: Dannell Ellerbe | B44: ILB | C44: 6025000 | D44: 1400000 | E44: =D44+C44 -> 7425000 | F44: 8450000 | G44: 1400000 | H44: =G44+F44 -> 9850000 | I44: 6475000 | J44: 1400000 | K44: =J44+I44 -> 7875000 | L44: 6025000 | M44: 1400000 | N44: =M44+L44 -> 7425000 | P44: UFA
A45: Erin Henderson | B45: ILB | C45: 205000 | D45: 650000 | E45: =D45+C45 -> 855000 | F45: 2400000 | G45: 650000 | H45: =G45+F45 -> 3050000 | I45: 3300000 | J45: 650000 | K45: =J45+I45 -> 3950000 | L45: 4095000 | M45: 650000 | N45: =M45+L45 -> 4745000 | P45: UFA
A46: Casey Matthews | B46: ILB | C46: 650000 | E46: 650000 | G46: UFA
A47: Devon Kennard | B47: OLB | C47: 420000 | D47: 29838.21138 | E47: 449838.2114 | F47: 527028.065 | G47: 29838.21138 | H47: 556866.2764 | I47: 631137.8472 | J47: 29838.21138 | K47: 660976.0585 | L47: 740089.9447 | M47: 29838.21138 | N47: 769928.1561 | P47: UFA
A48: Koa Misi | B48: OLB | C48: 1750000 | D48: 578000 | E48: 2328000 | F48: 3860000 | G48: 578000 | H48: =G48+F48 -> 4438000 | I48: 4300000 | J48: 578000 | K48: =J48+I48 -> 4878000 | L48: 4200000 | M48: 578000 | N48: =M48+L48 -> 4778000 | P48: UFA
A49: Jason Trusnik | B49: OLB | C49: 905000 | D49: 166667 | E49: 1071667 | G49: UFA
A50: Philip Wheeler | B50: OLB | C50: 5000000 | D50: 1400000 | E50: 6400000 | F50: 3000000 | G50: 1400000 | H50: =G50+F50 -> 4400000 | I50: 5000000 | J50: 1400000 | K50: =J50+I50 -> 6400000 | L50: 5000000 | M50: 1400000 | N50: =M50+L50 -> 6400000 | P50: UFA
A52: Chris Clemons | B52: S | C52: 2000000 | D52: 250000 | E52: 2250000 | F52: 5000000 | G52: 250000 | H52: =G52+F52 -> 5250000 | I52: 5000000 | J52: 250000 | K52: =J52+I52 -> 5250000 | L52: 6000000 | M52: 250000 | N52: =M52+L52 -> 6250000 | O52: 7000000 | P52: 250000 | Q52: =P52+O52 -> 7250000 | S52: UFA
A53: Reshad Jones | B53: S | C53: 2610000 | D53: 1000000 | E53: =D53+C53 -> 3610000 | F53: 6760000 | G53: 1000000 | H53: =G53+F53 -> 7760000 | I53: 7250000 | J53: 1000000 | K53: =J53+I53 -> 8250000 | L53: 7110000 | M53: 1000000 | N53: =M53+L53 -> 8110000 | P53: UFA
A54: Jordan Kovacs | B54: S | C54: 495000 | E54: =D54+C54 -> 495000 | G54: ERFA
A55: Michael Thomas | B55: S | C55: 495000 | E55: =D55+C55 -> 495000 | G55: ERFA
A56: Jimmy Wilson | B56: S | C56: 1389000 | D56: 11475 | E56: =D56+C56 -> 1400475 | G56: UFA
A58: Nolan Caroll | B58: CB | C58: 1000000 | D58: 300000 | E58: =D58+C58 -> 1300000 | F58: 1000000 | G58: 300000 | H58: =G58+F58 -> 1300000 | I58: 1000000 | J58: 300000 | K58: =J58+I58 -> 1300000 | M58: UFA
A59: Brent Grimes | B59: CB | C59: 2500000 | D59: 5000000 | E59: =D59+C59 -> 7500000 | F59: 2500000 | G59: 5000000 | H59: =G59+F59 -> 7500000 | I59: 2500000 | J59: 5000000 | K59: =J59+I59 -> 7500000 | M59: UFA
A60: Dimitri Patterson | B60: CB | C60: 855000 | E60: =D60+C60 -> 855000 | G60: UFA
A61: Jamar Taylor | B61: CB | C61: 569825 | D61: 254300 | E61: =D61+C61 -> 824125 | F61: 734650 | G61: 254300 | H61: =G61+F61 -> 988950 | I61: 899745 | J61: 254300 | K61: =J61+I61 -> 1154045 | M61: UFA
A62: Walter Thurmond | B62: CB | C62: 1000000 | D62: 150000 | E62: =D62+C62 -> 1150000 | F62: 4000000 | G62: 150000 | H62: =G62+F62 -> 4150000 | I62: 4000000 | J62: 150000 | K62: =J62+I62 -> 4150000 | L62: 5000000 | M62: 150000 | N62: =M62+L62 -> 5150000 | O62: 6000000 | P62: 150000 | Q62: =P62+O62 -> 6150000 | S62: UFA
A64: Caleb Sturgis | B64: K | C64: 495000 | D64: 36140 | E64: =D64+C64 -> 531140 | F64: 585000 | G64: 36140 | H64: =G64+F64 -> 621140 | I64: 675000 | J64: 36140 | K64: =J64+I64 -> 711140 | M64: UFA
A65: Marcus Heit | B65: LS | C65: 420000 | D65: 27086.70203 | E65: 447086.702 | F65: 527248.1858 | G65: 27086.70203 | H65: 554334.8878 | I65: 630884.7083 | J65: 27086.70203 | K65: 657971.4103 | L65: 739341.5342 | M65: 27086.70203 | N65: 766428.2362 | P65: UFA
A66: Brandon Fields | B66: P | C66: 855000 | E66: =D66+C66 -> 855000 | F66: 955000 | H66: =G66+F66 -> 955000 | I66: 1055000 | K66: =J66+I66 -> 1055000 | M66: UFA
A69: Total Players | C69: =COUNTA(C3:C67) -> 53 | F69: =COUNTA(F3:F67) -> 36 | I69: =COUNTA(I3:I67) -> 30 | L69: =COUNTA(L3:L67) -> 16
A70: Top 51 Salary | C70: =SUM(LARGE(ISNUMBER(E4:E67)*E4:E67,ROW(INDIRECT("1:51")))) -> 125560126.3 | F70: =SUM(LARGE(ISNUMBER(H4:H67)*H4:H67,ROW(INDIRECT("1:51")))) -> 132205471.6 | I70: =SUM(LARGE(ISNUMBER(K4:K67)*K4:K67,ROW(INDIRECT("1:51")))) -> 118714740.5 | L70: =SUM(LARGE(ISNUMBER(N4:N67)*N4:N67,ROW(INDIRECT("1:51")))) -> 74262537.2
A71: Dead Money | C71: 12601429 | F71: 7180770
A72: Cap Rollover | C72: 18064000 | F72: =C73 -> 12902444.7 | I72: =F73 -> 6516203.102 | L72: =I73 -> 20801462.56
A73: Cap Space | C73: =133000000-C70-C71+C72 -> 12902444.7 | F73: =133000000-F70-F71+F72 -> 6516203.102 | I73: =133000000-I70-I71+I72 -> 20801462.56 | L73: =133000000-L70-L71+L72 -> 79538925.36
A74: June 1st Cut | B74: 1/2
A75: Paycut | B75: 0/2
A76: Restructure | B76: 0/3
A78: Practice Squad
A79: David Fluellen | B79: RB | C79: 420000 | E79: 420000 | F79: 510000 | H79: 510000 | I79: 600000 | K79: 600000 | M79: RFA
A80: Mike Gillislee | B80: RB | C80: 495000 | E80: =D80+C80 -> 495000 | F80: 585000 | G80: 40700 | H80: =G80+F80 -> 625700 | I80: 675000 | J80: 40700 | K80: =J80+I80 -> 715700 | M80: UFA
A81: Justin Jones | B81: TE | C81: 420000 | E81: 420000 | F81: 510000 | H81: 510000 | I81: 600000 | K81: 600000 | M81: RFA
A82: Geraldo Boldewijn | B82: WR | C82: 420000 | E82: 420000 | F82: 510000 | H82: 510000 | I82: 600000 | K82: 600000 | M82: RFA
A83: IK Enemkpali | B83: DE | C83: 420000 | E83: 420000 | F83: 510000 | H83: 510000 | I83: 600000 | K83: 600000 | M83: RFA
A84: Jonathan Brown | B84: OLB | C84: 420000 | E84: 420000 | F84: 510000 | H84: 510000 | I84: 600000 | K84: 600000 | M84: RFA
A85: Tahj Jones | B85: S | C85: 420000 | E85: 420000 | F85: 510000 | H85: 510000 | I85: 600000 | K85: 600000 | M85: RFA
A86: Torin Harris | B86: CB | C86: 420000 | E86: 420000 | F86: 510000 | H86: 510000 | I86: 600000 | K86: 600000 | M86: RFA

Sheet MIN
C1: 2014 | F1: 2015 | I1: 2016 | L1: 2017 | O1: 2018 | R1: 2019 | U1: 2020
A2: Player | B2: Pos. | C2: Base Salary | D2: Signing Bonus | E2: Cap Figure | F2: Base Salary | G2: Signing Bonus | H2: Cap Figure | I2: Base Salary | J2: Signing Bonus | K2: Cap Figure | L2: Base Salary | M2: Signing Bonus | N2: Cap Figure | O2: Base Salary | P2: Signing Bonus | Q2: Cap Figure | R2: Base Salary | S2: Signing Bonus | T2: Cap Figure | U2: Base Salary | V2: Signing Bonus | W2: Cap Figure
A3: OFFENSE
A4: Jimmy Clausen | B4: QB | C4: 730000 | E4: 730000 | F4: 730000 | H4: 730000 | J4: UFA
A5: Andy Dalton | B5: QB | C5: 1086027 | E5: =D5+C5 -> 1086027 | G5: UFA
A6: Matt Scott | B6: QB | C6: 500000 | E6: 500000 | F6: 570000 | H6: 570000 | J6: ERFA
A8: Benny Cunningham | B8: RB | C8: 495000 | E8: =D8+C8 -> 495000 | F8: 585000 | H8: =G8+F8 -> 585000 | J8: RFA
A9: Adrian Peterson | B9: RB | C9: 12000000 | D9: 2400000 | E9: =D9+C9 -> 14400000 | F9: 13000000 | G9: 2400000 | H9: =G9+F9 -> 15400000 | I9: 15000000 | K9: =J9+I9 -> 15000000 | L9: 16000000 | N9: =M9+L9 -> 16000000 | P9: UFA
A10: Matt Asiata | B10: FB | C10: 570000 | E10: =D10+C10 -> 570000 | G10: RFA
A11: Jerome Felton | B11: FB | C11: 2000000 | D11: 333333 | E11: =D11+C11 -> 2333333 | F11: 2500000 | G11: 333334 | H11: =G11+F11 -> 2833334 | J11: UFA
A13: Rhett Ellison | B13: TE | C13: 570000 | D13: 75146 | E13: =D13+C13 -> 645146 | F13: 660000 | G13: 75146 | H13: =G13+F13 -> 735146 | J13: UFA
A14: Kyle Rudolph | B14: TE | C14: 3900000 | D14: 3066791 | E14: =D14+C14 -> 6966791 | F14: 3900000 | G14: 2600000 | H14: =G14+F14 -> 6500000 | I14: 3900000 | J14: 2600000 | K14: =J14+I14 -> 6500000 | L14: 3900000 | M14: 2600000 | N14: =M14+L14 -> 6500000 | O14: 3900000 | P14: 2600000 | Q14: =P14+O14 -> 6500000 | S14: UFA
A16: Stedman Bailey | B16: WR | C16: 512345 | E16: =D16+C16 -> 512345 | F16: 601234 | H16: =G16+F16 -> 601234 | I16: 690123 | K16: =J16+I16 -> 690123 | M16: UFA
A17: Martavis Bryant | B17: WR | C17: 420000 | D17: 70599.33943 | E17: 490599.3394 | F17: 677567.1697 | G17: 70599.33943 | H17: 748166.5091 | I17: 817441.7779 | J17: 70599.33943 | K17: 888041.1174 | L17: 963822.1819 | M17: 70599.33943 | N17: 1034421.521 | P17: UFA
A18: Alshon Jeffery | B18: WR | C18: 803438 | E18: =D18+C18 -> 803438 | F18: 1010157 | H18: =G18+F18 -> 1010157 | J18: UFA
A19: Cordarrelle Patterson | B19: WR | C19: 733230 | D19: 907918 | E19: =D19+C19 -> 1641148 | F19: 1061459 | G19: 907918 | H19: =G19+F19 -> 1969377 | I19: 1389689 | J19: 907918 | K19: =J19+I19 -> 2297607 | M19: 3-25 Option
A20: Jerome Simpson | B20: WR | C20: 900000 | E20: 900000 | F20: 900000 | H20: 900000 | J20: UFA
A21: Jarius Wright | B21: WR | C21: 570000 | D21: 105027 | E21: =D21+C21 -> 675027 | F21: 660000 | G21: 105027 | H21: =G21+F21 -> 765027 | J21: UFA
A23: Evan Dietrich-Smith | B23: C | C23: 2000000 | D23: 4200000 | E23: =D23+C23 -> 6200000 | F23: 2000000 | G23: 4200000 | H23: =G23+F23 -> 6200000 | I23: 2000000 | J23: 4200000 | K23: =J23+I23 -> 6200000 | L23: 2000000 | M23: 4200000 | N23: =M23+L23 -> 6200000 | O23: 2000000 | P23: 4200000 | Q23: =P23+O23 -> 6200000 | S23: UFA
A24: Ryan Jensen | B24: C | C24: 610000 | E24: 610000 | F24: 610000 | H24: 610000 | J24: RFA
A25: Jon Asamoah | B25: G | C25: 5000000 | D25: 2000000 | E25: =D25+C25 -> 7000000 | F25: 5000000 | G25: 2000000 | H25: =G25+F25 -> 7000000 | I25: 5000000 | J25: 2000000 | K25: 7000000 | L25: 5000000 | M25: 2000000 | N25: =M25+L25 -> 7000000 | O25: 5000000 | P25: 2000000 | Q25: =P25+O25 -> 7000000 | S25: UFA
A26: Jeff Baca | B26: G | C26: 495000 | D26: 24150 | E26: =D26+C26 -> 519150 | F26: 585000 | G26: 24150 | H26: =G26+F26 -> 609150 | I26: 675000 | J26: 24150 | K26: =J26+I26 -> 699150 | M26: UFA
A27: Will Rackley | B27: G | C27: 730000 | E27: 730000 | F27: 730000 | H27: 730000 | I27: 730000 | K27: 730000 | M27: UFA
A28: Kevin Murphy | B28: LT | C28: 420000 | E28: =D28+C28 -> 420000 | F28: 510000 | H28: =G28+F28 -> 510000 | J28: RFA
A29: Sean Hooey | B29: OT | C29: 500000 | E29: 500000 | F29: 570000 | H29: 570000 | J29: ERFA
A30: Bryan Witzmann | B30: OT | C30: 420000 | E30: =D30+C30 -> 420000 | F30: 510000 | H30: =G30+F30 -> 510000 | I30: 600000 | K30: 600000 | M30: RFA
A31: Charlie Johnson | B31: RT | C31: 2500000 | D31: 1000000 | E31: =D31+C31 -> 3500000 | F31: 2500000 | G31: 1000000 | H31: =G31+F31 -> 3500000 | I31: 2500000 | J31: 1000000 | K31: =J31+I31 -> 3500000 | L31: 2500000 | M31: 1000000 | N31: =M31+L31 -> 3500000 | P31: UFA
A32: Phillip Loadholt | B32: RT | C32: 4000000 | D32: 1750000 | E32: =D32+C32 -> 5750000 | F32: 5000000 | G32: 1750000 | H32: =G32+F32 -> 6750000 | I32: 6000000 | J32: 1750000 | K32: =J32+I32 -> 7750000 | M32: UFA
A33: DEFENSE
A34: Brodrick Bunkley | B34: DT | C34: 1000000 | E34: 1000000 | F34: 1000000 | H34: 1000000 | J34: UFA
A35: Fred Evans | B35: DT | C35: 2000000 | D35: 1500000 | E35: =D35+C35 -> 3500000 | F35: 2000000 | G35: 1500000 | H35: =G35+F35 -> 3500000 | I35: 2000000 | J35: 1500000 | K35: =J35+I35 -> 3500000 | M35: UFA
A36: Sharrif Floyd | B36: DT | C36: 772100 | D36: 1063400 | E36: =D36+C36 -> 1835500 | F36: 1139200 | G36: 1063400 | H36: =G36+F36 -> 2202600 | I36: 1506300 | J36: 1063400 | K36: =J36+I36 -> 2569700 | M36: 3-25 Option
A37: Letroy Guion | B37: DT | C37: 855000 | E37: 855000 | F37: 855000 | H37: 855000 | J37: UFA
A39: Malliciah Goodman | B39: DE | C39: 600000 | E39: 600000 | F39: 700000 | H39: 700000 | J39: RFA
A40: Chris Long | B40: DE | C40: 11900000 | D40: 1000000 | E40: =D40+C40 -> 12900000 | F40: 11500000 | G40: 1000000 | H40: =G40+F40 -> 12500000 | I40: 13250000 | J40: 1000000 | K40: =J40+I40 -> 14250000 | M40: UFA
A41: Brian Robison | B41: DE | C41: 4300000 | D41: 1000000 | E41: 5300000 | F41: 4450000 | G41: 1000000 | H41: 5450000 | I41: 4050000 | J41: 1000000 | K41: 5050000 | L41: 5600000 | M41: 1000000 | N41: =M41+L41 -> 6600000 | P41: UFA
A42: Osi Umenyiora | B42: DE | C42: 3500000 | E42: 3500000 | G42: UFA
A44: Steve Beauharnais | B44: ILB | C44: 610000 | E44: 610000 | F44: 610000 | H44: 610000 | J44: RFA
A45: Mark Herzlich | B45: ILB | C45: 730000 | E45: 730000 | F45: 730000 | H45: 730000 | I45: 730000 | K45: 730000 | M45: UFA
A46: Akeem Jordan | B46: ILB | C46: 700000 | D46: 1000000 | E46: =D46+C46 -> 1700000 | F46: 1000000 | G46: 1000000 | H46: =G46+F46 -> 2000000 | I46: 1300000 | J46: 1000000 | K46: =J46+I46 -> 2300000 | M46: UFA
A47: Michael Wilhoite | B47: ILB | C47: 700000 | E47: 700000 | F47: 800000 | H47: 800000 | J47: UFA
A48: Ray-Ray Armstrong | B48: OLB | C48: 495000 | E48: =D48+C48 -> 495000 | F48: 585000 | H48: =G48+F48 -> 585000 | J48: RFA
A49: Gerald Hodges | B49: OLB | C49: 495000 | D49: 105027 | E49: 600027 | F49: 585000 | G49: 105027 | H49: =G49+F49 -> 690027 | I49: 675000 | J49: 105027 | K49: =J49+I49 -> 780027 | M49: UFA
A50: Calvin Pace | B50: OLB | C50: 900000 | D50: 1000000 | E50: =D50+C50 -> 1900000 | F50: 950000 | G50: 1000000 | H50: =G50+F50 -> 1950000 | I50: 1000000 | J50: 1000000 | K50: =J50+I50 -> 2000000 | L50: 1150000 | M50: 1000000 | N50: =M50+L50 -> 2150000 | P50: UFA
A52: Robert Blanton | B52: S | C52: 570000 | D52: 52763 | E52: =D52+C52 -> 622763 | F52: 660000 | G52: 52763 | H52: =G52+F52 -> 712763 | J52: UFA
A53: Roman Harper | B53: S | C53: 900000 | E53: 900000 | F53: 1000000 | H53: 1000000 | I53: 1100000 | K53: 1100000 | M53: UFA
A54: Chris Maragos | B54: S | C54: 750000 | E54: 750000 | F54: 750000 | H54: 750000 | J54: UFA
A55: Rodney McLeod | B55: S | C55: 570000 | E55: =D55+C55 -> 570000 | G55: RFA
A56: Andrew Sendejo | B56: S | C56: 800000 | D56: 66666 | E56: =D56+C56 -> 866666 | F56: 1000000 | G56: 66666 | H56: =G56+F56 -> 1066666 | J56: UFA
A58: Antonio Cromartie | B58: CB | C58: 2000000 | D58: 3000000 | E58: =D58+C58 -> 5000000 | F58: 2000000 | G58: 3000000 | H58: =G58+F58 -> 5000000 | I58: 2000000 | J58: 3000000 | K58: =J58+I58 -> 5000000 | L58: 2000000 | M58: 3000000 | N58: =M58+L58 -> 5000000 | P58: UFA
A59: Shaun Prater | B59: CB | C59: 570000 | E59: =D59+C59 -> 570000 | F59: 660000 | H59: =G59+F59 -> 660000 | J59: UFA
A60: Xavier Rhodes | B60: CB | C60: 759841 | D60: 1014364 | E60: 1774205 | F60: 1114682 | G60: 1014364 | H60: 2129046 | I60: 1469523 | J60: 1014364 | K60: =J60+I60 -> 2483887 | M60: RFA
A61: Josh Robinson | B61: CB | C61: 637000 | D61: 174250 | E61: 811250 | F61: 776000 | G61: 174250 | H61: 950250 | J61: UFA
A62: Charles Tillman | B62: CB | C62: 900000 | D62: 1000000 | E62: =D62+C62 -> 1900000 | F62: 900000 | G62: 1000000 | H62: =G62+F62 -> 1900000 | I62: 900000 | J62: 1000000 | K62: =J62+I62 -> 1900000 | L62: 900000 | M62: 1000000 | N62: =M62+L62 -> 1900000 | P62: UFA
A64: Blair Walsh | B64: K | C64: 570000 | D64: 29483 | E64: =D64+C64 -> 599483 | F64: 660000 | G64: 29483 | H64: =G64+F64 -> 689483 | J64: UFA
A65: Danny Aiken | B65: LS | C65: 650000 | D65: 125000 | E65: 775000 | F65: 650000 | G65: 125000 | H65: =G65+F65 -> 775000 | I65: 650000 | J65: 125000 | K65: =J65+I65 -> 775000 | M65: UFA
A66: Jeff Locke | B66: P | C66: 495000 | D66: 46048 | E66: =D66+C66 -> 541048 | F66: 585000 | G66: 46048 | H66: =G66+F66 -> 631048 | I66: 675000 | J66: 46048 | K66: =J66+I66 -> 721048 | M66: UFA
A69: Total Players | C69: =COUNTA(C3:C67) -> 53 | F69: =COUNTA(F3:F67) -> 49 | I69: =COUNTA(I3:I67) -> 26 | L69: =COUNTA(L3:L67) -> 10
A70: Top 51 Salary | C70: =SUM(LARGE(ISNUMBER(E4:E78)*E4:E78,ROW(INDIRECT("1:51")))) -> 109463946.3 | F70: =SUM(LARGE(ISNUMBER(H4:H78)*H4:H78,ROW(INDIRECT("1:51")))) -> 110173474.5 | I70: =SUM(LARGE(ISNUMBER(K4:K78)*K4:K78,ROW(INDIRECT("1:51")))) -> 95014583.12 | L70: =SUM(LARGE(ISNUMBER(N4:N78)*N4:N78,ROW(INDIRECT("1:51")))) -> 55884421.52
A71: Dead Money | C71: 22871587 | F71: 11777813
A72: Cap Rollover | C72: 812317 | F72: =C73 -> 1476783.661 | I72: =F73 -> 12525496.15 | L72: 50510913.03
A73: Cap Space | C73: =133000000-C70-C71+C72 -> 1476783.661 | F73: =133000000-F70-F71+F72 -> 12525496.15 | I73: =133000000-I70-I71+I72 -> 50510913.03 | L73: =133000000-L70-L71+L72 -> 127626491.5
A74: June 1st Cut | B74: 2/2
A75: Paycut | B75: 0/2
A76: Restructure | B76: 0/3
A78: Practice Squad
A79: Marcel Jensen | B79: TE | C79: 420000 | E79: 420000 | F79: 510000 | H79: 510000 | I79: 600000 | K79: 600000 | M79: RFA
A80: Kenny Shaw | B80: WR | C80: 420000 | E80: 420000 | F80: 510000 | H80: 510000 | I80: 600000 | K80: 600000 | M80: RFA
A81: Russell Bodine | B81: C | C81: 420000 | E81: 420000 | F81: 527180.4104 | G81: 27933.89411 | H81: 555114.3045 | I81: 630962.65 | J81: 27933.89411 | K81: 658896.5441 | L81: 739571.9704 | M81: 27933.89411 | N81: 767505.8645 | P81: UFA
A82: Fou Fonoti | B82: OT | C82: 420000 | E82: 420000 | F82: 510000 | H82: 510000 | I82: 600000 | K82: 600000 | M82: RFA
A83: Jay Bromley | B83: DT | C83: 420000 | E83: 420000 | F83: 510000 | H83: 510000 | I83: 600000 | K83: 600000 | M83: RFA
A84: Will Smith | B84: OLB | C84: 420000 | E84: 420000 | F84: 510000 | H84: 510000 | I84: 600000 | K84: 600000 | M84: RFA
A85: Hakeem Smith | B85: S | C85: 420000 | E85: 420000 | F85: 510000 | H85: 510000 | I85: 600000 | K85: 600000 | M85: RFA
A86: Marcus Williams | B86: CB | C86: 420000 | E86: 420000 | F86: 528182.2071 | G86: 15411.43618 | H86: 543593.6432 | I86: 629810.5838 | J86: 15411.43618 | K86: 645222.02 | L86: 736165.8619 | M86: 15411.43618 | N86: 751577.298 | P86: UFA

Sheet NE
C1: 2014 | F1: 2015 | I1: 2016 | L1: 2017 | O1: 2018 | R1: 2019 | U1: 2020
A2: Player | B2: Pos. | C2: Base Salary | D2: Signing Bonus | E2: Cap Figure | F2: Base Salary | G2: Signing Bonus | H2: Cap Figure | I2: Base Salary | J2: Signing Bonus | K2: Cap Figure | L2: Base Salary | M2: Signing Bonus | N2: Cap Figure | O2: Base Salary | P2: Signing Bonus | Q2: Cap Figure | R2: Base Salary | S2: Signing Bonus | T2: Cap Figure | U2: Base Salary | V2: Signing Bonus | W2: Cap Figure
A3: OFFENSE
A4: Tom Brady | B4: QB | C4: 1000000 | D4: 10350000 | E4: =D4+C4 -> 11350000 | F4: 7000000 | G4: 7150000 | H4: =G4+F4 -> 14150000 | I4: 8000000 | J4: 7150000 | K4: =J4+I4 -> 15150000 | L4: 9000000 | M4: 7150000 | N4: =M4+L4 -> 16150000 | P4: UFA
A5: Jimmy Garoppolo | B5: QB | C5: 420000 | E5: 420000 | F5: 590966.3008 | H5: 590966 | I5: 733203.6329 | K5: 733204 | L5: 882056.6549 | N5: 882057 | P5: UFA
A6: Ryan Mallett | B6: QB | C6: 776976 | D6: 160969 | E6: =D6+C6 -> 937945 | G6: UFA
A8: Stevan Ridley | B8: RB | C8: 777750 | D8: 162000 | E8: =D8+C8 -> 939750 | G8: UFA
A9: Shane Vereen | B9: RB | C9: 846975 | D9: 254300 | E9: =D9+C9 -> 1101275 | G9: UFA
A10: Terrance West | B10: RB | C10: 420000 | D10: 53415.72663 | E10: 473415.7266 | F10: 525141.8638 | G10: 53415.72663 | H10: 578557.5904 | I10: 633306.9786 | J10: 53415.72663 | K10: 686722.7052 | L10: 746503.0289 | M10: 53415.72663 | N10: 799918.7555 | P10: UFA
A11: James Develin | B11: FB | C11: 570000 | E11: =D11+C11 -> 570000 | G11: RFA
A13: Rob Gronkowski | B13: TE | C13: 3800000 | D13: 1600000 | E13: =D13+C13 -> 5400000 | F13: 7050000 | G13: 1600000 | H13: =G13+F13 -> 8650000 | I13: 7215000 | J13: 1600000 | K13: =J13+I13 -> 8815000 | L13: 7305000 | N13: =M13+L13 -> 7305000 | O13: 10250000 | Q13: =P13+O13 -> 10250000 | R13: 11250000 | T13: =S13+R13 -> 11250000 | V13: UFA
A14: Jake Murphy | B14: TE | C14: 420000 | E14: 420000 | F14: 528149.1293 | H14: 528149 | I14: 629848.6233 | K14: 629849 | L14: 736278.3263 | N14: 736278 | P14: UFA
A16: Danario Alexander | B16: WR | C16: 730000 | D16: 428333 | E16: =D16+C16 -> 1158333 | F16: 730000 | G16: 428333 | H16: =G16+F16 -> 1158333 | I16: 855000 | J16: 428333 | K16: =J16+I16 -> 1283333 | M16: UFA
A17: Danny Amendola | B17: WR | C17: 3375000 | D17: 1200000 | E17: 4575000 | F17: 4375000 | G17: 1200000 | H17: 5575000 | I17: 5375000 | J17: 1200000 | K17: =J17+I17 -> 6575000 | L17: 6375000 | M17: 1200000 | N17: =M17+L17 -> 7575000 | P17: UFA
A18: Josh Boyce | B18: WR | C18: 495000 | D18: 119250 | E18: 614250 | F18: 585000 | G18: 119250 | H18: 704250 | I18: 675000 | J18: 119250 | K18: =J18+I18 -> 794250 | M18: UFA
A19: Aaron Dobson | B19: WR | C19: 560835 | D19: 218340 | E19: 779175 | F19: 716670 | G19: 218340 | H19: 935010 | I19: 872505 | J19: 218340 | K19: =J19+I19 -> 1090845 | M19: UFA
A20: Julian Edelman | B20: WR | C20: 2000000 | D20: 1500000 | E20: 3500000 | F20: 2500000 | G20: 1500000 | H20: 4000000 | I20: 3500000 | J20: 1500000 | K20: =J20+I20 -> 5000000 | L20: 4000000 | M20: 1500000 | N20: =M20+L20 -> 5500000 | P20: UFA
A21: Charles Johnson | B21: WR | C21: 495000 | E21: 495000 | F21: 585000 | H21: 585000 | J21: RFA
A22: Jeremy Ross | B22: WR | C22: 645000 | D22: 62500 | E22: 707500 | F22: 730000 | G22: 62500 | H22: 792500 | J22: UFA
A23: Kenbrell Thompkins | B23: WR | C23: 495000 | D23: 833 | E23: 495833 | F23: 585000 | G23: 833 | H23: 585833 | J23: RFA
A25: Tim Barnes | B25: C | C25: 570000 | E25: =D25+C25 -> 570000 | G25: RFA
A26: Jim Cordle | B26: C | C26: 730000 | E26: =D26+C26 -> 730000 | F26: 730000 | H26: =G26+F26 -> 730000 | I26: 730000 | J26: 0 | K26: =J26+I26 -> 730000 | M26: UFA
A27: Ryan Wendell | B27: C | C27: 1600000 | D27: 900000 | E27: 2500000 | F27: 2250000 | G27: 900000 | H27: 3150000 | I27: 2750000 | J27: 900000 | K27: =J27+I27 -> 3650000 | L27: 3800000 | M27: 900000 | N27: =M27+L27 -> 4700000 | P27: UFA
A28: Josh Kline | B28: G | C28: 495000 | E28: 495000 | F28: 585000 | H28: 585000 | J28: RFA
A29: Shelley Smith | B29: G | C29: 730000 | E29: 730000 | F29: 730000 | H29: 730000 | J29: UFA
A30: Travelle Wharton | B30: G | C30: 900000 | D30: 55000 | E30: 955000 | F30: 900000 | G30: 55000 | H30: 955000 | I30: 900000 | J30: 55000 | K30: =J30+I30 -> 955000 | M30: UFA
A31: Taylor Lewan | B31: LT | C31: 420000 | D31: 1394493.072 | E31: 1814493.072 | F31: 915500.0085 | G31: 1394493.072 | H31: 2309993.08 | I31: 1347368.28 | J31: 1394493.072 | K31: 2741861.351 | L31: 1799323.448 | M31: 1394493.072 | N31: 3193816.519 | P31: TOP3-25 Option
A32: Nate Solder | B32: LT | C32: 1539612 | D32: 1177817 | E32: =D32+C32 -> 2717429 | F32: 6850648 | H32: =G32+F32 -> 6850648 | J32: UFA
A33: Marcus Cannon | B33: RT | C33: 693843 | D33: 50125 | E33: =D33+C33 -> 743968 | G33: UFA
A34: Marshall Newhouse | B34: RT | C34: 730000 | D34: 75000 | E34: =D34+C34 -> 805000 | F34: 730000 | G34: 75000 | H34: =G34+F34 -> 805000 | J34: UFA
A35: DEFENSE
A36: Aaron Donald | B36: DT | C36: 420000 | D36: 1568675.762 | E36: 1988675.762 | F36: 961658.4214 | G36: 1568675.762 | H36: 2530334.183 | I36: 1434720.899 | J36: 1568675.762 | K36: 3003396.661 | L36: 1929786.283 | M36: 1568675.762 | N36: 3498462.045 | P36: TOP3-25 Option
A37: Chris Jones | B37: DT | C37: 495000 | E37: =D37+C37 -> 495000 | F37: 585000 | H37: =G37+F37 -> 585000 | I37: 675000 | K37: =J37+I37 -> 675000 | M37: UFA
A38: Terrance Knighton | B38: DT | C38: 2500000 | E38: =D38+C38 -> 2500000 | G38: UFA
A39: Sealver Siliga | B39: DT | C39: 570000 | E39: =D39+C39 -> 570000 | G39: RFA
A41: Chandler Jones | B41: DE | C41: 1133045 | D41: 1096091 | E41: =D41+C41 -> 2229136 | F41: 1504568 | G41: 1096091 | H41: =G41+F41 -> 2600659 | J41: 3-25 Option
A42: Aaron Lynch | B42: DE | C42: 420000 | D42: 12227.27276 | E42: 432227.2728 | F42: 528436.9401 | G42: 12227.27276 | H42: 540664.2129 | I42: 629517.6408 | J42: 12227.27276 | K42: 641744.9136 | L42: 735299.7694 | M42: 12227.27276 | N42: 747527.0422 | P42: UFA
A43: Kareem Martin | B43: DE | C43: 420000 | D43: 349375.6171 | E43: 769375.6171 | F43: 638543.883 | G43: 349375.6171 | H43: 987919.5001 | I43: 823241.8765 | J43: 349375.6171 | K43: 1172617.494 | L43: 1016530.474 | M43: 349375.6171 | N43: 1365906.091 | P43: UFA
A44: Rob Ninkovich | B44: DE | C44: 1600000 | D44: 1250000 | E44: =D44+C44 -> 2850000 | F44: 2450000 | G44: 1250000 | H44: =G44+F44 -> 3700000 | I44: 1850000 | J44: 1250000 | K44: =J44+I44 -> 3100000 | M44: UFA
A46: Chris Borland | B46: ILB | C46: 420000 | D46: 270994.8984 | E46: 690994.8984 | F46: 617839.1695 | G46: 270994.8984 | H46: 888834.0678 | I46: 784012.4952 | J46: 270994.8984 | K46: 1055007.394 | L46: 957914.8128 | M46: 270994.8984 | N46: 1228909.711 | P46: UFA
A47: Dane Fletcher | B47: ILB | C47: 730000 | E47: =D47+C47 -> 730000 | F47: 730000 | H47: =G47+F47 -> 730000 | J47: UFA
A48: Jamie Collins | B48: OLB | C48: 575955 | D48: 278818 | E48: =D48+C48 -> 854773 | F48: 746909 | G48: 278818 | H48: =G48+F48 -> 1025727 | I48: 917864 | J48: 278818 | K48: =J48+I48 -> 1196682 | M48: UFA
A49: Jo-Lonn Dunbar | B49: OLB | C49: 855000 | E49: =D49+C49 -> 855000 | F49: 855000 | H49: =G49+F49 -> 855000 | I49: 855000 | K49: =J49+I49 -> 855000 | M49: UFA
A50: Jerod Mayo | B50: OLB | C50: 6087500 | D50: 1200000 | E50: =D50+C50 -> 7287500 | F50: 9400000 | G50: 1200000 | H50: =G50+F50 -> 10600000 | I50: 10400000 | K50: =J50+I50 -> 10400000 | L50: 9500000 | N50: =M50+L50 -> 9500000 | P50: UFA
A51: Telvin Smith | B51: OLB | C51: 420000 | D51: 114370.9299 | E51: 534370.9299 | F51: 520265.4476 | G51: 114370.9299 | H51: 634636.3774 | I51: 638914.8573 | J51: 114370.9299 | K51: 753285.7871 | L51: 763082.8441 | M51: 114370.9299 | N51: 877453.774 | P51: UFA
A53: Duron Harmon | B53: S | C53: 500500 | D53: 133400 | E53: =D53+C53 -> 633900 | F53: 591000 | G53: 133400 | H53: =G53+F53 -> 724400 | I53: 681000 | J53: 133400 | K53: =J53+I53 -> 814400 | M53: UFA
A54: Devin McCourty | B54: S | C54: 4815000 | D54: 300000 | E54: =D54+C54 -> 5115000 | G54: UFA
A55: Eric Pinkins | B55: S | C55: 420000 | E55: 420000 | F55: 510000 | H55: 510000 | I55: 600000 | K55: 600000 | M55: RFA
A57: Kenneth Acker | B57: CB | C57: 420000 | E57: 420000 | F57: 510000 | H57: 510000 | I57: 600000 | K57: 600000 | M57: RFA
A58: Brandon Browner | B58: CB/S | C58: 3000000 | D58: 2500000 | E58: =D58+C58 -> 5500000 | F58: 4000000 | G58: 2500000 | H58: =G58+F58 -> 6500000 | I58: 4000000 | J58: 2500000 | K58: =J58+I58 -> 6500000 | L58: 4000000 | M58: 2500000 | N58: =M58+L58 -> 6500000 | O58: 5000000 | P58: 2500000 | Q58: =P58+O58 -> 7500000 | S58: UFA
A59: Alfonzo Dennard | B59: CB | C59: 570000 | D59: 14462 | E59: =D59+C59 -> 584462 | F59: 660000 | G59: 14462 | H59: =G59+F59 -> 674462 | J59: UFA
A60: Dexter McDougle | B60: CB | C60: 420000 | E60: 420000 | F60: 510000 | H60: 510000 | I60: 600000 | K60: 600000 | M60: RFA
A61: Logan Ryan | B61: CB | C61: 515000 | D61: 140813 | E61: =D61+C61 -> 655813 | F61: 605000 | G61: 140813 | H61: =G61+F61 -> 745813 | I61: 685000 | J61: 140813 | K61: =J61+I61 -> 825813 | M61: UFA
A62: Aqib Talib | B62: CB | C62: 9250000 | D62: 3250000 | E62: =D62+C62 -> 12500000 | F62: 4250000 | G62: 3250000 | H62: =G62+F62 -> 7500000 | I62: 4250000 | J62: 3250000 | K62: =J62+I62 -> 7500000 | L62: 4250000 | M62: 3250000 | N62: =M62+L62 -> 7500000 | O62: 4250000 | P62: 3250000 | Q62: =P62+O62 -> 7500000 | S62: UFA
A64: Stephen Gostkowski | B64: K | C64: 1725000 | D64: 475000 | E64: 2200000 | F64: 900000 | G64: 475000 | H64: 1375000 | I64: 900000 | J64: 475000 | K64: 1375000 | L64: 875000 | M64: 475000 | N64: 1350000 | P64: UFA
A65: Trevor Gillette | B65: LS | C65: 420000 | E65: 420000 | F65: 510000 | H65: 510000 | I65: 600000 | K65: 600000 | M65: RFA
A66: Ryan Allen | B66: P | C66: 495000 | D66: 500 | E66: =D66+C66 -> 495500 | F66: 585000 | G66: 500 | H66: =G66+F66 -> 585500 | J66: RFA
A69: Total Players | C69: =COUNTA(C3:C67) -> 53 | F69: =COUNTA(F3:F67) -> 44 | I69: =COUNTA(I3:I67) -> 33 | L69: =COUNTA(L3:L67) -> 18
A70: Top 51 Salary | C70: =SUM(LARGE(ISNUMBER(E4:E67)*E4:E67,ROW(INDIRECT("1:51")))) -> 97310095.28 | F70: =SUM(LARGE(ISNUMBER(H4:H67)*H4:H67,ROW(INDIRECT("1:51")))) -> 100773189 | I70: =SUM(LARGE(ISNUMBER(K4:K67)*K4:K67,ROW(INDIRECT("1:51")))) -> 91103012.31 | L70: =SUM(LARGE(ISNUMBER(N4:N67)*N4:N67,ROW(INDIRECT("1:51")))) -> 79410328.94
A71: Dead Money | C71: 38689539 | F71: 312735
A72: Cap Rollover | C72: 4106801 | F72: =C73 -> 1107166.722 | I72: =F73 -> 33021242.71 | L72: 74918230.4
A73: Cap Space | C73: =133000000-C70-C71+C72 -> 1107166.722 | F73: =133000000-F70-F71+F72 -> 33021242.71 | I73: =133000000-I70-I71+I72 -> 74918230.4 | L73: =133000000-L70-L71+L72 -> 128507901.5
A74: June 1st Cut | B74: 0/2
A75: Paycut | B75: 1/2
A76: Restructure | B76: 1/3
A78: Practice Squad
A79: Erik Swoope | B79: TE | C79: 420000 | E79: 420000 | F79: 510000 | H79: 510000 | I79: 600000 | K79: 600000 | M79: RFA
A80: Tyler Larsen | B80: C | C80: 420000 | E80: 420000 | F80: 510000 | H80: 510000 | I80: 600000 | K80: 600000 | M80: RFA
A81: Jimmy Staten | B81: DT | C81: 420000 | E81: 420000 | F81: 510000 | H81: 510000 | I81: 600000 | K81: 600000 | M81: RFA
A82: Terrence Fede | B82: DE | C82: 420000 | E82: 420000 | F82: 510000 | H82: 510000 | I82: 600000 | K82: 600000 | M82: RFA
A83: Carlos Fields Jr. | B83: OLB | C83: 420000 | E83: 420000 | F83: 510000 | H83: 510000 | I83: 600000 | K83: 600000 | M83: RFA
A84: Cameron Gordon | B84: OLB | C84: 420000 | E84: 420000 | F84: 510000 | H84: 510000 | I84: 600000 | K84: 600000 | M84: RFA
A85: Jerome Couplin III | B85: S | C85: 420000 | E85: 420000 | F85: 510000 | H85: 510000 | I85: 600000 | K85: 600000 | M85: RFA
A86: Demetri Goodson | B86: CB | C86: 420000 | E86: 420000 | F86: 510000 | H86: 510000 | I86: 600000 | K86: 600000 | M86: RFA

Sheet NO
C1: 2014 | F1: 2015 | I1: 2016 | L1: 2017 | O1: 2018 | R1: 2019 | U1: 2020
A2: Player | B2: Pos. | C2: Base Salary | D2: Signing Bonus | E2: Cap Figure | F2: Base Salary | G2: Signing Bonus | H2: Cap Figure | I2: Base Salary | J2: Signing Bonus | K2: Cap Figure | L2: Base Salary | M2: Signing Bonus | N2: Cap Figure | O2: Base Salary | P2: Signing Bonus | Q2: Cap Figure | R2: Base Salary | S2: Signing Bonus | T2: Cap Figure | U2: Base Salary | V2: Signing Bonus | W2: Cap Figure
A3: OFFENSE
A4: Drew Brees | B4: QB | C4: 11000000 | D4: 7400000 | E4: =D4+C4 -> 18400000 | F4: 19000000 | G4: 7400000 | H4: =G4+F4 -> 26400000 | I4: 20000000 | J4: 7400000 | K4: =J4+I4 -> 27400000 | M4: UFA
A5: Ryan Griffin | B5: QB | C5: 495000 | E5: =D5+C5 -> 495000 | F5: 585000 | H5: =G5+F5 -> 585000 | I5: 645000 | K5: =J5+I5 -> 645000 | M5: UFA
A7: Mark Ingram | B7: RB | C7: 1386375 | D7: 973500 | E7: =D7+C7 -> 2359875 | G7: 3-25 Option
A8: Khiry Robinson | B8: RB | C8: 495000 | D8: 333 | E8: 495333 | F8: 585000 | G8: 334 | H8: =G8+F8 -> 585334 | J8: RFA
A9: Darren Sproles | B9: RB | C9: 3500000 | D9: 750000 | E9: 4250000 | G9: UFA
A10: Austin Johnson | B10: FB | C10: 420000 | E10: 420000 | F10: 510000 | H10: =G10+F10 -> 510000 | J10: RFA
A11: Evan Rodrigez | B11: FB | C11: 730000 | E11: 730000 | F11: 730000 | H11: =G11+F11 -> 730000 | I11: 730000 | K11: =J11+I11 -> 730000 | M11: UFA
A13: Jace Amaro | B13: TE | C13: 420000 | D13: 1046120.232 | E13: 1466120.232 | F13: 823181.3284 | G13: 1046120.232 | H13: 1869301.56 | I13: 1172659.446 | J13: 1046120.232 | K13: 2218779.678 | L13: 1538392.36 | M13: 1046120.232 | N13: 2584512.592 | P13: TOP3-25 Option
A14: Josh Hill | B14: TE | C14: 495000 | E14: =D14+C14 -> 495000 | F14: 585000 | H14: =G14+F14 -> 585000 | J14: RFA
A15: Andrew Quarless | B15: TE | C15: 730000 | E15: =D15+C15 -> 730000 | F15: 730000 | H15: =G15+F15 -> 730000 | J15: UFA
A17: LaVon Brazill | B17: WR | C17: 570000 | E17: =D17+C17 -> 570000 | F17: 660000 | H17: =G17+F17 -> 660000 | J17: UFA
A18: Mike Brown | B18: WR | C18: 730000 | E18: =D18+C18 -> 730000 | F18: 730000 | H18: =G18+F18 -> 730000 | I18: 730000 | K18: =J18+I18 -> 730000 | M18: UFA
A19: Andrew Caldwell | B19: WR | C19: 855000 | E19: 855000 | F19: 855000 | H19: 855000 | I19: 855000 | K19: 855000 | M19: UFA
A20: Marques Colston | B20: WR | C20: 6300000 | D20: 2000000 | E20: =D20+C20 -> 8300000 | F20: 7700000 | G20: 2000000 | H20: =G20+F20 -> 9700000 | I20: 8500000 | J20: 2000000 | K20: =J20+I20 -> 10500000 | M20: UFA
A21: Kenny Stills | B21: WR | C21: 495000 | D21: 48613 | E21: =D21+C21 -> 543613 | F21: 585000 | G21: 48613 | H21: =G21+F21 -> 633613 | I21: 675000 | J21: 48613 | K21: =J21+I21 -> 723613 | M21: UFA
A23: T.J. Johnson | B23: C | C23: 495000 | E23: =D23+C23 -> 495000 | F23: 570000 | H23: =G23+F23 -> 570000 | I23: 645000 | K23: =J23+I23 -> 645000 | M23: UFA
A24: Steve Vallos | B24: C | C24: 730000 | D24: 100000 | E24: 830000 | F24: 730000 | G24: 100000 | H24: =G24+F24 -> 830000 | I24: 730000 | J24: 100000 | K24: =J24+I24 -> 830000 | M24: UFA
A25: Jeromey Clary | B25: G | C25: 2000000 | D25: 900000 | E25: 2900000 | F25: 2000000 | G25: 900000 | H25: 2900000 | I25: 2000000 | J25: 900000 | K25: 2900000 | L25: 2000000 | M25: 900000 | N25: 2900000 | O25: 2000000 | P25: 900000 | Q25: 2900000 | S25: UFA
A26: Ramon Foster | B26: G | C26: 1650000 | E26: 1650000 | F26: 1850000 | H26: =G26+F26 -> 1850000 | J26: UFA
A27: Senio Kelemete | B27: G | C27: 495000 | E27: 495000 | G27: RFA
A28: Tim Lelito | B28: G | C28: 495000 | D28: 1666 | E28: 496666 | F28: 585000 | G28: 1668 | H28: =G28+F28 -> 586668 | J28: RFA
A29: Terron Armstead | B29: LT | C29: 525000 | D29: 154359 | E29: 679359 | F29: 615000 | G29: 154359 | H29: =G29+F29 -> 769359 | I29: 705000 | J29: 154359 | K29: =J29+I29 -> 859359 | M29: UFA
A30: Cameron Fleming | B30: OT | C30: 420000 | D30: 239641.3321 | E30: 659641.3321 | F30: 609464.0524 | G30: 239641.3321 | H30: 849105.3845 | I30: 768209.8417 | J30: 239641.3321 | K30: 1007851.174 | L30: 934339.1561 | M30: 239641.3321 | N30: 1173980.488 | P30: UFA
A31: Ryan Schraeder | B31: OT | C31: 570000 | E31: 570000 | G31: ERFA
A32: Marcel Jones | B32: RT | C32: 420000 | E32: =D32+C32 -> 420000 | G32: RFA
A33: DEFENSE
A34: John Jenkins | B34: DT | C34: 515000 | D34: 141890 | E34: =D34+C34 -> 656890 | F34: 605000 | G34: 141890 | H34: =G34+F34 -> 746890 | I34: 700000 | J34: 141890 | K34: =J34+I34 -> 841890 | M34: UFA
A35: DaQuan Jones | B35: DT | C35: 420000 | D35: 142157.7642 | E35: 562157.7642 | F35: 522331.7437 | G35: 142157.7642 | H35: 664489.5079 | I35: 646562.3908 | J35: 142157.7642 | K35: 788720.1551 | L35: 776571.2076 | M35: 142157.7642 | N35: 918728.9718 | P35: UFA
A36: Mike Patterson | B36: DT | C36: 1500000 | D36: 150000 | E36: 1650000 | F36: 1500000 | G36: 150000 | H36: 1650000 | I36: 1500000 | J36: 150000 | K36: 1650000 | M36: UFA
A38: Glenn Foster | B38: DE | C38: 495000 | D38: 2333 | E38: =D38+C38 -> 497333 | F38: 585000 | G38: 2334 | H38: =G38+F38 -> 587334 | J38: UFA
A39: Akiem Hicks | B39: DE | C39: 582500 | D39: 135725 | E39: =D39+C39 -> 718225 | F39: 672500 | G39: 135725 | H39: =G39+F39 -> 808225 | J39: UFA
A40: DeMarcus Ware | B40: DE | C40: 8000000 | D40: 5000000 | E40: 13000000 | F40: 8000000 | G40: 5000000 | H40: 13000000 | I40: 8000000 | J40: 5000000 | K40: 13000000 | L40: 8000000 | M40: 5000000 | N40: 13000000 | O40: 8000000 | P40: 5000000 | Q40: 13000000 | S40: UFA
A41: Corey Wootton | B41: DE | C41: 1200000 | D41: 500000 | E41: =D41+C41 -> 1700000 | F41: 1200000 | G41: 500000 | H41: =G41+F41 -> 1700000 | I41: 1200000 | J41: 500000 | K41: =J41+I41 -> 1700000 | L41: 1200000 | M41: 500000 | N41: =M41+L41 -> 1700000 | O41: 1200000 | P41: 500000 | Q41: =P41+O41 -> 1700000 | S41: UFA
A43: David Hawthorne | B43: ILB | C43: 2750000 | D43: 760000 | E43: =D43+C43 -> 3510000 | F43: 5250000 | G43: 760000 | H43: =G43+F43 -> 6010000 | I43: 4750000 | J43: 760000 | K43: =J43+I43 -> 5510000 | M43: UFA
A44: Curtis Lofton | B44: ILB | C44: 4200000 | D44: 1000000 | E44: =D44+C44 -> 5200000 | F44: 8000000 | G44: 1000000 | H44: =G44+F44 -> 9000000 | I44: 5600000 | J44: 1000000 | K44: =J44+I44 -> 6600000 | L44: 7000000 | N44: =M44+L44 -> 7000000 | P44: UFA
A45: Zach Orr | B45: ILB | C45: 420000 | E45: 420000 | F45: 510000 | H45: 510000 | I45: 600000 | K45: 600000 | M45: RFA
A46: Kevin Reddick | B46: ILB | C46: 495000 | D46: 1666 | E46: =D46+C46 -> 496666 | F46: 585000 | G46: 1668 | H46: =G46+F46 -> 586668 | J46: RFA
A47: Carl Bradford | B47: OLB | C47: 420000 | D47: 227448.1602 | E47: 647448.1602 | F47: 606233.107 | G47: 227448.1602 | H47: 833681.2671 | I47: 762095.2569 | J47: 227448.1602 | K47: 989543.4171 | L47: 925206.8092 | M47: 227448.1602 | N47: 1152654.969 | P47: UFA
A48: Thomas Davis | B48: OLB | C48: 4416666 | E48: =D48+C48 -> 4416666 | F48: 8916668 | H48: =G48+F48 -> 8916668 | J48: UFA
A49: Marquis Flowers | B49: OLB | C49: 420000 | E49: 420000 | F49: 510000 | H49: 510000 | I49: 600000 | K49: 600000 | M49: RFA
A50: Junior Galette | B50: OLB | C50: 2000000 | D50: 900000 | E50: =D50+C50 -> 2900000 | F50: 2000000 | G50: 900000 | H50: =G50+F50 -> 2900000 | J50: UFA
A52: Thomas DeCoud | B52: S | C52: 2500000 | D52: 1200000 | E52: 3700000 | F52: 2500000 | G52: 1200000 | H52: 3700000 | I52: 2500000 | J52: 1200000 | K52: 3700000 | L52: 2500000 | M52: 1200000 | N52: 3700000 | P52: UFA
A53: Charles Godfrey | B53: S | C53: 750000 | D53: 150000 | E53: =D53+C53 -> 900000 | F53: 750000 | G53: 150000 | H53: =G53+F53 -> 900000 | I53: 750000 | J53: 150000 | K53: =J53+I53 -> 900000 | M53: UFA
A54: Vinnie Sunseri | B54: S | C54: 420000 | D54: 20961.3435 | E54: 440961.3435 | F54: 527738.2145 | G54: 20961.3435 | H54: 548699.558 | I54: 630321.1753 | J54: 20961.3435 | K54: 651282.5188 | L54: 737675.4367 | M54: 20961.3435 | N54: 758636.7801 | P54: UFA
A55: Kenny Vaccaro | B55: S | C55: 833396 | D55: 1308584 | E55: =D55+C55 -> 2141980 | F55: 1261792 | G55: 1308584 | H55: =G55+F55 -> 2570376 | I55: 1690188 | J55: 1308584 | K55: =J55+I55 -> 2998772 | M55: 3-25 Option
A57: Adrian Davis | B57: CB | C57: 420000 | D57: 3334 | E57: =D57+C57 -> 423334 | G57: ERFA
A58: Terrence Frederick | B58: CB | C58: 420000 | E58: 420000 | F58: 510000 | H58: =G58+F58 -> 510000 | J58: RFA
A59: Keenan Lewis | B59: CB | C59: 3350000 | D59: 1200000 | E59: 4550000 | F59: 4650000 | G59: 1200000 | H59: =G59+F59 -> 5850000 | I59: 5000000 | J59: 1200000 | K59: =J59+I59 -> 6200000 | L59: 5500000 | M59: 1200000 | N59: =M59+L59 -> 6700000 | P59: UFA
A60: Patrick Robinson | B60: CB | C60: 2362333 | D60: 442000 | E60: 2804333 | G60: UFA
A61: Rod Sweeting | B61: CB | C61: 495000 | D61: 1666 | E61: 496666 | F61: 585000 | G61: 1668 | H61: =G61+F61 -> 586668 | J61: RFA
A62: Corey White | B62: CB | C62: 570000 | D62: 44125 | E62: 614125 | F62: 660000 | G62: 44125 | H62: =G62+F62 -> 704125 | J62: UFA
A64: Randy Bullock | B64: K | C64: 645000 | E64: 645000 | G64: RFA
A65: Justin Drescher | B65: LS | C65: 750000 | D65: 110000 | E65: =D65+C65 -> 860000 | F65: 765000 | G65: 110000 | H65: =G65+F65 -> 875000 | I65: 780000 | J65: 110000 | K65: =J65+I65 -> 890000 | M65: UFA
A66: Thomas Morstead | B66: P | C66: 2535000 | D66: 700000 | E66: =D66+C66 -> 3235000 | F66: 2700000 | G66: 700000 | H66: =G66+F66 -> 3400000 | I66: 3750000 | J66: 700000 | K66: =J66+I66 -> 4450000 | L66: 4000000 | N66: =M66+L66 -> 4000000 | O66: 4150000 | Q66: =P66+O66 -> 4150000 | S66: UFA
A69: Total Players | C69: =COUNTA(C3:C67) -> 53 | F69: =COUNTA(F3:F67) -> 45 | I69: =COUNTA(I3:I67) -> 30 | L69: =COUNTA(L3:L67) -> 12
A70: Top 51 Salary | C70: =SUM(LARGE(ISNUMBER(E4:E67)*E4:E67,ROW(INDIRECT("1:51")))) -> 107222392.8 | F70: =SUM(LARGE(ISNUMBER(H4:H67)*H4:H67,ROW(INDIRECT("1:51")))) -> 120997205.3 | I70: =SUM(LARGE(ISNUMBER(K4:K67)*K4:K67,ROW(INDIRECT("1:51")))) -> 102114810.9 | L70: =SUM(LARGE(ISNUMBER(N4:N67)*N4:N67,ROW(INDIRECT("1:51")))) -> 45588513.8
A71: Dead Money | C71: 32595919 | F71: 970000
A72: Cap Rollover | C72: 500000 | F72: =C73 -> -6318311.832 | I72: =F73 -> 4714482.891 | L72: 35599671.95
A73: Cap Space | C73: =133000000-C70-C71+C72 -> -6318311.832 | F73: =133000000-F70-F71+F72 -> 4714482.891 | I73: =133000000-I70-I71+I72 -> 35599671.95 | L73: =133000000-L70-L71+L72 -> 123011158.1
A74: June 1st Cut | B74: 0/2
A75: Paycut | B75: 0/2
A76: Restructure | B76: 0/3
A78: Practice Squad
A79: Mike Davis | B79: WR | C79: 420000 | E79: 420000 | F79: 526334.1135 | G79: 38512.60569 | H79: 564846.7192 | I79: 631935.8914 | J79: 38512.60569 | K79: 670448.4971 | L79: 742449.38 | M79: 38512.60569 | N79: 780961.9857 | P79: UFA
A80: Demetrius Rhaney | B80: C | C80: 420000 | E80: 420000 | F80: 510000 | H80: 510000 | I80: 600000 | K80: 600000 | M80: RFA
A81: Ty Nsekhe | B81: RT | C81: 495000 | E81: =D81+C81 -> 495000 | F81: 585000 | H81: =G81+F81 -> 585000 | J81: RFA
A82: A.J. Francis | B82: DT | C82: 495000 | E82: =D82+C82 -> 495000 | G82: ERFA
A83: Chidera Uzo-Diribe | B83: DE | C83: 420000 | E83: 420000 | F83: 510000 | H83: 510000 | I83: 600000 | K83: 600000 | M83: RFA
A84: Kyle Knox | B84: OLB | C84: 420000 | E84: =D84+C84 -> 420000 | F84: 510000 | H84: =G84+F84 -> 510000 | J84: RFA
A85: Terrell Manning | B85: OLB | C85: 570000 | E85: =D85+C85 -> 570000 | G85: RFA
A86: Derek Dimke | B86: K | C86: 420000 | E86: =D86+C86 -> 420000 | F86: 510000 | H86: =G86+F86 -> 510000 | J86: ERFA

Sheet NYG
C1: 2014 | F1: 2015 | I1: 2016 | L1: 2017 | O1: 2018 | R1: 2019 | U1: 2020
A2: Player | B2: Pos. | C2: Base Salary | D2: Signing Bonus | E2: Cap Figure | F2: Base Salary | G2: Signing Bonus | H2: Cap Figure | I2: Base Salary | J2: Signing Bonus | K2: Cap Figure | L2: Base Salary | M2: Signing Bonus | N2: Cap Figure | O2: Base Salary | P2: Signing Bonus | Q2: Cap Figure | R2: Base Salary | S2: Signing Bonus | T2: Cap Figure | U2: Base Salary | V2: Signing Bonus | W2: Cap Figure
A3: OFFENSE
A4: Eli Manning | B4: QB | C4: 16400000 | D4: 2000000 | E4: =D4+C4 -> 18400000 | F4: 19750000 | G4: 2000000 | H4: =G4+F4 -> 21750000 | J4: UFA
A5: Ryan Nassib | B5: QB | C5: 495000 | D5: 113400 | E5: =D5+C5 -> 608400 | F5: 585000 | G5: 113400 | H5: =G5+F5 -> 698400 | I5: 675000 | J5: 113400 | K5: =J5+I5 -> 788400 | M5: UFA
A6: Curtis Painter | B6: QB | C6: 730000 | E6: 730000 | G6: UFA
A8: André Brown | B8: RB | C8: 1800000 | D8: 800000 | E8: =D8+C8 -> 2600000 | F8: 2000000 | G8: 800000 | H8: =G8+F8 -> 2800000 | I8: 2500000 | J8: 800000 | K8: =J8+I8 -> 3300000 | L8: 2500000 | M8: 800000 | N8: =M8+L8 -> 3300000 | P8: UFA
A9: Michael Cox | B9: RB | C9: 495000 | D9: 11474 | E9: =D9+C9 -> 506474 | F9: 585000 | G9: 11474 | H9: =G9+F9 -> 596474 | I9: 675000 | J9: 11474 | K9: =J9+I9 -> 686474 | M9: UFA
A10: Isaiah Pead | B10: RB | C10: 757100 | E10: =D10+C10 -> 757100 | F10: 940650 | H10: =G10+F10 -> 940650 | J10: UFA
A11: David Wilson | B11: RB | C11: 997682 | D11: 825364 | E11: =D11+C11 -> 1823046 | F11: 1301523 | G11: 825364 | H11: =G11+F11 -> 2126887 | J11: 3-25 Option
A12: John Conner | B12: FB | C12: 740000 | E12: =D12+C12 -> 740000 | G12: UFA
A14: Xavier Grimble | B14: TE | C14: 420000 | D14: 30847.38232 | E14: 450847.3823 | F14: 526947.3314 | G14: 30847.38232 | H14: 557794.7137 | I14: 631230.6909 | J14: 30847.38232 | K14: 662078.0732 | L14: 740364.4392 | M14: 30847.38232 | N14: 771211.8215 | P14: UFA
A15: Lance Kendricks | B15: TE | C15: 951177 | E15: =D15+C15 -> 951177 | G15: UFA
A16: Adrien Robinson | B16: TE | C16: 570000 | D16: 96413 | E16: =D16+C16 -> 666413 | F16: 660000 | G16: 96413 | H16: =G16+F16 -> 756413 | J16: UFA
A18: Kris Adams | B18: WR | C18: 495000 | E18: =D18+C18 -> 495000 | G18: RFA
A19: Victor Cruz | B19: WR | C19: 1524000 | D19: 2700000 | E19: =D19+C19 -> 4224000 | F19: 6225000 | G19: 2700000 | H19: =G19+F19 -> 8925000 | I19: 8000000 | J19: 2700000 | K19: =J19+I19 -> 10700000 | L19: 7500000 | M19: 2700000 | N19: =M19+L19 -> 10200000 | O19: 8500000 | P19: 800000 | Q19: =P19+O19 -> 9300000 | S19: UFA
A20: Jerrel Jernigan | B20: WR | C20: 670000 | D20: 143813 | E20: =D20+C20 -> 813813 | G20: UFA
A21: Rueben Randle | B21: WR | C21: 689266 | D21: 208533 | E21: =D21+C21 -> 897799 | F21: 838899 | G21: 208533 | H21: =G21+F21 -> 1047432 | J21: UFA
A22: Chris Givens | B22: WR | C22: 570000 | E22: =D22+C22 -> 570000 | F22: 660000 | H22: =G22+F22 -> 660000 | J22: UFA
A24: Nick Mangold | B24: C | C24: 4220000 | E24: =D24+C24 -> 4220000 | F24: 7400000 | H24: =G24+F24 -> 7400000 | I24: 8600000 | K24: =J24+I24 -> 8600000 | L24: 9075000 | N24: =M24+L24 -> 9075000 | P24: UFA
A25: James Brewer | B25: G | C25: 650000 | D25: 108023 | E25: =D25+C25 -> 758023 | G25: UFA
A26: Gabe Jackson | B26: G | C26: 420000 | D26: 279704.4591 | E26: 699704.4591 | F26: 620081.1487 | G26: 279704.4591 | H26: 899785.6079 | I26: 788301.9363 | J26: 279704.4591 | K26: 1068006.395 | L26: 964346.9465 | M26: 279704.4591 | N26: 1244051.406 | P26: UFA
A27: Brandon Mosley | B27: G | C27: 570000 | D27: 75146 | E27: =D27+C27 -> 645146 | F27: 660000 | G27: 75146 | H27: =G27+F27 -> 735146 | J27: UFA
A28: Geoff Schwarz | B28: G | C28: 4000000 | D28: 2500000 | E28: =D28+C28 -> 6500000 | F28: 4000000 | G28: 2500000 | H28: =G28+F28 -> 6500000 | I28: 4500000 | J28: 2500000 | K28: =J28+I28 -> 7000000 | L28: 5000000 | M28: 2500000 | N28: =M28+L28 -> 7500000 | O28: 5000000 | P28: 2500000 | Q28: =P28+O28 -> 7500000 | S28: UFA
A29: William Beatty | B29: LT | C29: 4900000 | D29: 2500000 | E29: 7400000 | F29: 5550000 | G29: 2500000 | H29: =G29+F29 -> 8050000 | I29: 6675000 | J29: 2500000 | K29: =J29+I29 -> 9175000 | L29: 6825000 | M29: 2500000 | N29: =M29+L29 -> 9325000 | P29: UFA
A30: Antonio Richardson | B30: OT | C30: 420000 | D30: 138854.248 | E30: 558854.248 | F30: 523208.774 | G30: 138854.248 | H30: 662063.022 | I30: 646985.7737 | J30: 138854.248 | K30: 785840.0217 | L30: 776519.8433 | M30: 138854.248 | N30: 915374.0912 | P30: UFA
A31: Eric Herman | B31: RT | C31: 420000 | E31: 420000 | F31: 510000 | H31: =G31+F31 -> 510000 | J31: RFA
A32: Justin Pugh | B32: RT | C32: 784359 | D32: 1112436 | E32: 1896795 | F32: 1163718 | G32: 1112436 | H32: =G32+F32 -> 2276154 | I32: 1543077 | J32: 1112436 | K32: =J32+I32 -> 2655513 | M32: 3-25 Option
A33: DEFENSE
A34: Johnathan Hankins | B34: DT | C34: 588213 | D34: 327852 | E34: =D34+C34 -> 916065 | F34: 771426 | G34: 327852 | H34: =G34+F34 -> 1099278 | I34: 954639 | J34: 327852 | K34: =J34+I34 -> 1282491 | M34: UFA
A35: Cullen Jenkins | B35: DT | C35: 2600000 | D35: 666666 | E35: =D35+C35 -> 3266666 | F35: 2250000 | G35: 666668 | H35: =G35+F35 -> 2916668 | J35: UFA
A36: Linval Joseph | B36: DT | C36: 5000000 | D36: 1800000 | E36: =D36+C36 -> 6800000 | F36: 5000000 | G36: 1800000 | H36: =G36+F36 -> 6800000 | I36: 4500000 | J36: 1800000 | K36: =J36+I36 -> 6300000 | L36: 4000000 | M36: 1800000 | N36: =M36+L36 -> 5800000 | O36: 4000000 | P36: 1800000 | Q36: =P36+O36 -> 5800000 | S36: UFA
A37: Markus Kuhn | B37: DT | C37: 570000 | D37: 11474 | E37: =D37+C37 -> 581474 | F37: 660000 | G37: 11474 | H37: =G37+F37 -> 671474 | J37: UFA
A39: Mathias Kiwanuka | B39: DE | C39: 1000000 | D39: 800000 | E39: =D39+C39 -> 1800000 | F39: 1200000 | G39: 800000 | H39: =G39+F39 -> 2000000 | I39: 1400000 | J39: 800000 | K39: =J39+I39 -> 2200000 | M39: UFA
A40: Damontre Moore | B40: DE | C40: 515000 | D40: 143813 | E40: =D40+C40 -> 658813 | F40: 605000 | G40: 143813 | H40: =G40+F40 -> 748813 | I40: 700000 | J40: 143813 | K40: =J40+I40 -> 843813 | M40: UFA
A41: Jason Pierre-Paul | B41: DE | C41: 4461000 | D41: 150000 | E41: =D41+C41 -> 4611000 | F41: 1880000 | G41: 150000 | H41: =G41+F41 -> 2030000 | J41: UFA
A42: Justin Tuck | B42: DE | C42: 2300000 | D42: 2000000 | E42: =D42+C42 -> 4300000 | F42: 2300000 | G42: 2000000 | H42: =G42+F42 -> 4300000 | I42: 2300000 | J42: 2000000 | K42: =J42+I42 -> 4300000 | M42: UFA
A44: Jon Beason | B44: ILB | C44: 3800000 | D44: 2400000 | E44: =D44+C44 -> 6200000 | F44: 3800000 | G44: 2400000 | H44: =G44+F44 -> 6200000 | I44: 3800000 | J44: 2400000 | K44: =J44+I44 -> 6200000 | M44: UFA
A45: Jonas Mouton | B45: ILB | C45: 730000 | E45: 730000 | G45: RFA
A46: Emmanuel Acho | B46: OLB | C46: 645000 | E46: 645000 | G46: RFA
A47: Spencer Paysinger | B47: OLB | C47: 1000000 | D47: 500000 | E47: =D47+C47 -> 1500000 | F47: 1000000 | G47: 500000 | H47: =G47+F47 -> 1500000 | I47: 1000000 | J47: 500000 | K47: =J47+I47 -> 1500000 | M47: UFA
A48: Sean Weatherspoon | B48: OLB | C48: 4032500 | E48: =D48+C48 -> 4032500 | G48: UFA
A49: Jacquian Williams | B49: OLB | C49: 1389000 | D49: 19670 | E49: =D49+C49 -> 1408670 | G49: UFA
A51: Stevie Brown | B51: S | C51: 2500000 | D51: 1800000 | E51: =D51+C51 -> 4300000 | F51: 2500000 | G51: 1800000 | H51: =G51+F51 -> 4300000 | I51: 2000000 | J51: 1800000 | K51: =J51+I51 -> 3800000 | L51: 1000000 | M51: 1800000 | N51: =M51+L51 -> 2800000 | P51: UFA
A52: Will Hill | B52: S | C52: 570000 | E52: =D52+C52 -> 570000 | G52: RFA
A53: Zeke Motta | B53: S | C53: 495000 | E53: =D53+C53 -> 495000 | F53: 585000 | H53: =G53+F53 -> 585000 | I53: 675000 | K53: =J53+I53 -> 675000 | M53: UFA
A54: Antrel Rolle | B54: S | C54: 2000000 | D54: 5000000 | E54: =D54+C54 -> 7000000 | F54: 3100000 | G54: 3000000 | H54: =G54+F54 -> 6100000 | I54: 3100000 | J54: 3000000 | K54: =J54+I54 -> 6100000 | L54: 3000000 | M54: 3000000 | N54: =M54+L54 -> 6000000 | P54: UFA
A55: Cooper Taylor | B55: S | C55: 495000 | D55: 46813 | E55: =D55+C55 -> 541813 | F55: 585000 | G55: 46813 | H55: =G55+F55 -> 631813 | I55: 675000 | J55: 46813 | K55: =J55+I55 -> 721813 | M55: UFA
A57: Prince Amukamara | B57: CB | C57: 1490577 | D57: 1112436 | E57: =D57+C57 -> 2603013 | F57: 7169197 | G57: 0 | H57: =G57+F57 -> 7169197 | J57: UFA
A58: Jayron Hosley | B58: CB | C58: 577500 | D58: 128750 | E58: =D58+C58 -> 706250 | F58: 667500 | G58: 128750 | H58: =G58+F58 -> 796250 | J58: UFA
A59: Charles James | B59: CB | C59: 495000 | E59: =D59+C59 -> 495000 | G59: ERFA
A60: Keith McGill | B60: CB | C60: 420000 | D60: 165035.1472 | E60: 585035.1472 | F60: 545011.5124 | G60: 165035.1472 | H60: 710046.6596 | I60: 677759.3662 | J60: 165035.1472 | K60: 842794.5133 | L60: 816681.5387 | M60: 165035.1472 | N60: 981716.6858 | P60: UFA
A61: Chris Owens | B61: CB | C61: 813000 | E61: =D61+C61 -> 813000 | F61: 813000 | H61: =G61+F61 -> 813000 | I61: 813000 | K61: =J61+I61 -> 813000 | M61: UFA
A62: Eric Wright | B62: CB | C62: 855000 | E62: =D62+C62 -> 855000 | F62: 855000 | H62: =G62+F62 -> 855000 | J62: UFA
A64: Nick Folk | B64: K | C64: 855000 | D64: 45000 | E64: =D64+C64 -> 900000 | F64: 855000 | G64: 45000 | H64: =G64+F64 -> 900000 | J64: UFA
A65: Zak DeOssie | B65: LS | C65: 950000 | D65: 200000 | E65: =D65+C65 -> 1150000 | F65: 1000000 | G65: 200000 | H65: =G65+F65 -> 1200000 | J65: UFA
A66: Steve Weatherford | B66: P | C66: 1050000 | D66: 875000 | E66: =D66+C66 -> 1925000 | F66: 2200000 | G66: 875000 | H66: =G66+F66 -> 3075000 | I66: 2600000 | J66: 875000 | K66: =J66+I66 -> 3475000 | M66: UFA
A69: Total Players | C69: =COUNTA(C3:C67) -> 53 | F69: =COUNTA(F3:F67) -> 41 | I69: =COUNTA(I3:I67) -> 25 | L69: =COUNTA(L3:L67) -> 12
A70: Top 51 Salary | C70: =SUM(LARGE(ISNUMBER(E4:E78)*E4:E78,ROW(INDIRECT("1:51")))) -> 117851043.9 | F70: =SUM(LARGE(ISNUMBER(H4:H78)*H4:H78,ROW(INDIRECT("1:51")))) -> 123293739 | I70: =SUM(LARGE(ISNUMBER(K4:K78)*K4:K78,ROW(INDIRECT("1:51")))) -> 84475223 | L70: =SUM(LARGE(ISNUMBER(N4:N78)*N4:N78,ROW(INDIRECT("1:51")))) -> 57912354
A71: Dead Money | C71: 14753141 | F71: 2225000
A72: Cap Rollover | C72: 0 | F72: =C73 -> 395815.1457 | I72: =F73 -> 7877076.143 | L72: 56401853.14
A73: Cap Space | C73: =133000000-C70-C71+C72 -> 395815.1457 | F73: =133000000-F70-F71+F72 -> 7877076.143 | I73: =133000000-I70-I71+I72 -> 56401853.14 | L73: =133000000-L70-L71+L72 -> 131489499.1
A74: June 1st Cut | B74: 1/2
A75: Paycut | B75: 1/2
A76: Restructure | B76: 2/3
A78: Practice Squad
A79: Travis Harvey | B79: WR | C79: 420000 | E79: 420000 | G79: ERFA
A80: Jamaal Johnson-Webb | B80: OT | C80: 420000 | E80: 420000 | F80: 510000 | H80: 510000 | I80: 600000 | K80: 600000 | M80: RFA
A81: Jordan Stanton | B81: DE | C81: 420000 | E81: 420000 | G81: ERFA
A82: Steele Divitto | B82: ILB | C82: 420000 | E82: 420000 | F82: 510000 | H82: 510000 | I82: 600000 | K82: 600000 | M82: RFA
A83: Bene Benwikere | B83: CB | C83: 420000 | E83: 420000 | F83: 510000 | H83: 510000 | I83: 600000 | K83: 600000 | M83: RFA
A84: Dashaun Phillips | B84: CB | C84: 420000 | E84: 420000 | F84: 510000 | H84: 510000 | I84: 600000 | K84: 600000 | M84: RFA
A85: Kyle Sebetic | B85: CB | C85: 420000 | E85: 420000 | G85: ERFA
A86: Brandon McManus | B86: K | C86: 420000 | E86: 420000 | F86: 510000 | H86: 510000 | I86: 600000 | K86: 600000 | M86: RFA

Sheet NYJ
C1: 2014 | F1: 2015 | I1: 2016 | L1: 2017 | O1: 2018 | R1: 2019 | U1: 2020
A2: Player | B2: Pos. | C2: Base Salary | D2: Signing Bonus | E2: Cap Figure | F2: Base Salary | G2: Signing Bonus | H2: Cap Figure | I2: Base Salary | J2: Signing Bonus | K2: Cap Figure | L2: Base Salary | M2: Signing Bonus | N2: Cap Figure | O2: Base Salary | P2: Signing Bonus | Q2: Cap Figure | R2: Base Salary | S2: Signing Bonus | T2: Cap Figure | U2: Base Salary | V2: Signing Bonus | W2: Cap Figure
A3: OFFENSE
A4: Connor Shaw | B4: QB | C4: 420000 | D4: 17840.05346 | E4: 437840.0535 | F4: 527987.9177 | G4: 17840.05346 | H4: 545827.9711 | I4: 630034.0166 | J4: 17840.05346 | K4: 647874.0701 | L4: 736826.4458 | M4: 17840.05346 | N4: 754666.4992 | P4: UFA
A5: Geno Smith | B5: QB | C5: 633164 | D5: 507655 | E5: =D5+C5 -> 1140819 | F5: 861328 | G5: 507655 | H5: =G5+F5 -> 1368983 | I5: 1089491 | J5: 507655 | K5: =J5+I5 -> 1597146 | M5: UFA
A6: Logan Thomas | B6: QB | C6: 420000 | D6: 25842.02236 | E6: 445842.0224 | F6: 527347.7602 | G6: 25842.02236 | H6: 553189.7825 | I6: 630770.1978 | J6: 25842.02236 | K6: 656612.2201 | L6: 739002.9813 | M6: 25842.02236 | N6: 764845.0037 | P6: UFA
A8: Kenjon Barner | B8: RB | C8: 495000 | E8: =D8+C8 -> 495000 | F8: 585000 | H8: =G8+F8 -> 585000 | I8: 675000 | K8: =J8+I8 -> 675000 | M8: UFA
A9: Chris Ivory | B9: RB | C9: 1000000 | D9: 750000 | E9: =D9+C9 -> 1750000 | F9: 2000000 | G9: 750000 | H9: =G9+F9 -> 2750000 | J9: UFA
A10: Bilal Powell | B10: RB | C10: 1389000 | D10: 100125 | E10: =D10+C10 -> 1489125 | G10: UFA
A11: Tommy Bohanon | B11: FB | C11: 495000 | D11: 15562 | E11: =D11+C11 -> 510562 | F11: 585000 | G11: 15562 | H11: =G11+F11 -> 600562 | I11: 675000 | J11: 15562 | K11: =J11+I11 -> 690562 | M11: UFA
A13: Marcedes Lewis | B13: TE | C13: 6850000 | E13: =D13+C13 -> 6850000 | F13: 6800000 | H13: =G13+F13 -> 6800000 | J13: UFA
A14: Austin Seferian-Jenkins | B14: TE | C14: 420000 | D14: 610656.0463 | E14: 1030656.046 | F14: 707783.1968 | G14: 610656.0463 | H14: 1318439.243 | I14: 954274.0118 | J14: 610656.0463 | K14: 1564930.058 | L14: 1212229.516 | M14: 610656.0463 | N14: 1822885.562 | P14: UFA
A15: Zach Sudfeld | B15: TE | C15: 495000 | E15: =D15+C15 -> 495000 | F15: 585000 | H15: =G15+F15 -> 585000 | J15: RFA
A17: Andrew Hawkins | B17: WR | C17: 2000000 | D17: 1500000 | E17: =D17+C17 -> 3500000 | F17: 2000000 | G17: 1500000 | H17: =G17+F17 -> 3500000 | I17: 2000000 | J17: 1500000 | K17: =J17+I17 -> 3500000 | M17: UFA
A18: T.J. Jones | B18: WR | C18: 420000 | D18: 48394.38191 | E18: 468394.3819 | F18: 525543.5714 | G18: 48394.38191 | H18: 573937.9533 | I18: 632845.0148 | J18: 48394.38191 | K18: 681239.3968 | L18: 745137.2231 | M18: 48394.38191 | N18: 793531.605 | P18: UFA
A19: Jeremy Kerley | B19: WR | C19: 3500000 | D19: 546062 | E19: =D19+C19 -> 4046062 | F19: 3000000 | G19: 500000 | H19: =G19+F19 -> 3500000 | I19: 2500000 | J19: 500000 | K19: =J19+I19 -> 3000000 | M19: UFA
A20: Marvin McNutt | B20: WR | C20: 570000 | E20: =D20+C20 -> 570000 | G20: RFA
A21: Emmanuel Sanders | B21: WR | C21: 2500000 | D21: 2000000 | E21: =D21+C21 -> 4500000 | F21: 3500000 | G21: 2000000 | H21: =G21+F21 -> 5500000 | I21: 5000000 | J21: 2000000 | K21: =J21+I21 -> 7000000 | L21: 5000000 | M21: 2000000 | N21: =M21+L21 -> 7000000 | P21: UFA
A22: Mike Williams | B22: WR | C22: 1800000 | E22: =D22+C22 -> 1800000 | F22: 6800000 | H22: =G22+F22 -> 6800000 | I22: 7200000 | K22: =J22+I22 -> 7200000 | L22: 7500000 | N22: =M22+L22 -> 7500000 | O22: 8750000 | Q22: =P22+O22 -> 8750000 | S22: UFA
A24: Gabe Ikard | B24: C | C24: 420000 | D24: 16711.52967 | E24: 436711.5297 | F24: 528078.1996 | G24: 16711.52967 | H24: 544789.7293 | I24: 629930.1924 | J24: 16711.52967 | K24: 646641.7221 | L24: 736519.4873 | M24: 16711.52967 | N24: 753231.017 | P24: UFA
A25: Peter Konz | B25: C | C25: 716236 | E25: =D25+C25 -> 716236 | F25: 879354 | H25: =G25+F25 -> 879354 | J25: UFA
A26: William Campbell | B26: G | C26: 495000 | D26: 27625 | E26: 522625 | F26: 585000 | G26: 27625 | H26: 612625 | I26: 675000 | J26: 27625 | K26: =J26+I26 -> 702625 | M26: UFA
A27: Dakota Dozier | B27: G | C27: 420000 | D27: 244867.2817 | E27: 664867.2817 | F27: 610849.1742 | G27: 244867.2817 | H27: 855716.4559 | I27: 770830.9463 | J27: 244867.2817 | K27: 1015698.228 | L27: 938253.7312 | M27: 244867.2817 | N27: 1183121.013 | P27: UFA
A28: Vladimir Ducasse | B28: G | C28: 1000000 | E28: 1000000 | G28: UFA
A29: Brian Winters | B29: G | C29: 529000 | D29: 160969 | E29: 689969 | F29: 618000 | G29: 160969 | H29: 778969 | I29: 708000 | J29: 160969 | K29: =J29+I29 -> 868969 | M29: UFA
A30: D' Brickashaw Ferguson | B30: LT | C30: 11431999 | D30: 266666 | E30: =D30+C30 -> 11698665 | F30: 11431999 | G30: 266666 | H30: =G30+F30 -> 11698665 | I30: 17250000 | K30: =J30+I30 -> 17250000 | L30: 14307000 | N30: =M30+L30 -> 14307000 | P30: UFA
A31: Bryant McKinnie | B31: LT | C31: 1000000 | E31: =D31+C31 -> 1000000 | G31: UFA
A32: Oday Aboushi | B32: RT | C32: 495000 | D32: 49750 | E32: =D32+C32 -> 544750 | F32: 585000 | G32: 49750 | H32: =G32+F32 -> 634750 | I32: 675000 | J32: 49750 | K32: =J32+I32 -> 724750 | M32: UFA
A33: Austin Howard | B33: RT | C33: 5000000 | D33: 1750000 | E33: 6750000 | F33: 5000000 | G33: 1750000 | H33: 6750000 | I33: 5000000 | J33: 1750000 | K33: =J33+I33 -> 6750000 | L33: 5000000 | M33: 1750000 | N33: =M33+L33 -> 6750000 | P33: UFA
A34: DEFENSE
A35: Kenrick Ellis | B35: DT | C35: 685000 | D35: 112500 | E35: =D35+C35 -> 797500 | G35: UFA
A36: Paul Soliai | B36: DT | C36: 4500000 | D36: 750000 | E36: =D36+C36 -> 5250000 | F36: 4500000 | G36: 750000 | H36: =G36+F36 -> 5250000 | I36: 4500000 | J36: 750000 | K36: =J36+I36 -> 5250000 | M36: UFA
A38: Jake Bequette | B38: DE | C38: 575000 | E38: =D38+C38 -> 575000 | F38: 665000 | H38: =G38+F38 -> 665000 | J38: UFA
A39: Will Clarke | B39: DE | C39: 420000 | D39: 56226.9124 | E39: 476226.9124 | F39: 524916.969 | G39: 56226.9124 | H39: 581143.8814 | I39: 633565.6076 | J39: 56226.9124 | K39: 689792.52 | L39: 747267.6714 | M39: 56226.9124 | N39: 803494.5838 | P39: UFA
A40: Quinton Coples | B40: DE | C40: 1190254 | D40: 1210508 | E40: =D40+C40 -> 2400762 | F40: 1590381 | G40: 1210508 | H40: =G40+F40 -> 2800889 | J40: 3-25 Option
A41: Kapron Lewis-Moore | B41: DE | C41: 495000 | E41: =D41+C41 -> 495000 | F41: 585000 | H41: =G41+F41 -> 585000 | I41: 675000 | K41: =J41+I41 -> 675000 | L41: 675000 | N41: =M41+L41 -> 675000 | P41: UFA
A42: Sheldon Richardson | B42: DE | C42: 862000 | D42: 1423000 | E42: =D42+C42 -> 2285000 | F42: 1319000 | G42: 1423000 | H42: =G42+F42 -> 2742000 | I42: 1776000 | J42: 1423000 | K42: =J42+I42 -> 3199000 | M42: 3-25 Option
A44: Nick Bellore | B44: ILB | C44: 1427080 | E44: =D44+C44 -> 1427080 | G44: UFA
A45: Demario Davis | B45: ILB | C45: 620000 | D45: 144490 | E45: =D45+C45 -> 764490 | F45: 710000 | G45: 144490 | H45: =G45+F45 -> 854490 | J45: UFA
A46: David Harris | B46: ILB | C46: 5000000 | D46: 2000000 | E46: 7000000 | G46: UFA
A47: Joe Mays | B47: ILB | C47: 1000000 | D47: 500000 | E47: 1500000 | F47: 1000000 | G47: 500000 | H47: =G47+F47 -> 1500000 | J47: UFA
A48: Antwan Barnes | B48: OLB | C48: 1200000 | D48: 300000 | E48: 1500000 | F48: 1200000 | G48: 300000 | H48: =G48+F48 -> 1500000 | J48: UFA
A49: Khalil Mack | B49: OLB | C49: 420000 | D49: 3554391.679 | E49: 3974391.679 | F49: 1487873.139 | G49: 3554391.679 | H49: 5042264.818 | I49: 2430557.432 | J49: 3554391.679 | K49: 5984949.11 | L49: 3417087.505 | M49: 3554391.679 | N49: 6971479.184 | P49: TOP10 Option
A50: Garrett McIntyre | B50: OLB | C50: 1427080 | E50: =D50+C50 -> 1427080 | G50: UFA
A51: Nick Perry | B51: OLB | C51: 1071750 | E51: =D51+C51 -> 1071750 | F51: 1412625 | H51: =G51+F51 -> 1412625 | J51: 3-25 Option
A53: Deone Bucannon | B53: S | C53: 420000 | D53: 222223.2762 | E53: 642223.2762 | F53: 604848.6353 | G53: 222223.2762 | H53: 827071.9115 | I53: 759475.1231 | J53: 222223.2762 | K53: 981698.3993 | L53: 921293.5405 | M53: 222223.2762 | N53: 1143516.817 | P53: UFA
A54: Josh Bush | B54: S | C54: 570000 | D54: 26055 | E54: =D54+C54 -> 596055 | F54: 660000 | G54: 26055 | H54: =G54+F54 -> 686055 | J54: UFA
A55: Dawan Landry | B55: S | C55: 1500000 | D55: 325000 | E55: =D55+C55 -> 1825000 | G55: UFA
A56: Rontez Miles | B56: S | C56: 420000 | E56: =D56+C56 -> 420000 | F56: 510000 | H56: =G56+F56 -> 510000 | J56: ERFA
A58: Ricardo Allen | B58: CB | C58: 420000 | D58: 34319.27134 | E58: 454319.2713 | F58: 526669.5802 | G58: 34319.27134 | H58: 560988.8516 | I58: 631550.1047 | J58: 34319.27134 | K58: 665869.376 | L58: 741308.793 | M58: 34319.27134 | N58: 775628.0644 | P58: UFA
A59: Phillip Gaines | B59: CB | C59: 420000 | D59: 153254.3819 | E59: 573254.3819 | F59: 533086.245 | G59: 153254.3819 | H59: 686340.6269 | I59: 661402.1013 | J59: 153254.3819 | K59: 814656.4832 | L59: 795686.137 | M59: 153254.3819 | N59: 948940.5189 | P59: UFA
A60: Rashean Mathis | B60: CB | C60: 1000000 | E60: 1000000 | G60: UFA
A61: Dee Milliner | B61: CB | C61: 980505 | D61: 1897000 | E61: =D61+C61 -> 2877505 | F61: 1556010 | G61: 1897000 | H61: =G61+F61 -> 3453010 | I61: 2131424 | J61: 1897000 | K61: =J61+I61 -> 4028424 | M61: TOP10 Option
A62: Kyle Wilson | B62: CB | C62: 2040000 | D62: 222400 | E62: =D62+C62 -> 2262400 | G62: UFA
A64: Cairo Santos | B64: K | C64: 420000 | D64: 17982.85061 | E64: 437982.8506 | F64: 527976.4939 | G64: 17982.85061 | H64: 545959.3445 | I64: 630047.154 | J64: 17982.85061 | K64: 648030.0046 | L64: 736865.2866 | M64: 17982.85061 | N64: 754848.1372 | P64: UFA
A65: Tanner Purdum | B65: LS | C65: 730000 | D65: 65000 | E65: =D65+C65 -> 795000 | G65: UFA
A66: Ryan Quigley | B66: P | C66: 495000 | E66: =D66+C66 -> 495000 | F66: 585000 | H66: =G66+F66 -> 585000 | J66: RFA
A69: Total Players | C69: =COUNTA(C3:C67) -> 53 | F69: =COUNTA(F3:F67) -> 41 | I69: =COUNTA(I3:I67) -> 28 | L69: =COUNTA(L3:L67) -> 17
A70: Top 51 Salary | C70: =SUM(LARGE(ISNUMBER(E4:E73)*E4:E73,ROW(INDIRECT("1:51")))) -> 96019433.16 | F70: =SUM(LARGE(ISNUMBER(H4:H73)*H4:H73,ROW(INDIRECT("1:51")))) -> 88523647.57 | I70: =SUM(LARGE(ISNUMBER(K4:K73)*K4:K73,ROW(INDIRECT("1:51")))) -> 78109467.59 | L70: =SUM(LARGE(ISNUMBER(N4:N73)*N4:N73,ROW(INDIRECT("1:51")))) -> 53702188
A71: Dead Money | C71: 18287141 | F71: 3530277
A72: Cap Rollover | C72: 1473437 | F72: =C73 -> 20166862.84 | I72: =F73 -> 61112938.27 | L72: 116003470.7
A73: Cap Space | C73: =133000000-C70-C71+C72 -> 20166862.84 | F73: =133000000-F70-F71+F72 -> 61112938.27 | I73: =133000000-I70-I71+I72 -> 116003470.7 | L73: =133000000-L70-L71+L72 -> 195301282.7
A74: June 1st Cut | B74: 0/2
A75: Paycut | B75: 1/2
A76: Restructure | B76: 0/3
A78: Practice Squad
A79: Storm Johnson | B79: RB | C79: 420000 | E79: 420000 | F79: 527443.4129 | G79: 24646.3626 | H79: 552089.7755 | I79: 630660.1971 | J79: 24646.3626 | K79: 655306.5597 | L79: 738677.7618 | M79: 24646.3626 | N79: 763324.1244 | P79: UFA
A80: Nik Embernate | B80: G | C80: 420000 | E80: 420000 | F80: 510000 | H80: 510000 | J80: RFA
A81: Kevin Pamphile | B81: OT | C81: 420000 | E81: =D81+C81 -> 420000 | F81: 510000 | H81: 510000 | I81: 600000 | K81: 600000 | M81: RFA
A82: Hebron Fangupo | B82: DT | C82: 495000 | E82: 495000 | F82: 585000 | H82: 585000 | J82: RFA
A83: Kerry Hyder | B83: DT | C83: 420000 | E83: =D83+C83 -> 420000 | F83: 510000 | H83: 510000 | I83: 600000 | K83: 600000 | M83: RFA
A84: Brandon Bishop | B84: S | C84: 420000 | E84: =D84+C84 -> 420000 | F84: 510000 | H84: =G84+F84 -> 510000 | J84: ERFA
A85: Brandon Dixon | B85: CB | C85: 420000 | E85: =D85+C85 -> 420000 | F85: 510000 | H85: 510000 | I85: 600000 | K85: 600000 | M85: RFA
A86: Jabari Price | B86: CB | C86: 420000 | E86: =D86+C86 -> 420000 | F86: 510000 | H86: 510000 | I86: 600000 | K86: 600000 | M86: RFA

Sheet OAK
C1: 2014 | F1: 2015 | I1: 2016 | L1: 2017 | O1: 2018 | R1: 2019 | U1: 2020
A2: Player | B2: Pos. | C2: Base Salary | D2: Signing Bonus | E2: Cap Figure | F2: Base Salary | G2: Signing Bonus | H2: Cap Figure | I2: Base Salary | J2: Signing Bonus | K2: Cap Figure | L2: Base Salary | M2: Signing Bonus | N2: Cap Figure | O2: Base Salary | P2: Signing Bonus | Q2: Cap Figure | R2: Base Salary | S2: Signing Bonus | T2: Cap Figure | U2: Base Salary | V2: Signing Bonus | W2: Cap Figure
A3: OFFENSE
A4: Derek Carr | B4: QB | C4: 420000 | D4: 182250.7295 | E4: 602250.7295 | F4: 560997.121 | G4: 182250.7295 | H4: 743247.8505 | I4: 699952.154 | J4: 182250.7295 | K4: 882202.8834 | L4: 845370.2117 | M4: 182250.7295 | N4: 1027620.941 | P4: UFA
A5: Matt McGloin | B5: QB | C5: 495000 | E5: =D5+C5 -> 495000 | F5: 585000 | H5: =G5+F5 -> 585000 | J5: RFA
A6: Matt Moore | B6: QB | C6: 900000 | E6: =D6+C6 -> 900000 | F6: 900000 | H6: =G6+F6 -> 900000 | J6: UFA
A8: Latavius Murray | B8: RB | C8: 420000 | D8: 26550 | E8: =D8+C8 -> 446550 | F8: 585000 | G8: 26550 | H8: =G8+F8 -> 611550 | I8: 675000 | J8: 26550 | K8: =J8+I8 -> 701550 | M8: UFA
A9: Ben Tate | B9: RB | C9: 1000000 | D9: 2000000 | E9: =D9+C9 -> 3000000 | F9: 1000000 | G9: 2000000 | H9: =G9+F9 -> 3000000 | I9: 1000000 | J9: 2000000 | K9: =J9+I9 -> 3000000 | M9: UFA
A10: Ryan Williams | B10: RB | C10: 1057832 | E10: =D10+C10 -> 1057832 | G10: UFA
A11: Marcel Reece | B11: FB | C11: 3100000 | D11: 880838 | E11: =D11+C11 -> 3980838 | F11: 2600000 | G11: 880838 | H11: =G11+F11 -> 3480838 | I11: 2650000 | J11: 880838 | K11: =J11+I11 -> 3530838 | M11: UFA
A13: David Ausberry | B13: TE | C13: 645000 | D13: 11475 | E13: =D13+C13 -> 656475 | G13: UFA
A14: Coby Fleener | B14: TE | C14: 875604 | E14: =D14+C14 -> 875604 | F14: 1118406 | H14: =G14+F14 -> 1118406 | J14: UFA
A15: Mychal Rivera | B15: TE | C15: 495000 | D15: 26213 | E15: =D15+C15 -> 521213 | F15: 585000 | G15: 26213 | H15: =G15+F15 -> 611213 | I15: 675000 | J15: 26213 | K15: =J15+I15 -> 701213 | M15: UFA
A17: Ted Ginn Jr. | B17: WR | C17: 800000 | D17: 250000 | E17: =D17+C17 -> 1050000 | F17: 800000 | G17: 250000 | H17: =G17+F17 -> 1050000 | I17: 800000 | J17: 250000 | K17: =J17+I17 -> 1050000 | M17: UFA
A18: Andre Holmes | B18: WR | C18: 645000 | E18: 645000 | G18: UFA
A19: James Jones | B19: WR | C19: 2000000 | D19: 1600000 | E19: 3600000 | F19: 2000000 | G19: 1600000 | H19: =G19+F19 -> 3600000 | I19: 2000000 | J19: 1600000 | K19: =J19+I19 -> 3600000 | M19: UFA
A20: Denarius Moore | B20: WR | C20: 1389000 | D20: 47513 | E20: 1436513 | G20: UFA
A21: Rod Streater | B21: WR | C21: 570000 | D21: 3333 | E21: 573333 | G21: RFA
A23: Jarrod Shaw | B23: C | C23: 495000 | E23: =D23+C23 -> 495000 | G23: RFA
A24: Stefen Wisniewski | B24: C | C24: 938919 | D24: 376891 | E24: 1315810 | G24: UFA
A25: Tony Bergstrom | B25: G | C25: 570000 | D25: 126504 | E25: 696504 | F25: 660000 | G25: 126504 | H25: =G25+F25 -> 786504 | J25: UFA
A26: Mike Brisiel | B26: G | C26: 4750000 | D26: 560000 | E26: 5310000 | F26: 4750000 | G26: 560000 | H26: =G26+F26 -> 5310000 | I26: 4750000 | J26: 560000 | K26: =J26+I26 -> 5310000 | M26: UFA
A27: Jack Cornell | B27: G | C27: 495000 | E27: 495000 | G27: RFA
A28: Lucas Nix | B28: G | C28: 570000 | D28: 4168 | E28: 574168 | G28: RFA
A29: Khalif Barnes | B29: LT | C29: 1100000 | D29: 100000 | E29: =D29+C29 -> 1200000 | G29: UFA
A30: Jared Veldheer | B30: LT | C30: 7600000 | D30: 2400000 | E30: =D30+C30 -> 10000000 | F30: 7600000 | G30: 2400000 | H30: =G30+F30 -> 10000000 | I30: 7600000 | J30: 2400000 | K30: =J30+I30 -> 10000000 | L30: 7600000 | M30: 2400000 | N30: =M30+L30 -> 10000000 | O30: 7600000 | P30: 2400000 | Q30: =P30+O30 -> 10000000 | S30: UFA
A31: Sebastian Vollmer | B31: RT | C31: 2000000 | E31: 2000000 | F31: 4187500 | H31: =G31+F31 -> 4187500 | I31: 4187500 | K31: =J31+I31 -> 4187500 | M31: UFA
A32: Menelik Watson | B32: RT | C32: 622948 | D32: 466791 | E32: 1089739 | F32: 840896 | G32: 466791 | H32: =G32+F32 -> 1307687 | I32: 1058844 | J32: 466791 | K32: =J32+I32 -> 1525635 | M32: UFA
A33: DEFENSE
A34: Aubrayo Franklin | B34: DT | C34: 1000000 | E34: =D34+C34 -> 1000000 | F34: 1000000 | H34: =G34+F34 -> 1000000 | J34: UFA
A35: Daniel McCullers | B35: DT | C35: 420000 | D35: 123684.7144 | E35: 543684.7144 | F35: 519520.3448 | G35: 123684.7144 | H35: 643205.0592 | I35: 639771.7254 | J35: 123684.7144 | K35: 763456.4399 | L35: 765616.1935 | M35: 123684.7144 | N35: 889300.908 | P35: UFA
A36: Vance Walker | B36: DT | C36: 2250000 | D36: 1500000 | E36: =D36+C36 -> 3750000 | F36: 2250000 | G36: 1500000 | H36: =G36+F36 -> 3750000 | I36: 2250000 | J36: 1500000 | K36: =J36+I36 -> 3750000 | L36: 2250000 | M36: 1500000 | N36: =M36+L36 -> 3750000 | P36: UFA
A38: Jack Crawford | B38: DE | C38: 570000 | D38: 45606 | E38: =D38+C38 -> 615606 | F38: 660000 | G38: 45606 | H38: =G38+F38 -> 705606 | J38: UFA
A39: Lamarr Houston | B39: DE | C39: 3500000 | D39: 3000000 | E39: =D39+C39 -> 6500000 | F39: 3500000 | G39: 3000000 | H39: =G39+F39 -> 6500000 | I39: 3500000 | J39: 3000000 | K39: =J39+I39 -> 6500000 | L39: 3500000 | M39: 3000000 | N39: =M39+L39 -> 6500000 | P39: UFA
A40: Michael Johnson | B40: DE | C40: 3000000 | D40: 2000000 | E40: =D40+C40 -> 5000000 | F40: 5000000 | G40: 2000000 | H40: =G40+F40 -> 7000000 | I40: 7000000 | J40: 2000000 | K40: =J40+I40 -> 9000000 | L40: 9000000 | M40: 2000000 | N40: =M40+L40 -> 11000000 | O40: 11000000 | P40: 2000000 | Q40: =P40+O40 -> 13000000 | S40: UFA
A41: Ryan Robinson | B41: DE | C41: 495000 | D41: 333 | E41: =D41+C41 -> 495333 | F41: 585000 | G41: 334 | H41: =G41+F41 -> 585334 | J41: RFA
A43: Miles Burris | B43: ILB | C43: 570000 | D43: 75146 | E43: =D43+C43 -> 645146 | F43: 660000 | G43: 75146 | H43: =G43+F43 -> 735146 | J43: UFA
A44: Justin Cole | B44: ILB | C44: 645000 | E44: 645000 | G44: UFA
A45: Najee Goode | B45: ILB | C45: 645000 | E45: =D45+C45 -> 645000 | F45: 730000 | H45: 730000 | I45: 730000 | K45: 730000 | M45: UFA
A46: Nick Roach | B46: ILB | C46: 2975000 | D46: 796250 | E46: 3771250 | F46: 2925000 | G46: 796250 | H46: =G46+F46 -> 3721250 | I46: 3075000 | J46: 796250 | K46: =J46+I46 -> 3871250 | M46: UFA
A47: Frank Beltre | B47: OLB | C47: 420000 | E47: 420000 | G47: ERFA
A48: Eric Harper | B48: OLB | C48: 420000 | E48: 420000 | G48: ERFA
A49: Kaluka Maiava | B49: OLB | C49: 1635000 | D49: 678333 | E49: 2313333 | F49: 1600000 | G49: 678333 | H49: =G49+F49 -> 2278333 | J49: UFA
A50: Sio Moore | B50: OLB | C50: 546000 | D50: 172708 | E50: 718708 | F50: 668000 | G50: 172708 | H50: =G50+F50 -> 840708 | I50: 744170 | J50: 172708 | K50: =J50+I50 -> 916878 | M50: UFA
A52: Tyvon Branch | B52: S | C52: 5757000 | D52: 1400000 | E52: =D52+C52 -> 7157000 | F52: 8257000 | G52: 1400000 | H52: =G52+F52 -> 9657000 | I52: 8257000 | K52: =J52+I52 -> 8257000 | L52: 8257000 | N52: =M52+L52 -> 8257000 | P52: UFA
A53: Malcolm Jenkins | B53: S | C53: 3000000 | D53: 900000 | E53: 3900000 | F53: 7000000 | G53: 900000 | H53: =G53+F53 -> 7900000 | I53: 8000000 | J53: 900000 | K53: =J53+I53 -> 8900000 | M53: UFA
A54: Shelton Johnson | B54: S | C54: 495000 | E54: 495000 | G54: ERFA
A55: Brandian Ross | B55: S | C55: 570000 | E55: 570000 | G55: RFA
A56: Charles Woodson | B56: S | C56: 0 | D56: 3500000 | E56: 3500000 | G56: UFA
A58: D.J. Hayden | B58: CB | C58: 874259 | D58: 1472036 | E58: =D58+C58 -> 2346295 | F58: 1343518 | G58: 1472036 | H58: =G58+F58 -> 2815554 | I58: 1812777 | J58: 1472036 | K58: =J58+I58 -> 3284813 | M58: 3-25 Option
A59: Mike Jenkins | B59: CB | C59: 2500000 | D59: 500000 | E59: 3000000 | F59: 2500000 | G59: 500000 | H59: =G59+F59 -> 3000000 | J59: UFA
A60: Taiwan Jones | B60: CB | C60: 645000 | D60: 101250 | E60: 746250 | G60: UFA
A61: Tracy Porter | B61: CB | C61: 2000000 | D61: 2000000 | E61: 4000000 | F61: 2000000 | G61: 2000000 | H61: =G61+F61 -> 4000000 | I61: 2000000 | J61: 2000000 | K61: =J61+I61 -> 4000000 | M61: UFA
A62: Bradley Roby | B62: CB | C62: 420000 | D62: 1168049.82 | E62: 1588049.82 | F62: 855492.6693 | G62: 1168049.82 | H62: 2023542.489 | I62: 1233807.135 | J62: 1168049.82 | K62: 2401856.954 | L62: 1629717.622 | M62: 1168049.82 | N62: 2797767.441 | P62: TOP3-25 Option
A64: Sebastian Janikowski | B64: K | C64: 2700000 | D64: 360000 | E64: =D64+C64 -> 3060000 | F64: 3250000 | G64: 360000 | H64: =G64+F64 -> 3610000 | I64: 3600000 | J64: 360000 | K64: =J64+I64 -> 3960000 | L64: 4050000 | M64: 360000 | N64: =M64+L64 -> 4410000 | P64: UFA
A65: Jon Condo | B65: LS | C65: 900000 | D65: 177500 | E65: =D65+C65 -> 1077500 | F65: 950000 | G65: 177500 | H65: =G65+F65 -> 1127500 | I65: 1000000 | J65: 177500 | K65: =J65+I65 -> 1177500 | M65: UFA
A66: Kirby Van Der Kamp | B66: P | C66: 420000 | D66: 28293.01829 | E66: 448293.0183 | F66: 527151.6805 | G66: 28293.01829 | H66: 555444.6988 | I66: 630995.6894 | J66: 28293.01829 | K66: 659288.7077 | L66: 739669.6522 | M66: 28293.01829 | N66: 767962.6705 | P66: UFA
A69: Total Players | C69: =COUNTA(C3:C67) -> 53 | F69: =COUNTA(F3:F67) -> 36 | I69: =COUNTA(I3:I67) -> 26 | L69: =COUNTA(L3:L67) -> 10
A70: Top 51 Salary | C70: =SUM(LARGE(ISNUMBER(E4:E67)*E4:E67,ROW(INDIRECT("1:51")))) -> 101548278.3 | F70: =SUM(LARGE(ISNUMBER(H4:H67)*H4:H67,ROW(INDIRECT("1:51")))) -> 100470569.1 | I70: =SUM(LARGE(ISNUMBER(K4:K67)*K4:K67,ROW(INDIRECT("1:51")))) -> 92660981.99 | L70: =SUM(LARGE(ISNUMBER(N4:N67)*N4:N67,ROW(INDIRECT("1:51")))) -> 49399651.96
A71: Dead Money | C71: 10203352 | F71: 169530
A72: Cap Rollover | C72: 2250000 | F72: =C73 -> 23498369.72 | I72: =F73 -> 55858270.62 | L72: 96197288.64
A73: Cap Space | C73: =133000000-C70-C71+C72 -> 23498369.72 | F73: =133000000-F70-F71+F72 -> 55858270.62 | I73: =133000000-I70-I71+I72 -> 96197288.64 | L73: =133000000-L70-L71+L72 -> 179797636.7
A74: June 1st Cut | B74: 0/2
A75: Paycut | B75: 0/2
A76: Restructure | B76: 0/3
A78: Practice Squad
A79: Taylor Martinez | B79: QB | C79: 420000 | E79: 420000 | F79: 510000 | H79: 510000 | I79: 600000 | K79: 600000 | M79: RFA
A80: Jeff Matthews | B80: QB | C80: 420000 | E80: 420000 | F80: 510000 | H80: 510000 | I80: 600000 | K80: 600000 | M80: RFA
A81: James Wilder Jr. | B81: RB | C81: 420000 | E81: 420000 | F81: 510000 | H81: 510000 | I81: 600000 | K81: 600000 | M81: RFA
A82: Alejandro Villanueva | B82: DE | C82: 495000 | E82: 495000 | F82: 570000 | H82: 570000 | I82: 645000 | K82: 645000 | M82: RFA
A83: Devekeyan Lattimore | B83: ILB | C83: 420000 | E83: 420000 | F83: 510000 | H83: 510000 | I83: 600000 | K83: 600000 | M83: RFA
A84: Marshall McFadden | B84: ILB | C84: 495000 | E84: =D84+C84 -> 495000 | G84: ERFA
A85: Chris McCoy | B85: OLB | C85: 420000 | E85: =D85+C85 -> 420000 | G85: ERFA
A86: Johnny Adams | B86: CB | C86: 495000 | E86: =D86+C86 -> 495000 | G86: ERFA

Sheet PHI
C1: 2014 | F1: 2015 | I1: 2016 | L1: 2017 | O1: 2018 | R1: 2019 | U1: 2020
A2: Player | B2: Pos. | C2: Base Salary | D2: Signing Bonus | E2: Cap Figure | F2: Base Salary | G2: Signing Bonus | H2: Cap Figure | I2: Base Salary | J2: Signing Bonus | K2: Cap Figure | L2: Base Salary | M2: Signing Bonus | N2: Cap Figure | O2: Base Salary | P2: Signing Bonus | Q2: Cap Figure | R2: Base Salary | S2: Signing Bonus | T2: Cap Figure | U2: Base Salary | V2: Signing Bonus | W2: Cap Figure
A3: OFFENSE
A4: Matt Barkley | B4: QB | C4: 520000 | D4: 124257 | E4: =D4+C4 -> 644257 | F4: 612500 | G4: 124257 | H4: =G4+F4 -> 736757 | I4: 705000 | J4: 124257 | K4: =J4+I4 -> 829257 | M4: UFA
A5: Nick Foles | B5: QB | C5: 635000 | D5: 135880 | E5: =D5+C5 -> 770880 | F5: 680000 | G5: 135880 | H5: =G5+F5 -> 815880 | J5: UFA
A6: Tarvaris Jackson | B6: QB | C6: 950000 | D6: 50000 | E6: =D6+C6 -> 1000000 | F6: 1050000 | G6: 50000 | H6: =G6+F6 -> 1100000 | J6: UFA
A8: Andre Ellington | B8: RB | C8: 495000 | E8: =D8+C8 -> 495000 | F8: 585000 | H8: =G8+F8 -> 585000 | I8: 675000 | K8: =J8+I8 -> 675000 | M8: UFA
A9: LeSean McCoy | B9: RB | C9: 0 | D9: 3700000 | E9: =D9+C9 -> 3700000 | F9: 10250000 | G9: 3700000 | H9: =G9+F9 -> 13950000 | I9: 7150000 | J9: 3700000 | K9: =J9+I9 -> 10850000 | L9: 7850000 | M9: 2000000 | N9: =M9+L9 -> 9850000 | P9: UFA
A10: Chris Polk | B10: RB | C10: 570000 | D10: 3333 | E10: =D10+C10 -> 573333 | G10: RFA
A11: Derrick Coleman | B11: FB | C11: 645000 | E11: =D11+C11 -> 645000 | F11: 730000 | G11: 0 | H11: =G11+F11 -> 730000 | I11: 730000 | K11: =J11+I11 -> 730000 | M11: UFA
A13: James Casey | B13: TE | C13: 730000 | E13: =D13+C13 -> 730000 | F13: 855000 | G13: 0 | H13: =G13+F13 -> 855000 | I13: 855000 | K13: =J13+I13 -> 855000 | M13: UFA
A14: Zach Ertz | B14: TE | C14: 649509 | D14: 573036 | E14: =D14+C14 -> 1222545 | F14: 894018 | G14: 573036 | H14: =G14+F14 -> 1467054 | I14: 1138527 | J14: 573036 | K14: =J14+I14 -> 1711563 | M14: UFA
A16: Arrelious Benn | B16: WR | C16: 900000 | D16: 200000 | E16: =D16+C16 -> 1100000 | F16: 1100000 | G16: 200000 | H16: =G16+F16 -> 1300000 | J16: UFA
A17: Riley Cooper | B17: WR | C17: 1000000 | D17: 800000 | E17: 1800000 | F17: 4000000 | G17: 800000 | H17: =G17+F17 -> 4800000 | I17: 4500000 | J17: 800000 | K17: =J17+I17 -> 5300000 | L17: 4200000 | M17: 800000 | N17: =M17+L17 -> 5000000 | O17: 4750000 | P17: 800000 | Q17: =P17+O17 -> 5550000 | S17: UFA
A18: Josh Huff | B18: WR | C18: 420000 | D18: 80079.36545 | E18: 500079.3654 | F18: 523008.7727 | G18: 80079.36545 | H18: 603088.1382 | I18: 635760.0333 | J18: 80079.36545 | K18: 715839.3988 | L18: 753755.5386 | M18: 80079.36545 | N18: 833834.9041 | P18: UFA
A19: DeSean Jackson | B19: WR | C19: 10750000 | D19: 2000000 | E19: 12750000 | F19: 10000000 | G19: 2000000 | H19: =G19+F19 -> 12000000 | I19: 8500000 | J19: 2000000 | K19: =J19+I19 -> 10500000 | M19: UFA
A20: Jeremy Maclin | B20: WR | C20: 2000000 | D20: 3500000 | E20: 5500000 | G20: UFA
A21: Ifeanyi Momah | B21: WR | C21: 420000 | E21: 420000 | F21: 510000 | H21: =G21+F21 -> 510000 | J21: RFA
A23: Jason Kelce | B23: C | C23: 1389000 | D23: 1000000 | E23: =D23+C23 -> 2389000 | F23: 3000000 | G23: 1000000 | H23: =G23+F23 -> 4000000 | I23: 2610000 | J23: 1000000 | K23: =J23+I23 -> 3610000 | L23: 5000000 | M23: 1000000 | N23: =M23+L23 -> 6000000 | O23: 6000000 | P23: 1000000 | Q23: =P23+O23 -> 7000000 | R23: 6500000 | T23: =S23+R23 -> 6500000 | U23: 7000000 | W23: =V23+U23 -> 7000000 | Y23: UFA
A24: Julian Vandervelde | B24: C | C24: 570000 | E24: 570000 | G24: RFA
A25: Dennis Kelly | B25: G | C25: 570000 | D25: 47200 | E25: =D25+C25 -> 617200 | F25: 660000 | G25: 47200 | H25: =G25+F25 -> 707200 | J25: UFA
A26: Charles Leno | B26: G | C26: 420000 | D26: 20961.3435 | E26: 440961.3435 | F26: 527738.2145 | G26: 20961.3435 | H26: 548699.558 | I26: 630321.1753 | J26: 20961.3435 | K26: 651282.5188 | L26: 737675.4367 | M26: 20961.3435 | N26: 758636.7801 | P26: UFA
A27: Evan Mathis | B27: G | C27: 5000000 | D27: 1000000 | E27: =D27+C27 -> 6000000 | F27: 5500000 | G27: 1000000 | H27: =G27+F27 -> 6500000 | I27: 6000000 | J27: 1000000 | K27: =J27+I27 -> 7000000 | M27: UFA
A28: Marshal Yanda | B28: G | C28: 6450000 | E28: 6450000 | F28: 6450000 | H28: =G28+F28 -> 6450000 | J28: UFA
A29: Jason Peters | B29: LT | C29: 1750000 | D29: 1292000 | E29: 3042000 | F29: 6800000 | G29: 1000000 | H29: 7800000 | I29: 7550000 | J29: 1000000 | K29: =J29+I29 -> 8550000 | L29: 9950000 | M29: 1000000 | N29: =M29+L29 -> 10950000 | O29: 10000000 | P29: 1000000 | Q29: =P29+O29 -> 11000000 | S29: UFA
A30: Matt Tobin | B30: LT | C30: 495000 | D30: 1666 | E30: 496666 | F30: 585000 | G30: 1668 | H30: 586668 | J30: RFA
A31: Levi Brown | B31: OT | C31: 855000 | E31: 855000 | G31: UFA
A32: Lane Johnson | B32: RT | C32: 1307414 | D32: 3204655 | E32: 4512069 | F32: 2209828 | G32: 3204655 | H32: 5414483 | I32: 3112241 | J32: 3204655 | K32: =J32+I32 -> 6316896 | M32: TOP10 Option
A33: DEFENSE
A34: Ryan Carrethers | B34: NT | C34: 420000 | E34: 420000 | F34: 510000 | H34: 510000 | I34: 600000 | K34: 600000 | M34: RFA
A35: Timmy Jernigan | B35: DT | C35: 420000 | D35: 540982.7571 | E35: 960982.7571 | F35: 689319.8977 | G35: 540982.7571 | H35: 1230302.655 | I35: 919333.0027 | J35: 540982.7571 | K35: 1460315.76 | L35: 1160044.392 | M35: 540982.7571 | N35: 1701027.149 | P35: UFA
A36: Bennie Logan | B36: DT | C36: 540340 | D36: 171023 | E36: =D36+C36 -> 711363 | F36: 647500 | G36: 171023 | H36: =G36+F36 -> 818523 | I36: 755500 | J36: 171023 | K36: =J36+I36 -> 926523 | M36: UFA
A38: Fletcher Cox | B38: DE | C38: 1321000 | D38: 1472036 | E38: =D38+C38 -> 2793036 | F38: 1786000 | G38: 1472036 | H38: =G38+F38 -> 3258036 | J38: 3-25 Option
A39: Vinny Curry | B39: DE | C39: 697440 | D39: 224878 | E39: =D39+C39 -> 922318 | F39: 851160 | G39: 224878 | H39: =G39+F39 -> 1076038 | J39: UFA
A40: Everson Griffen | B40: DE | C40: 3500000 | D40: 2000000 | E40: =D40+C40 -> 5500000 | F40: 4500000 | G40: 2000000 | H40: =G40+F40 -> 6500000 | I40: 5500000 | J40: 2000000 | K40: =J40+I40 -> 7500000 | L40: 6500000 | M40: 2000000 | N40: =M40+L40 -> 8500000 | O40: 7500000 | P40: 2000000 | Q40: =P40+O40 -> 9500000 | S40: UFA
A41: Cedric Thornton | B41: DE | C41: 570000 | E41: =D41+C41 -> 570000 | G41: RFA
A43: Mychal Kendricks | B43: ILB | C43: 794040 | D43: 418081 | E43: =D43+C43 -> 1212121 | F43: 996060 | G43: 418081 | H43: =G43+F43 -> 1414141 | J43: UFA
A44: DeMeco Ryans | B44: ILB | C44: 6900000 | E44: 6900000 | F44: 6900000 | H44: 6900000 | J44: UFA
A45: Yawin Smallwood | B45: ILB | C45: 420000 | D45: 110803.1323 | E45: 530803.1323 | F45: 520550.8714 | G45: 110803.1323 | H45: 631354.0037 | I45: 638586.6199 | J45: 110803.1323 | K45: 749389.7522 | L45: 762112.4032 | M45: 110803.1323 | N45: 872915.5355 | P45: UFA
A46: Connor Barwin | B46: OLB | C46: 4300000 | D46: 600000 | E46: 4900000 | F46: 5500000 | G46: 600000 | H46: 6100000 | I46: 6000000 | J46: 600000 | K46: =J46+I46 -> 6600000 | L46: 7000000 | M46: 600000 | N46: =M46+L46 -> 7600000 | O46: 9500000 | Q46: =P46+O46 -> 9500000 | S46: UFA
A47: Trent Cole | B47: OLB | C47: 5000000 | D47: 1600000 | E47: 6600000 | F47: 10025000 | G47: 1600000 | H47: 11625000 | I47: 11000000 | J47: 1600000 | K47: =J47+I47 -> 12600000 | L47: 14000000 | N47: =M47+L47 -> 14000000 | P47: UFA
A48: Brandon Graham | B48: OLB | C48: 3378000 | E48: 3378000 | F48: 3207500 | H48: 3207500 | J48: UFA
A49: Marcus Smith | B49: OLB | C49: 420000 | D49: 401634.0474 | E49: 821634.0474 | F49: 652392.4896 | G49: 401634.0474 | H49: 1054026.537 | I49: 849449.6248 | J49: 401634.0474 | K49: 1251083.672 | L49: 1055672.208 | M49: 401634.0474 | N49: 1457306.255 | P49: UFA
A50: Jason Worilds | B50: OLB | C50: 3000000 | D50: 2000000 | E50: =D50+C50 -> 5000000 | F50: 5000000 | G50: 2000000 | H50: =G50+F50 -> 7000000 | I50: 6000000 | J50: 2000000 | K50: =J50+I50 -> 8000000 | L50: 7000000 | M50: 2000000 | N50: =M50+L50 -> 9000000 | O50: 9000000 | P50: 2000000 | Q50: =P50+O50 -> 11000000 | S50: UFA
A52: Nate Allen | B52: S | C52: 4250000 | D52: 500000 | E52: =D52+C52 -> 4750000 | F52: 3750000 | G52: 500000 | H52: =G52+F52 -> 4250000 | I52: 3250000 | J52: 500000 | K52: =J52+I52 -> 3750000 | L52: 2750000 | M52: 500000 | N52: =M52+L52 -> 3250000 | P52: UFA
A53: Kurt Coleman | B53: S | C53: 1050000 | D53: 350000 | E53: =D53+C53 -> 1400000 | F53: 1250000 | G53: 350000 | H53: =G53+F53 -> 1600000 | I53: 1450000 | J53: 350000 | K53: =J53+I53 -> 1800000 | M53: UFA
A54: Jonathan Dowling | B54: S | C54: 420000 | D54: 14282.9124 | E54: 434282.9124 | F54: 528272.489 | G54: 14282.9124 | H54: 542555.4014 | I54: 629706.7596 | J54: 14282.9124 | K54: 643989.672 | L54: 735858.9034 | M54: 14282.9124 | N54: 750141.8158 | P54: UFA
A55: Tavon Wilson | B55: S | C55: 773444 | E55: =D55+C55 -> 773444 | F55: 965166 | H55: =G55+F55 -> 965166 | J55: UFA
A56: Earl Wolff | B56: S | C56: 495000 | D56: 53000 | E56: =D56+C56 -> 548000 | F56: 585000 | G56: 53000 | H56: =G56+F56 -> 638000 | I56: 675000 | J56: 53000 | K56: =J56+I56 -> 728000 | M56: UFA
A58: Javier Arenas | B58: CB | C58: 730000 | E58: =D58+C58 -> 730000 | F58: 730000 | H58: =G58+F58 -> 730000 | J58: UFA
A59: Brandon Boykin | B59: CB | C59: 570000 | D59: 101367 | E59: =D59+C59 -> 671367 | F59: 660000 | G59: 101367 | H59: =G59+F59 -> 761367 | J59: UFA
A60: Bradley Fletcher | B60: CB | C60: 0 | D60: 1550000 | E60: 1550000 | F60: 1750000 | G60: 1550000 | H60: =G60+F60 -> 3300000 | I60: 2750000 | J60: 1550000 | K60: 4300000 | L60: 4000000 | M60: 1550000 | N60: 5550000 | O60: 5250000 | P60: 1550000 | Q60: 6800000 | S60: UFA
A61: Marcus Roberson | B61: CB | C61: 420000 | D61: 157550.0187 | E61: 577550.0187 | F61: 531517.0961 | G61: 157550.0187 | H61: 689067.1148 | I61: 660342.6871 | J61: 157550.0187 | K61: 817892.7058 | L61: 795160.1661 | M61: 157550.0187 | N61: 952710.1848 | P61: UFA
A62: Cary Williams | B62: CB | C62: 4750000 | D62: 1666666 | E62: =D62+C62 -> 6416666 | F62: 6500000 | G62: 1666667 | H62: =G62+F62 -> 8166667 | J62: UFA
A64: Dan Carpenter | B64: K | C64: 855000 | E64: =D64+C64 -> 855000 | F64: 855000 | H64: =G64+F64 -> 855000 | I64: 855000 | K64: =J64+I64 -> 855000 | M64: UFA
A65: Jon Dorenbos | B65: LS | C65: 955000 | D65: 100000 | E65: =D65+C65 -> 1055000 | F65: 970000 | G65: 100000 | H65: =G65+F65 -> 1070000 | I65: 985000 | J65: 100000 | K65: =J65+I65 -> 1085000 | M65: UFA
A66: Donnie Jones | B66: P | C66: 1425000 | D66: 400000 | E66: =D66+C66 -> 1825000 | F66: 1425000 | G66: 400000 | H66: =G66+F66 -> 1825000 | I66: 1425000 | J66: 400000 | K66: =J66+I66 -> 1825000 | M66: UFA
A69: Total Players | C69: =COUNTA(C3:C67) -> 53 | F69: =COUNTA(F3:F67) -> 48 | I69: =COUNTA(I3:I67) -> 32 | L69: =COUNTA(L3:L67) -> 17
A70: Top 51 Salary | C70: =SUM(LARGE(ISNUMBER(E4:E67)*E4:E67,ROW(INDIRECT("1:51")))) -> 119190558.6 | F70: =SUM(LARGE(ISNUMBER(H4:H67)*H4:H67,ROW(INDIRECT("1:51")))) -> 148177573.4 | I70: =SUM(LARGE(ISNUMBER(K4:K67)*K4:K67,ROW(INDIRECT("1:51")))) -> 113787032.5 | L70: =SUM(LARGE(ISNUMBER(N4:N67)*N4:N67,ROW(INDIRECT("1:51")))) -> 87026572.62
A71: Dead Money | C71: 5896418
A72: Cap Rollover | C72: 17169768 | F72: =C73 -> 25082791.42 | I72: =F73 -> 9905218.015 | L72: 29118185.54
A73: Cap Space | C73: =133000000-C70-C71+C72 -> 25082791.42 | F73: =133000000-F70-F71+F72 -> 9905218.015 | I73: =133000000-I70-I71+I72 -> 29118185.54 | L73: =133000000-L70-L71+L72 -> 75091612.91
A74: June 1st Cut | B74: 0/2
A75: Paycut | B75: 0/2
A76: Restructure | B76: 1/3
A78: Practice Squad
A79: Garrett Gilbert | B79: QB | C79: 420000 | E79: 420000 | F79: 510000 | H79: 510000 | I79: 600000 | K79: 600000 | M79: RFA
A80: Kapri Bibbs | B80: RB | C80: 420000 | E80: 420000 | F80: 510000 | H80: 510000 | I80: 600000 | K80: 600000 | M80: RFA
A81: Allen Hurns | B81: WR | C81: 420000 | E81: 420000 | F81: 510000 | H81: 510000 | I81: 600000 | K81: 600000 | M81: RFA
A82: Michael Bamiro | B82: RT | C82: 420000 | E82: =D82+C82 -> 420000 | F82: 510000 | H82: =G82+F82 -> 510000 | J82: RFA
A83: Joe Kruger | B83: DE | C83: 420000 | E83: =D83+C83 -> 420000 | F83: 510000 | G83: 15933 | H83: =G83+F83 -> 525933 | I83: 675000 | J83: 15933 | K83: =J83+I83 -> 690933 | M83: UFA
A84: Lonnie Ballentine | B84: S | C84: 420000 | E84: 420000 | F84: 510000 | H84: 510000 | I84: 600000 | K84: 600000 | M84: RFA
A85: Daniel Sorensen | B85: S | C85: 420000 | E85: 420000 | F85: 525816.2074 | G85: 44986.43191 | H85: 570802.6393 | I85: 632531.4834 | J85: 44986.43191 | K85: 677517.9154 | L85: 744210.2607 | M85: 44986.43191 | N85: 789196.6926 | P85: UFA
A86: Havard Rugland | B86: K | C86: 500000 | E86: =D86+C86 -> 500000 | F86: 600000 | H86: =G86+F86 -> 600000 | J86: UFA

Sheet PIT
C1: 2014 | F1: 2015 | I1: 2016 | L1: 2017 | O1: 2018 | R1: 2019 | U1: 2020
A2: Player | B2: Pos. | C2: Base Salary | D2: Signing Bonus | E2: Cap Figure | F2: Base Salary | G2: Signing Bonus | H2: Cap Figure | I2: Base Salary | J2: Signing Bonus | K2: Cap Figure | L2: Base Salary | M2: Signing Bonus | N2: Cap Figure | O2: Base Salary | P2: Signing Bonus | Q2: Cap Figure | R2: Base Salary | S2: Signing Bonus | T2: Cap Figure | U2: Base Salary | V2: Signing Bonus | W2: Cap Figure
A3: OFFENSE
A4: Bruce Gradkowski | B4: QB | C4: 1550000 | D4: 283333 | E4: =D4+C4 -> 1833333 | F4: 1550000 | G4: 283334 | H4: =G4+F4 -> 1833334 | J4: UFA
A5: A.J. McCarron | B5: QB | C5: 420000 | D5: 121324.2988 | E5: 541324.2988 | F5: 519709.178 | G5: 121324.2988 | H5: 641033.4768 | I5: 639554.5672 | J5: 121324.2988 | K5: 760878.866 | L5: 764974.1605 | M5: 121324.2988 | N5: 886298.4593 | P5: UFA
A6: Ben Roethlisberger | B6: QB | C6: 0 | D6: 8000000 | E6: =D6+C6 -> 8000000 | F6: 500000 | G6: 8000000 | H6: =G6+F6 -> 8500000 | I6: 1500000 | J6: 8000000 | K6: =J6+I6 -> 9500000 | L6: 3000000 | M6: 8000000 | N6: =M6+L6 -> 11000000 | O6: 5500000 | P6: 8000000 | Q6: =P6+O6 -> 13500000 | R6: 17000000 | T6: =S6+R6 -> 17000000 | U6: 21500000 | W6: =V6+U6 -> 21500000 | Y6: UFA
A8: Le' Veon Bell | B8: RB | C8: 592300 | D8: 344200 | E8: =D8+C8 -> 936500 | F8: 779600 | G8: 344200 | H8: =G8+F8 -> 1123800 | I8: 966900 | J8: 344200 | K8: =J8+I8 -> 1311100 | M8: UFA
A9: Pierre Thomas | B9: RB | C9: 1100000 | E9: 1100000 | F9: 1100000 | H9: 1100000 | I9: 1100000 | K9: 1100000 | M9: UFA
A10: Andre Williams | B10: RB | C10: 420000 | D10: 50964.73069 | E10: 470964.7307 | F10: 525337.9435 | G10: 50964.73069 | H10: 576302.6742 | I10: 633081.4869 | J10: 50964.73069 | K10: 684046.2176 | L10: 745836.358 | M10: 50964.73069 | N10: 796801.0887 | P10: UFA
A11: Will Johnson | B11: FB | C11: 570000 | E11: =D11+C11 -> 570000 | G11: RFA
A13: A.C. Leonard | B13: TE | C13: 420000 | E13: 420000 | F13: 510000 | H13: 510000 | I13: 600000 | K13: 600000 | M13: RFA
A14: Heath Miller | B14: TE | C14: 500000 | D14: 4500000 | E14: =D14+C14 -> 5000000 | F14: 2250000 | G14: 3000000 | H14: =G14+F14 -> 5250000 | I14: 2500000 | J14: 3000000 | K14: =J14+I14 -> 5500000 | M14: UFA
A15: Matt Spaeth | B15: TE | C15: 1000000 | D15: 487500 | E15: =D15+C15 -> 1487500 | F15: 1000000 | G15: 350000 | H15: =G15+F15 -> 1350000 | J15: UFA
A17: Harry Douglas | B17: WR | C17: 3083333 | E17: =D17+C17 -> 3083333 | F17: 3833334 | H17: =G17+F17 -> 3833334 | J17: UFA
A18: Bruce Ellington | B18: WR | C18: 420000 | D18: 134809.039 | E18: 554809.039 | F18: 545591.3541 | G18: 134809.039 | H18: 680400.3931 | I18: 672796.645 | J18: 134809.039 | K18: 807605.684 | L18: 805918.4611 | M18: 134809.039 | N18: 940727.5001 | P18: UFA
A19: Greg Jennings | B19: WR | C19: 3000000 | D19: 1000000 | E19: =D19+C19 -> 4000000 | F19: 3000000 | G19: 1000000 | H19: =G19+F19 -> 4000000 | I19: 3000000 | J19: 1000000 | K19: =J19+I19 -> 4000000 | L19: 3000000 | M19: 1000000 | N19: =M19+L19 -> 4000000 | P19: UFA
A20: Walter Powell | B20: WR | C20: 420000 | E20: 420000 | F20: 510000 | H20: 510000 | I20: 600000 | K20: 600000 | M20: RFA
A21: Mike Thomas | B21: WR | C21: 750000 | E21: 750000 | F21: 750000 | H21: 750000 | I21: 750000 | K21: 750000 | M21: UFA
A22: Markus Wheaton | B22: WR | C22: 515000 | D22: 147844 | E22: =D22+C22 -> 662844 | F22: 605000 | G22: 147844 | H22: =G22+F22 -> 752844 | I22: 695000 | J22: 147844 | K22: =J22+I22 -> 842844 | M22: UFA
A24: Maurkice Pouncey | B24: C | C24: 3000000 | D24: 1500000 | E24: =D24+C24 -> 4500000 | F24: 3000000 | G24: 1500000 | H24: =G24+F24 -> 4500000 | I24: 3000000 | J24: 1500000 | K24: =J24+I24 -> 4500000 | L24: 3000000 | M24: 1500000 | N24: =M24+L24 -> 4500000 | O24: 3000000 | P24: 1500000 | Q24: =P24+O24 -> 4500000 | S24: UFA
A25: J.D. Walton | B25: C | C25: 1000000 | E25: 1000000 | F25: 1000000 | H25: =G25+F25 -> 1000000 | I25: 1000000 | K25: =J25+I25 -> 1000000 | M25: UFA
A26: David DeCastro | B26: G | C26: 1100354 | D26: 1030709 | E26: 2131063 | F26: 1455531 | G26: 1030709 | H26: 2486240 | J26: 3-25 Option
A27: Jon Halipo | B27: G | C27: 420000 | D27: 31418.57093 | E27: 451418.5709 | F27: 526901.6363 | G27: 31418.57093 | H27: 558320.2072 | I27: 631283.2402 | J27: 31418.57093 | K27: 662701.8112 | L27: 740519.8025 | M27: 31418.57093 | N27: 771938.3734 | P27: UFA
A28: Gary Williams | B28: G | C28: 730000 | E28: 730000 | F28: 730000 | H28: 730000 | I28: 730000 | K28: 730000 | M28: UFA
A29: Mike Adams | B29: LT | C29: 712150 | D29: 254300 | E29: 966450 | F29: 873225 | G29: 254300 | H29: 1127525 | J29: UFA
A30: Jason Fox | B30: OT | C30: 800000 | D30: 100000 | E30: 900000 | F30: 800000 | G30: 100000 | H30: 900000 | I30: 800000 | J30: 100000 | K30: =J30+I30 -> 900000 | M30: UFA
A31: Jonathan Martin | B31: OT/G | C31: 824933 | E31: 824933 | F31: 1042400 | H31: 1042400 | J31: UFA
A32: Kelvin Beachum | B32: RT | C32: 570000 | D32: 11474 | E32: 581474 | F32: 660000 | G32: 11474 | H32: 671474 | J32: UFA
A33: Marcus Gilbert | B33: RT | C33: 2000000 | D33: 1611802 | E33: 3611802 | F33: 2200000 | G33: 1400000 | H33: =G33+F33 -> 3600000 | I33: 2500000 | J33: 1400000 | K33: =J33+I33 -> 3900000 | L33: 2800000 | M33: 1400000 | N33: =M33+L33 -> 4200000 | P33: UFA
A34: DEFENSE
A35: Ego Ferguson | B35: DT | C35: 420000 | D35: 134809.039 | E35: 554809.039 | F35: 522306.8927 | G35: 134809.039 | H35: 657115.9318 | I35: 645159.0017 | J35: 134809.039 | K35: 779968.0407 | L35: 773725.1623 | M35: 134809.039 | N35: 908534.2013 | P35: UFA
A36: Domata Peko | B36: DT | C36: 4165000 | E36: =D36+C36 -> 4165000 | G36: UFA
A38: Tyson Alualu | B38: DE | C38: 1000000 | D38: 200000 | E38: 1200000 | F38: 1000000 | G38: 200000 | H38: 1200000 | I38: 1000000 | J38: 200000 | K38: 1200000 | M38: UFA
A39: Cameron Heyward | B39: DE | C39: 1289322 | D39: 844096 | E39: =D39+C39 -> 2133418 | F39: 6969000 | H39: =G39+F39 -> 6969000 | J39: UFA
A40: Steve McLendon | B40: DE | C40: 2425000 | D40: 558333 | E40: =D40+C40 -> 2983333 | F40: 2250000 | G40: 558333 | H40: =G40+F40 -> 2808333 | J40: UFA
A41: Jeoffrey Pagan | B41: DE | C41: 420000 | E41: 420000 | F41: 510000 | H41: 510000 | I41: 600000 | K41: 600000 | M41: RFA
A42: Nick Williams | B42: DE | C42: 420000 | D42: 14462 | E42: =D42+C42 -> 434462 | F42: 585000 | G42: 14462 | H42: =G42+F42 -> 599462 | I42: 675000 | J42: 14462 | K42: =J42+I42 -> 689462 | M42: UFA
A44: Larry Foote | B44: ILB | C44: 1500000 | D44: 333333 | E44: =D44+C44 -> 1833333 | F44: 1500000 | G44: 333334 | H44: =G44+F44 -> 1833334 | J44: UFA
A45: Dont' a Hightower | B45: ILB | C45: 1092182 | E45: =D45+C45 -> 1092182 | F45: 1443273 | H45: 1443273 | J45: 3-25 Option
A46: Lawrence Timmons | B46: ILB | C46: 9816260 | D46: 2000000 | E46: 11816260 | F46: 10566260 | G46: 2000000 | H46: 12566260 | I46: 11816260 | K46: =J46+I46 -> 11816260 | M46: UFA
A47: Vince Williams | B47: ILB | C47: 495000 | D47: 19670 | E47: 514670 | F47: 585000 | G47: 19670 | H47: 604670 | I47: 675000 | J47: 19670 | K47: =J47+I47 -> 694670 | M47: UFA
A48: Jeremiah Attaochu | B48: OLB | C48: 420000 | D48: 593237.9904 | E48: 1013237.99 | F48: 703167.7796 | G48: 593237.9904 | H48: 1296405.77 | I48: 945539.2932 | J48: 593237.9904 | K48: 1538777.284 | L48: 1199183.9 | M48: 593237.9904 | N48: 1792421.891 | P48: UFA
A49: Victor Butler | B49: OLB | C49: 1000000 | E49: =D49+C49 -> 1000000 | F49: 1000000 | H49: =G49+F49 -> 1000000 | I49: 1000000 | K49: =J49+I49 -> 1000000 | M49: UFA
A50: Chris Carter | B50: OLB | C50: 645000 | D50: 40700 | E50: 685700 | G50: UFA
A51: Jarvis Jones | B51: OLB | C51: 800705 | D51: 1177818 | E51: 1978523 | F51: 1196410 | G51: 1177818 | H51: =G51+F51 -> 2374228 | I51: 1592115 | J51: 1177818 | K51: =J51+I51 -> 2769933 | M51: 3-25 Option
A53: Dion Bailey | B53: S | C53: 420000 | D53: 121605.6305 | E53: 541605.6305 | F53: 519686.6715 | G53: 121605.6305 | H53: 641292.302 | I53: 639580.4497 | J53: 121605.6305 | K53: 761186.0802 | L53: 765050.6827 | M53: 121605.6305 | N53: 886656.3132 | P53: UFA
A54: Ryan Mundy | B54: S | C54: 1200000 | D54: 300000 | E54: =D54+C54 -> 1500000 | F54: 1200000 | G54: 300000 | H54: =G54+F54 -> 1500000 | I54: 1200000 | J54: 300000 | K54: =J54+I54 -> 1500000 | M54: UFA
A55: Shamarko Thomas | B55: S | C55: 495000 | D55: 113288 | E55: =D55+C55 -> 608288 | F55: 585000 | G55: 113288 | H55: =G55+F55 -> 698288 | I55: 675000 | J55: 113288 | K55: =J55+I55 -> 788288 | M55: UFA
A56: Aaron Williams | B56: S | C56: 1092156 | E56: =D56+C56 -> 1092156 | G56: UFA
A58: Cortez Allen | B58: CB | C58: 2400000 | D58: 1397875 | E58: =D58+C58 -> 3797875 | F58: 2400000 | G58: 1300000 | H58: =G58+F58 -> 3700000 | I58: 2400000 | J58: 1300000 | K58: =J58+I58 -> 3700000 | L58: 2400000 | M58: 1300000 | N58: =M58+L58 -> 3700000 | P58: UFA
A59: William Gay | B59: CB | C59: 1500000 | D59: 166667 | E59: 1666667 | F59: 1500000 | G59: 166667 | H59: =G59+F59 -> 1666667 | J59: UFA
A60: Stanley Jean-Baptiste | B60: CB | C60: 420000 | D60: 187369.0484 | E60: 607369.0484 | F60: 578886.7912 | G60: 187369.0484 | H60: 766255.8395 | I60: 722143.3177 | J60: 187369.0484 | K60: 909512.3661 | L60: 872062.9385 | M60: 187369.0484 | N60: 1059431.987 | P60: UFA
A61: Ike Taylor | B61: CB | C61: 2000000 | D61: 4812500 | E61: 6812500 | F61: 3000000 | G61: 3000000 | H61: =G61+F61 -> 6000000 | J61: UFA
A62: Lavelle Westbrooks | B62: CB | C62: 420000 | E62: 420000 | F62: 510000 | H62: 510000 | I62: 600000 | K62: 600000 | M62: RFA
A64: Shaun Suisham | B64: K | C64: 1200000 | D64: 737500 | E64: =D64+C64 -> 1937500 | F64: 1200000 | G64: 400000 | H64: =G64+F64 -> 1600000 | I64: 1200000 | J64: 400000 | K64: =J64+I64 -> 1600000 | M64: UFA
A65: Bryce Davis | B65: LS | C65: 420000 | E65: =D65+C65 -> 420000 | G65: RFA
A66: Brad Wing | B66: P | C66: 420000 | E66: =D66+C66 -> 420000 | G66: ERFA
A69: Total Players | C69: =COUNTA(C3:C67) -> 53 | F69: =COUNTA(F3:F67) -> 47 | I69: =COUNTA(I3:I67) -> 34 | L69: =COUNTA(L3:L67) -> 13
A70: Top 51 Salary | C70: =SUM(LARGE(ISNUMBER(E4:E67)*E4:E67,ROW(INDIRECT("1:51")))) -> 96336637.35 | F70: =SUM(LARGE(ISNUMBER(H4:H67)*H4:H67,ROW(INDIRECT("1:51")))) -> 98971592.59 | I70: =SUM(LARGE(ISNUMBER(K4:K67)*K4:K67,ROW(INDIRECT("1:51")))) -> 69097233.35 | L70: =SUM(LARGE(ISNUMBER(N4:N67)*N4:N67,ROW(INDIRECT("1:51")))) -> 35442809.81
A71: Dead Money | C71: 18897439 | F71: 5833584
A72: Cap Rollover | C72: 1352450 | F72: =C73 -> 19118373.65 | I72: =F73 -> 47313197.06 | L72: 111215963.7
A73: Cap Space | C73: =133000000-C70-C71+C72 -> 19118373.65 | F73: =133000000-F70-F71+F72 -> 47313197.06 | I73: =133000000-I70-I71+I72 -> 111215963.7 | L73: =133000000-L70-L71+L72 -> 208773153.9
A74: June 1st Cut | B74: 1/2
A75: Paycut | B75: 0/2
A76: Restructure | B76: 0/3
A78: Practice Squad
A79: Damien Williams | B79: RB | C79: 420000 | E79: 420000 | F79: 510000 | H79: 510000 | I79: 600000 | K79: 600000 | M79: RFA
A80: James Wright | B80: WR | C80: 420000 | E80: 420000 | F80: 510000 | H80: 510000 | I80: 600000 | K80: 600000 | M80: RFA
A81: Luke Bowanko | B81: C | C81: 420000 | E81: 420000 | F81: 510000 | H81: 510000 | I81: 600000 | K81: 600000 | M81: RFA
A82: David Snow | B82: C | C82: 570000 | E82: 570000 | G82: ERFA
A83: Josh Andrews | B83: G | C83: 420000 | E83: 420000 | F83: 510000 | H83: 510000 | I83: 600000 | K83: 600000 | M83: RFA
A84: Ken Bishop | B84: DT | C84: 420000 | E84: 420000 | F84: 510000 | H84: 510000 | I84: 600000 | K84: 600000 | M84: RFA
A85: Elhadji Ndiaye | B85: DE | C85: 420000 | E85: 420000 | F85: 528088.4298 | G85: 16583.65163 | H85: 544672.0814 | I85: 629918.4277 | J85: 16583.65163 | K85: 646502.0793 | L85: 736484.7045 | M85: 16583.65163 | N85: 753068.3561 | P85: UFA
A86: Sean Spence | B86: ILB | C86: 590000 | E86: =D86+C86 -> 590000 | F86: 680000 | G86: 136345 | H86: =G86+F86 -> 816345 | J86: UFA

Sheet SD
C1: 2014 | F1: 2015 | I1: 2016 | L1: 2017 | O1: 2018 | R1: 2019 | U1: 2020
A2: Player | B2: Pos. | C2: Base Salary | D2: Signing Bonus | E2: Cap Figure | F2: Base Salary | G2: Signing Bonus | H2: Cap Figure | I2: Base Salary | J2: Signing Bonus | K2: Cap Figure | L2: Base Salary | M2: Signing Bonus | N2: Cap Figure | O2: Base Salary | P2: Signing Bonus | Q2: Cap Figure | R2: Base Salary | S2: Signing Bonus | T2: Cap Figure | U2: Base Salary | V2: Signing Bonus | W2: Cap Figure
A3: OFFENSE
A4: Philip Rivers | B4: QB | C4: 15000000 | D4: 1666667 | E4: =D4+C4 -> 16666667 | F4: 15750000 | G4: 1666667 | H4: =G4+F4 -> 17416667 | J4: UFA
A5: Matt Schaub | B5: QB | C5: 1200000 | D5: 200000 | E5: =D5+C5 -> 1400000 | F5: 1200000 | G5: 200000 | H5: =G5+F5 -> 1400000 | J5: UFA
A6: Brad Sorensen | B6: QB | C6: 495000 | D6: 14850 | E6: =D6+C6 -> 509850 | F6: 585000 | G6: 14850 | H6: =G6+F6 -> 599850 | I6: 675000 | J6: 14850 | K6: =J6+I6 -> 689850 | M6: UFA
A8: Donald Brown | B8: RB | C8: 2000000 | D8: 1000000 | E8: =D8+C8 -> 3000000 | F8: 2000000 | G8: 1000000 | H8: =G8+F8 -> 3000000 | J8: UFA
A9: Ryan Mathews | B9: RB | C9: 3112000 | D9: 500000 | E9: =D9+C9 -> 3612000 | F9: 2769750 | G9: 500000 | H9: =G9+F9 -> 3269750 | J9: UFA
A10: Danny Woodhead | B10: RB | C10: 1750000 | D10: 1000000 | E10: =D10+C10 -> 2750000 | F10: 1500000 | G10: 500000 | H10: =G10+F10 -> 2000000 | I10: 2000000 | J10: 500000 | K10: =J10+I10 -> 2500000 | M10: UFA
A11: David Johnson | B11: FB | C11: 740000 | D11: 100000 | E11: =D11+C11 -> 840000 | F11: 740000 | G11: 100000 | H11: =G11+F11 -> 840000 | J11: UFA
A13: Antonio Gates | B13: TE | C13: 6600000 | D13: 762500 | E13: =D13+C13 -> 7362500 | F13: 7500000 | G13: 762500 | H13: =G13+F13 -> 8262500 | J13: UFA
A14: Ladarius Green | B14: TE | C14: 570000 | D14: 112725 | E14: =D14+C14 -> 682725 | F14: 660000 | G14: 112725 | H14: =G14+F14 -> 772725 | J14: UFA
A16: Keenan Allen | B16: WR | C16: 505000 | D16: 153450 | E16: =D16+C16 -> 658450 | F16: 600000 | G16: 153450 | H16: =G16+F16 -> 753450 | I16: 690000 | J16: 153450 | K16: =J16+I16 -> 843450 | M16: UFA
A17: Vincent Brown | B17: WR | C17: 1389000 | D17: 146517 | E17: 1535517 | G17: UFA
A18: Malcom Floyd | B18: WR | C18: 3666667 | D18: 250000 | E18: 3916667 | F18: 4466667 | G18: 250000 | H18: =G18+F18 -> 4716667 | J18: UFA
A19: Robert Herron | B19: WR | C19: 420000 | D19: 108021.7848 | E19: 528021.7848 | F19: 520773.3792 | G19: 108021.7848 | H19: 628795.1639 | I19: 638330.7359 | J19: 108021.7848 | K19: 746352.5207 | L19: 761355.8767 | M19: 108021.7848 | N19: 869377.6614 | P19: UFA
A20: Jacoby Jones | B20: WR | C20: 1200000 | D20: 1000000 | E20: 2200000 | F20: 2400000 | G20: 1000000 | H20: =G20+F20 -> 3400000 | I20: 2400000 | J20: 1000000 | K20: =J20+I20 -> 3400000 | M20: UFA
A21: Lance Moore | B21: WR | C21: 2200000 | D21: 1150000 | E21: 3350000 | F21: 2200000 | G21: 1150000 | H21: =G21+F21 -> 3350000 | I21: 2200000 | J21: 1150000 | K21: =J21+I21 -> 3350000 | M21: UFA
A23: Nick Hardwick | B23: C | C23: 4400000 | D23: 1750000 | E23: =D23+C23 -> 6150000 | G23: UFA
A24: Nick McDonald | B24: C | C24: 645000 | E24: 645000 | F24: 745000 | H24: =G24+F24 -> 745000 | J24: UFA
A25: Willie Colon | B25: G | C25: 600000 | D25: 800000 | E25: =D25+C25 -> 1400000 | F25: 1800000 | G25: 800000 | H25: =G25+F25 -> 2600000 | I25: 2400000 | J25: 800000 | K25: =J25+I25 -> 3200000 | M25: UFA
A26: Rich Ohrnberger | B26: G | C26: 730000 | E26: 730000 | F26: 730000 | H26: 730000 | J26: UFA
A27: Chad Rinehart | B27: G | C27: 800000 | D27: 800000 | E27: 1600000 | F27: 1400000 | G27: 800000 | H27: =G27+F27 -> 2200000 | I27: 2000000 | J27: 800000 | K27: =J27+I27 -> 2800000 | M27: UFA
A28: Johnnie Troutman | B28: G | C28: 495000 | D28: 47938 | E28: 542938 | F28: 660000 | G28: 47938 | H28: =G28+F28 -> 707938 | J28: UFA
A29: King Dunlap | B29: LT | C29: 1750000 | D29: 975000 | E29: 2725000 | F29: 1300000 | G29: 500000 | H29: =G29+F29 -> 1800000 | I29: 1699900 | J29: 500000 | K29: =J29+I29 -> 2199900 | M29: UFA
A30: Mike Harris | B30: LT | C30: 570000 | D30: 1168 | E30: 571168 | G30: RFA
A31: D.J. Fluker | B31: RT | C31: 923294 | D31: 1668182 | E31: =D31+C31 -> 2591476 | F31: 1441589 | G31: 1668182 | H31: =G31+F31 -> 3109771 | I31: 1959885 | J31: 1668182 | K31: =J31+I31 -> 3628067 | M31: 3-25 Option
A32: Willie Smith | B32: RT | C32: 645000 | E32: 645000 | G32: UFA
A33: DEFENSE
A34: Kwame Geathers | B34: DT | C34: 495000 | D34: 1000 | E34: =D34+C34 -> 496000 | F34: 585000 | G34: 1000 | H34: =G34+F34 -> 586000 | J34: RFA
A35: Damon Harrison | B35: DT | C35: 570000 | E35: =D35+C35 -> 570000 | G35: RFA
A36: Sean Lissemore | B36: DT | C36: 1000000 | E36: =D36+C36 -> 1000000 | F36: 1250000 | H36: =G36+F36 -> 1250000 | I36: 1750000 | K36: =J36+I36 -> 1750000 | M36: UFA
A38: Lawrence Guy | B38: DE | C38: 570000 | E38: =D38+C38 -> 570000 | G38: RFA
A39: Arthur Jones | B39: DE | C39: 0 | D39: 1200000 | E39: =D39+C39 -> 1200000 | F39: 3600000 | G39: 1200000 | H39: =G39+F39 -> 4800000 | I39: 3600000 | J39: 1200000 | K39: =J39+I39 -> 4800000 | L39: 5000000 | M39: 1200000 | N39: =M39+L39 -> 6200000 | O39: 6800000 | P39: 1200000 | Q39: =P39+O39 -> 8000000 | S39: UFA
A40: Corey Liuget | B40: DE | C40: 1508964 | D40: 1136954 | E40: =D40+C40 -> 2645918 | F40: 6969000 | H40: =G40+F40 -> 6969000 | J40: UFA
A41: Kendall Reyes | B41: DE | C41: 765272 | D41: 360544 | E41: =D41+C41 -> 1125816 | F41: 952908 | G41: 360544 | H41: =G41+F41 -> 1313452 | J41: UFA
A43: Donald Butler | B43: ILB | C43: 750000 | D43: 2230000 | E43: =D43+C43 -> 2980000 | F43: 3250000 | G43: 2230000 | H43: =G43+F43 -> 5480000 | I43: 7050000 | J43: 2230000 | K43: =J43+I43 -> 9280000 | L43: 6400000 | M43: 2230000 | N43: =M43+L43 -> 8630000 | O43: 7050000 | P43: 2230000 | Q43: =P43+O43 -> 9280000 | R43: 7750000 | S43: 0 | T43: =S43+R43 -> 7750000 | U43: 8400000 | V43: 0 | W43: =V43+U43 -> 8400000 | Y43: UFA
A44: Andrew Gachkar | B44: ILB | C44: 645000 | D44: 11475 | E44: 656475 | G44: UFA
A45: Manti Te' o | B45: ILB | C45: 640110 | D45: 535440 | E45: 1175550 | F45: 875220 | G45: 535440 | H45: =G45+F45 -> 1410660 | I45: 1110330 | J45: 535440 | K45: =J45+I45 -> 1645770 | M45: UFA
A46: James Anderson | B46: OLB | C46: 855000 | E46: 855000 | F46: 855000 | H46: 855000 | J46: UFA
A47: Dwight Freeney | B47: OLB | C47: 3500000 | D47: 1625000 | E47: 5125000 | G47: UFA
A48: Melvin Ingram | B48: OLB | C48: 1153476 | D48: 1136952 | E48: 2290428 | F48: 1535214 | G48: 1136952 | H48: =G48+F48 -> 2672166 | J48: 3-25 Option
A49: Jarret Johnson | B49: OLB | C49: 2000000 | D49: 1500000 | E49: 3500000 | F49: 5000000 | G49: 1500000 | H49: =G49+F49 -> 6500000 | J49: UFA
A50: Tourek Williams | B50: OLB | C50: 495000 | D50: 27515 | E50: 522515 | F50: 585000 | G50: 27515 | H50: =G50+F50 -> 612515 | I50: 675000 | J50: 27515 | K50: =J50+I50 -> 702515 | M50: UFA
A52: Jahleel Addae | B52: S | C52: 495000 | D52: 1666 | E52: =D52+C52 -> 496666 | F52: 585000 | G52: 1668 | H52: =G52+F52 -> 586668 | J52: RFA
A53: Marcus Gilchrist | B53: S | C53: 914400 | D53: 344200 | E53: =D53+C53 -> 1258600 | G53: UFA
A54: Darrell Stuckey | B54: S | C54: 749900 | D54: 600000 | E54: =D54+C54 -> 1349900 | F54: 1600000 | G54: 600000 | H54: =G54+F54 -> 2200000 | I54: 2100000 | J54: 600000 | K54: =J54+I54 -> 2700000 | M54: UFA
A55: Eric Weddle | B55: S | C55: 7500000 | D55: 2600000 | E55: =D55+C55 -> 10100000 | F55: 7500000 | G55: 2600000 | H55: =G55+F55 -> 10100000 | J55: UFA
A57: Will Blackmon | B57: CB | C57: 1710000 | E57: =D57+C57 -> 1710000 | F57: 1710000 | H57: =G57+F57 -> 1710000 | J57: UFA
A58: Byron Maxwell | B58: CB | C58: 645000 | E58: 645000 | G58: UFA
A59: Trumaine McBride | B59: CB | C59: 920000 | E59: =D59+C59 -> 920000 | F59: 2500000 | H59: =G59+F59 -> 2500000 | J59: UFA
A60: Jason Verrett | B60: CB | C60: 420000 | D60: 899511.2455 | E60: 1319511.246 | F60: 784329.8246 | G60: 899511.2455 | H60: 1683841.07 | I60: 1099134.894 | J60: 899511.2455 | K60: 1998646.14 | L60: 1428582.06 | M60: 899511.2455 | N60: 2328093.306 | P60: TOP3-25 Option
A61: Jimmie Ward | B61: CB | C61: 420000 | D61: 174852.9843 | E61: 594852.9843 | F61: 545083.934 | G61: 174852.9843 | H61: 719936.9184 | I61: 679680.8361 | J61: 174852.9843 | K61: 854533.8205 | L61: 820538.0593 | M61: 174852.9843 | N61: 995391.0437 | P61: UFA
A62: Shareece Wright | B62: CB | C62: 645000 | D62: 136035 | E62: 781035 | G62: UFA
A64: Nick Novak | B64: K | C64: 1325000 | D64: 375000 | E64: =D64+C64 -> 1700000 | F64: 1425000 | G64: 375000 | H64: =G64+F64 -> 1800000 | I64: 1600000 | J64: 375000 | K64: =J64+I64 -> 1975000 | M64: UFA
A65: Mike Windt | B65: LS | C65: 730000 | D65: 112500 | E65: =D65+C65 -> 842500 | F65: 770000 | G65: 112500 | H65: =G65+F65 -> 882500 | I65: 785000 | J65: 112500 | K65: =J65+I65 -> 897500 | M65: UFA
A66: Mike Scifres | B66: P | C66: 3850000 | D66: 185000 | E66: =D66+C66 -> 4035000 | F66: 4162500 | G66: 185000 | H66: =G66+F66 -> 4347500 | I66: 4162500 | K66: =J66+I66 -> 4162500 | M66: UFA
A69: Total Players | C69: =COUNTA(C3:C67) -> 53 | F69: =COUNTA(F3:F67) -> 42 | I69: =COUNTA(I3:I67) -> 21 | L69: =COUNTA(L3:L67) -> 5
A70: Top 51 Salary | C70: =SUM(LARGE(ISNUMBER(E4:E67)*E4:E67,ROW(INDIRECT("1:51")))) -> 116086081 | F70: =SUM(LARGE(ISNUMBER(H4:H67)*H4:H67,ROW(INDIRECT("1:51")))) -> 121282352.2 | I70: =SUM(LARGE(ISNUMBER(K4:K67)*K4:K67,ROW(INDIRECT("1:51")))) -> 54124084.48 | L70: =SUM(LARGE(ISNUMBER(N4:N67)*N4:N67,ROW(INDIRECT("1:51")))) -> 19022862.01
A71: Dead Money | C71: 17993240 | F71: 925705
A72: Cap Rollover | C72: 2319341 | F72: =C73 -> 1240019.985 | I72: =F73 -> 12031962.83 | L72: 90907878.35
A73: Cap Space | C73: =133000000-C70-C71+C72 -> 1240019.985 | F73: =133000000-F70-F71+F72 -> 12031962.83 | I73: =133000000-I70-I71+I72 -> 90907878.35 | L73: =133000000-L70-L71+L72 -> 204885016.3
A74: June 1st Cut | B74: 0/2
A75: Paycut | B75: 2/2
A76: Restructure | B76: 0/3
A78: Practice Squad
A79: Marion Grice | B79: RB | C79: 420000 | E79: 420000 | F79: 510000 | H79: 510000 | I79: 600000 | K79: 600000 | M79: RFA
A80: Michael Campanaro | B80: WR | C80: 420000 | E80: 420000 | F80: 527738.2145 | G80: 20961.3435 | H80: 548699.558 | I80: 630321.1753 | J80: 20961.3435 | K80: 651282.5188 | L80: 737675.4367 | M80: 20961.3435 | N80: 758636.7801 | P80: UFA
A81: Dontrelle Inman | B81: WR | C81: 420000 | E81: 420000 | F81: 510000 | H81: 510000 | J81: ERFA
A82: Tevin Reese | B82: WR | C82: 420000 | E82: 420000 | F82: 510000 | H82: 510000 | I82: 600000 | K82: 600000 | M82: RFA
A83: Roosevelt Nix | B83: ILB | C83: 420000 | E83: 420000 | F83: 510000 | H83: 510000 | I83: 600000 | K83: 600000 | M83: RFA
A84: Jordan Tripp | B84: ILB | C84: 420000 | E84: 420000 | F84: 519965.3604 | G84: 118122.0193 | H84: 638087.3797 | I84: 639259.9575 | J84: 118122.0193 | K84: 757381.9768 | L84: 764103.1405 | M84: 118122.0193 | N84: 882225.1598 | P84: UFA
A85: Jack Tyler | B85: ILB | C85: 420000 | E85: 420000 | F85: 510000 | H85: 510000 | I85: 600000 | K85: 600000 | M85: RFA
A86: Nate Freese | B86: K | C86: 420000 | E86: 420000 | F86: 510000 | H86: 510000 | I86: 600000 | K86: 600000 | M86: RFA

Sheet SF
C1: 2014 | F1: 2015 | I1: 2016 | L1: 2017 | O1: 2018 | R1: 2019 | U1: 2020
A2: Player | B2: Pos. | C2: Base Salary | D2: Signing Bonus | E2: Cap Figure | F2: Base Salary | G2: Signing Bonus | H2: Cap Figure | I2: Base Salary | J2: Signing Bonus | K2: Cap Figure | L2: Base Salary | M2: Signing Bonus | N2: Cap Figure | O2: Base Salary | P2: Signing Bonus | Q2: Cap Figure | R2: Base Salary | S2: Signing Bonus | T2: Cap Figure | U2: Base Salary | V2: Signing Bonus | W2: Cap Figure
A3: OFFENSE
A4: McLeod Bethel-Thompson | B4: QB | C4: 616875 | E4: =D4+C4 -> 616875 | F4: 1660000 | H4: =G4+F4 -> 1660000 | J4: UFA
